Workbook

Sheet HOME
A1: TẠO DỮ LIỆU KỲ MỚI CHO PHẦN MỀM 1.4 PRO | G1: 1
A4: Link file Kỳ cũ | C4: C:\Users\dell\Desktop\BAN HANG\Excel.webkynang.vn2 - Ban FULL 1.4 (Nang cap 2017).xlsm
A16: 1. HƯỚNG DẪN CÁCH SỬ DỤNG:
A18: - Bước 1: | B18: Bạn nhấn nút "Chọn file": Một cửa sổ sẽ hiện lên, bạn chọn file của kỳ cũ là được
A19: - Bước 2: | B19: Bạn nhấn nút "Tính toán số đầu kỳ mới"
A20: - Bước 3: | B20: Bạn lần lượt copy dữ liệu danh mục và số dư ở 2 sheet DMHH-kymoi và DMKH-kymoi để paste special value sang danh mục tương ứng bên file kỳ mới của 1.4 PRO
A22: 4 Sheet màu xanh là dữ liệu nguồn được lấy tự động từ kỳ cũ của bạn. Tại sheet DMHH, DMKH có công thức nên bạn không nên xóa hay chỉnh sửa.
A24: 2. LƯU Ý:
A26: Ở file kỳ mới bạn nên xóa dữ liệu nhập, xuất và thu chi khác ở phần NHẬP PHIẾU nhé bạn.
A27: Cách làm:
A28: - Bước 1: | B28: Chọn vùng cần xóa, ví dụ như hình dưới
A29: - Bước 2: | B29: Nhấn phím "Delete" là xong
A31: Không chọn cả dòng hay chọn cả cột STT để xóa.

Sheet DMHH-kymoi
A1: STT | B1: MÃ HÀNG | C1: TÊN HÀNG | D1: ĐVT | E1: NHÓM HÀNG | F1: TỒN KHO BẮT ĐẦU KỲ MỚI
F2: Số lượng | G2: Đơn giá tồn | H2: Thành tiền
A3: 1 | B3: BX30 | C3: Bánh xe 30 | D3: Cái | E3: MT | F3: 97 | G3: 6053.571429 | H3: 587196.4286 | M3: =VLOOKUP($B3,[2]NXT!$D1:$N10000,9,0)-F3 -> -97 | N3: =VLOOKUP($B3,[1]NXT!$D$14:$Z$1900,11,0)-H3 -> 
A4: 2 | B4: BX36 | C4: Bánh xe 36 | D4: Cái | E4: MT | F4: 94 | G4: 6153.98773 | H4: 578474.8466 | M4: =VLOOKUP($B4,[2]NXT!$D2:$N10001,9,0)-F4 ->  | N4: =VLOOKUP($B4,[1]NXT!$D$14:$Z$1900,11,0)-H4 -> 
A5: 3 | B5: BX48 | C5: Bánh xe 48 | D5: Cái | E5: MT | F5: -17 | G5: 12000 | H5: -204000 | M5: =VLOOKUP($B5,[2]NXT!$D3:$N10002,9,0)-F5 ->  | N5: =VLOOKUP($B5,[1]NXT!$D$14:$Z$1900,11,0)-H5 -> 
A6: 4 | B6: BXB | C6: Bánh xe bạc treo | D6: Cái | E6: MT | F6: 39 | G6: 9000 | H6: 351000 | M6: =VLOOKUP($B6,[2]NXT!$D4:$N10003,9,0)-F6 ->  | N6: =VLOOKUP($B6,[1]NXT!$D$14:$Z$1900,11,0)-H6 -> 
A7: 5 | B7: CCN20 | C7: Chụp nhựa 20 | D7: Cái | E7: CN | F7: 768 | G7: 140 | H7: 107520 | M7: =VLOOKUP($B7,[2]NXT!$D5:$N10004,9,0)-F7 ->  | N7: =VLOOKUP($B7,[1]NXT!$D$14:$Z$1900,11,0)-H7 -> 
A8: 6 | B8: CCN24 | C8: Chụp nhựa 24 | D8: Cái | E8: CN | F8: 141 | G8: 140 | H8: 19740 | M8: =VLOOKUP($B8,[2]NXT!$D6:$N10005,9,0)-F8 ->  | N8: =VLOOKUP($B8,[1]NXT!$D$14:$Z$1900,11,0)-H8 -> 
A9: 7 | B9: CCN25 | C9: Chụp nhựa 25 | D9: Cái | E9: CN | F9: 354 | G9: 160 | H9: 56640 | M9: =VLOOKUP($B9,[2]NXT!$D7:$N10006,9,0)-F9 ->  | N9: =VLOOKUP($B9,[1]NXT!$D$14:$Z$1900,11,0)-H9 -> 
A10: 8 | B10: CCN2550 | C10: Chụp nhựa 2550 | D10: Cái | E10: CN | F10: 445 | G10: 210 | H10: 93450 | M10: =VLOOKUP($B10,[2]NXT!$D8:$N10007,9,0)-F10 ->  | N10: =VLOOKUP($B10,[1]NXT!$D$14:$Z$1900,11,0)-H10 -> 
A11: 9 | B11: CCN30 | C11: Chụp nhựa 30 | D11: Cái | E11: CN | F11: 426 | G11: 180 | H11: 76680 | M11: =VLOOKUP($B11,[2]NXT!$D9:$N10008,9,0)-F11 ->  | N11: =VLOOKUP($B11,[1]NXT!$D$14:$Z$1900,11,0)-H11 -> 
A12: 10 | B12: CCN36 | C12: Chụp nhựa 36 | D12: Cái | E12: CN | F12: 268 | G12: 280 | H12: 75040 | M12: =VLOOKUP($B12,[2]NXT!$D10:$N10009,9,0)-F12 ->  | N12: =VLOOKUP($B12,[1]NXT!$D$14:$Z$1900,11,0)-H12 -> 
A13: 11 | B13: CCN40 | C13: Chụp nhựa 40 | D13: Cái | E13: CN | F13: 326 | G13: 300 | H13: 97800 | M13: =VLOOKUP($B13,[2]NXT!$D11:$N10010,9,0)-F13 ->  | N13: =VLOOKUP($B13,[1]NXT!$D$14:$Z$1900,11,0)-H13 -> 
A14: 12 | B14: CCN48 | C14: Chụp nhựa 48 | D14: Cái | E14: CN | F14: 51 | G14: 472.6630435 | H14: 24105.81522 | M14: =VLOOKUP($B14,[2]NXT!$D12:$N10011,9,0)-F14 ->  | N14: =VLOOKUP($B14,[1]NXT!$D$14:$Z$1900,11,0)-H14 -> 
A15: 13 | B15: CCN50 | C15: Chụp nhựa 50 | D15: Cái | E15: CN | F15: 127 | G15: 500 | H15: 63500 | M15: =VLOOKUP($B15,[2]NXT!$D13:$N10012,9,0)-F15 ->  | N15: =VLOOKUP($B15,[1]NXT!$D$14:$Z$1900,11,0)-H15 -> 
A16: 14 | B16: CCN510 | C16: Chụp nhựa 510 | D16: Cái | E16: CN | F16: 72 | G16: 740 | H16: 53280 | M16: =VLOOKUP($B16,[2]NXT!$D14:$N10013,9,0)-F16 ->  | N16: =VLOOKUP($B16,[1]NXT!$D$14:$Z$1900,11,0)-H16 -> 
A17: 15 | B17: CCN612 | C17: Chụp nhựa 612 | D17: Cái | E17: CN | F17: 15 | G17: 1000 | H17: 15000 | M17: =VLOOKUP($B17,[2]NXT!$D15:$N10014,9,0)-F17 ->  | N17: =VLOOKUP($B17,[1]NXT!$D$14:$Z$1900,11,0)-H17 -> 
A18: 16 | B18: CCS1326 | C18: Chụp chông sắt 1326 | D18: Cái | E18: CC | F18: 251 | G18: 160 | H18: 40160 | M18: =VLOOKUP($B18,[2]NXT!$D16:$N10015,9,0)-F18 ->  | N18: =VLOOKUP($B18,[1]NXT!$D$14:$Z$1900,11,0)-H18 -> 
A19: 17 | B19: CCS24 | C19: Chụp chông sắt 24 | D19: Cái | E19: CC | F19: 376 | G19: 464.9853372 | H19: 174834.4868 | M19: =VLOOKUP($B19,[2]NXT!$D17:$N10016,9,0)-F19 ->  | N19: =VLOOKUP($B19,[1]NXT!$D$14:$Z$1900,11,0)-H19 -> 
A20: 18 | B20: CCS25 | C20: Chụp chông sắt 2550 | D20: Cái | E20: CC | F20: 256 | G20: 711.2820513 | H20: 182088.2051 | M20: =VLOOKUP($B20,[2]NXT!$D18:$N10017,9,0)-F20 ->  | N20: =VLOOKUP($B20,[1]NXT!$D$14:$Z$1900,11,0)-H20 -> 
A21: 19 | B21: CCS36 | C21: Chụp chông sắt 36 | D21: Cái | E21: CC | F21: 269 | G21: 1850.167224 | H21: 497694.9833 | M21: =VLOOKUP($B21,[2]NXT!$D19:$N10018,9,0)-F21 ->  | N21: =VLOOKUP($B21,[1]NXT!$D$14:$Z$1900,11,0)-H21 -> 
A22: 20 | B22: CCS48 | C22: Chụp chông sắt 48 | D22: Cái | E22: CC | F22: 21 | G22: 1800 | H22: 37800 | M22: =VLOOKUP($B22,[2]NXT!$D20:$N10019,9,0)-F22 ->  | N22: =VLOOKUP($B22,[1]NXT!$D$14:$Z$1900,11,0)-H22 -> 
A23: 21 | B23: CKL | C23: Chén kẽm lớn | D23: Kg | E23: CK | F23: 40 | G23: 16642.85714 | H23: 665714.2857 | M23: =VLOOKUP($B23,[2]NXT!$D21:$N10020,9,0)-F23 ->  | N23: =VLOOKUP($B23,[1]NXT!$D$14:$Z$1900,11,0)-H23 -> 
A24: 22 | B24: CKN | C24: Chén kẽm nhỏ | D24: Kg | E24: CK | F24: 32 | G24: 17000 | H24: 544000 | M24: =VLOOKUP($B24,[2]NXT!$D22:$N10021,9,0)-F24 ->  | N24: =VLOOKUP($B24,[1]NXT!$D$14:$Z$1900,11,0)-H24 -> 
A25: 23 | B25: CKT | C25: Chén kẽm trung | D25: Kg | E25: CK | F25: 25.8 | G25: 16594.59459 | H25: 428140.5405 | M25: =VLOOKUP($B25,[2]NXT!$D23:$N10022,9,0)-F25 ->  | N25: =VLOOKUP($B25,[1]NXT!$D$14:$Z$1900,11,0)-H25 -> 
A26: 24 | B26: CN10L | C26: Cách nhiệt 10 li | D26: Mét | E26: CN | F26: 324.05 | G26: 13082.5603 | H26: 4239403.664 | M26: =VLOOKUP($B26,[2]NXT!$D24:$N10023,9,0)-F26 ->  | N26: =VLOOKUP($B26,[1]NXT!$D$14:$Z$1900,11,0)-H26 -> 
A27: 25 | B27: CN20L | C27: Cách nhiệt 20 li | D27: Mét | E27: CN | F27: 141.4 | G27: 28600 | H27: 4044040 | M27: =VLOOKUP($B27,[2]NXT!$D25:$N10024,9,0)-F27 ->  | N27: =VLOOKUP($B27,[1]NXT!$D$14:$Z$1900,11,0)-H27 -> 
A28: 26 | B28: CN5L | C28: Cách nhiệt 5 li | D28: Mét | E28: CN | F28: 468.44 | G28: 7666.666667 | H28: 3591373.333 | M28: =VLOOKUP($B28,[2]NXT!$D26:$N10025,9,0)-F28 ->  | N28: =VLOOKUP($B28,[1]NXT!$D$14:$Z$1900,11,0)-H28 -> 
A29: 27 | B29: CNCT | C29: Cách nhiệt Cát Tường | D29: Cuộn | E29: CN | F29: 5 | G29: 1128000 | H29: 5640000 | M29: =VLOOKUP($B29,[2]NXT!$D27:$N10026,9,0)-F29 ->  | N29: =VLOOKUP($B29,[1]NXT!$D$14:$Z$1900,11,0)-H29 -> 
A30: 28 | B30: CNVN | C30: Cách nhiệt Việt Nhật | D30: Cuộn | E30: CN | F30: 0 | G30: 0 | H30: 0 | M30: =VLOOKUP($B30,[2]NXT!$D28:$N10027,9,0)-F30 ->  | N30: =VLOOKUP($B30,[1]NXT!$D$14:$Z$1900,11,0)-H30 -> 
A31: 29 | B31: HD1020 0.6 | C31: Hộp đen 10x20 (0.6) | D31: cây | E31: HD | F31: 180 | G31: 28697.36842 | H31: 5165526.316 | M31: =VLOOKUP($B31,[2]NXT!$D29:$N10028,9,0)-F31 ->  | N31: =VLOOKUP($B31,[1]NXT!$D$14:$Z$1900,11,0)-H31 -> 
A32: 30 | B32: HD1020 0.7 | C32: Hộp đen 10x20 (0.7) | D32: Cây | E32: HD | F32: 0 | G32: 0 | H32: 0 | M32: =VLOOKUP($B32,[2]NXT!$D30:$N10029,9,0)-F32 ->  | N32: =VLOOKUP($B32,[1]NXT!$D$14:$Z$1900,11,0)-H32 -> 
A33: 31 | B33: HD1326 0.9 | C33: Hộp đen 13x26 (0.9) | D33: Cây | E33: HD | F33: 0 | G33: 0 | H33: 0 | M33: =VLOOKUP($B33,[2]NXT!$D31:$N10030,9,0)-F33 ->  | N33: =VLOOKUP($B33,[1]NXT!$D$14:$Z$1900,11,0)-H33 -> 
A34: 32 | B34: HD1326 1.0 | C34: Hộp đen 13x26 (1.0) | D34: Cây | E34: HD | F34: 0 | G34: 0 | H34: 0 | M34: =VLOOKUP($B34,[2]NXT!$D32:$N10031,9,0)-F34 ->  | N34: =VLOOKUP($B34,[1]NXT!$D$14:$Z$1900,11,0)-H34 -> 
A35: 33 | B35: HD2040 1.4 | C35: Hộp đen 20x40 (1.4) | D35: Cây | E35: HD | F35: 0 | G35: 0 | H35: 0 | M35: =VLOOKUP($B35,[2]NXT!$D33:$N10032,9,0)-F35 ->  | N35: =VLOOKUP($B35,[1]NXT!$D$14:$Z$1900,11,0)-H35 -> 
A36: 34 | B36: HD2550 0.7 | C36: Hộp đen 25x50 (0.7) | D36: Cây | E36: HD | F36: 1117 | G36: 72716.86916 | H36: 81224742.85 | M36: =VLOOKUP($B36,[2]NXT!$D34:$N10033,9,0)-F36 ->  | N36: =VLOOKUP($B36,[1]NXT!$D$14:$Z$1900,11,0)-H36 -> 
A37: 35 | B37: HD2550 0.8 | C37: Hộp đen 25x50 (0.8) | D37: Cây | E37: HD | F37: 0 | G37: 0 | H37: 0 | M37: =VLOOKUP($B37,[2]NXT!$D35:$N10034,9,0)-F37 ->  | N37: =VLOOKUP($B37,[1]NXT!$D$14:$Z$1900,11,0)-H37 -> 
A38: 36 | B38: HD2550 0.9 | C38: Hộp đen 25x50 (0.9) | D38: Cây | E38: HD | F38: 100 | G38: 86978.37838 | H38: 8697837.838 | M38: =VLOOKUP($B38,[2]NXT!$D36:$N10035,9,0)-F38 ->  | N38: =VLOOKUP($B38,[1]NXT!$D$14:$Z$1900,11,0)-H38 -> 
A39: 37 | B39: HD2550 1.2 | C39: Hộp đen 25x50 (1.2) | D39: Cây | E39: HD | F39: 0 | G39: 0 | H39: 0 | M39: =VLOOKUP($B39,[2]NXT!$D37:$N10036,9,0)-F39 ->  | N39: =VLOOKUP($B39,[1]NXT!$D$14:$Z$1900,11,0)-H39 -> 
A40: 38 | B40: HD2550 1.4 | C40: Hộp đen 25x50 (1.4) | D40: Cây | E40: HD | F40: 0 | G40: 0 | H40: 0 | M40: =VLOOKUP($B40,[2]NXT!$D38:$N10037,9,0)-F40 ->  | N40: =VLOOKUP($B40,[1]NXT!$D$14:$Z$1900,11,0)-H40 -> 
A41: 39 | B41: HD4080 1.2 | C41: Hộp đen 40x80 (1.2) | D41: Cây | E41: HD | F41: 0 | G41: 0 | H41: 0 | M41: =VLOOKUP($B41,[2]NXT!$D39:$N10038,9,0)-F41 ->  | N41: =VLOOKUP($B41,[1]NXT!$D$14:$Z$1900,11,0)-H41 -> 
A42: 40 | B42: HD4080 1.8 | C42: Hộp đen 40x80 (1.8) | D42: Cây | E42: HD | F42: 0 | G42: 0 | H42: 0 | M42: =VLOOKUP($B42,[2]NXT!$D40:$N10039,9,0)-F42 ->  | N42: =VLOOKUP($B42,[1]NXT!$D$14:$Z$1900,11,0)-H42 -> 
A43: 41 | B43: HD4080 3.0 | C43: Hộp đen 40x80 (3.0) | D43: Cây | E43: HD | F43: 0 | G43: 0 | H43: 0 | M43: =VLOOKUP($B43,[2]NXT!$D41:$N10040,9,0)-F43 ->  | N43: =VLOOKUP($B43,[1]NXT!$D$14:$Z$1900,11,0)-H43 -> 
A44: 42 | B44: HD4590 1.4 | C44: Hộp đen 45x90 (1.4) | D44: Cây | E44: HD | F44: 0 | G44: 0 | H44: 0 | M44: =VLOOKUP($B44,[2]NXT!$D42:$N10041,9,0)-F44 ->  | N44: =VLOOKUP($B44,[1]NXT!$D$14:$Z$1900,11,0)-H44 -> 
A45: 43 | B45: HD5010 1.4 | C45: Hộp đen 50x100 (1.4) | D45: Cây | E45: HD | F45: 0 | G45: 0 | H45: 0 | M45: =VLOOKUP($B45,[2]NXT!$D43:$N10042,9,0)-F45 ->  | N45: =VLOOKUP($B45,[1]NXT!$D$14:$Z$1900,11,0)-H45 -> 
A46: 44 | B46: HD5010 1.8 | C46: Hộp đen 50x100 (1.8) | D46: Cây | E46: HD | F46: 0 | G46: 0 | H46: 0 | M46: =VLOOKUP($B46,[2]NXT!$D44:$N10043,9,0)-F46 ->  | N46: =VLOOKUP($B46,[1]NXT!$D$14:$Z$1900,11,0)-H46 -> 
A47: 45 | B47: HD5010 3.0 | C47: Hộp đen 50x100 (3.0) | D47: Cây | E47: HD | F47: 2 | G47: 592000 | H47: 1184000 | M47: =VLOOKUP($B47,[2]NXT!$D45:$N10044,9,0)-F47 ->  | N47: =VLOOKUP($B47,[1]NXT!$D$14:$Z$1900,11,0)-H47 -> 
A48: 46 | B48: HD612 1.4 | C48: Hộp đen 60x120 (1.4) | D48: Cây | E48: HD | F48: 0 | G48: 0 | H48: 0 | M48: =VLOOKUP($B48,[2]NXT!$D46:$N10045,9,0)-F48 ->  | N48: =VLOOKUP($B48,[1]NXT!$D$14:$Z$1900,11,0)-H48 -> 
A49: 47 | B49: HD612 1.8 | C49: Hộp đen 60x120 (1.8) | D49: Cây | E49: HD | F49: 0 | G49: 0 | H49: 0 | M49: =VLOOKUP($B49,[2]NXT!$D47:$N10046,9,0)-F49 ->  | N49: =VLOOKUP($B49,[1]NXT!$D$14:$Z$1900,11,0)-H49 -> 
A50: 48 | B50: HK1326 0.9 | C50: Hộp kẽm 13x26 (0.9) | D50: Cây | E50: HK | F50: 30 | G50: 45165.75875 | H50: 1354972.763 | M50: =VLOOKUP($B50,[2]NXT!$D48:$N10047,9,0)-F50 ->  | N50: =VLOOKUP($B50,[1]NXT!$D$14:$Z$1900,11,0)-H50 -> 
A51: 49 | B51: HK1326 1.0 | C51: Hộp kẽm 13x26 (1.0) | D51: Cây | E51: HK | F51: 62 | G51: 49243.66197 | H51: 3053107.042 | M51: =VLOOKUP($B51,[2]NXT!$D49:$N10048,9,0)-F51 ->  | N51: =VLOOKUP($B51,[1]NXT!$D$14:$Z$1900,11,0)-H51 -> 
A52: 50 | B52: HK1326 1.1 | C52: Hộp kẽm 13x26 (1.1) | D52: Cây | E52: HK | F52: 79 | G52: 56372.51185 | H52: 4453428.436 | M52: =VLOOKUP($B52,[2]NXT!$D50:$N10049,9,0)-F52 ->  | N52: =VLOOKUP($B52,[1]NXT!$D$14:$Z$1900,11,0)-H52 -> 
A53: 51 | B53: HK1326 1.2 | C53: Hộp kẽm 13x26 (1.2) | D53: Cây | E53: HK | F53: 153 | G53: 61076.29382 | H53: 9344672.955 | M53: =VLOOKUP($B53,[2]NXT!$D51:$N10050,9,0)-F53 ->  | N53: =VLOOKUP($B53,[1]NXT!$D$14:$Z$1900,11,0)-H53 -> 
A54: 52 | B54: HK2040 0.9 | C54: Hộp kẽm 20x40 (0.9) | D54: Cây | E54: HK | F54: 0 | G54: 0 | H54: 0 | M54: =VLOOKUP($B54,[2]NXT!$D52:$N10051,9,0)-F54 ->  | N54: =VLOOKUP($B54,[1]NXT!$D$14:$Z$1900,11,0)-H54 -> 
A55: 53 | B55: HK2040 1.0 | C55: Hộp kẽm 20x40 (1.0) | D55: Cây | E55: HK | F55: 0 | G55: 0 | H55: 0 | M55: =VLOOKUP($B55,[2]NXT!$D53:$N10052,9,0)-F55 ->  | N55: =VLOOKUP($B55,[1]NXT!$D$14:$Z$1900,11,0)-H55 -> 
A56: 54 | B56: HK2040 1.1 | C56: Hộp kẽm 20x40 (1.1) | D56: Cây | E56: HK | F56: 0 | G56: 0 | H56: 0 | M56: =VLOOKUP($B56,[2]NXT!$D54:$N10053,9,0)-F56 ->  | N56: =VLOOKUP($B56,[1]NXT!$D$14:$Z$1900,11,0)-H56 -> 
A57: 55 | B57: HK2040 1.2 | C57: Hộp kẽm 20x40 (1.2) | D57: Cây | E57: HK | F57: 72 | G57: 96346.13181 | H57: 6936921.49 | M57: =VLOOKUP($B57,[2]NXT!$D55:$N10054,9,0)-F57 ->  | N57: =VLOOKUP($B57,[1]NXT!$D$14:$Z$1900,11,0)-H57 -> 
A58: 56 | B58: HK2040 1.3 | C58: Hộp kẽm 20x40 (1.3) | D58: Cây | E58: HK | F58: 39 | G58: 101752 | H58: 3968328 | M58: =VLOOKUP($B58,[2]NXT!$D56:$N10055,9,0)-F58 ->  | N58: =VLOOKUP($B58,[1]NXT!$D$14:$Z$1900,11,0)-H58 -> 
A59: 57 | B59: HK2040 1.4 | C59: Hộp kẽm 20x40 (1.4) | D59: Cây | E59: HK | F59: 63 | G59: 108619.7987 | H59: 6843047.315 | M59: =VLOOKUP($B59,[2]NXT!$D57:$N10056,9,0)-F59 ->  | N59: =VLOOKUP($B59,[1]NXT!$D$14:$Z$1900,11,0)-H59 -> 
A60: 58 | B60: HK2040 1.8 | C60: Hộp kẽm 20x40 (1.8) | D60: Cây | E60: HK | F60: 0 | G60: 0 | H60: 0 | M60: =VLOOKUP($B60,[2]NXT!$D58:$N10057,9,0)-F60 ->  | N60: =VLOOKUP($B60,[1]NXT!$D$14:$Z$1900,11,0)-H60 -> 
A61: 59 | B61: HK2550 1.1 | C61: Hộp kẽm 25x50 (1.1) | D61: Cây | E61: HK | F61: 1 | G61: 123200 | H61: 123200 | M61: =VLOOKUP($B61,[2]NXT!$D59:$N10058,9,0)-F61 ->  | N61: =VLOOKUP($B61,[1]NXT!$D$14:$Z$1900,11,0)-H61 -> 
A62: 60 | B62: HK2550 1.2 | C62: Hộp kẽm 25x50 (1.2) | D62: Cây | E62: HK | F62: 24 | G62: 125697.5207 | H62: 3016740.496 | M62: =VLOOKUP($B62,[2]NXT!$D60:$N10059,9,0)-F62 ->  | N62: =VLOOKUP($B62,[1]NXT!$D$14:$Z$1900,11,0)-H62 -> 
A63: 61 | B63: HK2550 1.3 | C63: Hộp kẽm 25x50 (1.3) | D63: Cây | E63: HK | F63: 0 | G63: 0 | H63: 0 | M63: =VLOOKUP($B63,[2]NXT!$D61:$N10060,9,0)-F63 ->  | N63: =VLOOKUP($B63,[1]NXT!$D$14:$Z$1900,11,0)-H63 -> 
A64: 62 | B64: HK2550 1.4 | C64: Hộp kẽm 25x50 (1.4) | D64: Cây | E64: HK | F64: 69 | G64: 136627.2109 | H64: 9427277.551 | M64: =VLOOKUP($B64,[2]NXT!$D62:$N10061,9,0)-F64 ->  | N64: =VLOOKUP($B64,[1]NXT!$D$14:$Z$1900,11,0)-H64 -> 
A65: 63 | B65: HK2550 1.8 | C65: Hộp kẽm 25x50 (1.8) | D65: Cây | E65: HK | F65: 0 | G65: 0 | H65: 0 | M65: =VLOOKUP($B65,[2]NXT!$D63:$N10062,9,0)-F65 ->  | N65: =VLOOKUP($B65,[1]NXT!$D$14:$Z$1900,11,0)-H65 -> 
A66: 64 | B66: HK3060 1.1 | C66: Hộp kẽm 30x60 (1.1) | D66: Cây | E66: HK | F66: 1 | G66: 142590.4762 | H66: 142590.4762 | M66: =VLOOKUP($B66,[2]NXT!$D64:$N10063,9,0)-F66 ->  | N66: =VLOOKUP($B66,[1]NXT!$D$14:$Z$1900,11,0)-H66 -> 
A67: 65 | B67: HK3060 1.2 | C67: Hộp kẽm 30x60 (1.2) | D67: Cây | E67: HK | F67: 87 | G67: 146786.4486 | H67: 12770421.03 | M67: =VLOOKUP($B67,[2]NXT!$D65:$N10064,9,0)-F67 ->  | N67: =VLOOKUP($B67,[1]NXT!$D$14:$Z$1900,11,0)-H67 -> 
A68: 66 | B68: HK3060 1.3 | C68: Hộp kẽm 30x60 (1.3) | D68: Cây | E68: HK | F68: 41 | G68: 155353.0435 | H68: 6369474.783 | M68: =VLOOKUP($B68,[2]NXT!$D66:$N10065,9,0)-F68 ->  | N68: =VLOOKUP($B68,[1]NXT!$D$14:$Z$1900,11,0)-H68 -> 
A69: 67 | B69: HK3060 1.4 | C69: Hộp kẽm 30x60 (1.4) | D69: Cây | E69: HK | F69: 219 | G69: 163055.6075 | H69: 35709178.04 | M69: =VLOOKUP($B69,[2]NXT!$D67:$N10066,9,0)-F69 ->  | N69: =VLOOKUP($B69,[1]NXT!$D$14:$Z$1900,11,0)-H69 -> 
A70: 68 | B70: HK3060 1.7 | C70: Hộp kẽm 30x60 (1.7) | D70: Cây | E70: HK | F70: 29 | G70: 216515.2542 | H70: 6278942.373 | M70: =VLOOKUP($B70,[2]NXT!$D68:$N10067,9,0)-F70 ->  | N70: =VLOOKUP($B70,[1]NXT!$D$14:$Z$1900,11,0)-H70 -> 
A71: 69 | B71: HK3060 1.8 | C71: Hộp kẽm 30x60 (1.8) | D71: Cây | E71: HK | F71: 55 | G71: 202272.377 | H71: 11124980.74 | M71: =VLOOKUP($B71,[2]NXT!$D69:$N10068,9,0)-F71 ->  | N71: =VLOOKUP($B71,[1]NXT!$D$14:$Z$1900,11,0)-H71 -> 
A72: 70 | B72: HK3060 2.0 | C72: Hộp kẽm 30x60 (2.0) | D72: Cây | E72: HK | F72: 50 | G72: 245412.2449 | H72: 12270612.24 | M72: =VLOOKUP($B72,[2]NXT!$D70:$N10069,9,0)-F72 ->  | N72: =VLOOKUP($B72,[1]NXT!$D$14:$Z$1900,11,0)-H72 -> 
A73: 71 | B73: HK4080 1.1 | C73: Hộp kẽm 40x80 (1.1) | D73: Cây | E73: HK | F73: 6 | G73: 174435.8566 | H73: 1046615.139 | M73: =VLOOKUP($B73,[2]NXT!$D71:$N10070,9,0)-F73 ->  | N73: =VLOOKUP($B73,[1]NXT!$D$14:$Z$1900,11,0)-H73 -> 
A74: 72 | B74: HK4080 1.2 | C74: Hộp kẽm 40x80 (1.2) | D74: Cây | E74: HK | F74: 46 | G74: 199757.5 | H74: 9188845 | M74: =VLOOKUP($B74,[2]NXT!$D72:$N10071,9,0)-F74 ->  | N74: =VLOOKUP($B74,[1]NXT!$D$14:$Z$1900,11,0)-H74 -> 
A75: 73 | B75: HK4080 1.3 | C75: Hộp kẽm 40x80 (1.3) | D75: Cây | E75: HK | F75: 42 | G75: 211300.9709 | H75: 8874640.777 | M75: =VLOOKUP($B75,[2]NXT!$D73:$N10072,9,0)-F75 ->  | N75: =VLOOKUP($B75,[1]NXT!$D$14:$Z$1900,11,0)-H75 -> 
A76: 74 | B76: HK4080 1.4 | C76: Hộp kẽm 40x80 (1.4) | D76: Cây | E76: HK | F76: 181 | G76: 218034.8954 | H76: 39464316.07 | M76: =VLOOKUP($B76,[2]NXT!$D74:$N10073,9,0)-F76 ->  | N76: =VLOOKUP($B76,[1]NXT!$D$14:$Z$1900,11,0)-H76 -> 
A77: 75 | B77: HK4080 1.7 | C77: Hộp kẽm 40x80 (1.7) | D77: Cây | E77: HK | F77: 54 | G77: 275721.1268 | H77: 14888940.85 | M77: =VLOOKUP($B77,[2]NXT!$D75:$N10074,9,0)-F77 ->  | N77: =VLOOKUP($B77,[1]NXT!$D$14:$Z$1900,11,0)-H77 -> 
A78: 76 | B78: HK4080 1.8 | C78: Hộp kẽm 40x80 (1.8) | D78: Cây | E78: HK | F78: 79 | G78: 273655.8255 | H78: 21618810.21 | M78: =VLOOKUP($B78,[2]NXT!$D76:$N10075,9,0)-F78 ->  | N78: =VLOOKUP($B78,[1]NXT!$D$14:$Z$1900,11,0)-H78 -> 
A79: 77 | B79: HK4080 2.0 | C79: Hộp kẽm 40x80(2.0) | D79: Cây | E79: HK | F79: 47 | G79: 338850.2703 | H79: 15925962.7 | M79: =VLOOKUP($B79,[2]NXT!$D77:$N10076,9,0)-F79 ->  | N79: =VLOOKUP($B79,[1]NXT!$D$14:$Z$1900,11,0)-H79 -> 
A80: 78 | B80: HK4080 2.5 | C80: Hộp kẽm 40x80 (2.5) | D80: Cây | E80: HK | F80: 10 | G80: 451840 | H80: 4518400 | M80: =VLOOKUP($B80,[2]NXT!$D78:$N10077,9,0)-F80 ->  | N80: =VLOOKUP($B80,[1]NXT!$D$14:$Z$1900,11,0)-H80 -> 
A81: 79 | B81: HK5010 1.2 | C81: Hộp kẽm 50x100 (1.2) | D81: Cây | E81: HK | F81: 0 | G81: 0 | H81: 0 | M81: =VLOOKUP($B81,[2]NXT!$D79:$N10078,9,0)-F81 ->  | N81: =VLOOKUP($B81,[1]NXT!$D$14:$Z$1900,11,0)-H81 -> 
A82: 80 | B82: HK5010 1.3 | C82: Hộp kẽm 50x100 (1.3) | D82: Cây | E82: HK | F82: 15 | G82: 275600 | H82: 4134000 | M82: =VLOOKUP($B82,[2]NXT!$D80:$N10079,9,0)-F82 ->  | N82: =VLOOKUP($B82,[1]NXT!$D$14:$Z$1900,11,0)-H82 -> 
A83: 81 | B83: HK5010 1.4 | C83: Hộp kẽm 50x100 (1.4) | D83: Cây | E83: HK | F83: 115 | G83: 275377.6923 | H83: 31668434.62 | M83: =VLOOKUP($B83,[2]NXT!$D81:$N10080,9,0)-F83 ->  | N83: =VLOOKUP($B83,[1]NXT!$D$14:$Z$1900,11,0)-H83 -> 
A84: 82 | B84: HK5010 1.7 | C84: Hộp kẽm 50x100 (1.7) | D84: Cây | E84: HK | F84: 25 | G84: 359848.2759 | H84: 8996206.897 | M84: =VLOOKUP($B84,[2]NXT!$D82:$N10081,9,0)-F84 ->  | N84: =VLOOKUP($B84,[1]NXT!$D$14:$Z$1900,11,0)-H84 -> 
A85: 83 | B85: HK5010 1.8 | C85: Hộp kẽm 50x100 (1.8) | D85: Cây | E85: HK | F85: 47 | G85: 343469.3373 | H85: 16143058.86 | M85: =VLOOKUP($B85,[2]NXT!$D83:$N10082,9,0)-F85 ->  | N85: =VLOOKUP($B85,[1]NXT!$D$14:$Z$1900,11,0)-H85 -> 
A86: 84 | B86: HK5010 2.0 | C86: Hộp kẽm 50x100 (2.0) | D86: Cây | E86: HK | F86: 32 | G86: 411725.7143 | H86: 13175222.86 | M86: =VLOOKUP($B86,[2]NXT!$D84:$N10083,9,0)-F86 ->  | N86: =VLOOKUP($B86,[1]NXT!$D$14:$Z$1900,11,0)-H86 -> 
A87: 85 | B87: HK612 1.4 | C87: Hộp kẽm 60x120 (1.4) | D87: Cây | E87: HK | F87: 3 | G87: 340333.3333 | H87: 1021000 | M87: =VLOOKUP($B87,[2]NXT!$D85:$N10084,9,0)-F87 ->  | N87: =VLOOKUP($B87,[1]NXT!$D$14:$Z$1900,11,0)-H87 -> 
A88: 86 | B88: HK612 1.8 | C88: Hộp Kẽm 60x120 (1.8) | D88: Cây | E88: HK | F88: 0 | G88: 0 | H88: 0 | M88: =VLOOKUP($B88,[2]NXT!$D86:$N10085,9,0)-F88 ->  | N88: =VLOOKUP($B88,[1]NXT!$D$14:$Z$1900,11,0)-H88 -> 
A89: 87 | B89: HK612 2.0 | C89: Hộp kẽm 60x120 (2.0) | D89: Cây | E89: HK | F89: 6 | G89: 530176.4706 | H89: 3181058.824 | M89: =VLOOKUP($B89,[2]NXT!$D87:$N10086,9,0)-F89 ->  | N89: =VLOOKUP($B89,[1]NXT!$D$14:$Z$1900,11,0)-H89 -> 
A90: 88 | B90: HK612 2.5 | C90: Hộp kẽm 60x120 (2.5) | D90: Cây | E90: HK | F90: 0 | G90: 0 | H90: 0 | M90: =VLOOKUP($B90,[2]NXT!$D88:$N10087,9,0)-F90 ->  | N90: =VLOOKUP($B90,[1]NXT!$D$14:$Z$1900,11,0)-H90 -> 
A91: 89 | B91: I100 | C91: I100 | D91: Cây | E91: I | F91: 8 | G91: 600805.5556 | H91: 4806444.444 | M91: =VLOOKUP($B91,[2]NXT!$D89:$N10088,9,0)-F91 ->  | N91: =VLOOKUP($B91,[1]NXT!$D$14:$Z$1900,11,0)-H91 -> 
A92: 90 | B92: I120 | C92: I 120 | D92: Cây | E92: I | F92: 7 | G92: 754130.4348 | H92: 5278913.043 | M92: =VLOOKUP($B92,[2]NXT!$D90:$N10089,9,0)-F92 ->  | N92: =VLOOKUP($B92,[1]NXT!$D$14:$Z$1900,11,0)-H92 -> 
A93: 91 | B93: I150 | C93: I 150 | D93: Cây | E93: I | F93: 6 | G93: 934800 | H93: 5608800 | M93: =VLOOKUP($B93,[2]NXT!$D91:$N10090,9,0)-F93 ->  | N93: =VLOOKUP($B93,[1]NXT!$D$14:$Z$1900,11,0)-H93 -> 
A94: 92 | B94: I150 D | C94: I 150 (Dày) | D94: Cây | E94: I | F94: 10 | G94: 1210000 | H94: 12100000 | M94: =VLOOKUP($B94,[2]NXT!$D92:$N10091,9,0)-F94 ->  | N94: =VLOOKUP($B94,[1]NXT!$D$14:$Z$1900,11,0)-H94 -> 
A95: 93 | B95: I200 | C95: I 200 | D95: Cây | E95: I | F95: 0 | G95: 0 | H95: 0 | M95: =VLOOKUP($B95,[2]NXT!$D93:$N10092,9,0)-F95 ->  | N95: =VLOOKUP($B95,[1]NXT!$D$14:$Z$1900,11,0)-H95 -> 
A96: 94 | B96: LA2F | C96: La 2F(2Li3 - 2li5) | D96: kg | E96: La | F96: 0 | G96: 0 | H96: 0 | M96: =VLOOKUP($B96,[2]NXT!$D94:$N10093,9,0)-F96 ->  | N96: =VLOOKUP($B96,[1]NXT!$D$14:$Z$1900,11,0)-H96 -> 
A97: 95 | B97: LA3F | C97: La 3F (2Li3) | D97: kg | E97: La | F97: 0 | G97: 0 | H97: 0 | M97: =VLOOKUP($B97,[2]NXT!$D95:$N10094,9,0)-F97 ->  | N97: =VLOOKUP($B97,[1]NXT!$D$14:$Z$1900,11,0)-H97 -> 
A98: 96 | B98: LC 14 | C98: La cứng 14 | D98: Cây | E98: LC | F98: 649 | G98: 8304.299611 | H98: 5389490.447 | M98: =VLOOKUP($B98,[2]NXT!$D96:$N10095,9,0)-F98 ->  | N98: =VLOOKUP($B98,[1]NXT!$D$14:$Z$1900,11,0)-H98 -> 
A99: 97 | B99: LC 16 | C99: La cứng 16 | D99: Cây | E99: LC | F99: -57 | G99: 10100 | H99: -575700 | M99: =VLOOKUP($B99,[2]NXT!$D97:$N10096,9,0)-F99 ->  | N99: =VLOOKUP($B99,[1]NXT!$D$14:$Z$1900,11,0)-H99 -> 
A100: 98 | B100: LC 18 | C100: La cứng 18 | D100: Cây | E100: LC | F100: 84 | G100: 14000 | H100: 1176000 | M100: =VLOOKUP($B100,[2]NXT!$D98:$N10097,9,0)-F100 ->  | N100: =VLOOKUP($B100,[1]NXT!$D$14:$Z$1900,11,0)-H100 -> 
A101: 99 | B101: LC 20 | C101: La cứng 20 | D101: Cây | E101: LC | F101: 59 | G101: 14100 | H101: 831900 | M101: =VLOOKUP($B101,[2]NXT!$D99:$N10098,9,0)-F101 ->  | N101: =VLOOKUP($B101,[1]NXT!$D$14:$Z$1900,11,0)-H101 -> 
A102: 100 | B102: LC 20 10 | C102: La cứng 20 10li | D102: Cây | E102: LC | F102: 16 | G102: 70000 | H102: 1120000 | M102: =VLOOKUP($B102,[2]NXT!$D100:$N10099,9,0)-F102 ->  | N102: =VLOOKUP($B102,[1]NXT!$D$14:$Z$1900,11,0)-H102 -> 
A103: 101 | B103: LC 20 5 | C103: La cứng 20 5li | D103: Cây | E103: LC | F103: 6 | G103: 22800 | H103: 136800 | M103: =VLOOKUP($B103,[2]NXT!$D101:$N10100,9,0)-F103 ->  | N103: =VLOOKUP($B103,[1]NXT!$D$14:$Z$1900,11,0)-H103 -> 
A104: 102 | B104: LC 25 | C104: La cứng 25 | D104: Cây | E104: LC | F104: 15 | G104: 22800 | H104: 342000 | M104: =VLOOKUP($B104,[2]NXT!$D102:$N10101,9,0)-F104 ->  | N104: =VLOOKUP($B104,[1]NXT!$D$14:$Z$1900,11,0)-H104 -> 
A105: 103 | B105: LC 25 10 | C105: La cứng 25 10li | D105: Cây | E105: LC | F105: 0 | G105: 0 | H105: 0 | M105: =VLOOKUP($B105,[2]NXT!$D103:$N10102,9,0)-F105 ->  | N105: =VLOOKUP($B105,[1]NXT!$D$14:$Z$1900,11,0)-H105 -> 
A106: 104 | B106: LC 25 5 | C106: La cứng 25 5li | D106: Cây | E106: LC | F106: 13 | G106: 32000 | H106: 416000 | M106: =VLOOKUP($B106,[2]NXT!$D104:$N10103,9,0)-F106 ->  | N106: =VLOOKUP($B106,[1]NXT!$D$14:$Z$1900,11,0)-H106 -> 
A107: 105 | B107: LC 30 | C107: La cứng 30 | D107: Cây | E107: LC | F107: 11 | G107: 17000 | H107: 187000 | M107: =VLOOKUP($B107,[2]NXT!$D105:$N10104,9,0)-F107 ->  | N107: =VLOOKUP($B107,[1]NXT!$D$14:$Z$1900,11,0)-H107 -> 
A108: 106 | B108: LC 30 4 | C108: La cứng 30 4li | D108: Cây | E108: LC | F108: 1 | G108: 38000 | H108: 38000 | M108: =VLOOKUP($B108,[2]NXT!$D106:$N10105,9,0)-F108 ->  | N108: =VLOOKUP($B108,[1]NXT!$D$14:$Z$1900,11,0)-H108 -> 
A109: 107 | B109: LC 30 5 | C109: La cứng 30 5li | D109: Cây | E109: LC | F109: 1 | G109: 46675.67568 | H109: 46675.67568 | M109: =VLOOKUP($B109,[2]NXT!$D107:$N10106,9,0)-F109 ->  | N109: =VLOOKUP($B109,[1]NXT!$D$14:$Z$1900,11,0)-H109 -> 
A110: 108 | B110: LC 40 | C110: La cứng 40 | D110: Cây | E110: LC | F110: 27 | G110: 26000 | H110: 702000 | M110: =VLOOKUP($B110,[2]NXT!$D108:$N10107,9,0)-F110 ->  | N110: =VLOOKUP($B110,[1]NXT!$D$14:$Z$1900,11,0)-H110 -> 
A111: 109 | B111: LC 40 4 | C111: La cứng 40 4li | D111: Cây | E111: LC | F111: 3 | G111: 62000 | H111: 186000 | M111: =VLOOKUP($B111,[2]NXT!$D109:$N10108,9,0)-F111 ->  | N111: =VLOOKUP($B111,[1]NXT!$D$14:$Z$1900,11,0)-H111 -> 
A112: 110 | B112: LC 40 5 | C112: La cứng 40 5li | D112: Cây | E112: LC | F112: 1 | G112: 67227.27273 | H112: 67227.27273 | M112: =VLOOKUP($B112,[2]NXT!$D110:$N10109,9,0)-F112 ->  | N112: =VLOOKUP($B112,[1]NXT!$D$14:$Z$1900,11,0)-H112 -> 
A113: 111 | B113: LC 40 6 | C113: La cứng 40 6li | D113: Cây | E113: LC | F113: 1 | G113: 93000 | H113: 93000 | M113: =VLOOKUP($B113,[2]NXT!$D111:$N10110,9,0)-F113 ->  | N113: =VLOOKUP($B113,[1]NXT!$D$14:$Z$1900,11,0)-H113 -> 
A114: 112 | B114: LC 40 8 | C114: La cứng 40 8li | D114: Cây | E114: LC | F114: 10 | G114: 105600 | H114: 1056000 | M114: =VLOOKUP($B114,[2]NXT!$D112:$N10111,9,0)-F114 ->  | N114: =VLOOKUP($B114,[1]NXT!$D$14:$Z$1900,11,0)-H114 -> 
A115: 113 | B115: LC 50 | C115: La cứng 50 | D115: Cây | E115: LC | F115: 1 | G115: 35000 | H115: 35000 | M115: =VLOOKUP($B115,[2]NXT!$D113:$N10112,9,0)-F115 ->  | N115: =VLOOKUP($B115,[1]NXT!$D$14:$Z$1900,11,0)-H115 -> 
A116: 114 | B116: LC 50 5 | C116: La cứng 50 5li | D116: Cây | E116: LC | F116: 9 | G116: 86000 | H116: 774000 | M116: =VLOOKUP($B116,[2]NXT!$D114:$N10113,9,0)-F116 ->  | N116: =VLOOKUP($B116,[1]NXT!$D$14:$Z$1900,11,0)-H116 -> 
A117: 115 | B117: LC 60 5 | C117: La cứng 60 5li | D117: Cây | E117: LC | F117: 8 | G117: 60200 | H117: 481600 | M117: =VLOOKUP($B117,[2]NXT!$D115:$N10114,9,0)-F117 ->  | N117: =VLOOKUP($B117,[1]NXT!$D$14:$Z$1900,11,0)-H117 -> 
A118: 116 | B118: LCK 2.0M | C118: Lá cửa kéo 2.0m | D118: Lá | E118: LCK | F118: 128 | G118: 0 | H118: 0 | M118: =VLOOKUP($B118,[2]NXT!$D116:$N10115,9,0)-F118 ->  | N118: =VLOOKUP($B118,[1]NXT!$D$14:$Z$1900,11,0)-H118 -> 
A119: 117 | B119: LCK 2.5M | C119: Lá cửa kéo 2.5m | D119: Lá | E119: LCK | F119: 142 | G119: 0 | H119: 0 | M119: =VLOOKUP($B119,[2]NXT!$D117:$N10116,9,0)-F119 ->  | N119: =VLOOKUP($B119,[1]NXT!$D$14:$Z$1900,11,0)-H119 -> 
A120: 118 | B120: MANG30 1.2 4M | C120: Máng cửa sổ 30 (1.2) 4m | D120: Cây | E120: MT | F120: 11 | G120: 86871.79487 | H120: 955589.7436 | M120: =VLOOKUP($B120,[2]NXT!$D118:$N10117,9,0)-F120 ->  | N120: =VLOOKUP($B120,[1]NXT!$D$14:$Z$1900,11,0)-H120 -> 
A121: 119 | B121: MANG30 1.2 5M | C121: Máng cửa sổ 30 (1.2) 5m | D121: Cây | E121: MT | F121: 20 | G121: 106944.4444 | H121: 2138888.889 | M121: =VLOOKUP($B121,[2]NXT!$D119:$N10118,9,0)-F121 ->  | N121: =VLOOKUP($B121,[1]NXT!$D$14:$Z$1900,11,0)-H121 -> 
A122: 120 | B122: MANG30 1.2 6M | C122: Máng cửa sổ 30 (1.2) 6m | D122: Cây | E122: MT | F122: 25 | G122: 126063.8298 | H122: 3151595.745 | M122: =VLOOKUP($B122,[2]NXT!$D120:$N10119,9,0)-F122 ->  | N122: =VLOOKUP($B122,[1]NXT!$D$14:$Z$1900,11,0)-H122 -> 
A123: 121 | B123: MANG36 1.2 4M | C123: Máng cửa đi 36 (1.2) 4m | D123: Cây | E123: MT | F123: 21 | G123: 109354.8387 | H123: 2296451.613 | M123: =VLOOKUP($B123,[2]NXT!$D121:$N10120,9,0)-F123 ->  | N123: =VLOOKUP($B123,[1]NXT!$D$14:$Z$1900,11,0)-H123 -> 
A124: 122 | B124: MANG36 1.2 5M | C124: Máng cửa đi 36 (1.2) 5m | D124: Cây | E124: MT | F124: 30 | G124: 137058.8235 | H124: 4111764.706 | M124: =VLOOKUP($B124,[2]NXT!$D122:$N10121,9,0)-F124 ->  | N124: =VLOOKUP($B124,[1]NXT!$D$14:$Z$1900,11,0)-H124 -> 
A125: 123 | B125: MANG36 1.2 6M | C125: Máng cửa đi 36 (1.2) 6m | D125: Cây | E125: MT | F125: 27 | G125: 147247.0588 | H125: 3975670.588 | M125: =VLOOKUP($B125,[2]NXT!$D123:$N10122,9,0)-F125 ->  | N125: =VLOOKUP($B125,[1]NXT!$D$14:$Z$1900,11,0)-H125 -> 
A126: 124 | B126: MANG36 1.4 6M | C126: Máng cửa đi 36 (1.4) 6m | D126: Cây | E126: MT | F126: 16 | G126: 175500 | H126: 2808000 | M126: =VLOOKUP($B126,[2]NXT!$D124:$N10123,9,0)-F126 ->  | N126: =VLOOKUP($B126,[1]NXT!$D$14:$Z$1900,11,0)-H126 -> 
A127: 125 | B127: MANG48 1.4 4M Đ | C127: Máng cửa đi 48 (1.4) 4m đen | D127: Cây | E127: MT | F127: 7 | G127: 220000 | H127: 1540000 | M127: =VLOOKUP($B127,[2]NXT!$D125:$N10124,9,0)-F127 ->  | N127: =VLOOKUP($B127,[1]NXT!$D$14:$Z$1900,11,0)-H127 -> 
A128: 126 | B128: MCK 2.5M | C128: Máng cửa kéo 2.5m | D128: Cây | E128: MCK | F128: 8 | G128: 0 | H128: 0 | M128: =VLOOKUP($B128,[2]NXT!$D126:$N10125,9,0)-F128 ->  | N128: =VLOOKUP($B128,[1]NXT!$D$14:$Z$1900,11,0)-H128 -> 
A129: 127 | B129: MCK 2M | C129: Máng cửa kéo 2m | D129: Cây | E129: MCK | F129: 18 | G129: 0 | H129: 0 | M129: =VLOOKUP($B129,[2]NXT!$D127:$N10126,9,0)-F129 ->  | N129: =VLOOKUP($B129,[1]NXT!$D$14:$Z$1900,11,0)-H129 -> 
A130: 128 | B130: NCL | C130: Nẹp tam giác Lớn (8kg) | D130: Cây | E130: NC | F130: 777 | G130: 13300 | H130: 10334100 | M130: =VLOOKUP($B130,[2]NXT!$D128:$N10127,9,0)-F130 ->  | N130: =VLOOKUP($B130,[1]NXT!$D$14:$Z$1900,11,0)-H130 -> 
A131: 129 | B131: NCL1 | C131: Nẹp tam giác lớn (7kg) | D131: Cây | E131: NC | F131: 86 | G131: 13300 | H131: 1143800 | M131: =VLOOKUP($B131,[2]NXT!$D129:$N10128,9,0)-F131 ->  | N131: =VLOOKUP($B131,[1]NXT!$D$14:$Z$1900,11,0)-H131 -> 
A132: 130 | B132: NCN | C132: Nẹp tam giác Nhỏ | D132: Cây | E132: NC | F132: 297 | G132: 7400 | H132: 2197800 | M132: =VLOOKUP($B132,[2]NXT!$D130:$N10129,9,0)-F132 ->  | N132: =VLOOKUP($B132,[1]NXT!$D$14:$Z$1900,11,0)-H132 -> 
A133: 131 | B133: OD114 1.4 | C133: Ống đen 114 (1.4) | D133: Cây | E133: OD | F133: 0 | G133: 0 | H133: 0 | M133: =VLOOKUP($B133,[2]NXT!$D131:$N10130,9,0)-F133 ->  | N133: =VLOOKUP($B133,[1]NXT!$D$14:$Z$1900,11,0)-H133 -> 
A134: 132 | B134: OD114 2.0 | C134: Ống đen 114 (2.0) | D134: Cây | E134: OD | F134: 0 | G134: 0 | H134: 0 | M134: =VLOOKUP($B134,[2]NXT!$D132:$N10131,9,0)-F134 ->  | N134: =VLOOKUP($B134,[1]NXT!$D$14:$Z$1900,11,0)-H134 -> 
A135: 133 | B135: OD140 2.0 | C135: Ống đen 140 (2.0) | D135: Cây | E135: OD | F135: 0 | G135: 0 | H135: 0 | M135: =VLOOKUP($B135,[2]NXT!$D133:$N10132,9,0)-F135 ->  | N135: =VLOOKUP($B135,[1]NXT!$D$14:$Z$1900,11,0)-H135 -> 
A136: 134 | B136: OD16 0.5 | C136: Ống đen 16 (0.5) | D136: Cây | E136: OD | F136: 1571 | G136: 23539.04479 | H136: 36979839.37 | M136: =VLOOKUP($B136,[2]NXT!$D134:$N10133,9,0)-F136 ->  | N136: =VLOOKUP($B136,[1]NXT!$D$14:$Z$1900,11,0)-H136 -> 
A137: 135 | B137: OD168.3 4.0 | C137: Ống đen 168.3 (4.0) | D137: Cây | E137: OD | F137: 0 | G137: 0 | H137: 0 | M137: =VLOOKUP($B137,[2]NXT!$D135:$N10134,9,0)-F137 ->  | N137: =VLOOKUP($B137,[1]NXT!$D$14:$Z$1900,11,0)-H137 -> 
A138: 136 | B138: OD22 0.6 | C138: Ống đen 22 (0.6) | D138: Cây | E138: OD | F138: 0 | G138: 0 | H138: 0 | M138: =VLOOKUP($B138,[2]NXT!$D136:$N10135,9,0)-F138 ->  | N138: =VLOOKUP($B138,[1]NXT!$D$14:$Z$1900,11,0)-H138 -> 
A139: 137 | B139: OD27 1.2 | C139: Ống đen 27 (1.2) | D139: Cây | E139: OD | F139: 0 | G139: 0 | H139: 0 | M139: =VLOOKUP($B139,[2]NXT!$D137:$N10136,9,0)-F139 ->  | N139: =VLOOKUP($B139,[1]NXT!$D$14:$Z$1900,11,0)-H139 -> 
A140: 138 | B140: OD27 1.4 | C140: Ống đen 27 (1.4) | D140: Cây | E140: OD | F140: 0 | G140: 0 | H140: 0 | M140: =VLOOKUP($B140,[2]NXT!$D138:$N10137,9,0)-F140 ->  | N140: =VLOOKUP($B140,[1]NXT!$D$14:$Z$1900,11,0)-H140 -> 
A141: 139 | B141: OD34 1.1 | C141: Ống đen 34 (1.1) | D141: Cây | E141: OD | F141: 18 | G141: 74000 | H141: 1332000 | M141: =VLOOKUP($B141,[2]NXT!$D139:$N10138,9,0)-F141 ->  | N141: =VLOOKUP($B141,[1]NXT!$D$14:$Z$1900,11,0)-H141 -> 
A142: 140 | B142: OD34 1.2 | C142: Ống đen 34 (1.2) | D142: Cây | E142: OD | F142: -11 | G142: 0 | H142: 0 | M142: =VLOOKUP($B142,[2]NXT!$D140:$N10139,9,0)-F142 ->  | N142: =VLOOKUP($B142,[1]NXT!$D$14:$Z$1900,11,0)-H142 -> 
A143: 141 | B143: OD34 1.4 | C143: Ống đen 34 (1.4) | D143: Cây | E143: OD | F143: 0 | G143: 0 | H143: 0 | M143: =VLOOKUP($B143,[2]NXT!$D141:$N10140,9,0)-F143 ->  | N143: =VLOOKUP($B143,[1]NXT!$D$14:$Z$1900,11,0)-H143 -> 
A144: 142 | B144: OD42 1.2 | C144: Ống đen 42 (1.2) | D144: Cây | E144: OD | F144: 0 | G144: 0 | H144: 0 | M144: =VLOOKUP($B144,[2]NXT!$D142:$N10141,9,0)-F144 ->  | N144: =VLOOKUP($B144,[1]NXT!$D$14:$Z$1900,11,0)-H144 -> 
A145: 143 | B145: OD42 1.4 | C145: Ống đen 42 (1.4) | D145: Cây | E145: OD | F145: 0 | G145: 0 | H145: 0 | M145: =VLOOKUP($B145,[2]NXT!$D143:$N10142,9,0)-F145 ->  | N145: =VLOOKUP($B145,[1]NXT!$D$14:$Z$1900,11,0)-H145 -> 
A146: 144 | B146: OD49 3.0 | C146: Ông đen 49(3.0) | D146: cây | E146: OD | F146: 4 | G146: 198000 | H146: 792000 | M146: =VLOOKUP($B146,[2]NXT!$D144:$N10143,9,0)-F146 ->  | N146: =VLOOKUP($B146,[1]NXT!$D$14:$Z$1900,11,0)-H146 -> 
A147: 145 | B147: OD60 1.2 | C147: Ống đen 60 (1.2) | D147: Cây | E147: OD | F147: 0 | G147: 0 | H147: 0 | M147: =VLOOKUP($B147,[2]NXT!$D145:$N10144,9,0)-F147 ->  | N147: =VLOOKUP($B147,[1]NXT!$D$14:$Z$1900,11,0)-H147 -> 
A148: 146 | B148: OD60 1.4 | C148: Ống đen 60 (1.4) | D148: Cây | E148: OD | F148: 0 | G148: 0 | H148: 0 | M148: =VLOOKUP($B148,[2]NXT!$D146:$N10145,9,0)-F148 ->  | N148: =VLOOKUP($B148,[1]NXT!$D$14:$Z$1900,11,0)-H148 -> 
A149: 147 | B149: OD60 3.0 | C149: Ống đen 60 (3.0) | D149: Cây | E149: OD | F149: 4 | G149: 364000 | H149: 1456000 | M149: =VLOOKUP($B149,[2]NXT!$D147:$N10146,9,0)-F149 ->  | N149: =VLOOKUP($B149,[1]NXT!$D$14:$Z$1900,11,0)-H149 -> 
A150: 148 | B150: OD76 1.4 | C150: Ông đen 76(1.4) | D150: cây | E150: OD | F150: 0 | G150: 0 | H150: 0 | M150: =VLOOKUP($B150,[2]NXT!$D148:$N10147,9,0)-F150 ->  | N150: =VLOOKUP($B150,[1]NXT!$D$14:$Z$1900,11,0)-H150 -> 
A151: 149 | B151: OD76 1.8 | C151: Ông đen 76 (1.8) | D151: cây | E151: OD | F151: 0 | G151: 0 | H151: 0 | M151: =VLOOKUP($B151,[2]NXT!$D149:$N10148,9,0)-F151 ->  | N151: =VLOOKUP($B151,[1]NXT!$D$14:$Z$1900,11,0)-H151 -> 
A152: 150 | B152: OD90 1.4 | C152: Ống đen 90 (1.4) | D152: Cây | E152: OD | F152: 1 | G152: 293884.6154 | H152: 293884.6154 | M152: =VLOOKUP($B152,[2]NXT!$D150:$N10149,9,0)-F152 ->  | N152: =VLOOKUP($B152,[1]NXT!$D$14:$Z$1900,11,0)-H152 -> 
A153: 151 | B153: OK114 1.4 | C153: Ống kẽm 114 (1.4) | D153: Cây | E153: OK | F153: 0 | G153: 0 | H153: 0 | M153: =VLOOKUP($B153,[2]NXT!$D151:$N10150,9,0)-F153 ->  | N153: =VLOOKUP($B153,[1]NXT!$D$14:$Z$1900,11,0)-H153 -> 
A154: 152 | B154: OK114 1.8 | C154: ống kẽm 114 (1.8) | D154: Cây | E154: OK | F154: 10 | G154: 433033.7419 | H154: 4330337.419 | M154: =VLOOKUP($B154,[2]NXT!$D152:$N10151,9,0)-F154 ->  | N154: =VLOOKUP($B154,[1]NXT!$D$14:$Z$1900,11,0)-H154 -> 
A155: 153 | B155: OK114 2.0 | C155: Ống kẽm 114 (2.0) | D155: Cây | E155: OK | F155: 0 | G155: 0 | H155: 0 | M155: =VLOOKUP($B155,[2]NXT!$D153:$N10152,9,0)-F155 ->  | N155: =VLOOKUP($B155,[1]NXT!$D$14:$Z$1900,11,0)-H155 -> 
A156: 154 | B156: OK114 2.5 HP | C156: Ống kẽm 114 (2.6) Hòa Phát | D156: Cây | E156: OK | F156: 2 | G156: 800000 | H156: 1600000 | M156: =VLOOKUP($B156,[2]NXT!$D154:$N10153,9,0)-F156 ->  | N156: =VLOOKUP($B156,[1]NXT!$D$14:$Z$1900,11,0)-H156 -> 
A157: 155 | B157: OK21 0.9 | C157: Ống kẽm 21 (0.9) | D157: Cây | E157: OK | F157: 4 | G157: 50000 | H157: 200000 | M157: =VLOOKUP($B157,[2]NXT!$D155:$N10154,9,0)-F157 ->  | N157: =VLOOKUP($B157,[1]NXT!$D$14:$Z$1900,11,0)-H157 -> 
A158: 156 | B158: OK21 1.1 | C158: Ống kẽm 21 (1.1) | D158: Cây | E158: OK | F158: 3 | G158: 49395.2381 | H158: 148185.7143 | M158: =VLOOKUP($B158,[2]NXT!$D156:$N10155,9,0)-F158 ->  | N158: =VLOOKUP($B158,[1]NXT!$D$14:$Z$1900,11,0)-H158 -> 
A159: 157 | B159: OK21 1.2 | C159: Ống kẽm 21 (1.2) | D159: Cây | E159: OK | F159: 10 | G159: 54696.77419 | H159: 546967.7419 | M159: =VLOOKUP($B159,[2]NXT!$D157:$N10156,9,0)-F159 ->  | N159: =VLOOKUP($B159,[1]NXT!$D$14:$Z$1900,11,0)-H159 -> 
A160: 158 | B160: OK21 1.3 | C160: Ống kẽm 21 (1.3) | D160: Cây | E160: OK | F160: 0 | G160: 0 | H160: 0 | M160: =VLOOKUP($B160,[2]NXT!$D158:$N10157,9,0)-F160 ->  | N160: =VLOOKUP($B160,[1]NXT!$D$14:$Z$1900,11,0)-H160 -> 
A161: 159 | B161: OK21 1.4 | C161: Ống kẽm 21 (1.4) | D161: Cây | E161: OK | F161: 8 | G161: 62090.90909 | H161: 496727.2727 | M161: =VLOOKUP($B161,[2]NXT!$D159:$N10158,9,0)-F161 ->  | N161: =VLOOKUP($B161,[1]NXT!$D$14:$Z$1900,11,0)-H161 -> 
A162: 160 | B162: OK21 1.8 | C162: Ống kẽm 21 (1.8) | D162: Cây | E162: OK | F162: 0 | G162: 0 | H162: 0 | M162: =VLOOKUP($B162,[2]NXT!$D160:$N10159,9,0)-F162 ->  | N162: =VLOOKUP($B162,[1]NXT!$D$14:$Z$1900,11,0)-H162 -> 
A163: 161 | B163: OK27 1.1 | C163: Ống kẽm 27 (1.1) | D163: Cây | E163: OK | F163: 4 | G163: 67900 | H163: 271600 | M163: =VLOOKUP($B163,[2]NXT!$D161:$N10160,9,0)-F163 ->  | N163: =VLOOKUP($B163,[1]NXT!$D$14:$Z$1900,11,0)-H163 -> 
A164: 162 | B164: OK27 1.2 | C164: Ống kẽm 27 (1.2) | D164: Cây | E164: OK | F164: 8 | G164: 68000 | H164: 544000 | M164: =VLOOKUP($B164,[2]NXT!$D162:$N10161,9,0)-F164 ->  | N164: =VLOOKUP($B164,[1]NXT!$D$14:$Z$1900,11,0)-H164 -> 
A165: 163 | B165: OK27 1.3 | C165: Ống kẽm 27 (1.3) | D165: Cây | E165: OK | F165: 0 | G165: 0 | H165: 0 | M165: =VLOOKUP($B165,[2]NXT!$D163:$N10162,9,0)-F165 ->  | N165: =VLOOKUP($B165,[1]NXT!$D$14:$Z$1900,11,0)-H165 -> 
A166: 164 | B166: OK27 1.4 | C166: Ống kẽm 27 (1.4) | D166: Cây | E166: OK | F166: 11 | G166: 78166.66667 | H166: 859833.3333 | M166: =VLOOKUP($B166,[2]NXT!$D164:$N10163,9,0)-F166 ->  | N166: =VLOOKUP($B166,[1]NXT!$D$14:$Z$1900,11,0)-H166 -> 
A167: 165 | B167: OK27 1.7 | C167: Ống kẽm 27 (1.7) | D167: Cây | E167: OK | F167: 1 | G167: 96459.375 | H167: 96459.375 | M167: =VLOOKUP($B167,[2]NXT!$D165:$N10164,9,0)-F167 ->  | N167: =VLOOKUP($B167,[1]NXT!$D$14:$Z$1900,11,0)-H167 -> 
A168: 166 | B168: OK27 1.8 | C168: Ống kẽm 27 (1.8) | D168: Cây | E168: OK | F168: 9 | G168: 101917.0732 | H168: 917253.6585 | M168: =VLOOKUP($B168,[2]NXT!$D166:$N10165,9,0)-F168 ->  | N168: =VLOOKUP($B168,[1]NXT!$D$14:$Z$1900,11,0)-H168 -> 
A169: 167 | B169: OK34 1.1 | C169: Ống kẽm 34 (1.1) | D169: Cây | E169: OK | F169: 1 | G169: 82000 | H169: 82000 | M169: =VLOOKUP($B169,[2]NXT!$D167:$N10166,9,0)-F169 ->  | N169: =VLOOKUP($B169,[1]NXT!$D$14:$Z$1900,11,0)-H169 -> 
A170: 168 | B170: OK34 1.2 | C170: Ống kẽm 34 (1.2) | D170: Cây | E170: OK | F170: 12 | G170: 85925 | H170: 1031100 | M170: =VLOOKUP($B170,[2]NXT!$D168:$N10167,9,0)-F170 ->  | N170: =VLOOKUP($B170,[1]NXT!$D$14:$Z$1900,11,0)-H170 -> 
A171: 169 | B171: OK34 1.4 | C171: Ống kẽm 34 (1.4) | D171: Cây | E171: OK | F171: 16 | G171: 94735.14103 | H171: 1515762.256 | M171: =VLOOKUP($B171,[2]NXT!$D169:$N10168,9,0)-F171 ->  | N171: =VLOOKUP($B171,[1]NXT!$D$14:$Z$1900,11,0)-H171 -> 
A172: 170 | B172: OK34 1.7 | C172: Ống kẽm 34 (1.7) | D172: Cây | E172: OK | F172: 8 | G172: 132100 | H172: 1056800 | M172: =VLOOKUP($B172,[2]NXT!$D170:$N10169,9,0)-F172 ->  | N172: =VLOOKUP($B172,[1]NXT!$D$14:$Z$1900,11,0)-H172 -> 
A173: 171 | B173: OK34 1.8 | C173: Ống kẽm 34 (1.8) | D173: Cây | E173: OK | F173: 5 | G173: 133515.3846 | H173: 667576.9231 | M173: =VLOOKUP($B173,[2]NXT!$D171:$N10170,9,0)-F173 ->  | N173: =VLOOKUP($B173,[1]NXT!$D$14:$Z$1900,11,0)-H173 -> 
A174: 172 | B174: OK34 2.3 | C174: Ống kẽm 34 (2.3) | D174: Cây | E174: OK | F174: 0 | G174: 0 | H174: 0 | M174: =VLOOKUP($B174,[2]NXT!$D172:$N10171,9,0)-F174 ->  | N174: =VLOOKUP($B174,[1]NXT!$D$14:$Z$1900,11,0)-H174 -> 
A175: 173 | B175: OK42 1.1 | C175: Ống kẽm 42 (1.1) | D175: Cây | E175: OK | F175: 0 | G175: 0 | H175: 0 | M175: =VLOOKUP($B175,[2]NXT!$D173:$N10172,9,0)-F175 ->  | N175: =VLOOKUP($B175,[1]NXT!$D$14:$Z$1900,11,0)-H175 -> 
A176: 174 | B176: OK42 1.2 | C176: Ống kẽm 42 (1.2) | D176: Cây | E176: OK | F176: 0 | G176: 0 | H176: 0 | M176: =VLOOKUP($B176,[2]NXT!$D174:$N10173,9,0)-F176 ->  | N176: =VLOOKUP($B176,[1]NXT!$D$14:$Z$1900,11,0)-H176 -> 
A177: 175 | B177: OK42 1.3 | C177: Ống kẽm 42 (1.3) | D177: Cây | E177: OK | F177: 0 | G177: 0 | H177: 0 | M177: =VLOOKUP($B177,[2]NXT!$D175:$N10174,9,0)-F177 ->  | N177: =VLOOKUP($B177,[1]NXT!$D$14:$Z$1900,11,0)-H177 -> 
A178: 176 | B178: OK42 1.4 | C178: Ống kẽm 42 (1.4) | D178: Cây | E178: OK | F178: 10 | G178: 123200 | H178: 1232000 | M178: =VLOOKUP($B178,[2]NXT!$D176:$N10175,9,0)-F178 ->  | N178: =VLOOKUP($B178,[1]NXT!$D$14:$Z$1900,11,0)-H178 -> 
A179: 177 | B179: OK42 1.7 | C179: Ống kẽm 42 (1.7) | D179: Cây | E179: OK | F179: 9 | G179: 154500 | H179: 1390500 | M179: =VLOOKUP($B179,[2]NXT!$D177:$N10176,9,0)-F179 ->  | N179: =VLOOKUP($B179,[1]NXT!$D$14:$Z$1900,11,0)-H179 -> 
A180: 178 | B180: OK42 1.8 | C180: Ống kẽm 42 (1.8) | D180: Cây | E180: OK | F180: 0 | G180: 0 | H180: 0 | M180: =VLOOKUP($B180,[2]NXT!$D178:$N10177,9,0)-F180 ->  | N180: =VLOOKUP($B180,[1]NXT!$D$14:$Z$1900,11,0)-H180 -> 
A181: 179 | B181: OK49 1.1 | C181: Ống kẽm 49 (1.1) | D181: Cây | E181: OK | F181: 0 | G181: 0 | H181: 0 | M181: =VLOOKUP($B181,[2]NXT!$D179:$N10178,9,0)-F181 ->  | N181: =VLOOKUP($B181,[1]NXT!$D$14:$Z$1900,11,0)-H181 -> 
A182: 180 | B182: OK49 1.3 | C182: Ống kẽm 49 (1.3) | D182: Cây | E182: OK | F182: 0 | G182: 0 | H182: 0 | M182: =VLOOKUP($B182,[2]NXT!$D180:$N10179,9,0)-F182 ->  | N182: =VLOOKUP($B182,[1]NXT!$D$14:$Z$1900,11,0)-H182 -> 
A183: 181 | B183: OK49 1.4 | C183: Ống kẽm 49 (1.4) | D183: Cây | E183: OK | F183: 5 | G183: 143600 | H183: 718000 | M183: =VLOOKUP($B183,[2]NXT!$D181:$N10180,9,0)-F183 ->  | N183: =VLOOKUP($B183,[1]NXT!$D$14:$Z$1900,11,0)-H183 -> 
A184: 182 | B184: OK49 1.7 | C184: Ống kẽm 49 (1.7) | D184: Cây | E184: OK | F184: 10 | G184: 176000 | H184: 1760000 | M184: =VLOOKUP($B184,[2]NXT!$D182:$N10181,9,0)-F184 ->  | N184: =VLOOKUP($B184,[1]NXT!$D$14:$Z$1900,11,0)-H184 -> 
A185: 183 | B185: OK49 1.8 | C185: Ống kẽm 49 (1.8) | D185: Cây | E185: OK | F185: 0 | G185: 0 | H185: 0 | M185: =VLOOKUP($B185,[2]NXT!$D183:$N10182,9,0)-F185 ->  | N185: =VLOOKUP($B185,[1]NXT!$D$14:$Z$1900,11,0)-H185 -> 
A186: 184 | B186: OK49 2.0 | C186: Ống kẽm 49 (2.0) | D186: Cây | E186: OK | F186: 0 | G186: 0 | H186: 0 | M186: =VLOOKUP($B186,[2]NXT!$D184:$N10183,9,0)-F186 ->  | N186: =VLOOKUP($B186,[1]NXT!$D$14:$Z$1900,11,0)-H186 -> 
A187: 185 | B187: OK60 1.2 | C187: Ống kẽm 60 (1.2) | D187: Cây | E187: OK | F187: 0 | G187: 0 | H187: 0 | M187: =VLOOKUP($B187,[2]NXT!$D185:$N10184,9,0)-F187 ->  | N187: =VLOOKUP($B187,[1]NXT!$D$14:$Z$1900,11,0)-H187 -> 
A188: 186 | B188: OK60 1.3 | C188: Ống kẽm 60 (1.3) | D188: Cây | E188: OK | F188: 0 | G188: 0 | H188: 0 | M188: =VLOOKUP($B188,[2]NXT!$D186:$N10185,9,0)-F188 ->  | N188: =VLOOKUP($B188,[1]NXT!$D$14:$Z$1900,11,0)-H188 -> 
A189: 187 | B189: OK60 1.4 | C189: Ống kẽm 60 (1.4) | D189: Cây | E189: OK | F189: 10 | G189: 176506.25 | H189: 1765062.5 | M189: =VLOOKUP($B189,[2]NXT!$D187:$N10186,9,0)-F189 ->  | N189: =VLOOKUP($B189,[1]NXT!$D$14:$Z$1900,11,0)-H189 -> 
A190: 188 | B190: OK60 1.7 | C190: Ống kẽm 60 (1.7) | D190: Cây | E190: OK | F190: 3 | G190: 217500 | H190: 652500 | M190: =VLOOKUP($B190,[2]NXT!$D188:$N10187,9,0)-F190 ->  | N190: =VLOOKUP($B190,[1]NXT!$D$14:$Z$1900,11,0)-H190 -> 
A191: 189 | B191: OK60 1.8 | C191: Ống kẽm 60 (1.8) | D191: Cây | E191: OK | F191: 0 | G191: 0 | H191: 0 | M191: =VLOOKUP($B191,[2]NXT!$D189:$N10188,9,0)-F191 ->  | N191: =VLOOKUP($B191,[1]NXT!$D$14:$Z$1900,11,0)-H191 -> 
A192: 190 | B192: OK60 2.0 | C192: Ống kẽm 60 (2.0) | D192: Cây | E192: OK | F192: 9 | G192: 268628.5714 | H192: 2417657.143 | M192: =VLOOKUP($B192,[2]NXT!$D190:$N10189,9,0)-F192 ->  | N192: =VLOOKUP($B192,[1]NXT!$D$14:$Z$1900,11,0)-H192 -> 
A193: 191 | B193: OK60 2.5 | C193: Ống kẽm 60 (2.5) | D193: Cây | E193: OK | F193: 0 | G193: 0 | H193: 0 | M193: =VLOOKUP($B193,[2]NXT!$D191:$N10190,9,0)-F193 ->  | N193: =VLOOKUP($B193,[1]NXT!$D$14:$Z$1900,11,0)-H193 -> 
A194: 192 | B194: OK76 1.3 | C194: Ống kẽm 76 (1.3) | D194: Cây | E194: OK | F194: 0 | G194: 0 | H194: 0 | M194: =VLOOKUP($B194,[2]NXT!$D192:$N10191,9,0)-F194 ->  | N194: =VLOOKUP($B194,[1]NXT!$D$14:$Z$1900,11,0)-H194 -> 
A195: 193 | B195: OK76 1.4 | C195: Ống kẽm 76 (1.4) | D195: Cây | E195: OK | F195: 5 | G195: 257200 | H195: 1286000 | M195: =VLOOKUP($B195,[2]NXT!$D193:$N10192,9,0)-F195 ->  | N195: =VLOOKUP($B195,[1]NXT!$D$14:$Z$1900,11,0)-H195 -> 
A196: 194 | B196: OK76 1.7 | C196: Ống kẽm 76 (1.7) | D196: Cây | E196: OK | F196: 9 | G196: 288000 | H196: 2592000 | M196: =VLOOKUP($B196,[2]NXT!$D194:$N10193,9,0)-F196 ->  | N196: =VLOOKUP($B196,[1]NXT!$D$14:$Z$1900,11,0)-H196 -> 
A197: 195 | B197: OK76 1.8 | C197: Ống kẽm 76 (1.8) | D197: Cây | E197: OK | F197: 0 | G197: 0 | H197: 0 | M197: =VLOOKUP($B197,[2]NXT!$D195:$N10194,9,0)-F197 ->  | N197: =VLOOKUP($B197,[1]NXT!$D$14:$Z$1900,11,0)-H197 -> 
A198: 196 | B198: OK76 2.0 | C198: Ống kẽm 76 (2.0) | D198: Cây | E198: OK | F198: 3 | G198: 325900 | H198: 977700 | M198: =VLOOKUP($B198,[2]NXT!$D196:$N10195,9,0)-F198 ->  | N198: =VLOOKUP($B198,[1]NXT!$D$14:$Z$1900,11,0)-H198 -> 
A199: 197 | B199: OK90 1.3 | C199: Ống kẽm 90 (1.3) | D199: Cây | E199: OK | F199: 0 | G199: 0 | H199: 0 | M199: =VLOOKUP($B199,[2]NXT!$D197:$N10196,9,0)-F199 ->  | N199: =VLOOKUP($B199,[1]NXT!$D$14:$Z$1900,11,0)-H199 -> 
A200: 198 | B200: OK90 1.4 | C200: Ống kẽm 90 (1.4) | D200: Cây | E200: OK | F200: 5 | G200: 277500 | H200: 1387500 | M200: =VLOOKUP($B200,[2]NXT!$D198:$N10197,9,0)-F200 ->  | N200: =VLOOKUP($B200,[1]NXT!$D$14:$Z$1900,11,0)-H200 -> 
... 802 more rows

Sheet check (hidden)
A1: DMHH | B1: =SUM(DMHH!F3:F15000) -> 33737 | C1: =SUM(DMHH!H3:H15000) -> 1435653510
A2: NHẬP | B2: =SUM(NHAP!G:G) -> 56209 | C2: =SUM(NHAP!I:I) -> 5282670365
A3: XUẤT | B3: =SUM(XUAT!H:H) -> 57353.42 | C3: =SUM(XUAT!K:K) -> 0
A4: TỒN | B4: =B1+B2-B3 -> 32592.58 | C4: =C1+C2-C3 -> 6718323875
A5: TỒN TT | B5: =SUM('DMHH-kymoi'!F3:F5000) -> 32592.58 | C5: =SUM('DMHH-kymoi'!H3:H5000) -> 1662727733
A6: GAP | B6: =B4-B5 -> 0 | C6: =C4-C5 -> 5055596142

Sheet DMKH-kymoi
A1: STT | B1: MÃ KH/ NCC | C1: TÊN KH/ NCC | D1: LOẠI | E1: TỒN BẮT ĐẦU KỲ MỚI
E2: Phải trả | F2: Phải thu
A3: 1 | B3: HP | C3: Hải Phương | D3: NCC | E3: 624671380 | F3: 0
A4: 2 | B4: KL | C4: Khách lẻ | D4: KH | E4: 0 | F4: 5055596142
A5: 3 | B5: PXV | C5: Phú Xuân Việt | D5: NCC | E5: 792639385 | F5: 0
A6: 4 | B6: VT | C6: Việt Thành | D6: NCC | E6: 2604569272 | F6: 0
A7: 5 | E7: 0 | F7: 0
A8: 6 | E8: 0 | F8: 0
A9: 7 | E9: 0 | F9: 0
A10: 8 | E10: 0 | F10: 0
A11: 9 | E11: 0 | F11: 0
A12: 10 | E12: 0 | F12: 0
A13: 11 | E13: 0 | F13: 0
A14: 12 | E14: 0 | F14: 0
A15: 13 | E15: 0 | F15: 0
A16: 14 | E16: 0 | F16: 0
A17: 15 | E17: 0 | F17: 0
A18: 16 | E18: 0 | F18: 0
A19: 17 | E19: 0 | F19: 0
A20: 18 | E20: 0 | F20: 0
A21: 19 | E21: 0 | F21: 0
A22: 20 | E22: 0 | F22: 0
A23: 21 | E23: 0 | F23: 0
A24: 22 | E24: 0 | F24: 0
A25: 23 | E25: 0 | F25: 0
A26: 24 | E26: 0 | F26: 0
A27: 25 | E27: 0 | F27: 0
A28: 26 | E28: 0 | F28: 0
A29: 27 | E29: 0 | F29: 0
A30: 28 | E30: 0 | F30: 0
A31: 29 | E31: 0 | F31: 0
A32: 30 | E32: 0 | F32: 0
A33: 31 | E33: 0 | F33: 0
A34: 32 | E34: 0 | F34: 0
A35: 33 | E35: 0 | F35: 0
A36: 34 | E36: 0 | F36: 0
A37: 35 | E37: 0 | F37: 0
A38: 36 | E38: 0 | F38: 0
A39: 37 | E39: 0 | F39: 0
A40: 38 | E40: 0 | F40: 0
A41: 39 | E41: 0 | F41: 0
A42: 40 | E42: 0 | F42: 0
A43: 41 | E43: 0 | F43: 0
A44: 42 | E44: 0 | F44: 0
A45: 43 | E45: 0 | F45: 0
A46: 44 | E46: 0 | F46: 0
A47: 45 | E47: 0 | F47: 0
A48: 46 | E48: 0 | F48: 0
A49: 47 | E49: 0 | F49: 0
A50: 48 | E50: 0 | F50: 0
A51: 49 | E51: 0 | F51: 0
A52: 50 | E52: 0 | F52: 0
A53: 51 | E53: 0 | F53: 0
A54: 52 | E54: 0 | F54: 0
A55: 53 | E55: 0 | F55: 0
A56: 54 | E56: 0 | F56: 0
A57: 55 | E57: 0 | F57: 0
A58: 56 | E58: 0 | F58: 0
A59: 57 | E59: 0 | F59: 0
A60: 58 | E60: 0 | F60: 0
A61: 59 | E61: 0 | F61: 0
A62: 60 | E62: 0 | F62: 0
A63: 61 | E63: 0 | F63: 0
A64: 62 | E64: 0 | F64: 0
A65: 63 | E65: 0 | F65: 0
A66: 64 | E66: 0 | F66: 0
A67: 65 | E67: 0 | F67: 0
A68: 66 | E68: 0 | F68: 0
A69: 67 | E69: 0 | F69: 0
A70: 68 | E70: 0 | F70: 0
A71: 69 | E71: 0 | F71: 0
A72: 70 | E72: 0 | F72: 0
A73: 71 | E73: 0 | F73: 0
A74: 72 | E74: 0 | F74: 0
A75: 73 | E75: 0 | F75: 0
A76: 74 | E76: 0 | F76: 0
A77: 75 | E77: 0 | F77: 0
A78: 76 | E78: 0 | F78: 0
A79: 77 | E79: 0 | F79: 0
A80: 78 | E80: 0 | F80: 0
A81: 79 | E81: 0 | F81: 0
A82: 80 | E82: 0 | F82: 0
A83: 81 | E83: 0 | F83: 0
A84: 82 | E84: 0 | F84: 0
A85: 83 | E85: 0 | F85: 0
A86: 84 | E86: 0 | F86: 0
A87: 85 | E87: 0 | F87: 0
A88: 86 | E88: 0 | F88: 0
A89: 87 | E89: 0 | F89: 0
A90: 88 | E90: 0 | F90: 0
A91: 89 | E91: 0 | F91: 0
A92: 90 | E92: 0 | F92: 0
A93: 91 | E93: 0 | F93: 0
A94: 92 | E94: 0 | F94: 0
A95: 93 | E95: 0 | F95: 0
A96: 94 | E96: 0 | F96: 0
A97: 95 | E97: 0 | F97: 0
A98: 96 | E98: 0 | F98: 0
A99: 97 | E99: 0 | F99: 0
A100: 98 | E100: 0 | F100: 0
A101: 99 | E101: 0 | F101: 0
A102: 100 | E102: 0 | F102: 0
A103: 101 | E103: 0 | F103: 0
A104: 102 | E104: 0 | F104: 0
A105: 103 | E105: 0 | F105: 0
A106: 104 | E106: 0 | F106: 0
A107: 105 | E107: 0 | F107: 0
A108: 106 | E108: 0 | F108: 0
A109: 107 | E109: 0 | F109: 0
A110: 108 | E110: 0 | F110: 0
A111: 109 | E111: 0 | F111: 0
A112: 110 | E112: 0 | F112: 0
A113: 111 | E113: 0 | F113: 0
A114: 112 | E114: 0 | F114: 0
A115: 113 | E115: 0 | F115: 0
A116: 114 | E116: 0 | F116: 0
A117: 115 | E117: 0 | F117: 0
A118: 116 | E118: 0 | F118: 0
A119: 117 | E119: 0 | F119: 0
A120: 118 | E120: 0 | F120: 0
A121: 119 | E121: 0 | F121: 0
A122: 120 | E122: 0 | F122: 0
A123: 121 | E123: 0 | F123: 0
A124: 122 | E124: 0 | F124: 0
A125: 123 | E125: 0 | F125: 0
A126: 124 | E126: 0 | F126: 0
A127: 125 | E127: 0 | F127: 0
A128: 126 | E128: 0 | F128: 0
A129: 127 | E129: 0 | F129: 0
A130: 128 | E130: 0 | F130: 0
A131: 129 | E131: 0 | F131: 0
A132: 130 | E132: 0 | F132: 0
A133: 131 | E133: 0 | F133: 0
A134: 132 | E134: 0 | F134: 0
A135: 133 | E135: 0 | F135: 0
A136: 134 | E136: 0 | F136: 0
A137: 135 | E137: 0 | F137: 0
A138: 136 | E138: 0 | F138: 0
A139: 137 | E139: 0 | F139: 0
A140: 138 | E140: 0 | F140: 0
A141: 139 | E141: 0 | F141: 0
A142: 140 | E142: 0 | F142: 0
A143: 141 | E143: 0 | F143: 0
A144: 142 | E144: 0 | F144: 0
A145: 143 | E145: 0 | F145: 0
A146: 144 | E146: 0 | F146: 0
A147: 145 | E147: 0 | F147: 0
A148: 146 | E148: 0 | F148: 0
A149: 147 | E149: 0 | F149: 0
A150: 148 | E150: 0 | F150: 0
A151: 149 | E151: 0 | F151: 0
A152: 150 | E152: 0 | F152: 0
A153: 151 | E153: 0 | F153: 0
A154: 152 | E154: 0 | F154: 0
A155: 153 | E155: 0 | F155: 0
A156: 154 | E156: 0 | F156: 0
A157: 155 | E157: 0 | F157: 0
A158: 156 | E158: 0 | F158: 0
A159: 157 | E159: 0 | F159: 0
A160: 158 | E160: 0 | F160: 0
A161: 159 | E161: 0 | F161: 0
A162: 160 | E162: 0 | F162: 0
A163: 161 | E163: 0 | F163: 0
A164: 162 | E164: 0 | F164: 0
A165: 163 | E165: 0 | F165: 0
A166: 164 | E166: 0 | F166: 0
A167: 165 | E167: 0 | F167: 0
A168: 166 | E168: 0 | F168: 0
A169: 167 | E169: 0 | F169: 0
A170: 168 | E170: 0 | F170: 0
A171: 169 | E171: 0 | F171: 0
A172: 170 | E172: 0 | F172: 0
A173: 171 | E173: 0 | F173: 0
A174: 172 | E174: 0 | F174: 0
A175: 173 | E175: 0 | F175: 0
A176: 174 | E176: 0 | F176: 0
A177: 175 | E177: 0 | F177: 0
A178: 176 | E178: 0 | F178: 0
A179: 177 | E179: 0 | F179: 0
A180: 178 | E180: 0 | F180: 0
A181: 179 | E181: 0 | F181: 0
A182: 180 | E182: 0 | F182: 0
A183: 181 | E183: 0 | F183: 0
A184: 182 | E184: 0 | F184: 0
A185: 183 | E185: 0 | F185: 0
A186: 184 | E186: 0 | F186: 0
A187: 185 | E187: 0 | F187: 0
A188: 186 | E188: 0 | F188: 0
A189: 187 | E189: 0 | F189: 0
A190: 188 | E190: 0 | F190: 0
A191: 189 | E191: 0 | F191: 0
A192: 190 | E192: 0 | F192: 0
A193: 191 | E193: 0 | F193: 0
A194: 192 | E194: 0 | F194: 0
A195: 193 | E195: 0 | F195: 0
A196: 194 | E196: 0 | F196: 0
A197: 195 | E197: 0 | F197: 0
A198: 196 | E198: 0 | F198: 0
A199: 197 | E199: 0 | F199: 0
A200: 198 | E200: 0 | F200: 0
... 802 more rows

Sheet NHAP
A1: STT | B1: Ngày nhập | C1: Chứng từ | D1: Mã hàng | E1: Tên hàng/ Nội dung thanh toán NCC | F1: ĐVT | G1: Số lượng | H1: Đơn Giá nhập | I1: Thành tiền | J1: %VAT | K1: Phải trả | L1: Nhà cung cấp | M1: Số tiền trả NCC | N1: Ghi chú
A2: 1 | B2: 2020-04-20 | C2: PN001 | D2: OK114 2.0 | E2: Ống kẽm 114 (2.0) | F2: Cây | G2: 1 | H2: 491000 | I2: 491000 | J2: 0 | K2: 491000 | L2: PXV | N2: 0
A3: 2 | B3: 2020-04-21 | C3: PN002 | D3: HK4080 2.0 | E3: Hộp kẽm 40x80(2.0) | F3: Cây | G3: 18 | H3: 332000 | I3: 5976000 | J3: 0 | K3: 5976000 | L3: PXV | N3: 0
A4: 3 | B4: 2020-04-22 | C4: PN003 | D4: LC 30 5 | E4: La cứng 30 5li | F4: Cây | G4: 20 | H4: 44500 | I4: 890000 | J4: 0 | K4: 890000 | L4: PXV | N4: 0
A5: 4 | B5: 2020-04-22 | C5: PN003 | D5: TMXN5.0 | E5: Tôn XNgọc 5.0 | F5: Mét | G5: 1008 | H5: 73600 | I5: 74188800 | J5: 0 | K5: 74188800 | L5: HP | N5: 0
A6: 5 | B6: 2020-04-22 | C6: PN003 | D6: TL5.0 | E6: Tôn Lạnh 5.0 | F6: Mét | G6: 1052 | H6: 75300 | I6: 79215600 | J6: 0 | K6: 79215600 | L6: HP | N6: 0
A7: 6 | B7: 2020-04-24 | C7: PN004 | D7: VK30 1.4 | E7: Vuông kẽm 30 (1.4) | F7: Cây | G7: 100 | H7: 105490 | I7: 10549000 | J7: 0 | K7: 10549000 | L7: VT | N7: 0
A8: 7 | B8: 2020-04-24 | C8: PN004 | D8: VK30 1.2 | E8: Vuông kẽm 30 (1.2) | F8: Cây | G8: 20 | H8: 96000 | I8: 1920000 | J8: 0 | K8: 1920000 | L8: VT | N8: 0
A9: 8 | B9: 2020-04-24 | C9: PN004 | D9: HK1326 0.9 | E9: Hộp kẽm 13x26 (0.9) | F9: Cây | G9: 50 | H9: 45216 | I9: 2260800 | J9: 0 | K9: 2260800 | L9: VT | N9: 0
A10: 9 | B10: 2020-04-25 | C10: PN005 | D10: HK3060 1.3 | E10: Hộp kẽm 30x60 (1.3) | F10: Cây | G10: 50 | H10: 148600 | I10: 7430000 | J10: 0 | K10: 7430000 | L10: PXV | N10: 0
A11: 10 | B11: 2020-04-25 | C11: PN005 | D11: HK3060 1.8 | E11: Hộp kẽm 30x60 (1.8) | F11: Cây | G11: 50 | H11: 193300 | I11: 9665000 | J11: 0 | K11: 9665000 | L11: PXV | N11: 0
A12: 11 | B12: 2020-04-25 | C12: PN005 | D12: VK90 2.0 | E12: Vuông kẽm 90 (2.0) | F12: Cây | G12: 4 | H12: 491800 | I12: 1967200 | J12: 0 | K12: 1967200 | L12: PXV | N12: 0
A13: 12 | B13: 2020-04-25 | C13: PN005 | D13: TL5.0 ĐA | E13: Tole Lạnh 5.0 ĐÁ | F13: Mét | G13: 1052 | H13: 87000 | I13: 91524000 | J13: 0 | K13: 91524000 | L13: PXV | N13: 0
A14: 13 | B14: 2020-04-25 | C14: PN005 | D14: HK3060 1.4 | E14: Hộp kẽm 30x60 (1.4) | F14: Cây | G14: 50 | H14: 158928 | I14: 7946400 | J14: 0 | K14: 7946400 | L14: VT | N14: 0
A15: 14 | B15: 2020-04-25 | C15: PN005 | D15: HK4080 1.4 | E15: Hộp kẽm 40x80 (1.4) | F15: Cây | G15: 50 | H15: 219912 | I15: 10995600 | J15: 0 | K15: 10995600 | L15: VT | N15: 0
A16: 15 | B16: 2020-04-27 | C16: PX006 | D16: VK40 1.4 | E16: Vuông kẽm 40 (1.4) | F16: Cây | G16: 7 | H16: 147000 | I16: 1029000 | J16: 0 | K16: 1029000 | L16: VT | N16: 0
A17: 16 | B17: 2020-04-27 | C17: PX006 | D17: VK100 1.4 | E17: Vuông kẽm 100 (1.4) | F17: Cây | G17: 4 | H17: 372000 | I17: 1488000 | J17: 0 | K17: 1488000 | L17: VT | N17: 0
A18: 17 | B18: 2020-04-27 | C18: PX006 | D18: HK3060 1.4 | E18: Hộp kẽm 30x60 (1.4) | F18: Cây | G18: 50 | H18: 162624 | I18: 8131200 | J18: 0 | K18: 8131200 | L18: VT | N18: 0
A19: 18 | B19: 2020-04-27 | C19: PX006 | D19: VK40 1.4 | E19: Vuông kẽm 40 (1.4) | F19: Cây | G19: 50 | H19: 141064 | I19: 7053200 | J19: 0 | K19: 7053200 | L19: VT | N19: 0
A20: 19 | B20: 2020-04-27 | C20: PN006 | D20: HK5010 2.0 | E20: Hộp kẽm 50x100 (2.0) | F20: Cây | G20: 5 | H20: 418400 | I20: 2092000 | J20: 0 | K20: 2092000 | L20: PXV | N20: 0
A21: 20 | B21: 2020-04-28 | C21: PN007 | D21: VK30 1.4 | E21: Vuông kẽm 30 (1.4) | F21: Cây | G21: 100 | H21: 105028 | I21: 10502800 | J21: 0 | K21: 10502800 | L21: PXV | N21: 0
A22: 21 | B22: 2020-04-28 | C22: PN007 | D22: HK4080 1.4 | E22: Hộp kẽm 40x80 (1.4) | F22: Cây | G22: 50 | H22: 216832 | I22: 10841600 | J22: 0 | K22: 10841600 | L22: VT | N22: 0
A23: 22 | B23: 2020-04-28 | C23: PN007 | D23: HK2040 1.4 | E23: Hộp kẽm 20x40 (1.4) | F23: Cây | G23: 50 | H23: 107184 | I23: 5359200 | J23: 0 | K23: 5359200 | L23: VT | N23: 0
A24: 23 | B24: 2020-05-04 | C24: PN008 | D24: VK90 1.8 VT | E24: Vuông kẽm 90 (1.8) VT | F24: Cây | G24: 3 | H24: 435000 | I24: 1305000 | J24: 0 | K24: 1305000 | L24: VT | N24: 0
A25: 24 | B25: 2020-05-04 | C25: PN008 | D25: HK5010 1.8 | E25: Hộp kẽm 50x100 (1.8) | F25: Cây | G25: 2 | H25: 365000 | I25: 730000 | J25: 0 | K25: 730000 | L25: VT | N25: 0
A26: 25 | B26: 2020-05-04 | C26: PN008 | D26: CN10L | E26: Cách nhiệt 10 li | F26: Mét | G26: 250 | H26: 15000 | I26: 3750000 | J26: 0 | K26: 3750000 | L26: KL | N26: 0
A27: 26 | B27: 2020-05-05 | C27: PN009 | D27: VK75 1.8 | E27: Vuông kẽm 75 (1.8) | F27: Cây | G27: 3 | H27: 343000 | I27: 1029000 | J27: 0 | K27: 1029000 | L27: KL | N27: 0
A28: 27 | B28: 2020-05-05 | C28: PN009 | D28: HK3060 1.4 | E28: Hộp kẽm 30x60 (1.4) | F28: Cây | G28: 100 | H28: 157388 | I28: 15738800 | J28: 0 | K28: 15738800 | L28: KL | N28: 0
A29: 28 | B29: 2020-05-07 | C29: PN010 | D29: I100 | E29: I100 | F29: Cây | G29: 10 | H29: 605000 | I29: 6050000 | J29: 0 | K29: 6050000 | L29: KL | N29: 0
A30: 29 | B30: 2020-05-07 | C30: PN010 | D30: HK4080 1.4 | E30: Hộp kẽm 40x80 (1.4) | F30: Cây | G30: 50 | H30: 216832 | I30: 10841600 | J30: 0 | K30: 10841600 | L30: KL | N30: 0
A31: 30 | B31: 2020-05-07 | C31: PN010 | D31: HK1326 1.2 | E31: Hộp kẽm 13x26 (1.2) | F31: Cây | G31: 50 | H31: 62800 | I31: 3140000 | J31: 0 | K31: 3140000 | L31: KL | N31: 0
A32: 31 | B32: 2020-05-08 | C32: PN011 | D32: VK90 2.0 | E32: Vuông kẽm 90 (2.0) | F32: Cây | G32: 2 | H32: 478900 | I32: 957800 | J32: 0 | K32: 957800 | L32: KL | N32: 0
A33: 32 | B33: 2020-05-09 | C33: PN012 | D33: VK40 1.4 | E33: Vuông kẽm 40 (1.4) | F33: Cây | G33: 20 | H33: 147000 | I33: 2940000 | J33: 0 | K33: 2940000 | L33: VT | N33: 0
A34: 33 | B34: 2020-05-09 | C34: PX012 | D34: OK49 1.8 | E34: Ống kẽm 49 (1.8) | F34: Cây | G34: 18 | H34: 189000 | I34: 3402000 | J34: 0 | K34: 3402000 | L34: KL | N34: 0
A35: 34 | B35: 2020-05-11 | C35: PX013 | D35: VK40 1.4 | E35: Vuông kẽm 40 (1.4) | F35: Cây | G35: 50 | H35: 139216 | I35: 6960800 | J35: 0 | K35: 6960800 | L35: KL | N35: 0
A36: 35 | B36: 2020-05-11 | C36: PX013 | D36: HK2040 1.4 | E36: Hộp kẽm 20x40 (1.4) | F36: Cây | G36: 50 | H36: 104720 | I36: 5236000 | J36: 0 | K36: 5236000 | L36: KL | N36: 0
A37: 36 | B37: 2020-05-11 | C37: PX013 | D37: HK5010 1.4 | E37: Hộp kẽm 50x100 (1.4) | F37: Cây | G37: 20 | H37: 265760 | I37: 5315200 | J37: 0 | K37: 5315200 | L37: KL | N37: 0
A38: 37 | B38: 2020-05-11 | C38: PX013 | D38: HK1326 1.2 | E38: Hộp kẽm 13x26 (1.2) | F38: Cây | G38: 50 | H38: 61600 | I38: 3080000 | J38: 0 | K38: 3080000 | L38: KL | N38: 0
A39: 38 | B39: 2020-05-11 | C39: PN013 | D39: TMXN3.5 | E39: Tôn XNgọc 3.5 | F39: Mét | G39: 1340 | H39: 51000 | I39: 68340000 | J39: 0 | K39: 68340000 | L39: KL | N39: 0
A40: 39 | B40: 2020-05-11 | C40: PN013 | D40: TMXN4.5 | E40: Tôn XNgọc 4.5 | F40: Mét | G40: 1065 | H40: 65000 | I40: 69225000 | J40: 0 | K40: 69225000 | L40: KL | N40: 0
A41: 40 | B41: 2020-05-12 | C41: PN014 | D41: V40X | E41: V đen 40(X) | F41: Cây | G41: 100 | H41: 97500 | I41: 9750000 | J41: 0 | K41: 9750000 | L41: KL | N41: 0
A42: 41 | B42: 2020-05-13 | C42: PN015 | D42: HK4080 1.8 | E42: Hộp kẽm 40x80 (1.8) | F42: Cây | G42: 5 | H42: 285000 | I42: 1425000 | J42: 0 | K42: 1425000 | L42: VT | N42: 0
A43: 42 | B43: 2020-05-13 | C43: PN015 | D43: VK30 1.8 | E43: Vuông kẽm 30 (1.8) | F43: Cây | G43: 12 | H43: 139000 | I43: 1668000 | J43: 0 | K43: 1668000 | L43: VT | N43: 0
A44: 43 | B44: 2020-05-13 | C44: PN015 | D44: VK100 1.8 | E44: Vuông kẽm 100 (1.8) | F44: Cây | G44: 1 | H44: 450000 | I44: 450000 | J44: 0 | K44: 450000 | L44: VT | N44: 0
A45: 44 | B45: 2020-05-13 | C45: PN015 | D45: HK612 1.8 | E45: Hộp Kẽm 60x120 (1.8) | F45: Cây | G45: 4 | H45: 427000 | I45: 1708000 | J45: 0 | K45: 1708000 | L45: VT | N45: 0
A46: 45 | B46: 2020-05-14 | C46: PN016 | D46: HK4080 1.8 | E46: Hộp kẽm 40x80 (1.8) | F46: Cây | G46: 20 | H46: 283880 | I46: 5677600 | J46: 0 | K46: 5677600 | L46: VT | N46: 0
A47: 46 | B47: 2020-05-14 | C47: PN016 | D47: HK5010 1.8 | E47: Hộp kẽm 50x100 (1.8) | F47: Cây | G47: 20 | H47: 347300 | I47: 6946000 | J47: 0 | K47: 6946000 | L47: VT | N47: 0
A48: 47 | B48: 2020-05-15 | C48: PN017 | D48: HK4080 1.8 | E48: Hộp kẽm 40x80 (1.8) | F48: Cây | G48: 50 | H48: 243000 | I48: 12150000 | J48: 0 | K48: 12150000 | L48: PXV | N48: 0
A49: 48 | B49: 2020-05-18 | C49: PN018 | D49: HD2550 0.9 | E49: Hộp đen 25x50 (0.9) | F49: Cây | G49: 150 | H49: 86800 | I49: 13020000 | J49: 0 | K49: 13020000 | L49: KL | N49: 0
A50: 49 | B50: 2020-05-18 | C50: PN018 | D50: HK3060 2.0 | E50: Hộp kẽm 30x60 (2.0) | F50: Cây | G50: 11 | H50: 231000 | I50: 2541000 | J50: 0 | K50: 2541000 | L50: PXV | N50: 0
A51: 50 | B51: 2020-05-19 | C51: PN019 | D51: TMXN4.5DA | E51: Tôn XNgọc 4.5 ĐÁ | F51: Mét | G51: 1056 | H51: 85500 | I51: 90288000 | J51: 0 | K51: 90288000 | L51: KL | N51: 0
A52: 51 | B52: 2020-05-20 | C52: PN020 | D52: HK3060 1.4 | E52: Hộp kẽm 30x60 (1.4) | F52: Cây | G52: 50 | H52: 155228 | I52: 7761400 | J52: 0 | K52: 7761400 | L52: VT | N52: 0
A53: 52 | B53: 2020-05-20 | C53: PN020 | D53: HK5010 1.4 | E53: Hộp kẽm 50x100 (1.4) | F53: Cây | G53: 20 | H53: 267270 | I53: 5345400 | J53: 0 | K53: 5345400 | L53: VT | N53: 0
A54: 53 | B54: 2020-05-20 | C54: PN020 | D54: OK90 1.8 | E54: Ống kẽm 90 (1.8) | F54: Cây | G54: 10 | H54: 315200 | I54: 3152000 | J54: 0 | K54: 3152000 | L54: PXV | N54: 0
A55: 54 | B55: 2020-05-20 | C55: PN020 | D55: OK90 2.0 | E55: Ông kẽm 90 (2.0) | F55: cây | G55: 5 | H55: 386000 | I55: 1930000 | J55: 0 | K55: 1930000 | L55: PXV | N55: 0
A56: 55 | B56: 2020-05-20 | C56: PN020 | D56: HK4080 1.8 | E56: Hộp kẽm 40x80 (1.8) | F56: Cây | G56: 40 | H56: 275575 | I56: 11023000 | J56: 0 | K56: 11023000 | L56: KL | N56: 0
A57: 56 | B57: 2020-05-20 | C57: PN020 | D57: TMXN4.5DA | E57: Tôn XNgọc 4.5 ĐÁ | F57: Mét | G57: 1056 | H57: 85500 | I57: 90288000 | J57: 0 | K57: 90288000 | L57: KL | N57: 0
A58: 57 | B58: 2020-05-21 | C58: PN021 | D58: HK4080 1.8 | E58: Hộp kẽm 40x80 (1.8) | F58: Cây | G58: 40 | H58: 275575 | I58: 11023000 | J58: 0 | K58: 11023000 | L58: KL | N58: 0
A59: 58 | B59: 2020-05-21 | C59: PN021 | D59: OK90 1.8 | E59: Ống kẽm 90 (1.8) | F59: Cây | G59: 10 | H59: 315200 | I59: 3152000 | J59: 0 | K59: 3152000 | L59: PXV | N59: 0
A60: 59 | B60: 2020-05-21 | C60: PN021 | D60: OK90 2.0 | E60: Ông kẽm 90 (2.0) | F60: cây | G60: 5 | H60: 386000 | I60: 1930000 | J60: 0 | K60: 1930000 | L60: PXV | N60: 0
A61: 60 | B61: 2020-05-21 | C61: PN021 | D61: HK612 1.8 | E61: Hộp Kẽm 60x120 (1.8) | F61: Cây | G61: 2 | H61: 427000 | I61: 854000 | J61: 0 | K61: 854000 | L61: PXV | N61: 0
A62: 61 | B62: 2020-05-22 | C62: PN022 | D62: HK612 1.8 | E62: Hộp Kẽm 60x120 (1.8) | F62: Cây | G62: 9 | H62: 410800 | I62: 3697200 | J62: 0 | K62: 3697200 | L62: PXV | N62: 0
A63: 62 | B63: 2020-05-22 | C63: PN022 | D63: HK3060 1.3 | E63: Hộp kẽm 30x60 (1.3) | F63: Cây | G63: 50 | H63: 154800 | I63: 7740000 | J63: 0 | K63: 7740000 | L63: PXV | N63: 0
A64: 63 | B64: 2020-05-22 | C64: PN022 | D64: OK90 2.0 | E64: Ông kẽm 90 (2.0) | F64: cây | G64: 15 | H64: 391100 | I64: 5866500 | J64: 0 | K64: 5866500 | L64: PXV | N64: 0
A65: 64 | B65: 2020-05-22 | C65: PN022 | D65: OK114 1.8 | E65: ống kẽm 114 (1.8) | F65: Cây | G65: 1 | H65: 427100 | I65: 427100 | J65: 0 | K65: 427100 | L65: VT | N65: 0
A66: 65 | B66: 2020-05-22 | C66: PN022 | D66: VK20 1.4 | E66: Vuông kẽm 20 (1.4) | F66: Cây | G66: 10 | H66: 66100 | I66: 661000 | J66: 0 | K66: 661000 | L66: PXV | N66: 0
A67: 66 | B67: 2020-05-25 | C67: PN023 | D67: OK114 1.8 | E67: ống kẽm 114 (1.8) | F67: Cây | G67: 2 | H67: 427000 | I67: 854000 | J67: 0 | K67: 854000 | L67: PXV | N67: 0
A68: 67 | B68: 2020-05-25 | C68: PN023 | D68: OD16 0.5 | E68: Ống đen 16 (0.5) | F68: Cây | G68: 500 | H68: 22500 | I68: 11250000 | J68: 0 | K68: 11250000 | L68: PXV | N68: 0
A69: 68 | B69: 2020-05-25 | C69: PN023 | D69: OK114 1.8 | E69: ống kẽm 114 (1.8) | F69: Cây | G69: 5 | H69: 427000 | I69: 2135000 | J69: 0 | K69: 2135000 | L69: VT | N69: 0
A70: 69 | B70: 2020-05-25 | C70: PN023 | D70: HK4080 1.4 | E70: Hộp kẽm 40x80 (1.4) | F70: Cây | G70: 50 | H70: 208984 | I70: 10449200 | J70: 0 | K70: 10449200 | L70: VT | N70: 0
A71: 70 | B71: 2020-05-25 | C71: PN023 | D71: HK3060 1.2 | E71: Hộp kẽm 30x60 (1.2) | F71: Cây | G71: 50 | H71: 141336 | I71: 7066800 | J71: 0 | K71: 7066800 | L71: VT | N71: 0
A72: 71 | B72: 2020-05-25 | C72: PN023 | D72: VK14 1.2 | E72: Vuông kẽm 14 (1.2) | F72: Cây | G72: 100 | H72: 43100 | I72: 4310000 | J72: 0 | K72: 4310000 | L72: VT | N72: 0
A73: 72 | B73: 2020-05-25 | C73: PN023 | D73: CN10L | E73: Cách nhiệt 10 li | F73: Mét | G73: 300 | H73: 8500 | I73: 2550000 | J73: 0 | K73: 2550000 | L73: KL | N73: 0
A74: 73 | B74: 2020-05-26 | C74: PN024 | D74: VK20 1.4 | E74: Vuông kẽm 20 (1.4) | F74: Cây | G74: 25 | H74: 68000 | I74: 1700000 | J74: 0 | K74: 1700000 | L74: KL | N74: 0
A75: 74 | B75: 2020-05-26 | C75: PN024 | D75: HK5010 1.8 | E75: Hộp kẽm 50x100 (1.8) | F75: Cây | G75: 32 | H75: 308000 | I75: 9856000 | J75: 0 | K75: 9856000 | L75: PXV | N75: 0
A76: 75 | B76: 2020-05-26 | C76: PN024 | D76: TNSV1.0 3.0M | E76: Tôn nhựa sóng vuông (1.0) 3.0m | F76: Tấm | G76: 30 | H76: 180000 | I76: 5400000 | J76: 0 | K76: 5400000 | L76: KL | N76: 0
A77: 76 | B77: 2020-05-27 | C77: PN025 | D77: VK20 1.4 | E77: Vuông kẽm 20 (1.4) | F77: Cây | G77: 30 | H77: 68000 | I77: 2040000 | J77: 0 | K77: 2040000 | L77: VT | N77: 0
A78: 77 | B78: 2020-05-27 | C78: PN025 | D78: VK25 1.2 | E78: Vuông kẽm 25 (1.2) | F78: Cây | G78: 20 | H78: 78000 | I78: 1560000 | J78: 0 | K78: 1560000 | L78: VT | N78: 0
A79: 78 | B79: 2020-05-27 | C79: PN025 | D79: VK25 1.4 | E79: Vuông kẽm 25 (1.4) | F79: Cây | G79: 20 | H79: 88000 | I79: 1760000 | J79: 0 | K79: 1760000 | L79: VT | N79: 0
A80: 79 | B80: 2020-05-27 | C80: PN025 | D80: OK114 1.8 | E80: ống kẽm 114 (1.8) | F80: Cây | G80: 3 | H80: 427000 | I80: 1281000 | J80: 0 | K80: 1281000 | L80: VT | N80: 0
A81: 80 | B81: 2020-05-27 | C81: PN025 | D81: LC 14 | E81: La cứng 14 | F81: Cây | G81: 301 | H81: 7820 | I81: 2353820 | J81: 0 | K81: 2353820 | L81: VT | N81: 0
A82: 81 | B82: 2020-05-27 | C82: PN025 | D82: TMXN5.0DA | E82: Tôn XNgọc 5.0 ĐÁ | F82: Mét | G82: 820 | H82: 93600 | I82: 76752000 | J82: 0 | K82: 76752000 | L82: VT | N82: 0
A83: 82 | B83: 2020-05-28 | C83: PN026 | D83: HK2040 1.2 | E83: Hộp kẽm 20x40 (1.2) | F83: Cây | G83: 6 | H83: 94000 | I83: 564000 | J83: 0 | K83: 564000 | L83: VT | N83: 0
A84: 83 | B84: 2020-05-29 | C84: PN026 | D84: HK4080 1.4 | E84: Hộp kẽm 40x80 (1.4) | F84: Cây | G84: 50 | H84: 211400 | I84: 10570000 | J84: 0 | K84: 10570000 | L84: VT | N84: 0
A85: 84 | B85: 2020-05-29 | C85: PN026 | D85: HK2040 1.2 | E85: Hộp kẽm 20x40 (1.2) | F85: Cây | G85: 50 | H85: 93016 | I85: 4650800 | J85: 0 | K85: 4650800 | L85: VT | N85: 0
A86: 85 | B86: 2020-06-01 | C86: PN027 | D86: HK4080 1.4 | E86: Hộp kẽm 40x80 (1.4) | F86: Cây | G86: 50 | H86: 212608 | I86: 10630400 | J86: 0 | K86: 10630400 | L86: VT | N86: 0
A87: 86 | B87: 2020-06-01 | C87: PN027 | D87: HK4080 1.8 | E87: Hộp kẽm 40x80 (1.8) | F87: Cây | G87: 20 | H87: 279350 | I87: 5587000 | J87: 0 | K87: 5587000 | L87: VT | N87: 0
A88: 87 | B88: 2020-06-01 | C88: PN027 | D88: HK5010 2.0 | E88: Hộp kẽm 50x100 (2.0) | F88: Cây | G88: 10 | H88: 412900 | I88: 4129000 | J88: 0 | K88: 4129000 | L88: PXV | N88: 0
A89: 88 | B89: 2020-06-01 | C89: PN027 | D89: HK3060 2.0 | E89: Hộp kẽm 30x60 (2.0) | F89: Cây | G89: 15 | H89: 234100 | I89: 3511500 | J89: 0 | K89: 3511500 | L89: PXV | N89: 0
A90: 89 | B90: 2020-06-01 | C90: PN027 | D90: OK60 1.8 | E90: Ống kẽm 60 (1.8) | F90: Cây | G90: 10 | H90: 217500 | I90: 2175000 | J90: 0 | K90: 2175000 | L90: PXV | N90: 0
A91: 90 | B91: 2020-06-02 | C91: PN028 | D91: VK100 1.8 | E91: Vuông kẽm 100 (1.8) | F91: Cây | G91: 1 | H91: 477000 | I91: 477000 | J91: 0 | K91: 477000 | L91: VT | N91: 0
A92: 91 | B92: 2020-06-02 | C92: PN028 | D92: OK34 1.4 | E92: Ống kẽm 34 (1.4) | F92: Cây | G92: 61 | H92: 92581 | I92: 5647441 | J92: 0 | K92: 5647441 | L92: VT | N92: 0
A93: 92 | B93: 2020-06-03 | C93: PN029 | D93: HK3060 1.4 | E93: Hộp kẽm 30x60 (1.4) | F93: Cây | G93: 50 | H93: 157040 | I93: 7852000 | J93: 0 | K93: 7852000 | L93: VT | N93: 0
A94: 93 | B94: 2020-06-03 | C94: PN029 | D94: VK30 1.4 | E94: Vuông kẽm 30 (1.4) | F94: Cây | G94: 69 | H94: 103731 | I94: 7157439 | J94: 0 | K94: 7157439 | L94: VT | N94: 0
A95: 94 | B95: 2020-06-03 | C95: PN029 | D95: VK30 1.2 | E95: Vuông kẽm 30 (1.2) | F95: Cây | G95: 100 | H95: 93620 | I95: 9362000 | J95: 0 | K95: 9362000 | L95: VT | N95: 0
A96: 95 | B96: 2020-06-03 | C96: PN029 | D96: VK14 1.2 | E96: Vuông kẽm 14 (1.2) | F96: Cây | G96: 100 | H96: 43100 | I96: 4310000 | J96: 0 | K96: 4310000 | L96: VT | N96: 0
A97: 96 | B97: 2020-06-03 | C97: PN029 | D97: HK4080 1.8 | E97: Hộp kẽm 40x80 (1.8) | F97: Cây | G97: 20 | H97: 262740 | I97: 5254800 | J97: 0 | K97: 5254800 | L97: VT | N97: 0
A98: 97 | B98: 2020-06-03 | C98: PN029 | D98: HK4080 1.8 | E98: Hộp kẽm 40x80 (1.8) | F98: Cây | G98: 11 | H98: 274546 | I98: 3020006 | J98: 0 | K98: 3020006 | L98: VT | N98: 0
A99: 98 | B99: 2020-06-04 | C99: PN030 | D99: VK40 1.2 | E99: Vuông kẽm 40 (1.2) | F99: Cây | G99: 50 | H99: 129256 | I99: 6462800 | J99: 0 | K99: 6462800 | L99: VT | N99: 0
A100: 99 | B100: 2020-06-04 | C100: PN030 | D100: HK4080 1.8 | E100: Hộp kẽm 40x80 (1.8) | F100: Cây | G100: 20 | H100: 264250 | I100: 5285000 | J100: 0 | K100: 5285000 | L100: VT | N100: 0
A101: 100 | B101: 2020-06-05 | C101: PN031 | D101: VK30 1.8 | E101: Vuông kẽm 30 (1.8) | F101: Cây | G101: 3 | H101: 142000 | I101: 426000 | J101: 0 | K101: 426000 | L101: KL | N101: 0
A102: 101 | B102: 2020-06-05 | C102: PN031 | D102: VK25 1.0 | E102: Vuông kẽm 25 (1.0) | F102: Cây | G102: 10 | H102: 63500 | I102: 635000 | J102: 0 | K102: 635000 | L102: PXV | N102: 0
A103: 102 | B103: 2020-06-05 | C103: PN031 | D103: OK114 1.8 | E103: ống kẽm 114 (1.8) | F103: Cây | G103: 5 | H103: 427000 | I103: 2135000 | J103: 0 | K103: 2135000 | L103: VT | N103: 0
A104: 103 | B104: 2020-06-06 | C104: PN032 | D104: HK4080 1.4 | E104: Hộp kẽm 40x80 (1.4) | F104: Cây | G104: 1 | H104: 212500 | I104: 212500 | J104: 0 | K104: 212500 | L104: KL | N104: 0
A105: 104 | B105: 2020-06-06 | C105: PN032 | D105: VK40 1.4 | E105: Vuông kẽm 40 (1.4) | F105: Cây | G105: 4 | H105: 139400 | I105: 557600 | J105: 0 | K105: 557600 | L105: KL | N105: 0
A106: 105 | B106: 2020-06-08 | C106: PN033 | D106: HK3060 1.4 | E106: Hộp kẽm 30x60 (1.4) | F106: Cây | G106: 50 | H106: 160060 | I106: 8003000 | J106: 0 | K106: 8003000 | L106: VT | N106: 0
A107: 106 | B107: 2020-06-08 | C107: PN033 | D107: HK3060 1.8 | E107: Hộp kẽm 30x60 (1.8) | F107: Cây | G107: 100 | H107: 203246 | I107: 20324600 | J107: 0 | K107: 20324600 | L107: VT | N107: 0
A108: 107 | B108: 2020-06-08 | C108: PN033 | D108: HK4080 1.8 | E108: Hộp kẽm 40x80 (1.8) | F108: Cây | G108: 20 | H108: 273310 | I108: 5466200 | J108: 0 | K108: 5466200 | L108: VT | N108: 0
A109: 108 | B109: 2020-06-08 | C109: PN033 | D109: VK25 0.9 | E109: Vuông kẽm 25 (0.9) | F109: Cây | G109: 30 | H109: 56700 | I109: 1701000 | J109: 0 | K109: 1701000 | L109: VT | N109: 0
A110: 109 | B110: 2020-06-09 | C110: PN034 | D110: VK40 1.4 | E110: Vuông kẽm 40 (1.4) | F110: Cây | G110: 50 | H110: 138316 | I110: 6915800 | J110: 0 | K110: 6915800 | L110: VT | N110: 0
A111: 110 | B111: 2020-06-09 | C111: PN034 | D111: HK3060 1.4 | E111: Hộp kẽm 30x60 (1.4) | F111: Cây | G111: 50 | H111: 157644 | I111: 7882200 | J111: 0 | K111: 7882200 | L111: VT | N111: 0
A112: 111 | B112: 2020-06-09 | C112: PN034 | D112: HK4080 1.4 | E112: Hộp kẽm 40x80 (1.4) | F112: Cây | G112: 50 | H112: 215326 | I112: 10766300 | J112: 0 | K112: 10766300 | L112: VT | N112: 0
A113: 112 | B113: 2020-06-09 | C113: PN034 | D113: HK1326 1.2 | E113: Hộp kẽm 13x26 (1.2) | F113: Cây | G113: 50 | H113: 59192 | I113: 2959600 | J113: 0 | K113: 2959600 | L113: VT | N113: 0
A114: 113 | B114: 2020-06-09 | C114: PN034 | D114: VK100 1.4 | E114: Vuông kẽm 100 (1.4) | F114: Cây | G114: 2 | H114: 365000 | I114: 730000 | J114: 0 | K114: 730000 | L114: VT | N114: 0
A115: 114 | B115: 2020-06-10 | C115: PN035 | D115: HK5010 2.0 | E115: Hộp kẽm 50x100 (2.0) | F115: Cây | G115: 12 | H115: 412900 | I115: 4954800 | J115: 0 | K115: 4954800 | L115: PXV | N115: 0
A116: 115 | B116: 2020-06-10 | C116: PN035 | D116: VK90 1.4 | E116: Vuông kẽm 90 (1.4) | F116: Cây | G116: 8 | H116: 326000 | I116: 2608000 | J116: 0 | K116: 2608000 | L116: VT | N116: 0
A117: 116 | B117: 2020-06-11 | C117: PN036 | D117: VK100 1.8 | E117: Vuông kẽm 100 (1.8) | F117: Cây | G117: 6 | H117: 476700 | I117: 2860200 | J117: 0 | K117: 2860200 | L117: VT | N117: 0
A118: 117 | B118: 2020-06-11 | C118: PN036 | D118: HK3060 1.8 | E118: Hộp kẽm 30x60 (1.8) | F118: Cây | G118: 20 | H118: 213100 | I118: 4262000 | J118: 0 | K118: 4262000 | L118: VT | N118: 0
A119: 118 | B119: 2020-06-11 | C119: PN036 | D119: OK60 1.4 | E119: Ống kẽm 60 (1.4) | F119: Cây | G119: 10 | H119: 170300 | I119: 1703000 | J119: 0 | K119: 1703000 | L119: VT | N119: 0
A120: 119 | B120: 2020-06-11 | C120: PN036 | D120: VK14 0.9 | E120: Vuông kẽm 14 (0.9) | F120: Cây | G120: 100 | H120: 31000 | I120: 3100000 | J120: 0 | K120: 3100000 | L120: VT | N120: 0
A121: 120 | B121: 2020-06-11 | C121: PN036 | D121: HK1326 0.9 | E121: Hộp kẽm 13x26 (0.9) | F121: Cây | G121: 50 | H121: 44400 | I121: 2220000 | J121: 0 | K121: 2220000 | L121: VT | N121: 0
A122: 121 | B122: 2020-06-11 | C122: PN036 | D122: VK30 1.8 | E122: Vuông kẽm 30 (1.8) | F122: Cây | G122: 20 | H122: 139000 | I122: 2780000 | J122: 0 | K122: 2780000 | L122: VT | N122: 0
A123: 122 | B123: 2020-06-11 | C123: PN037 | D123: OK60 2.0 | E123: Ống kẽm 60 (2.0) | F123: Cây | G123: 10 | H123: 257200 | I123: 2572000 | J123: 0 | K123: 2572000 | L123: PXV | N123: 0
A124: 123 | B124: 2020-06-11 | C124: PN037 | D124: VK40 1.8 | E124: Vuông kẽm 40 (1.8) | F124: Cây | G124: 20 | H124: 176700 | I124: 3534000 | J124: 0 | K124: 3534000 | L124: PXV | N124: 0
A125: 124 | B125: 2020-06-11 | C125: PN037 | D125: V25 | E125: V đen25(X) | F125: Cây | G125: 150 | H125: 66500 | I125: 9975000 | J125: 0 | K125: 9975000 | L125: KL | N125: 0
A126: 125 | B126: 2020-06-13 | C126: PN038 | D126: VK30 1.2 | E126: Vuông kẽm 30 (1.2) | F126: Cây | G126: 100 | H126: 92714 | I126: 9271400 | J126: 0 | K126: 9271400 | L126: VT | N126: 0
A127: 126 | B127: 2020-06-13 | C127: PN038 | D127: HK4080 1.4 | E127: Hộp kẽm 40x80 (1.4) | F127: Cây | G127: 50 | H127: 213212 | I127: 10660600 | J127: 0 | K127: 10660600 | L127: VT | N127: 0
A128: 127 | B128: 2020-06-13 | C128: PN038 | D128: HK4080 2.0 | E128: Hộp kẽm 40x80(2.0) | F128: Cây | G128: 20 | H128: 326160 | I128: 6523200 | J128: 0 | K128: 6523200 | L128: VT | N128: 0
A129: 128 | B129: 2020-06-13 | C129: PN038 | D129: VK75 1.4 | E129: Vuông kẽm 75 (1.4) | F129: Cây | G129: 5 | H129: 272900 | I129: 1364500 | J129: 0 | K129: 1364500 | L129: VT | N129: 0
A130: 129 | B130: 2020-06-13 | C130: PN038 | D130: VK75 1.8 | E130: Vuông kẽm 75 (1.8) | F130: Cây | G130: 5 | H130: 356900 | I130: 1784500 | J130: 0 | K130: 1784500 | L130: VT | N130: 0
A131: 130 | B131: 2020-06-13 | C131: PN038 | D131: OK21 1.8 | E131: Ống kẽm 21 (1.8) | F131: Cây | G131: 5 | H131: 80000 | I131: 400000 | J131: 0 | K131: 400000 | L131: VT | N131: 0
A132: 131 | B132: 2020-06-15 | C132: PN039 | D132: HK5010 1.8 | E132: Hộp kẽm 50x100 (1.8) | F132: Cây | G132: 2 | H132: 357000 | I132: 714000 | J132: 0 | K132: 714000 | L132: VT | N132: 0
A133: 132 | B133: 2020-06-15 | C133: PN039 | D133: U80M | E133: U 80 (M) | F133: Cây | G133: 3 | H133: 340000 | I133: 1020000 | J133: 0 | K133: 1020000 | L133: KL | N133: 0
A134: 133 | B134: 2020-06-16 | C134: PN040 | D134: LC 14 | E134: La cứng 14 | F134: Cây | G134: 450 | H134: 8200 | I134: 3690000 | J134: 0 | K134: 3690000 | L134: VT | N134: 0
A135: 134 | B135: 2020-06-18 | C135: PN041 | D135: VK40 1.2 | E135: Vuông kẽm 40 (1.2) | F135: Cây | G135: 50 | H135: 123820 | I135: 6191000 | J135: 0 | K135: 6191000 | L135: VT | N135: 0
A136: 135 | B136: 2020-06-18 | C136: PN041 | D136: HK4080 1.2 | E136: Hộp kẽm 40x80 (1.2) | F136: Cây | G136: 50 | H136: 188448 | I136: 9422400 | J136: 0 | K136: 9422400 | L136: VT | N136: 0
A137: 136 | B137: 2020-06-18 | C137: PN041 | D137: HK4080 1.8 | E137: Hộp kẽm 40x80 (1.8) | F137: Cây | G137: 50 | H137: 250000 | I137: 12500000 | J137: 0 | K137: 12500000 | L137: PXV | N137: 0
A138: 137 | B138: 2020-06-19 | C138: PN042 | D138: TMXN4.0 | E138: Tôn XNgọc 4.0 | F138: Mét | G138: 1213 | H138: 58000 | I138: 70354000 | J138: 0 | K138: 70354000 | L138: HP | N138: 0
A139: 138 | B139: 2020-06-19 | C139: PN042 | D139: TL4.5 | E139: Tôn Lạnh 4.5 | F139: Mét | G139: 953 | H139: 70300 | I139: 66995900 | J139: 0 | K139: 66995900 | L139: HP | N139: 0
A140: 139 | B140: 2020-06-19 | C140: PN042 | D140: TL5.0 ĐA | E140: Tole Lạnh 5.0 ĐÁ | F140: Mét | G140: 1080 | H140: 87600 | I140: 94608000 | J140: 0 | K140: 94608000 | N140: 0
A141: 140 | B141: 2020-06-19 | C141: PN042 | D141: CN10L | E141: Cách nhiệt 10 li | F141: Mét | G141: 200 | H141: 15000 | I141: 3000000 | J141: 0 | K141: 3000000 | L141: KL | N141: 0
A142: 141 | B142: 2020-06-19 | C142: PN042 | D142: CN20L | E142: Cách nhiệt 20 li | F142: Mét | G142: 150 | H142: 29000 | I142: 4350000 | J142: 0 | K142: 4350000 | L142: KL | N142: 0
A143: 142 | B143: 2020-06-19 | C143: PN042 | D143: HK4080 1.4 | E143: Hộp kẽm 40x80 (1.4) | F143: Cây | G143: 74 | H143: 207300 | I143: 15340200 | J143: 0 | K143: 15340200 | L143: KL | N143: 0
A144: 143 | B144: 2020-06-19 | C144: PN042 | D144: HK2040 1.0 | E144: Hộp kẽm 20x40 (1.0) | F144: Cây | G144: 10 | H144: 77000 | I144: 770000 | J144: 0 | K144: 770000 | L144: KL | N144: 0
A145: 144 | B145: 2020-06-19 | C145: PN042 | D145: OK27 1.2 | E145: Ống kẽm 27 (1.2) | F145: Cây | G145: 10 | H145: 67500 | I145: 675000 | J145: 0 | K145: 675000 | L145: KL | N145: 0
A146: 145 | B146: 2020-06-19 | C146: PN042 | D146: OK27 1.4 | E146: Ống kẽm 27 (1.4) | F146: Cây | G146: 10 | H146: 76000 | I146: 760000 | J146: 0 | K146: 760000 | L146: KL | N146: 0
A147: 146 | B147: 2020-06-20 | C147: PN043 | D147: HK3060 1.8 | E147: Hộp kẽm 30x60 (1.8) | F147: Cây | G147: 50 | H147: 196800 | I147: 9840000 | J147: 0 | K147: 9840000 | L147: PXV | N147: 0
A148: 147 | B148: 2020-06-20 | C148: PN043 | D148: OK42 1.8 | E148: Ống kẽm 42 (1.8) | F148: Cây | G148: 10 | H148: 152600 | I148: 1526000 | J148: 0 | K148: 1526000 | L148: PXV | N148: 0
A149: 148 | B149: 2020-06-20 | C149: PN043 | D149: OK21 1.2 | E149: Ống kẽm 21 (1.2) | F149: Cây | G149: 10 | H149: 51700 | I149: 517000 | J149: 0 | K149: 517000 | L149: VT | N149: 0
A150: 149 | B150: 2020-06-20 | C150: PN043 | D150: HK4080 1.8 | E150: Hộp kẽm 40x80 (1.8) | F150: Cây | G150: 20 | H150: 276330 | I150: 5526600 | J150: 0 | K150: 5526600 | L150: VT | N150: 0
A151: 150 | B151: 2020-06-20 | C151: PN043 | D151: HK4080 1.4 | E151: Hộp kẽm 40x80 (1.4) | F151: Cây | G151: 50 | H151: 213816 | I151: 10690800 | J151: 0 | K151: 10690800 | L151: VT | N151: 0
A152: 151 | B152: 2020-06-20 | C152: PN043 | D152: HK3060 1.4 | E152: Hộp kẽm 30x60 (1.4) | F152: Cây | G152: 50 | H152: 158852 | I152: 7942600 | J152: 0 | K152: 7942600 | L152: VT | N152: 0
A153: 152 | B153: 2020-06-20 | C153: PN043 | D153: HK5010 1.8 | E153: Hộp kẽm 50x100 (1.8) | F153: Cây | G153: 20 | H153: 351830 | I153: 7036600 | J153: 0 | K153: 7036600 | L153: VT | N153: 0
A154: 153 | B154: 2020-06-20 | C154: PN043 | D154: OK42 1.4 | E154: Ống kẽm 42 (1.4) | F154: Cây | G154: 10 | H154: 119200 | I154: 1192000 | J154: 0 | K154: 1192000 | L154: VT | N154: 0
A155: 154 | B155: 2020-06-22 | C155: PN044 | D155: VK90 1.4 | E155: Vuông kẽm 90 (1.4) | F155: Cây | G155: 3 | H155: 326000 | I155: 978000 | J155: 0 | K155: 978000 | L155: VT | N155: 0
A156: 155 | B156: 2020-06-22 | C156: PN044 | D156: HK2040 1.2 | E156: Hộp kẽm 20x40 (1.2) | F156: Cây | G156: 50 | H156: 93620 | I156: 4681000 | J156: 0 | K156: 4681000 | L156: VT | N156: 0
A157: 156 | B157: 2020-06-22 | C157: PN044 | D157: HK5010 1.4 | E157: Hộp kẽm 50x100 (1.4) | F157: Cây | G157: 20 | H157: 264250 | I157: 5285000 | J157: 0 | K157: 5285000 | L157: VT | N157: 0
A158: 157 | B158: 2020-06-22 | C158: PN044 | D158: HK3060 1.4 | E158: Hộp kẽm 30x60 (1.4) | F158: Cây | G158: 100 | H158: 159003 | I158: 15900300 | J158: 0 | K158: 15900300 | L158: VT | N158: 0
A159: 158 | B159: 2020-06-22 | C159: PN044 | D159: VK25 0.9 | E159: Vuông kẽm 25 (0.9) | F159: Cây | G159: 65 | H159: 56700 | I159: 3685500 | J159: 0 | K159: 3685500 | L159: VT | N159: 0
A160: 159 | B160: 2020-06-22 | C160: PN044 | D160: HK3060 1.2 | E160: Hộp kẽm 30x60 (1.2) | F160: Cây | G160: 50 | H160: 144356 | I160: 7217800 | J160: 0 | K160: 7217800 | L160: VT | N160: 0
A161: 160 | B161: 2020-06-23 | C161: PN045 | D161: V50Đ | E161: V đen 50(Đ) | F161: Cây | G161: 100 | H161: 192500 | I161: 19250000 | J161: 0 | K161: 19250000 | L161: VT | N161: 0
A162: 161 | B162: 2020-06-23 | C162: PN045 | D162: HK5010 1.4 | E162: Hộp kẽm 50x100 (1.4) | F162: Cây | G162: 100 | H162: 265005 | I162: 26500500 | J162: 0 | K162: 26500500 | L162: VT | N162: 0
A163: 162 | B163: 2020-06-23 | C163: PN045 | D163: HK5010 1.2 | E163: Hộp kẽm 50x100 (1.2) | F163: Cây | G163: 25 | H163: 238580 | I163: 5964500 | J163: 0 | K163: 5964500 | L163: VT | N163: 0
A164: 163 | B164: 2020-06-23 | C164: PN045 | D164: OK114 1.8 | E164: ống kẽm 114 (1.8) | F164: Cây | G164: 19 | H164: 413263 | I164: 7851997 | J164: 0 | K164: 7851997 | L164: VT | N164: 0
A165: 164 | B165: 2020-06-23 | C165: PN045 | D165: VK20 1.0 | E165: Vuông kẽm 20 (1.0) | F165: Cây | G165: 40 | H165: 49800 | I165: 1992000 | J165: 0 | K165: 1992000 | L165: VT | N165: 0
A166: 165 | B166: 2020-06-23 | C166: PN045 | D166: TNSV1.0 2.5M | E166: Tôn nhựa sóng vuông (1.0) 2.5m | F166: Tấm | G166: 30 | H166: 150000 | I166: 4500000 | J166: 0 | K166: 4500000 | N166: 0
A167: 166 | B167: 2020-06-24 | C167: PN046 | D167: HK5010 1.8 | E167: Hộp kẽm 50x100 (1.8) | F167: Cây | G167: 32 | H167: 315500 | I167: 10096000 | J167: 0 | K167: 10096000 | L167: PXV | N167: 0
A168: 167 | B168: 2020-06-25 | C168: PN047 | D168: HD2550 0.9 | E168: Hộp đen 25x50 (0.9) | F168: Cây | G168: 200 | H168: 86800 | I168: 17360000 | J168: 0 | K168: 17360000 | L168: PXV | N168: 0
A169: 168 | B169: 2020-06-25 | C169: PN047 | D169: TMXN4.5 | E169: Tôn XNgọc 4.5 | F169: Mét | G169: 1070 | H169: 65200 | I169: 69764000 | J169: 0 | K169: 69764000 | L169: PXV | N169: 0
A170: 169 | B170: 2020-06-25 | C170: PN047 | D170: VK50 1.4 | E170: Vuông kẽm 50 (1.4) | F170: Cây | G170: 5 | H170: 181000 | I170: 905000 | J170: 0 | K170: 905000 | L170: PXV | N170: 0
A171: 170 | B171: 2020-06-26 | C171: PN048 | D171: HK1326 0.9 | E171: Hộp kẽm 13x26 (0.9) | F171: Cây | G171: 50 | H171: 44500 | I171: 2225000 | J171: 0 | K171: 2225000 | L171: VT | N171: 0
A172: 171 | B172: 2020-06-26 | C172: PN048 | D172: VK75 1.8 | E172: Vuông kẽm 75 (1.8) | F172: Cây | G172: 5 | H172: 357000 | I172: 1785000 | J172: 0 | K172: 1785000 | L172: VT | N172: 0
A173: 172 | B173: 2020-06-26 | C173: PN048 | D173: VK30 1.4 | E173: Vuông kẽm 30 (1.4) | F173: Cây | G173: 90 | H173: 103351 | I173: 9301590 | J173: 0 | K173: 9301590 | L173: VT | N173: 0
A174: 173 | B174: 2020-06-26 | C174: PN048 | D174: HK3060 1.8 | E174: Hộp kẽm 30x60 (1.8) | F174: Cây | G174: 50 | H174: 192900 | I174: 9645000 | J174: 0 | K174: 9645000 | L174: VT | N174: 0
A175: 174 | B175: 2020-06-26 | C175: PN048 | D175: VK30 1.8 | E175: Vuông kẽm 30 (1.8) | F175: Cây | G175: 30 | H175: 139000 | I175: 4170000 | J175: 0 | K175: 4170000 | L175: VT | N175: 0
A176: 175 | B176: 2020-06-27 | C176: PN049 | D176: VK40 1.2 | E176: Vuông kẽm 40 (1.2) | F176: Cây | G176: 100 | H176: 124424 | I176: 12442400 | J176: 0 | K176: 12442400 | L176: VT | N176: 0
A177: 176 | B177: 2020-06-27 | C177: PN049 | D177: HK612 1.8 | E177: Hộp Kẽm 60x120 (1.8) | F177: Cây | G177: 20 | H177: 395620 | I177: 7912400 | J177: 0 | K177: 7912400 | L177: VT | N177: 0
A178: 177 | B178: 2020-06-29 | C178: PN050 | D178: HK1326 1.0 | E178: Hộp kẽm 13x26 (1.0) | F178: Cây | G178: 50 | H178: 50000 | I178: 2500000 | J178: 0 | K178: 2500000 | L178: VT | N178: 0
A179: 178 | B179: 2020-06-29 | C179: PN050 | D179: I150 | E179: I 150 | F179: Cây | G179: 4 | H179: 1152000 | I179: 4608000 | J179: 0 | K179: 4608000 | L179: VT | N179: 0
A180: 179 | B180: 2020-06-29 | C180: PN050 | D180: U80M | E180: U 80 (M) | F180: Cây | G180: 2 | H180: 309000 | I180: 618000 | J180: 0 | K180: 618000 | L180: VT | N180: 0
A181: 180 | B181: 2020-07-01 | C181: PN051 | D181: TMXN5.0DA | E181: Tôn XNgọc 5.0 ĐÁ | F181: Mét | G181: 1040 | H181: 93800 | I181: 97552000 | J181: 0 | K181: 97552000 | L181: KL | N181: 0
A182: 181 | B182: 2020-07-01 | C182: PN051 | D182: HK612 1.8 | E182: Hộp Kẽm 60x120 (1.8) | F182: Cây | G182: 10 | H182: 427000 | I182: 4270000 | J182: 0 | K182: 4270000 | L182: VT | N182: 0
A183: 182 | B183: 2020-07-03 | C183: PN052 | D183: MANG30 1.2 6M | E183: Máng cửa sổ 30 (1.2) 6m | F183: Cây | G183: 50 | H183: 123000 | I183: 6150000 | J183: 0 | K183: 6150000 | L183: KL | N183: 0
A184: 183 | B184: 2020-07-03 | C184: PN052 | D184: MANG36 1.2 6M | E184: Máng cửa đi 36 (1.2) 6m | F184: Cây | G184: 50 | H184: 144000 | I184: 7200000 | J184: 0 | K184: 7200000 | L184: KL | N184: 0
A185: 184 | B185: 2020-07-03 | C185: PN052 | D185: HK4080 1.1 | E185: Hộp kẽm 40x80 (1.1) | F185: Cây | G185: 80 | H185: 172500 | I185: 13800000 | J185: 0 | K185: 13800000 | L185: VT | N185: 0
A186: 185 | B186: 2020-07-03 | C186: PN052 | D186: VK40 1.4 | E186: Vuông kẽm 40 (1.4) | F186: Cây | G186: 50 | H186: 136500 | I186: 6825000 | J186: 0 | K186: 6825000 | L186: VT | N186: 0
A187: 186 | B187: 2020-07-04 | C187: PN053 | D187: HK4080 1.8 | E187: Hộp kẽm 40x80 (1.8) | F187: Cây | G187: 20 | H187: 274500 | I187: 5490000 | J187: 0 | K187: 5490000 | L187: VT | N187: 0
A188: 187 | B188: 2020-07-04 | C188: PN053 | D188: VK75 1.8 | E188: Vuông kẽm 75 (1.8) | F188: Cây | G188: 10 | H188: 354500 | I188: 3545000 | J188: 0 | K188: 3545000 | L188: VT | N188: 0
A189: 188 | B189: 2020-07-04 | C189: PN053 | D189: HK5010 1.2 | E189: Hộp kẽm 50x100 (1.2) | F189: Cây | G189: 6 | H189: 240000 | I189: 1440000 | J189: 0 | K189: 1440000 | L189: VT | N189: 0
A190: 189 | B190: 2020-07-07 | C190: PN054 | D190: VK90 1.4 | E190: Vuông kẽm 90 (1.4) | F190: Cây | G190: 4 | H190: 323400 | I190: 1293600 | J190: 0 | K190: 1293600 | L190: VT | N190: 0
A191: 190 | B191: 2020-07-07 | C191: PN054 | D191: OK49 1.8 | E191: Ống kẽm 49 (1.8) | F191: Cây | G191: 10 | H191: 178000 | I191: 1780000 | J191: 0 | K191: 1780000 | L191: VT | N191: 0
A192: 191 | B192: 2020-07-07 | C192: PN054 | D192: HK3060 1.2 | E192: Hộp kẽm 30x60 (1.2) | F192: Cây | G192: 50 | H192: 142200 | I192: 7110000 | J192: 0 | K192: 7110000 | L192: VT | N192: 0
A193: 192 | B193: 2020-07-07 | C193: PN054 | D193: LC 30 5 | E193: La cứng 30 5li | F193: Cây | G193: 10 | H193: 45200 | I193: 452000 | J193: 0 | K193: 452000 | L193: PXV | N193: 0
A194: 193 | B194: 2020-07-07 | C194: PN054 | D194: BX30 | E194: Bánh xe 30 | F194: Cái | G194: 50 | H194: 5900 | I194: 295000 | J194: 0 | K194: 295000 | L194: PXV | N194: 0
A195: 194 | B195: 2020-07-08 | C195: PN055 | D195: TMXN4.5DA | E195: Tôn XNgọc 4.5 ĐÁ | F195: Mét | G195: 1004 | H195: 86500 | I195: 86846000 | J195: 0 | K195: 86846000 | L195: PXV | N195: 0
A196: 195 | B196: 2020-07-08 | C196: PN055 | D196: VK30 1.8 | E196: Vuông kẽm 30 (1.8) | F196: Cây | G196: 50 | H196: 132600 | I196: 6630000 | J196: 0 | K196: 6630000 | L196: VT | N196: 0
A197: 196 | B197: 2020-07-08 | C197: PN055 | D197: HK1326 1.1 | E197: Hộp kẽm 13x26 (1.1) | F197: Cây | G197: 50 | H197: 53400 | I197: 2670000 | J197: 0 | K197: 2670000 | L197: VT | N197: 0
A198: 197 | B198: 2020-07-08 | C198: PN055 | D198: VK20 1.0 | E198: Vuông kẽm 20 (1.0) | F198: Cây | G198: 30 | H198: 49500 | I198: 1485000 | J198: 0 | K198: 1485000 | L198: VT | N198: 0
A199: 198 | B199: 2020-07-08 | C199: PN055 | D199: TMXN5.0 | E199: Tôn XNgọc 5.0 | F199: Mét | G199: 1000 | H199: 71100 | I199: 71100000 | J199: 0 | K199: 71100000 | L199: VT | N199: 0
A200: 199 | B200: 2020-07-10 | C200: PN056 | D200: V40Đ | E200: V đen 40(Đ) | F200: Cây | G200: 100 | H200: 125500 | I200: 12550000 | J200: 0 | K200: 12550000 | L200: PXV | N200: 0
... 4801 more rows

Sheet XUAT
A1: STT | B1: Ngày xuất | C1: Chứng từ xuất | D1: Thuộc phiếu nhập | E1: Mã hàng | F1: Tên hàng/ Nội dung thu tiền KH | G1: ĐVT | H1: Số lượng | I1: Giá Bán | J1: Doanh thu | K1: %VAT | L1: Phải Thu | M1: Giá vốn | N1: Mã KH | O1: Số tiền thu KH | P1: Ghi chú
A2: 1 | B2: 2020-04-20 | C2: PX001 | E2: OK114 2.0 | F2: Ống kẽm 114 (2.0) | G2: Cây | H2: 1 | I2: 588000 | J2: 588000 | K2: 0 | L2: 491000 | M2: 491000 | N2: KL | P2: 0
A3: 2 | B3: 2020-04-20 | C3: PX001 | E3: TMXN5.0 | F3: Tôn XNgọc 5.0 | G3: Mét | H3: 4.8 | I3: 90000 | J3: 432000 | K3: 0 | L3: 351843.0648 | M3: 351843.0648 | N3: KL | P3: 0
A4: 3 | B4: 2020-04-20 | C4: PX001 | E4: VK30 1.4 | F4: Vuông kẽm 30 (1.4) | G4: Cây | H4: 5 | I4: 130000 | J4: 650000 | K4: 0 | L4: 532686.5617 | M4: 532686.5617 | N4: KL | P4: 0
A5: 4 | B5: 2020-04-20 | C5: PX001 | E5: HK1326 1.2 | F5: Hộp kẽm 13x26 (1.2) | G5: Cây | H5: 13 | I5: 74000 | J5: 962000 | K5: 0 | L5: 793991.8197 | M5: 793991.8197 | N5: KL | P5: 0
A6: 5 | B6: 2020-04-20 | C6: PX001 | E6: TL4.0 | F6: Tôn Lạnh 4.0 | G6: Mét | H6: 3.3 | I6: 76000 | J6: 250800 | K6: 0 | L6: 215160 | M6: 215160 | N6: KL | P6: 0
A7: 6 | B7: 2020-04-20 | C7: PX001 | E7: TMXN3.5 | F7: Tôn XNgọc 3.5 | G7: Mét | H7: 146.7 | I7: 64000 | J7: 9388800 | K7: 0 | L7: 7574333.8 | M7: 7574333.8 | N7: KL | P7: 0
A8: 7 | B8: 2020-04-20 | C8: PX001 | E8: LC 30 5 | F8: La cứng 30 5li | G8: Cây | H8: 3 | I8: 75000 | J8: 225000 | K8: 0 | L8: 140027.027 | M8: 140027.027 | N8: KL | P8: 0
A9: 8 | B9: 2020-04-20 | C9: PX001 | E9: HK3060 1.3 | F9: Hộp kẽm 30x60 (1.3) | G9: Cây | H9: 10 | I9: 174000 | J9: 1740000 | K9: 0 | L9: 1553530.435 | M9: 1553530.435 | N9: KL | P9: 0
A10: 9 | B10: 2020-04-20 | C10: PX001 | E10: HK3060 1.2 | F10: Hộp kẽm 30x60 (1.2) | G10: Cây | H10: 10 | I10: 107000 | J10: 1070000 | K10: 0 | L10: 1467864.486 | M10: 1467864.486 | N10: KL | P10: 0
A11: 10 | B11: 2020-04-20 | C11: PX001 | E11: TMXN4.5DA | F11: Tôn XNgọc 4.5 ĐÁ | G11: Mét | H11: 9 | I11: 103000 | J11: 927000 | K11: 0 | L11: 768102.1277 | M11: 768102.1277 | N11: KL | P11: 0
A12: 11 | B12: 2020-04-20 | C12: PX001 | E12: TMXN3.5 | F12: Tôn XNgọc 3.5 | G12: Mét | H12: 31 | I12: 58000 | J12: 1798000 | K12: 0 | L12: 1600574.968 | M12: 1600574.968 | N12: KL | P12: 0
A13: 12 | B13: 2020-04-20 | C13: PX001 | E13: TMXN4.0 | F13: Tôn XNgọc 4.0 | G13: Mét | H13: 13.5 | I13: 70000 | J13: 945000 | K13: 0 | L13: 809313.8057 | M13: 809313.8057 | N13: KL | P13: 0
A14: 13 | B14: 2020-04-20 | C14: PX001 | E14: TMXN5.0 | F14: Tôn XNgọc 5.0 | G14: Mét | H14: 28.2 | I14: 84000 | J14: 2368800 | K14: 0 | L14: 2067078.006 | M14: 2067078.006 | N14: KL | P14: 0
A15: 14 | B15: 2020-04-20 | C15: PX001 | E15: TMXN5.0 | F15: Tôn XNgọc 5.0 | G15: Mét | H15: 82.86 | I15: 82000 | J15: 6794520 | K15: 0 | L15: 6073690.907 | M15: 6073690.907 | N15: KL | P15: 0
A16: 15 | B16: 2020-04-20 | C16: PX001 | E16: TMXN4.0 | F16: Tôn XNgọc 4.0 | G16: Mét | H16: 20 | I16: 68000 | J16: 1360000 | K16: 0 | L16: 1198983.416 | M16: 1198983.416 | N16: KL | P16: 0
A17: 16 | B17: 2020-04-20 | C17: PX001-TT | F17: Thu tien luon | G17: 0 | H17: 0 | I17: 0 | J17: 0 | K17: 0 | L17: 0 | M17: 0 | N17: KL | O17: 29499920 | P17: 0
A18: 17 | B18: 2020-04-21 | C18: PX002 | E18: HD2550 0.7 | F18: Hộp đen 25x50 (0.7) | G18: Cây | H18: 100 | I18: 80000 | J18: 8000000 | K18: 0 | L18: 7271686.916 | M18: 7271686.916 | N18: KL | P18: 0
A19: 18 | B19: 2020-04-21 | C19: PX002 | E19: MANG30 1.2 6M | F19: Máng cửa sổ 30 (1.2) 6m | G19: Cây | H19: 1 | I19: 192000 | J19: 192000 | K19: 0 | L19: 126063.8298 | M19: 126063.8298 | N19: KL | P19: 0
A20: 19 | B20: 2020-04-21 | C20: PX002 | E20: HK4080 2.0 | F20: Hộp kẽm 40x80(2.0) | G20: Cây | H20: 18 | I20: 375000 | J20: 6750000 | K20: 0 | L20: 6099304.865 | M20: 6099304.865 | N20: KL | P20: 0
A21: 20 | B21: 2020-04-21 | C21: PX002 | E21: CCN48 | F21: Chụp nhựa 48 | G21: Cái | H21: 49 | I21: 1400 | J21: 68600 | K21: 0 | L21: 23160.48913 | M21: 23160.48913 | N21: KL | P21: 0
A22: 21 | B22: 2020-04-21 | C22: PX002 | E22: OK49 1.8 | F22: Ống kẽm 49 (1.8) | G22: Cây | H22: 1 | I22: 222000 | J22: 222000 | K22: 0 | L22: 183582.9268 | M22: 183582.9268 | N22: KL | P22: 0
A23: 22 | B23: 2020-04-21 | C23: PX002 | E23: OK34 1.8 | F23: Ống kẽm 34 (1.8) | G23: Cây | H23: 1 | I23: 120000 | J23: 120000 | K23: 0 | L23: 133515.3846 | M23: 133515.3846 | N23: KL | P23: 0
A24: 23 | B24: 2020-04-21 | C24: PX002 | E24: VK30 1.2 | F24: Vuông kẽm 30 (1.2) | G24: Cây | H24: 11 | I24: 108000 | J24: 1188000 | K24: 0 | L24: 1041444.231 | M24: 1041444.231 | N24: KL | P24: 0
A25: 24 | B25: 2020-04-21 | C25: PX002 | E25: TMXN3.5 | F25: Tôn XNgọc 3.5 | G25: Mét | H25: 3 | I25: 64000 | J25: 192000 | K25: 0 | L25: 154894.3517 | M25: 154894.3517 | N25: KL | P25: 0
A26: 25 | B26: 2020-04-21 | C26: PX002 | E26: HK2040 1.4 | F26: Hộp kẽm 20x40 (1.4) | G26: Cây | H26: 6 | I26: 125000 | J26: 750000 | K26: 0 | L26: 651718.7919 | M26: 651718.7919 | N26: KL | P26: 0
A27: 26 | B27: 2020-04-21 | C27: PX002 | E27: TL5.0 | F27: Tôn Lạnh 5.0 | G27: Mét | H27: 4.4 | I27: 95000 | J27: 418000 | K27: 0 | L27: 334680.9612 | M27: 334680.9612 | N27: KL | P27: 0
A28: 27 | B28: 2020-04-21 | C28: PX002 | E28: V40Đ | F28: V đen 40(Đ) | G28: Cây | H28: 3 | I28: 170000 | J28: 510000 | K28: 0 | L28: 388235.2941 | M28: 388235.2941 | N28: KL | P28: 0
A29: 28 | B29: 2020-04-21 | C29: PX002 | E29: VK40 1.4 | F29: Vuông kẽm 40 (1.4) | G29: Cây | H29: 3 | I29: 165000 | J29: 495000 | K29: 0 | L29: 430285.8033 | M29: 430285.8033 | N29: KL | P29: 0
A30: 29 | B30: 2020-04-21 | C30: PX002 | E30: HK4080 1.4 | F30: Hộp kẽm 40x80 (1.4) | G30: Cây | H30: 4 | I30: 245000 | J30: 980000 | K30: 0 | L30: 872139.5816 | M30: 872139.5816 | N30: KL | P30: 0
A31: 30 | B31: 2020-04-21 | C31: PX002 | E31: NCL | F31: Nẹp tam giác Lớn (8kg) | G31: Cây | H31: 15 | I31: 17000 | J31: 255000 | K31: 0 | L31: 199500 | M31: 199500 | N31: KL | P31: 0
A32: 31 | B32: 2020-04-21 | C32: PX002 | E32: TMXN5.0DA | F32: Tôn XNgọc 5.0 ĐÁ | G32: Mét | H32: 97.5 | I32: 106000 | J32: 10335000 | K32: 0 | L32: 9175627.918 | M32: 9175627.918 | N32: KL | P32: 0
A33: 32 | B33: 2020-04-21 | C33: PX002 | E33: TL5.0 | F33: Tôn Lạnh 5.0 | G33: Mét | H33: 51.6 | I33: 85000 | J33: 4386000 | K33: 0 | L33: 3924894.909 | M33: 3924894.909 | N33: KL | P33: 0
A34: 33 | B34: 2020-04-21 | C34: PX002 | E34: TL3.5 | F34: Tôn Lạnh 3.5 | G34: Mét | H34: 67.5 | I34: 64000 | J34: 4320000 | K34: 0 | L34: 4002750 | M34: 4002750 | N34: KL | P34: 0
A35: 34 | B35: 2020-04-21 | C35: PX002 | E35: TMXN5.0 | F35: Tôn XNgọc 5.0 | G35: Mét | H35: 20 | I35: 84000 | J35: 1680000 | K35: 0 | L35: 1466012.77 | M35: 1466012.77 | N35: KL | P35: 0
A36: 35 | B36: 2020-04-21 | C36: PX002 | E36: TMXN4.0 | F36: Tôn XNgọc 4.0 | G36: Mét | H36: 15.93 | I36: 70000 | J36: 1115100 | K36: 0 | L36: 954990.2908 | M36: 954990.2908 | N36: KL | P36: 0
A37: 36 | B37: 2020-04-21 | C37: PX002 | E37: TMXN4.0 | F37: Tôn XNgọc 4.0 | G37: Mét | H37: 3.6 | I37: 70000 | J37: 252000 | K37: 0 | L37: 215817.0149 | M37: 215817.0149 | N37: KL | P37: 0
A38: 37 | B38: 2020-04-21 | C38: PX002-TT | F38: Thu tien luon | G38: 0 | H38: 0 | I38: 0 | J38: 0 | K38: 0 | L38: 0 | M38: 0 | N38: KL | O38: 42228700 | P38: 0
A39: 38 | B39: 2020-04-22 | C39: PX003 | E39: V40X | F39: V đen 40(X) | G39: Cây | H39: 10 | I39: 127000 | J39: 1270000 | K39: 0 | L39: 973228.9157 | M39: 973228.9157 | N39: KL | P39: 0
A40: 39 | B40: 2020-04-22 | C40: PX003 | E40: TMXN4.0 | F40: Tôn XNgọc 4.0 | G40: Mét | H40: 30 | I40: 70000 | J40: 2100000 | K40: 0 | L40: 1798475.124 | M40: 1798475.124 | N40: KL | P40: 0
A41: 40 | B41: 2020-04-22 | C41: PX003 | E41: TMXN3.5 | F41: Tôn XNgọc 3.5 | G41: Mét | H41: 13.5 | I41: 61000 | J41: 823500 | K41: 0 | L41: 697024.5828 | M41: 697024.5828 | N41: KL | P41: 0
A42: 41 | B42: 2020-04-22 | C42: PX003 | E42: TL4.0 | F42: Tôn Lạnh 4.0 | G42: Mét | H42: 10 | I42: 74000 | J42: 740000 | K42: 0 | L42: 652000 | M42: 652000 | N42: KL | P42: 0
A43: 42 | B43: 2020-04-22 | C43: PX003 | E43: TMXN4.0 | F43: Tôn XNgọc 4.0 | G43: Mét | H43: 4 | I43: 70000 | J43: 280000 | K43: 0 | L43: 239796.6832 | M43: 239796.6832 | N43: KL | P43: 0
A44: 43 | B44: 2020-04-22 | C44: PX003 | E44: TMXN3.0 | F44: Tôn XNgọc 3.0 | G44: Mét | H44: 232.4 | I44: 53000 | J44: 12317200 | K44: 0 | L44: 10797312.3 | M44: 10797312.3 | N44: KL | P44: 0
A45: 44 | B45: 2020-04-22 | C45: PX003 | E45: TL5.0 ĐA | F45: Tole Lạnh 5.0 ĐÁ | G45: Mét | H45: 21.5 | I45: 104000 | J45: 2236000 | K45: 0 | L45: 1905718.423 | M45: 1905718.423 | N45: KL | P45: 0
A46: 45 | B46: 2020-04-22 | C46: PX003 | E46: HK4080 1.4 | F46: Hộp kẽm 40x80 (1.4) | G46: Cây | H46: 14 | I46: 240000 | J46: 3360000 | K46: 0 | L46: 3052488.536 | M46: 3052488.536 | N46: KL | P46: 0
A47: 46 | B47: 2020-04-22 | C47: PX003 | E47: TL3.5 | F47: Tôn Lạnh 3.5 | G47: Mét | H47: 5.99 | I47: 72000 | J47: 431280 | K47: 0 | L47: 355207 | M47: 355207 | N47: KL | P47: 0
A48: 47 | B48: 2020-04-22 | C48: PX003 | E48: HK3060 1.8 | F48: Hộp kẽm 30x60 (1.8) | G48: Cây | H48: 1 | I48: 215000 | J48: 215000 | K48: 0 | L48: 202272.377 | M48: 202272.377 | N48: KL | P48: 0
A49: 48 | B49: 2020-04-22 | C49: PX003 | E49: LC 30 5 | F49: La cứng 30 5li | G49: Cây | H49: 20 | I49: 57000 | J49: 1140000 | K49: 0 | L49: 933513.5135 | M49: 933513.5135 | N49: KL | P49: 0
A50: 49 | B50: 2020-04-22 | C50: PX003 | E50: HK4080 1.4 | F50: Hộp kẽm 40x80 (1.4) | G50: Cây | H50: 6 | I50: 240000 | J50: 1440000 | K50: 0 | L50: 1308209.372 | M50: 1308209.372 | N50: KL | P50: 0
A51: 50 | B51: 2020-04-22 | C51: PX003 | E51: HK2550 1.4 | F51: Hộp kẽm 25x50 (1.4) | G51: Cây | H51: 10 | I51: 154000 | J51: 1540000 | K51: 0 | L51: 1366272.109 | M51: 1366272.109 | N51: KL | P51: 0
A52: 51 | B52: 2020-04-22 | C52: PX003 | E52: HK2550 1.2 | F52: Hộp kẽm 25x50 (1.2) | G52: Cây | H52: 8 | I52: 135000 | J52: 1080000 | K52: 0 | L52: 1005580.165 | M52: 1005580.165 | N52: KL | P52: 0
A53: 52 | B53: 2020-04-22 | C53: PX003 | E53: LC 25 | F53: La cứng 25 | G53: Cây | H53: 2 | I53: 25000 | J53: 50000 | K53: 0 | L53: 45600 | M53: 45600 | N53: KL | P53: 0
A54: 53 | B54: 2020-04-22 | C54: PX003-TT | F54: Thu tien luon | G54: 0 | H54: 0 | I54: 0 | J54: 0 | K54: 0 | L54: 0 | M54: 0 | N54: KL | O54: 29022980 | P54: 0
A55: 54 | B55: 2020-04-23 | C55: PX004 | E55: TMXN5.0 | F55: Tôn XNgọc 5.0 | G55: Mét | H55: 4 | I55: 93000 | J55: 372000 | K55: 0 | L55: 293202.554 | M55: 293202.554 | N55: KL | P55: 0
A56: 55 | B56: 2020-04-23 | C56: PX004 | E56: TMXN5.0DA | F56: Tôn XNgọc 5.0 ĐÁ | G56: Mét | H56: 58.6 | I56: 108000 | J56: 6328800 | K56: 0 | L56: 5514787.651 | M56: 5514787.651 | N56: KL | P56: 0
A57: 56 | B57: 2020-04-23 | C57: PX004 | E57: VK40 1.2 | F57: Vuông kẽm 40 (1.2) | G57: Cây | H57: 5 | I57: 145000 | J57: 725000 | K57: 0 | L57: 641727.7778 | M57: 641727.7778 | N57: KL | P57: 0
A58: 57 | B58: 2020-04-23 | C58: PX004 | E58: HK1326 0.9 | F58: Hộp kẽm 13x26 (0.9) | G58: Cây | H58: 20 | I58: 54000 | J58: 1080000 | K58: 0 | L58: 903315.1751 | M58: 903315.1751 | N58: KL | P58: 0
A59: 58 | B59: 2020-04-23 | C59: PX004 | E59: OK42 1.4 | F59: Ống kẽm 42 (1.4) | G59: Cây | H59: 15 | I59: 137000 | J59: 2055000 | K59: 0 | L59: 1848000 | M59: 1848000 | N59: KL | P59: 0
A60: 59 | B60: 2020-04-23 | C60: PX004 | E60: TMXN3.5 | F60: Tôn XNgọc 3.5 | G60: Mét | H60: 35.6 | I60: 64000 | J60: 2278400 | K60: 0 | L60: 1838079.641 | M60: 1838079.641 | N60: KL | P60: 0
A61: 60 | B61: 2020-04-23 | C61: PX004 | E61: LC 14 | F61: La cứng 14 | G61: Cây | H61: 60 | I61: 10950 | J61: 657000 | K61: 0 | L61: 498257.9767 | M61: 498257.9767 | N61: KL | P61: 0
A62: 61 | B62: 2020-04-23 | C62: PX004 | E62: TMXN3.5 | F62: Tôn XNgọc 3.5 | G62: Mét | H62: 55 | I62: 61000 | J62: 3355000 | K62: 0 | L62: 2839729.782 | M62: 2839729.782 | N62: KL | P62: 0
A63: 62 | B63: 2020-04-23 | C63: PX004 | E63: TL4.5 | F63: Tôn Lạnh 4.5 | G63: Mét | H63: 22 | I63: 79000 | J63: 1738000 | K63: 0 | L63: 1559560.461 | M63: 1559560.461 | N63: KL | P63: 0
A64: 63 | B64: 2020-04-23 | C64: PX004-TT | F64: Thu tien luon | G64: 0 | H64: 0 | I64: 0 | J64: 0 | K64: 0 | L64: 0 | M64: 0 | N64: KL | O64: 18589200 | P64: 0
A65: 64 | B65: 2020-04-24 | C65: PX005 | E65: HK4080 1.8 | F65: Hộp kẽm 40x80 (1.8) | G65: Cây | H65: 4 | I65: 285000 | J65: 1140000 | K65: 0 | L65: 1094623.302 | M65: 1094623.302 | N65: KL | P65: 0
A66: 65 | B66: 2020-04-24 | C66: PX005 | E66: HK3060 1.8 | F66: Hộp kẽm 30x60 (1.8) | G66: Cây | H66: 10 | I66: 215000 | J66: 2150000 | K66: 0 | L66: 2022723.77 | M66: 2022723.77 | N66: KL | P66: 0
A67: 66 | B67: 2020-04-24 | C67: PX005 | E67: MCK 2M | F67: Máng cửa kéo 2m | G67: Cây | H67: 1 | I67: 80000 | J67: 80000 | K67: 0 | L67: 0 | M67: 0 | N67: KL | P67: 0
A68: 67 | B68: 2020-04-24 | C68: PX005 | E68: TMXN3.0 | F68: Tôn XNgọc 3.0 | G68: Mét | H68: 4 | I68: 61000 | J68: 244000 | K68: 0 | L68: 185840.1429 | M68: 185840.1429 | N68: KL | P68: 0
A69: 68 | B69: 2020-04-24 | C69: PX005 | E69: HK4080 1.2 | F69: Hộp kẽm 40x80 (1.2) | G69: Cây | H69: 8 | I69: 215000 | J69: 1720000 | K69: 0 | L69: 1598060 | M69: 1598060 | N69: KL | P69: 0
A70: 69 | B70: 2020-04-24 | C70: PX005 | E70: HK3060 1.2 | F70: Hộp kẽm 30x60 (1.2) | G70: Cây | H70: 1 | I70: 163000 | J70: 163000 | K70: 0 | L70: 146786.4486 | M70: 146786.4486 | N70: KL | P70: 0
A71: 70 | B71: 2020-04-24 | C71: PX005 | E71: TMXN4.5 | F71: Tôn XNgọc 4.5 | G71: Mét | H71: 26 | I71: 78000 | J71: 2028000 | K71: 0 | L71: 1703066.554 | M71: 1703066.554 | N71: KL | P71: 0
A72: 71 | B72: 2020-04-24 | C72: PX005 | E72: TMXN3.5 | F72: Tôn XNgọc 3.5 | G72: Mét | H72: 18.5 | I72: 64000 | J72: 1184000 | K72: 0 | L72: 955181.8357 | M72: 955181.8357 | N72: KL | P72: 0
A73: 72 | B73: 2020-04-24 | C73: PX005 | E73: HK3060 1.3 | F73: Hộp kẽm 30x60 (1.3) | G73: Cây | H73: 10 | I73: 174000 | J73: 1740000 | K73: 0 | L73: 1553530.435 | M73: 1553530.435 | N73: KL | P73: 0
A74: 73 | B74: 2020-04-24 | C74: PX005 | E74: VK30 1.4 | F74: Vuông kẽm 30 (1.4) | G74: Cây | H74: 7 | I74: 125000 | J74: 875000 | K74: 0 | L74: 745761.1864 | M74: 745761.1864 | N74: KL | P74: 0
A75: 74 | B75: 2020-04-24 | C75: PX005 | E75: HK4080 1.4 | F75: Hộp kẽm 40x80 (1.4) | G75: Cây | H75: 10 | I75: 240000 | J75: 2400000 | K75: 0 | L75: 2180348.954 | M75: 2180348.954 | N75: KL | P75: 0
A76: 75 | B76: 2020-04-24 | C76: PX005 | E76: VK30 1.4 | F76: Vuông kẽm 30 (1.4) | G76: Cây | H76: 12 | I76: 122000 | J76: 1464000 | K76: 0 | L76: 1278447.748 | M76: 1278447.748 | N76: KL | P76: 0
A77: 76 | B77: 2020-04-24 | C77: PX005 | E77: HK3060 1.4 | F77: Hộp kẽm 30x60 (1.4) | G77: Cây | H77: 15 | I77: 183000 | J77: 2745000 | K77: 0 | L77: 2445834.112 | M77: 2445834.112 | N77: KL | P77: 0
A78: 77 | B78: 2020-04-24 | C78: PX005 | E78: VK30 1.3 | F78: Vuông kẽm 30 (1.3) | G78: Cây | H78: 3 | I78: 117000 | J78: 351000 | K78: 0 | L78: 333000 | M78: 333000 | N78: KL | P78: 0
A79: 78 | B79: 2020-04-24 | C79: PX005 | E79: HK3060 1.2 | F79: Hộp kẽm 30x60 (1.2) | G79: Cây | H79: 3 | I79: 163000 | J79: 489000 | K79: 0 | L79: 440359.3458 | M79: 440359.3458 | N79: KL | P79: 0
A80: 79 | B80: 2020-04-24 | C80: PX005 | E80: VK30 1.2 | F80: Vuông kẽm 30 (1.2) | G80: Cây | H80: 2 | I80: 110000 | J80: 220000 | K80: 0 | L80: 189353.4965 | M80: 189353.4965 | N80: KL | P80: 0
A81: 80 | B81: 2020-04-24 | C81: PX005 | E81: CNCT | F81: Cách nhiệt Cát Tường | G81: Cuộn | H81: 2 | I81: 1360000 | J81: 2720000 | K81: 0 | L81: 2256000 | M81: 2256000 | N81: KL | P81: 0
A82: 81 | B82: 2020-04-24 | C82: PX005 | E82: TMXN3.5 | F82: Tôn XNgọc 3.5 | G82: Mét | H82: 27.5 | I82: 64000 | J82: 1760000 | K82: 0 | L82: 1419864.891 | M82: 1419864.891 | N82: KL | P82: 0
A83: 82 | B83: 2020-04-24 | C83: PX005 | E83: HK3060 1.3 | F83: Hộp kẽm 30x60 (1.3) | G83: Cây | H83: 10 | I83: 174000 | J83: 1740000 | K83: 0 | L83: 1553530.435 | M83: 1553530.435 | N83: KL | P83: 0
A84: 83 | B84: 2020-04-24 | C84: PX005-TT | F84: Thu tien luon | G84: 0 | H84: 0 | I84: 0 | J84: 0 | K84: 0 | L84: 0 | M84: 0 | N84: KL | O84: 25213000 | P84: 0
A85: 84 | B85: 2020-04-25 | C85: PX006 | E85: VK30 1.3 | F85: Vuông kẽm 30 (1.3) | G85: Cây | H85: 2 | I85: 125000 | J85: 250000 | K85: 0 | L85: 222000 | M85: 222000 | N85: KL | P85: 0
A86: 85 | B86: 2020-04-25 | C86: PX006 | E86: TL3.5 | F86: Tôn Lạnh 3.5 | G86: Mét | H86: 2.5 | I86: 74000 | J86: 185000 | K86: 0 | L86: 148250 | M86: 148250 | N86: KL | P86: 0
A87: 86 | B87: 2020-04-25 | C87: PX006 | E87: TL4.0 | F87: Tôn Lạnh 4.0 | G87: Mét | H87: 45 | I87: 79000 | J87: 3555000 | K87: 0 | L87: 2934000 | M87: 2934000 | N87: KL | P87: 0
A88: 87 | B88: 2020-04-25 | C88: PX006 | E88: VK90 2.0 | F88: Vuông kẽm 90 (2.0) | G88: Cây | H88: 4 | I88: 542000 | J88: 2168000 | K88: 0 | L88: 1950000 | M88: 1950000 | N88: KL | P88: 0
A89: 88 | B89: 2020-04-25 | C89: PX006 | E89: HK3060 1.4 | F89: Hộp kẽm 30x60 (1.4) | G89: Cây | H89: 7 | I89: 186000 | J89: 1302000 | K89: 0 | L89: 1141389.252 | M89: 1141389.252 | N89: KL | P89: 0
A90: 89 | B90: 2020-04-25 | C90: PX006 | E90: HK2040 1.4 | F90: Hộp kẽm 20x40 (1.4) | G90: Cây | H90: 20 | I90: 125000 | J90: 2500000 | K90: 0 | L90: 2172395.973 | M90: 2172395.973 | N90: KL | P90: 0
A91: 90 | B91: 2020-04-25 | C91: PX006 | E91: TMXN4.5 | F91: Tôn XNgọc 4.5 | G91: Mét | H91: 2.25 | I91: 84000 | J91: 189000 | K91: 0 | L91: 147380.7595 | M91: 147380.7595 | N91: KL | P91: 0
A92: 91 | B92: 2020-04-25 | C92: PX006 | E92: HK4080 1.4 | F92: Hộp kẽm 40x80 (1.4) | G92: Cây | H92: 10 | I92: 240000 | J92: 2400000 | K92: 0 | L92: 2180348.954 | M92: 2180348.954 | N92: KL | P92: 0
A93: 92 | B93: 2020-04-25 | C93: PX006 | E93: HK3060 1.4 | F93: Hộp kẽm 30x60 (1.4) | G93: Cây | H93: 10 | I93: 183000 | J93: 1830000 | K93: 0 | L93: 1630556.075 | M93: 1630556.075 | N93: KL | P93: 0
A94: 93 | B94: 2020-04-25 | C94: PX006 | E94: TL5.0 ĐA | F94: Tole Lạnh 5.0 ĐÁ | G94: Mét | H94: 128.7 | I94: 96000 | J94: 12355200 | K94: 0 | L94: 11407719.12 | M94: 11407719.12 | N94: KL | P94: 0
A95: 94 | B95: 2020-04-25 | C95: PX006 | E95: TMXN5.0DA | F95: Tôn XNgọc 5.0 ĐÁ | G95: Mét | H95: 140.8 | I95: 103000 | J95: 14502400 | K95: 0 | L95: 13250547.8 | M95: 13250547.8 | N95: KL | P95: 0
A96: 95 | B96: 2020-04-25 | C96: PX006 | E96: TMXN4.5 | F96: Tôn XNgọc 4.5 | G96: Mét | H96: 5 | I96: 75000 | J96: 375000 | K96: 0 | L96: 327512.7989 | M96: 327512.7989 | N96: KL | P96: 0
A97: 96 | B97: 2020-04-25 | C97: PX006 | E97: TMXN4.0 | F97: Tôn XNgọc 4.0 | G97: Mét | H97: 43.5 | I97: 70000 | J97: 3045000 | K97: 0 | L97: 2607788.93 | M97: 2607788.93 | N97: KL | P97: 0
A98: 97 | B98: 2020-04-25 | C98: PX006 | E98: TMXN3.5 | F98: Tôn XNgọc 3.5 | G98: Mét | H98: 10.5 | I98: 61000 | J98: 640500 | K98: 0 | L98: 542130.2311 | M98: 542130.2311 | N98: KL | P98: 0
A99: 98 | B99: 2020-04-25 | C99: PX006 | E99: TMXN3.0 | F99: Tôn XNgọc 3.0 | G99: Mét | H99: 54 | I99: 55000 | J99: 2970000 | K99: 0 | L99: 2508841.93 | M99: 2508841.93 | N99: KL | P99: 0
A100: 99 | B100: 2020-04-25 | C100: PX006 | E100: TMXN4.0 | F100: Tôn XNgọc 4.0 | G100: Mét | H100: 60 | I100: 68000 | J100: 4080000 | K100: 0 | L100: 3596950.248 | M100: 3596950.248 | N100: KL | P100: 0
A101: 100 | B101: 2020-04-25 | C101: PX006-TT | F101: Thu tien luon | G101: 0 | H101: 0 | I101: 0 | J101: 0 | K101: 0 | L101: 0 | M101: 0 | N101: KL | O101: 52347100 | P101: 0
A102: 101 | B102: 2020-04-26 | C102: PX007 | E102: HK3060 1.8 | F102: Hộp kẽm 30x60 (1.8) | G102: Cây | H102: 4 | I102: 233000 | J102: 932000 | K102: 0 | L102: 809089.5081 | M102: 809089.5081 | N102: KL | P102: 0
A103: 102 | B103: 2020-04-26 | C103: PX007 | E103: V40Đ | F103: V đen 40(Đ) | G103: Cây | H103: 3 | I103: 170000 | J103: 510000 | K103: 0 | L103: 388235.2941 | M103: 388235.2941 | N103: KL | P103: 0
A104: 103 | B104: 2020-04-26 | C104: PX007 | E104: HK1326 1.2 | F104: Hộp kẽm 13x26 (1.2) | G104: Cây | H104: 6 | I104: 72000 | J104: 432000 | K104: 0 | L104: 366457.7629 | M104: 366457.7629 | N104: KL | P104: 0
A105: 104 | B105: 2020-04-26 | C105: PX007 | E105: VK14 1.2 | F105: Vuông kẽm 14 (1.2) | G105: Cây | H105: 6 | I105: 54000 | J105: 324000 | K105: 0 | L105: 269208.1218 | M105: 269208.1218 | N105: KL | P105: 0
A106: 105 | B106: 2020-04-26 | C106: PX007 | E106: LC 16 | F106: La cứng 16 | G106: Cây | H106: 10 | I106: 17000 | J106: 170000 | K106: 0 | L106: 101000 | M106: 101000 | N106: KL | P106: 0
A107: 106 | B107: 2020-04-26 | C107: PX007 | E107: HK4080 2.0 | F107: Hộp kẽm 40x80(2.0) | G107: Cây | H107: 1 | I107: 380000 | J107: 380000 | K107: 0 | L107: 338850.2703 | M107: 338850.2703 | N107: KL | P107: 0
A108: 107 | B108: 2020-04-26 | C108: PX007 | E108: HK3060 1.4 | F108: Hộp kẽm 30x60 (1.4) | G108: Cây | H108: 5 | I108: 186000 | J108: 930000 | K108: 0 | L108: 815278.0374 | M108: 815278.0374 | N108: KL | P108: 0
A109: 108 | B109: 2020-04-26 | C109: PX007 | E109: VK30 1.4 | F109: Vuông kẽm 30 (1.4) | G109: Cây | H109: 3 | I109: 125000 | J109: 375000 | K109: 0 | L109: 319611.937 | M109: 319611.937 | N109: KL | P109: 0
A110: 109 | B110: 2020-04-26 | C110: PX007 | E110: TL3.5 | F110: Tôn Lạnh 3.5 | G110: Mét | H110: 4.4 | I110: 68000 | J110: 299200 | K110: 0 | L110: 260920 | M110: 260920 | N110: KL | P110: 0
A111: 110 | B111: 2020-04-26 | C111: PX007 | E111: HK3060 1.2 | F111: Hộp kẽm 30x60 (1.2) | G111: Cây | H111: 1 | I111: 163000 | J111: 163000 | K111: 0 | L111: 146786.4486 | M111: 146786.4486 | N111: KL | P111: 0
A112: 111 | B112: 2020-04-26 | C112: PX007 | E112: VK30 1.2 | F112: Vuông kẽm 30 (1.2) | G112: Cây | H112: 5 | I112: 107000 | J112: 535000 | K112: 0 | L112: 473383.7413 | M112: 473383.7413 | N112: KL | P112: 0
A113: 112 | B113: 2020-04-26 | C113: PX007 | E113: TMXN4.5 | F113: Tôn XNgọc 4.5 | G113: Mét | H113: 14 | I113: 78000 | J113: 1092000 | K113: 0 | L113: 917035.8368 | M113: 917035.8368 | N113: KL | P113: 0
A114: 113 | B114: 2020-04-26 | C114: PX007 | E114: TL5.0 ĐA | F114: Tole Lạnh 5.0 ĐÁ | G114: Mét | H114: 9.1 | I114: 106000 | J114: 964600 | K114: 0 | L114: 806606.4022 | M114: 806606.4022 | N114: KL | P114: 0
A115: 114 | B115: 2020-04-26 | C115: PX007 | E115: TMXN5.0 | F115: Tôn XNgọc 5.0 | G115: Mét | H115: 61.2 | I115: 94000 | J115: 5752800 | K115: 0 | L115: 4485999.077 | M115: 4485999.077 | N115: KL | P115: 0
A116: 115 | B116: 2020-04-26 | C116: PX007 | E116: TMXN3.0 | F116: Tôn XNgọc 3.0 | G116: Mét | H116: 40.1 | I116: 61000 | J116: 2446100 | K116: 0 | L116: 1863047.433 | M116: 1863047.433 | N116: KL | P116: 0
A117: 116 | B117: 2020-04-26 | C117: PX007 | E117: VK30 1.2 | F117: Vuông kẽm 30 (1.2) | G117: Cây | H117: 3 | I117: 114000 | J117: 342000 | K117: 0 | L117: 284030.2448 | M117: 284030.2448 | N117: KL | P117: 0
A118: 117 | B118: 2020-04-26 | C118: PX007 | E118: TMXN3.0 | F118: Tôn XNgọc 3.0 | G118: Mét | H118: 10.5 | I118: 55000 | J118: 577500 | K118: 0 | L118: 487830.3752 | M118: 487830.3752 | N118: KL | P118: 0
A119: 118 | B119: 2020-04-26 | C119: PX007-TT | F119: Thu tien luon | G119: 0 | H119: 0 | I119: 0 | J119: 0 | K119: 0 | L119: 0 | M119: 0 | N119: KL | O119: 16225200 | P119: 0
A120: 119 | B120: 2020-04-27 | C120: PX008 | E120: HK5010 2.0 | F120: Hộp kẽm 50x100 (2.0) | G120: Cây | H120: 5 | I120: 470000 | J120: 2350000 | K120: 0 | L120: 2058628.571 | M120: 2058628.571 | N120: KL | P120: 0
A121: 120 | B121: 2020-04-27 | C121: PX008 | E121: HK4080 1.4 | F121: Hộp kẽm 40x80 (1.4) | G121: Cây | H121: 20 | I121: 240000 | J121: 4800000 | K121: 0 | L121: 4360697.908 | M121: 4360697.908 | N121: KL | P121: 0
A122: 121 | B122: 2020-04-27 | C122: PX008 | E122: HK3060 1.2 | F122: Hộp kẽm 30x60 (1.2) | G122: Cây | H122: 5 | I122: 163000 | J122: 815000 | K122: 0 | L122: 733932.243 | M122: 733932.243 | N122: KL | P122: 0
A123: 122 | B123: 2020-04-27 | C123: PX008 | E123: VK25 1.2 | F123: Vuông kẽm 25 (1.2) | G123: Cây | H123: 2 | I123: 92000 | J123: 184000 | K123: 0 | L123: 162946.4789 | M123: 162946.4789 | N123: KL | P123: 0
A124: 123 | B124: 2020-04-27 | C124: PX008 | E124: TMXN5.0DA | F124: Tôn XNgọc 5.0 ĐÁ | G124: Mét | H124: 30 | I124: 107000 | J124: 3210000 | K124: 0 | L124: 2823270.129 | M124: 2823270.129 | N124: KL | P124: 0
A125: 124 | B125: 2020-04-27 | C125: PX008 | E125: VK100 1.4 | F125: Vuông kẽm 100 (1.4) | G125: Cây | H125: 7 | I125: 410000 | J125: 2870000 | K125: 0 | L125: 2702311.111 | M125: 2702311.111 | N125: KL | P125: 0
A126: 125 | B126: 2020-04-27 | C126: PX008 | E126: HK3060 1.4 | F126: Hộp kẽm 30x60 (1.4) | G126: Cây | H126: 24 | I126: 183000 | J126: 4392000 | K126: 0 | L126: 3913334.579 | M126: 3913334.579 | N126: KL | P126: 0
A127: 126 | B127: 2020-04-27 | C127: PX008 | E127: HK4080 1.4 | F127: Hộp kẽm 40x80 (1.4) | G127: Cây | H127: 30 | I127: 240000 | J127: 7200000 | K127: 0 | L127: 6541046.862 | M127: 6541046.862 | N127: KL | P127: 0
A128: 127 | B128: 2020-04-27 | C128: PX008 | E128: VK30 1.4 | F128: Vuông kẽm 30 (1.4) | G128: Cây | H128: 85 | I128: 120000 | J128: 10200000 | K128: 0 | L128: 9055671.549 | M128: 9055671.549 | N128: KL | P128: 0
A129: 128 | B129: 2020-04-27 | C129: PX008 | E129: HK5010 1.8 | F129: Hộp kẽm 50x100 (1.8) | G129: Cây | H129: 5 | I129: 374000 | J129: 1870000 | K129: 0 | L129: 1717346.687 | M129: 1717346.687 | N129: KL | P129: 0
A130: 129 | B130: 2020-04-27 | C130: PX008 | E130: VK40 1.4 | F130: Vuông kẽm 40 (1.4) | G130: Cây | H130: 25 | I130: 163000 | J130: 4075000 | K130: 0 | L130: 3585715.028 | M130: 3585715.028 | N130: KL | P130: 0
A131: 130 | B131: 2020-04-27 | C131: PX008 | E131: TMXN4.5DA | F131: Tôn XNgọc 4.5 ĐÁ | G131: Mét | H131: 12.51 | I131: 100000 | J131: 1251000 | K131: 0 | L131: 1067661.957 | M131: 1067661.957 | N131: KL | P131: 0
A132: 131 | B132: 2020-04-27 | C132: PX008 | E132: V25 | F132: V đen25(X) | G132: Cây | H132: 1 | I132: 95000 | J132: 95000 | K132: 0 | L132: 67282.84424 | M132: 67282.84424 | N132: KL | P132: 0
A133: 132 | B133: 2020-04-27 | C133: PX008 | E133: LC 20 | F133: La cứng 20 | G133: Cây | H133: 1 | I133: 22000 | J133: 22000 | K133: 0 | L133: 14100 | M133: 14100 | N133: KL | P133: 0
A134: 133 | B134: 2020-04-27 | C134: PX008 | E134: OK21 1.4 | F134: Ống kẽm 21 (1.4) | G134: Cây | H134: 10 | I134: 75000 | J134: 750000 | K134: 0 | L134: 620909.0909 | M134: 620909.0909 | N134: KL | P134: 0
A135: 134 | B135: 2020-04-27 | C135: PX008 | E135: VK30 1.3 | F135: Vuông kẽm 30 (1.3) | G135: Cây | H135: 4 | I135: 125000 | J135: 500000 | K135: 0 | L135: 444000 | M135: 444000 | N135: KL | P135: 0
A136: 135 | B136: 2020-04-27 | C136: PX008 | E136: LC 30 | F136: La cứng 30 | G136: Cây | H136: 2 | I136: 30000 | J136: 60000 | K136: 0 | L136: 34000 | M136: 34000 | N136: KL | P136: 0
A137: 136 | B137: 2020-04-27 | C137: PX008 | E137: V50T | F137: V đen 50(T) | G137: Cây | H137: 1 | I137: 300000 | J137: 300000 | K137: 0 | L137: 260500 | M137: 260500 | N137: KL | P137: 0
A138: 137 | B138: 2020-04-27 | C138: PX008 | E138: TL5.0 ĐA | F138: Tole Lạnh 5.0 ĐÁ | G138: Mét | H138: 60 | I138: 104000 | J138: 6240000 | K138: 0 | L138: 5318283.971 | M138: 5318283.971 | N138: KL | P138: 0
A139: 138 | B139: 2020-04-27 | C139: PX008 | E139: TMXN5.0DA | F139: Tôn XNgọc 5.0 ĐÁ | G139: Mét | H139: 7.3 | I139: 107000 | J139: 781100 | K139: 0 | L139: 686995.7313 | M139: 686995.7313 | N139: KL | P139: 0
A140: 139 | B140: 2020-04-27 | C140: PX008 | E140: CNCT | F140: Cách nhiệt Cát Tường | G140: Cuộn | H140: 1 | I140: 1360000 | J140: 1360000 | K140: 0 | L140: 1128000 | M140: 1128000 | N140: KL | P140: 0
A141: 140 | B141: 2020-04-27 | C141: PX008 | E141: TMXN5.0DA | F141: Tôn XNgọc 5.0 ĐÁ | G141: Mét | H141: 22.5 | I141: 110000 | J141: 2475000 | K141: 0 | L141: 2117452.596 | M141: 2117452.596 | N141: KL | P141: 0
A142: 141 | B142: 2020-04-27 | C142: PX008 | E142: VK40 1.2 | F142: Vuông kẽm 40 (1.2) | G142: Cây | H142: 3 | I142: 148000 | J142: 444000 | K142: 0 | L142: 385036.6667 | M142: 385036.6667 | N142: KL | P142: 0
A143: 142 | B143: 2020-04-27 | C143: PX008 | E143: HK2040 1.4 | F143: Hộp kẽm 20x40 (1.4) | G143: Cây | H143: 2 | I143: 125000 | J143: 250000 | K143: 0 | L143: 217239.5973 | M143: 217239.5973 | N143: KL | P143: 0
A144: 143 | B144: 2020-04-27 | C144: PX008 | E144: VK20 1.2 | F144: Vuông kẽm 20 (1.2) | G144: Cây | H144: 4 | I144: 75000 | J144: 300000 | K144: 0 | L144: 254562.212 | M144: 254562.212 | N144: KL | P144: 0
A145: 144 | B145: 2020-04-27 | C145: PX008 | E145: VK25 1.2 | F145: Vuông kẽm 25 (1.2) | G145: Cây | H145: 2 | I145: 97000 | J145: 194000 | K145: 0 | L145: 162946.4789 | M145: 162946.4789 | N145: KL | P145: 0
A146: 145 | B146: 2020-04-27 | C146: PX008 | E146: VK30 1.2 | F146: Vuông kẽm 30 (1.2) | G146: Cây | H146: 1 | I146: 114000 | J146: 114000 | K146: 0 | L146: 94676.74825 | M146: 94676.74825 | N146: KL | P146: 0
A147: 146 | B147: 2020-04-27 | C147: PX008 | E147: V25 | F147: V đen25(X) | G147: Cây | H147: 150 | I147: 80000 | J147: 12000000 | K147: 0 | L147: 10092426.64 | M147: 10092426.64 | N147: KL | P147: 0
A148: 147 | B148: 2020-04-27 | C148: PX008 | E148: TL5.0 ĐA | F148: Tole Lạnh 5.0 ĐÁ | G148: Mét | H148: 10 | I148: 104000 | J148: 1040000 | K148: 0 | L148: 886380.6618 | M148: 886380.6618 | N148: KL | P148: 0
A149: 148 | B149: 2020-04-27 | C149: PX008 | E149: HK3060 1.4 | F149: Hộp kẽm 30x60 (1.4) | G149: Cây | H149: 1 | I149: 183000 | J149: 183000 | K149: 0 | L149: 163055.6075 | M149: 163055.6075 | N149: KL | P149: 0
A150: 149 | B150: 2020-04-27 | C150: PX008 | E150: HK2040 1.2 | F150: Hộp kẽm 20x40 (1.2) | G150: Cây | H150: 6 | I150: 108000 | J150: 648000 | K150: 0 | L150: 578076.7908 | M150: 578076.7908 | N150: KL | P150: 0
A151: 150 | B151: 2020-04-27 | C151: PX008 | E151: HK2040 1.2 | F151: Hộp kẽm 20x40 (1.2) | G151: Cây | H151: 1 | I151: 2000 | J151: 2000 | K151: 0 | L151: 96346.13181 | M151: 96346.13181 | N151: KL | P151: 0
A152: 151 | B152: 2020-04-27 | C152: PX008 | E152: CCS24 | F152: Chụp chông sắt 24 | G152: Cái | H152: 13 | I152: 2000 | J152: 26000 | K152: 0 | L152: 6044.809384 | M152: 6044.809384 | N152: KL | P152: 0
A153: 152 | B153: 2020-04-27 | C153: PX008 | E153: BX30 | F153: Bánh xe 30 | G153: Cái | H153: 2 | I153: 12000 | J153: 24000 | K153: 0 | L153: 12107.14286 | M153: 12107.14286 | N153: KL | P153: 0
A154: 153 | B154: 2020-04-27 | C154: PX008-TT | F154: Thu tien luon | G154: 0 | H154: 0 | I154: 0 | J154: 0 | K154: 0 | L154: 0 | M154: 0 | N154: KL | O154: 71025100 | P154: 0
A155: 154 | B155: 2020-04-28 | C155: PX009 | E155: TMXN4.0 | F155: Tôn XNgọc 4.0 | G155: Mét | H155: 75.9 | I155: 73000 | J155: 5540700 | K155: 0 | L155: 4550142.063 | M155: 4550142.063 | N155: KL | P155: 0
A156: 155 | B156: 2020-04-28 | C156: PX009 | E156: VK30 1.4 | F156: Vuông kẽm 30 (1.4) | G156: Cây | H156: 20 | I156: 122000 | J156: 2440000 | K156: 0 | L156: 2130746.247 | M156: 2130746.247 | N156: KL | P156: 0
A157: 156 | B157: 2020-04-28 | C157: PX009 | E157: TMXN5.0 | F157: Tôn XNgọc 5.0 | G157: Mét | H157: 12.75 | I157: 90000 | J157: 1147500 | K157: 0 | L157: 934583.141 | M157: 934583.141 | N157: KL | P157: 0
A158: 157 | B158: 2020-04-28 | C158: PX009 | E158: TMXN4.5 | F158: Tôn XNgọc 4.5 | G158: Mét | H158: 12 | I158: 78000 | J158: 936000 | K158: 0 | L158: 786030.7173 | M158: 786030.7173 | N158: KL | P158: 0
A159: 158 | B159: 2020-04-28 | C159: PX009 | E159: VK30 1.2 | F159: Vuông kẽm 30 (1.2) | G159: Cây | H159: 3 | I159: 110000 | J159: 330000 | K159: 0 | L159: 284030.2448 | M159: 284030.2448 | N159: KL | P159: 0
A160: 159 | B160: 2020-04-28 | C160: PX009 | E160: V40X | F160: V đen 40(X) | G160: Cây | H160: 3 | I160: 125000 | J160: 375000 | K160: 0 | L160: 291968.6747 | M160: 291968.6747 | N160: KL | P160: 0
A161: 160 | B161: 2020-04-28 | C161: PX009 | E161: HK2040 1.4 | F161: Hộp kẽm 20x40 (1.4) | G161: Cây | H161: 14 | I161: 125000 | J161: 1750000 | K161: 0 | L161: 1520677.181 | M161: 1520677.181 | N161: KL | P161: 0
A162: 161 | B162: 2020-04-28 | C162: PX009 | E162: V40X | F162: V đen 40(X) | G162: Cây | H162: 10 | I162: 127000 | J162: 1270000 | K162: 0 | L162: 973228.9157 | M162: 973228.9157 | N162: KL | P162: 0
A163: 162 | B163: 2020-04-28 | C163: PX009 | E163: MANG36 1.2 4M | F163: Máng cửa đi 36 (1.2) 4m | G163: Cây | H163: 1 | I163: 144000 | J163: 144000 | K163: 0 | L163: 109354.8387 | M163: 109354.8387 | N163: KL | P163: 0
A164: 163 | B164: 2020-04-28 | C164: PX009 | E164: BX36 | F164: Bánh xe 36 | G164: Cái | H164: 2 | I164: 12000 | J164: 24000 | K164: 0 | L164: 12307.97546 | M164: 12307.97546 | N164: KL | P164: 0
A165: 164 | B165: 2020-04-28 | C165: PX009 | E165: LC 40 | F165: La cứng 40 | G165: Cây | H165: 1 | I165: 50000 | J165: 50000 | K165: 0 | L165: 26000 | M165: 26000 | N165: KL | P165: 0
A166: 165 | B166: 2020-04-28 | C166: PX009 | E166: TL5.0 | F166: Tôn Lạnh 5.0 | G166: Mét | H166: 3 | I166: 92000 | J166: 276000 | K166: 0 | L166: 228191.5645 | M166: 228191.5645 | N166: KL | P166: 0
A167: 166 | B167: 2020-04-28 | C167: PX009 | E167: TMXN5.0DA | F167: Tôn XNgọc 5.0 ĐÁ | G167: Mét | H167: 25 | I167: 103000 | J167: 2575000 | K167: 0 | L167: 2352725.107 | M167: 2352725.107 | N167: KL | P167: 0
A168: 167 | B168: 2020-04-28 | C168: PX009 | E168: TL5.0 | F168: Tôn Lạnh 5.0 | G168: Mét | H168: 147.2 | I168: 85000 | J168: 12512000 | K168: 0 | L168: 11196599.43 | M168: 11196599.43 | N168: KL | P168: 0
A169: 168 | B169: 2020-04-28 | C169: PX009 | E169: TMXN4.0 | F169: Tôn XNgọc 4.0 | G169: Mét | H169: 12.5 | I169: 70000 | J169: 875000 | K169: 0 | L169: 749364.6349 | M169: 749364.6349 | N169: KL | P169: 0
A170: 169 | B170: 2020-04-28 | C170: PX009 | E170: HK5010 1.8 | F170: Hộp kẽm 50x100 (1.8) | G170: Cây | H170: 1 | I170: 364000 | J170: 364000 | K170: 0 | L170: 343469.3373 | M170: 343469.3373 | N170: KL | P170: 0
A171: 170 | B171: 2020-04-28 | C171: PX009 | E171: TMXN4.5 | F171: Tôn XNgọc 4.5 | G171: Mét | H171: 10.4 | I171: 77500 | J171: 806000 | K171: 0 | L171: 681226.6216 | M171: 681226.6216 | N171: KL | P171: 0
A172: 171 | B172: 2020-04-28 | C172: PX009 | E172: TMXN4.0 | F172: Tôn XNgọc 4.0 | G172: Mét | H172: 12.5 | I172: 70000 | J172: 875000 | K172: 0 | L172: 749364.6349 | M172: 749364.6349 | N172: KL | P172: 0
A173: 172 | B173: 2020-04-28 | C173: PX009-TT | F173: Thu tien luon | G173: 0 | H173: 0 | I173: 0 | J173: 0 | K173: 0 | L173: 0 | M173: 0 | N173: KL | O173: 32290200 | P173: 0
A174: 173 | B174: 2020-04-29 | C174: PX010 | E174: TMXN4.5 | F174: Tôn XNgọc 4.5 | G174: Mét | H174: 18 | I174: 78000 | J174: 1404000 | K174: 0 | L174: 1179046.076 | M174: 1179046.076 | N174: KL | P174: 0
A175: 174 | B175: 2020-04-29 | C175: PX010 | E175: OK90 1.8 | F175: Ống kẽm 90 (1.8) | G175: Cây | H175: 1 | I175: 350000 | J175: 350000 | K175: 0 | L175: 321525 | M175: 321525 | N175: KL | P175: 0
A176: 175 | B176: 2020-04-29 | C176: PX010 | E176: HK4080 1.4 | F176: Hộp kẽm 40x80 (1.4) | G176: Cây | H176: 3 | I176: 240000 | J176: 720000 | K176: 0 | L176: 654104.6862 | M176: 654104.6862 | N176: KL | P176: 0
A177: 176 | B177: 2020-04-29 | C177: PX010 | E177: HK3060 1.4 | F177: Hộp kẽm 30x60 (1.4) | G177: Cây | H177: 27 | I177: 178000 | J177: 4806000 | K177: 0 | L177: 4402501.402 | M177: 4402501.402 | N177: KL | P177: 0
A178: 177 | B178: 2020-04-29 | C178: PX010 | E178: TL5.0 ĐA | F178: Tole Lạnh 5.0 ĐÁ | G178: Mét | H178: 82.2 | I178: 104000 | J178: 8548800 | K178: 0 | L178: 7286049.04 | M178: 7286049.04 | N178: KL | P178: 0
A179: 178 | B179: 2020-04-29 | C179: PX010 | E179: TL3.5 | F179: Tôn Lạnh 3.5 | G179: Mét | H179: 6.5 | I179: 68000 | J179: 442000 | K179: 0 | L179: 385450 | M179: 385450 | N179: KL | P179: 0
A180: 179 | B180: 2020-04-29 | C180: PX010 | E180: HD2550 0.7 | F180: Hộp đen 25x50 (0.7) | G180: Cây | H180: 100 | I180: 80000 | J180: 8000000 | K180: 0 | L180: 7271686.916 | M180: 7271686.916 | N180: KL | P180: 0
A181: 180 | B181: 2020-04-29 | C181: PX010 | E181: HD2550 0.9 | F181: Hộp đen 25x50 (0.9) | G181: Cây | H181: 20 | I181: 106000 | J181: 2120000 | K181: 0 | L181: 1739567.568 | M181: 1739567.568 | N181: KL | P181: 0
A182: 181 | B182: 2020-04-29 | C182: PX010 | E182: MANG30 1.2 4M | F182: Máng cửa sổ 30 (1.2) 4m | G182: Cây | H182: 1 | I182: 120000 | J182: 120000 | K182: 0 | L182: 86871.79487 | M182: 86871.79487 | N182: KL | P182: 0
A183: 182 | B183: 2020-04-29 | C183: PX010 | E183: BX30 | F183: Bánh xe 30 | G183: Cái | H183: 2 | I183: 12000 | J183: 24000 | K183: 0 | L183: 12107.14286 | M183: 12107.14286 | N183: KL | P183: 0
A184: 183 | B184: 2020-04-29 | C184: PX010 | E184: HK4080 1.8 | F184: Hộp kẽm 40x80 (1.8) | G184: Cây | H184: 20 | I184: 302000 | J184: 6040000 | K184: 0 | L184: 5473116.51 | M184: 5473116.51 | N184: KL | P184: 0
A185: 184 | B185: 2020-04-29 | C185: PX010 | E185: HK3060 1.4 | F185: Hộp kẽm 30x60 (1.4) | G185: Cây | H185: 5 | I185: 183000 | J185: 915000 | K185: 0 | L185: 815278.0374 | M185: 815278.0374 | N185: KL | P185: 0
A186: 185 | B186: 2020-04-29 | C186: PX010 | E186: TMXN3.0 | F186: Tôn XNgọc 3.0 | G186: Mét | H186: 7 | I186: 63000 | J186: 441000 | K186: 0 | L186: 325220.2501 | M186: 325220.2501 | N186: KL | P186: 0
A187: 186 | B187: 2020-04-29 | C187: PX010 | E187: TNSV1.0 3.0M | F187: Tôn nhựa sóng vuông (1.0) 3.0m | G187: Tấm | H187: 1 | I187: 255000 | J187: 255000 | K187: 0 | L187: 184285.7143 | M187: 184285.7143 | N187: KL | P187: 0
A188: 187 | B188: 2020-04-29 | C188: PX010 | E188: TMXN4.5 | F188: Tôn XNgọc 4.5 | G188: Mét | H188: 47.7 | I188: 75000 | J188: 3577500 | K188: 0 | L188: 3124472.101 | M188: 3124472.101 | N188: KL | P188: 0
A189: 188 | B189: 2020-04-29 | C189: PX010 | E189: CN5L | F189: Cách nhiệt 5 li | G189: Mét | H189: 42.96 | I189: 20000 | J189: 859200 | K189: 0 | L189: 329360 | M189: 329360 | N189: KL | P189: 0
A190: 189 | B190: 2020-04-29 | C190: PX010 | E190: TL5.0 | F190: Tôn Lạnh 5.0 | G190: Mét | H190: 1.8 | I190: 85000 | J190: 153000 | K190: 0 | L190: 136914.9387 | M190: 136914.9387 | N190: KL | P190: 0
A191: 190 | B191: 2020-04-29 | C191: PX010 | E191: TMXN4.0 | F191: Tôn XNgọc 4.0 | G191: Mét | H191: 13 | I191: 70000 | J191: 910000 | K191: 0 | L191: 779339.2203 | M191: 779339.2203 | N191: KL | P191: 0
A192: 191 | B192: 2020-04-29 | C192: PX010 | E192: TMXN3.0 | F192: Tôn XNgọc 3.0 | G192: Mét | H192: 81.7 | I192: 55000 | J192: 4493500 | K192: 0 | L192: 3795784.92 | M192: 3795784.92 | N192: KL | P192: 0
A193: 192 | B193: 2020-04-29 | C193: PX010 | E193: I100 | F193: I100 | G193: Cây | H193: 2 | I193: 650000 | J193: 1300000 | K193: 0 | L193: 1201611.111 | M193: 1201611.111 | N193: KL | P193: 0
A194: 193 | B194: 2020-04-29 | C194: PX010 | E194: CN10L | F194: Cách nhiệt 10 li | G194: Mét | H194: 60.6 | I194: 21000 | J194: 1272600 | K194: 0 | L194: 792803.154 | M194: 792803.154 | N194: KL | P194: 0
A195: 194 | B195: 2020-04-29 | C195: PX010 | E195: OK60 1.4 | F195: Ống kẽm 60 (1.4) | G195: Cây | H195: 3 | I195: 190000 | J195: 570000 | K195: 0 | L195: 529518.75 | M195: 529518.75 | N195: KL | P195: 0
A196: 195 | B196: 2020-04-29 | C196: PX010-TT | F196: Thu tien luon | G196: 0 | H196: 0 | I196: 0 | J196: 0 | K196: 0 | L196: 0 | M196: 0 | N196: KL | O196: 47321600 | P196: 0
A197: 196 | B197: 2020-05-02 | C197: PX011 | E197: OK90 1.8 | F197: Ống kẽm 90 (1.8) | G197: Cây | H197: 2 | I197: 374000 | J197: 748000 | K197: 0 | L197: 643050 | M197: 643050 | N197: KL | P197: 0
A198: 197 | B198: 2020-05-02 | C198: PX011 | E198: HK4080 1.4 | F198: Hộp kẽm 40x80 (1.4) | G198: Cây | H198: 2 | I198: 245000 | J198: 490000 | K198: 0 | L198: 436069.7908 | M198: 436069.7908 | N198: KL | P198: 0
A199: 198 | B199: 2020-05-02 | C199: PX011 | E199: HK3060 1.4 | F199: Hộp kẽm 30x60 (1.4) | G199: Cây | H199: 11 | I199: 186000 | J199: 2046000 | K199: 0 | L199: 1793611.682 | M199: 1793611.682 | N199: KL | P199: 0
A200: 199 | B200: 2020-05-02 | C200: PX011 | E200: VK30 1.4 | F200: Vuông kẽm 30 (1.4) | G200: Cây | H200: 3 | I200: 125000 | J200: 375000 | K200: 0 | L200: 319611.937 | M200: 319611.937 | N200: KL | P200: 0
... 4801 more rows

Sheet DMHH
A1: STT | B1: MÃ HÀNG | C1: TÊN HÀNG | D1: ĐVT | E1: NHÓM HÀNG | F1: TỒN KHO BẮT ĐẦU KỲ CŨ | J1: TỒN KHO BẮT ĐẦU KỲ MỚI
F2: Số lượng | G2: Đơn giá | H2: Thành tiền | J2: Số lượng | K2: Đơn giá tồn | L2: Thành tiền
A3: 1 | B3: BX30 | C3: Bánh xe 30 | D3: Cái | E3: MT | F3: 54 | G3: 6500 | H3: 351000 | J3: =F3+SUMIF(NHAP!$D$1:$D$5000,B3,NHAP!$G$1:$G$5000)-SUMIF(XUAT!$E$1:$E$5000,B3,XUAT!$H$1:$H$5000) -> 97 | K3: =IF(J3=0,0,L3/J3) -> 6053.571429 | L3: =H3+SUMIF(NHAP!$D$1:$D$5000,DMHH!B3,NHAP!$I$1:$I$5000)-SUMIF(XUAT!$E$1:$E$5000,DMHH!B3,XUAT!$L$1:$L$5000) -> 587196.4286
A4: 2 | B4: BX36 | C4: Bánh xe 36 | D4: Cái | E4: MT | F4: 80 | G4: 6500 | H4: 520000 | J4: =F4+SUMIF(NHAP!$D$1:$D$5000,B4,NHAP!$G$1:$G$5000)-SUMIF(XUAT!$E$1:$E$5000,B4,XUAT!$H$1:$H$5000) -> 94 | K4: =IF(J4=0,0,L4/J4) -> 6153.98773 | L4: =H4+SUMIF(NHAP!$D$1:$D$5000,DMHH!B4,NHAP!$I$1:$I$5000)-SUMIF(XUAT!$E$1:$E$5000,DMHH!B4,XUAT!$L$1:$L$5000) -> 578474.8466
A5: 3 | B5: BX48 | C5: Bánh xe 48 | D5: Cái | E5: MT | F5: 8 | G5: 12000 | H5: 96000 | J5: =F5+SUMIF(NHAP!$D$1:$D$5000,B5,NHAP!$G$1:$G$5000)-SUMIF(XUAT!$E$1:$E$5000,B5,XUAT!$H$1:$H$5000) -> -17 | K5: 12000 | L5: =H5+SUMIF(NHAP!$D$1:$D$5000,DMHH!B5,NHAP!$I$1:$I$5000)-SUMIF(XUAT!$E$1:$E$5000,DMHH!B5,XUAT!$L$1:$L$5000) -> -204000
A6: 4 | B6: BXB | C6: Bánh xe bạc treo | D6: Cái | E6: MT | F6: 45 | G6: 9000 | H6: 405000 | J6: =F6+SUMIF(NHAP!$D$1:$D$5000,B6,NHAP!$G$1:$G$5000)-SUMIF(XUAT!$E$1:$E$5000,B6,XUAT!$H$1:$H$5000) -> 39 | K6: 9000 | L6: =H6+SUMIF(NHAP!$D$1:$D$5000,DMHH!B6,NHAP!$I$1:$I$5000)-SUMIF(XUAT!$E$1:$E$5000,DMHH!B6,XUAT!$L$1:$L$5000) -> 351000
A7: 5 | B7: CCN20 | C7: Chụp nhựa 20 | D7: Cái | E7: CN | F7: 840 | G7: 140 | H7: 117600 | J7: =F7+SUMIF(NHAP!$D$1:$D$5000,B7,NHAP!$G$1:$G$5000)-SUMIF(XUAT!$E$1:$E$5000,B7,XUAT!$H$1:$H$5000) -> 768 | K7: 140 | L7: =H7+SUMIF(NHAP!$D$1:$D$5000,DMHH!B7,NHAP!$I$1:$I$5000)-SUMIF(XUAT!$E$1:$E$5000,DMHH!B7,XUAT!$L$1:$L$5000) -> 107520
A8: 6 | B8: CCN24 | C8: Chụp nhựa 24 | D8: Cái | E8: CN | F8: 183 | G8: 140 | H8: 25620 | J8: =F8+SUMIF(NHAP!$D$1:$D$5000,B8,NHAP!$G$1:$G$5000)-SUMIF(XUAT!$E$1:$E$5000,B8,XUAT!$H$1:$H$5000) -> 141 | K8: 140 | L8: =H8+SUMIF(NHAP!$D$1:$D$5000,DMHH!B8,NHAP!$I$1:$I$5000)-SUMIF(XUAT!$E$1:$E$5000,DMHH!B8,XUAT!$L$1:$L$5000) -> 19740
A9: 7 | B9: CCN25 | C9: Chụp nhựa 25 | D9: Cái | E9: CN | F9: 384 | G9: 160 | H9: 61440 | J9: =F9+SUMIF(NHAP!$D$1:$D$5000,B9,NHAP!$G$1:$G$5000)-SUMIF(XUAT!$E$1:$E$5000,B9,XUAT!$H$1:$H$5000) -> 354 | K9: 160 | L9: =H9+SUMIF(NHAP!$D$1:$D$5000,DMHH!B9,NHAP!$I$1:$I$5000)-SUMIF(XUAT!$E$1:$E$5000,DMHH!B9,XUAT!$L$1:$L$5000) -> 56640
A10: 8 | B10: CCN2550 | C10: Chụp nhựa 2550 | D10: Cái | E10: CN | F10: 445 | G10: 210 | H10: 93450 | J10: =F10+SUMIF(NHAP!$D$1:$D$5000,B10,NHAP!$G$1:$G$5000)-SUMIF(XUAT!$E$1:$E$5000,B10,XUAT!$H$1:$H$5000) -> 445 | K10: 210 | L10: =H10+SUMIF(NHAP!$D$1:$D$5000,DMHH!B10,NHAP!$I$1:$I$5000)-SUMIF(XUAT!$E$1:$E$5000,DMHH!B10,XUAT!$L$1:$L$5000) -> 93450
A11: 9 | B11: CCN30 | C11: Chụp nhựa 30 | D11: Cái | E11: CN | F11: 468 | G11: 180 | H11: 84240 | J11: =F11+SUMIF(NHAP!$D$1:$D$5000,B11,NHAP!$G$1:$G$5000)-SUMIF(XUAT!$E$1:$E$5000,B11,XUAT!$H$1:$H$5000) -> 426 | K11: 180 | L11: =H11+SUMIF(NHAP!$D$1:$D$5000,DMHH!B11,NHAP!$I$1:$I$5000)-SUMIF(XUAT!$E$1:$E$5000,DMHH!B11,XUAT!$L$1:$L$5000) -> 76680
A12: 10 | B12: CCN36 | C12: Chụp nhựa 36 | D12: Cái | E12: CN | F12: 334 | G12: 280 | H12: 93520 | J12: =F12+SUMIF(NHAP!$D$1:$D$5000,B12,NHAP!$G$1:$G$5000)-SUMIF(XUAT!$E$1:$E$5000,B12,XUAT!$H$1:$H$5000) -> 268 | K12: 280 | L12: =H12+SUMIF(NHAP!$D$1:$D$5000,DMHH!B12,NHAP!$I$1:$I$5000)-SUMIF(XUAT!$E$1:$E$5000,DMHH!B12,XUAT!$L$1:$L$5000) -> 75040
A13: 11 | B13: CCN40 | C13: Chụp nhựa 40 | D13: Cái | E13: CN | F13: 426 | G13: 300 | H13: 127800 | J13: =F13+SUMIF(NHAP!$D$1:$D$5000,B13,NHAP!$G$1:$G$5000)-SUMIF(XUAT!$E$1:$E$5000,B13,XUAT!$H$1:$H$5000) -> 326 | K13: 300 | L13: =H13+SUMIF(NHAP!$D$1:$D$5000,DMHH!B13,NHAP!$I$1:$I$5000)-SUMIF(XUAT!$E$1:$E$5000,DMHH!B13,XUAT!$L$1:$L$5000) -> 97800
A14: 12 | B14: CCN48 | C14: Chụp nhựa 48 | D14: Cái | E14: CN | F14: 49 | G14: 480 | H14: 23520 | J14: =F14+SUMIF(NHAP!$D$1:$D$5000,B14,NHAP!$G$1:$G$5000)-SUMIF(XUAT!$E$1:$E$5000,B14,XUAT!$H$1:$H$5000) -> 51 | K14: 472.6630435 | L14: =H14+SUMIF(NHAP!$D$1:$D$5000,DMHH!B14,NHAP!$I$1:$I$5000)-SUMIF(XUAT!$E$1:$E$5000,DMHH!B14,XUAT!$L$1:$L$5000) -> 24105.81522
A15: 13 | B15: CCN50 | C15: Chụp nhựa 50 | D15: Cái | E15: CN | F15: 152 | G15: 500 | H15: 76000 | J15: =F15+SUMIF(NHAP!$D$1:$D$5000,B15,NHAP!$G$1:$G$5000)-SUMIF(XUAT!$E$1:$E$5000,B15,XUAT!$H$1:$H$5000) -> 127 | K15: 500 | L15: =H15+SUMIF(NHAP!$D$1:$D$5000,DMHH!B15,NHAP!$I$1:$I$5000)-SUMIF(XUAT!$E$1:$E$5000,DMHH!B15,XUAT!$L$1:$L$5000) -> 63500
A16: 14 | B16: CCN510 | C16: Chụp nhựa 510 | D16: Cái | E16: CN | F16: 87 | G16: 740 | H16: 64380 | J16: =F16+SUMIF(NHAP!$D$1:$D$5000,B16,NHAP!$G$1:$G$5000)-SUMIF(XUAT!$E$1:$E$5000,B16,XUAT!$H$1:$H$5000) -> 72 | K16: 740 | L16: =H16+SUMIF(NHAP!$D$1:$D$5000,DMHH!B16,NHAP!$I$1:$I$5000)-SUMIF(XUAT!$E$1:$E$5000,DMHH!B16,XUAT!$L$1:$L$5000) -> 53280
A17: 15 | B17: CCN612 | C17: Chụp nhựa 612 | D17: Cái | E17: CN | F17: 57 | G17: 1000 | H17: 57000 | J17: =F17+SUMIF(NHAP!$D$1:$D$5000,B17,NHAP!$G$1:$G$5000)-SUMIF(XUAT!$E$1:$E$5000,B17,XUAT!$H$1:$H$5000) -> 15 | K17: 1000 | L17: =H17+SUMIF(NHAP!$D$1:$D$5000,DMHH!B17,NHAP!$I$1:$I$5000)-SUMIF(XUAT!$E$1:$E$5000,DMHH!B17,XUAT!$L$1:$L$5000) -> 15000
A18: 16 | B18: CCS1326 | C18: Chụp chông sắt 1326 | D18: Cái | E18: CC | F18: 258 | G18: 1000 | H18: 41280 | J18: =F18+SUMIF(NHAP!$D$1:$D$5000,B18,NHAP!$G$1:$G$5000)-SUMIF(XUAT!$E$1:$E$5000,B18,XUAT!$H$1:$H$5000) -> 251 | K18: 160 | L18: =H18+SUMIF(NHAP!$D$1:$D$5000,DMHH!B18,NHAP!$I$1:$I$5000)-SUMIF(XUAT!$E$1:$E$5000,DMHH!B18,XUAT!$L$1:$L$5000) -> 40160
A19: 17 | B19: CCS24 | C19: Chụp chông sắt 24 | D19: Cái | E19: CC | F19: 482 | G19: 1200 | H19: 77120 | J19: =F19+SUMIF(NHAP!$D$1:$D$5000,B19,NHAP!$G$1:$G$5000)-SUMIF(XUAT!$E$1:$E$5000,B19,XUAT!$H$1:$H$5000) -> 376 | K19: 464.9853372 | L19: =H19+SUMIF(NHAP!$D$1:$D$5000,DMHH!B19,NHAP!$I$1:$I$5000)-SUMIF(XUAT!$E$1:$E$5000,DMHH!B19,XUAT!$L$1:$L$5000) -> 174834.4868
A20: 18 | B20: CCS25 | C20: Chụp chông sắt 2550 | D20: Cái | E20: CC | F20: 268 | G20: 1500 | H20: 42880 | J20: =F20+SUMIF(NHAP!$D$1:$D$5000,B20,NHAP!$G$1:$G$5000)-SUMIF(XUAT!$E$1:$E$5000,B20,XUAT!$H$1:$H$5000) -> 256 | K20: 711.2820513 | L20: =H20+SUMIF(NHAP!$D$1:$D$5000,DMHH!B20,NHAP!$I$1:$I$5000)-SUMIF(XUAT!$E$1:$E$5000,DMHH!B20,XUAT!$L$1:$L$5000) -> 182088.2051
A21: 19 | B21: CCS36 | C21: Chụp chông sắt 36 | D21: Cái | E21: CC | F21: 149 | G21: 1800 | H21: 268200 | J21: =F21+SUMIF(NHAP!$D$1:$D$5000,B21,NHAP!$G$1:$G$5000)-SUMIF(XUAT!$E$1:$E$5000,B21,XUAT!$H$1:$H$5000) -> 269 | K21: 1850.167224 | L21: =H21+SUMIF(NHAP!$D$1:$D$5000,DMHH!B21,NHAP!$I$1:$I$5000)-SUMIF(XUAT!$E$1:$E$5000,DMHH!B21,XUAT!$L$1:$L$5000) -> 497694.9833
A22: 20 | B22: CCS48 | C22: Chụp chông sắt 48 | D22: Cái | E22: CC | F22: 21 | G22: 4000 | H22: 37800 | J22: =F22+SUMIF(NHAP!$D$1:$D$5000,B22,NHAP!$G$1:$G$5000)-SUMIF(XUAT!$E$1:$E$5000,B22,XUAT!$H$1:$H$5000) -> 21 | K22: 1800 | L22: =H22+SUMIF(NHAP!$D$1:$D$5000,DMHH!B22,NHAP!$I$1:$I$5000)-SUMIF(XUAT!$E$1:$E$5000,DMHH!B22,XUAT!$L$1:$L$5000) -> 37800
A23: 21 | B23: CKL | C23: Chén kẽm lớn | D23: Kg | E23: CK | F23: 12 | G23: 17000 | H23: 204000 | J23: =F23+SUMIF(NHAP!$D$1:$D$5000,B23,NHAP!$G$1:$G$5000)-SUMIF(XUAT!$E$1:$E$5000,B23,XUAT!$H$1:$H$5000) -> 40 | K23: 16642.85714 | L23: =H23+SUMIF(NHAP!$D$1:$D$5000,DMHH!B23,NHAP!$I$1:$I$5000)-SUMIF(XUAT!$E$1:$E$5000,DMHH!B23,XUAT!$L$1:$L$5000) -> 665714.2857
A24: 22 | B24: CKN | C24: Chén kẽm nhỏ | D24: Kg | E24: CK | F24: 32 | G24: 17000 | H24: 544000 | J24: =F24+SUMIF(NHAP!$D$1:$D$5000,B24,NHAP!$G$1:$G$5000)-SUMIF(XUAT!$E$1:$E$5000,B24,XUAT!$H$1:$H$5000) -> 32 | K24: 17000 | L24: =H24+SUMIF(NHAP!$D$1:$D$5000,DMHH!B24,NHAP!$I$1:$I$5000)-SUMIF(XUAT!$E$1:$E$5000,DMHH!B24,XUAT!$L$1:$L$5000) -> 544000
A25: 23 | B25: CKT | C25: Chén kẽm trung | D25: Kg | E25: CK | F25: 7 | G25: 17000 | H25: 119000 | J25: =F25+SUMIF(NHAP!$D$1:$D$5000,B25,NHAP!$G$1:$G$5000)-SUMIF(XUAT!$E$1:$E$5000,B25,XUAT!$H$1:$H$5000) -> 25.8 | K25: 16594.59459 | L25: =H25+SUMIF(NHAP!$D$1:$D$5000,DMHH!B25,NHAP!$I$1:$I$5000)-SUMIF(XUAT!$E$1:$E$5000,DMHH!B25,XUAT!$L$1:$L$5000) -> 428140.5405
A26: 24 | B26: CN10L | C26: Cách nhiệt 10 li | D26: Mét | E26: CN | F26: 78 | G26: 13500 | H26: 1053000 | J26: =F26+SUMIF(NHAP!$D$1:$D$5000,B26,NHAP!$G$1:$G$5000)-SUMIF(XUAT!$E$1:$E$5000,B26,XUAT!$H$1:$H$5000) -> 324.05 | K26: 13082.5603 | L26: =H26+SUMIF(NHAP!$D$1:$D$5000,DMHH!B26,NHAP!$I$1:$I$5000)-SUMIF(XUAT!$E$1:$E$5000,DMHH!B26,XUAT!$L$1:$L$5000) -> 4239403.664
A27: 25 | B27: CN20L | C27: Cách nhiệt 20 li | D27: Mét | E27: CN | F27: 75 | G27: 27000 | H27: 2025000 | J27: =F27+SUMIF(NHAP!$D$1:$D$5000,B27,NHAP!$G$1:$G$5000)-SUMIF(XUAT!$E$1:$E$5000,B27,XUAT!$H$1:$H$5000) -> 141.4 | K27: 28600 | L27: =H27+SUMIF(NHAP!$D$1:$D$5000,DMHH!B27,NHAP!$I$1:$I$5000)-SUMIF(XUAT!$E$1:$E$5000,DMHH!B27,XUAT!$L$1:$L$5000) -> 4044040
A28: 26 | B28: CN5L | C28: Cách nhiệt 5 li | D28: Mét | E28: CN | F28: 500 | G28: 7500 | H28: 3750000 | J28: =F28+SUMIF(NHAP!$D$1:$D$5000,B28,NHAP!$G$1:$G$5000)-SUMIF(XUAT!$E$1:$E$5000,B28,XUAT!$H$1:$H$5000) -> 468.44 | K28: 7666.666667 | L28: =H28+SUMIF(NHAP!$D$1:$D$5000,DMHH!B28,NHAP!$I$1:$I$5000)-SUMIF(XUAT!$E$1:$E$5000,DMHH!B28,XUAT!$L$1:$L$5000) -> 3591373.333
A29: 27 | B29: CNCT | C29: Cách nhiệt Cát Tường | D29: Cuộn | E29: CN | F29: 21 | G29: 1128000 | H29: 23688000 | J29: =F29+SUMIF(NHAP!$D$1:$D$5000,B29,NHAP!$G$1:$G$5000)-SUMIF(XUAT!$E$1:$E$5000,B29,XUAT!$H$1:$H$5000) -> 5 | K29: 1128000 | L29: =H29+SUMIF(NHAP!$D$1:$D$5000,DMHH!B29,NHAP!$I$1:$I$5000)-SUMIF(XUAT!$E$1:$E$5000,DMHH!B29,XUAT!$L$1:$L$5000) -> 5640000
A30: 28 | B30: CNVN | C30: Cách nhiệt Việt Nhật | D30: Cuộn | E30: CN | J30: =F30+SUMIF(NHAP!$D$1:$D$5000,B30,NHAP!$G$1:$G$5000)-SUMIF(XUAT!$E$1:$E$5000,B30,XUAT!$H$1:$H$5000) -> 0 | K30: 0 | L30: =H30+SUMIF(NHAP!$D$1:$D$5000,DMHH!B30,NHAP!$I$1:$I$5000)-SUMIF(XUAT!$E$1:$E$5000,DMHH!B30,XUAT!$L$1:$L$5000) -> 0
A31: 29 | B31: HD1020 0.6 | C31: Hộp đen 10x20 (0.6) | D31: cây | E31: HD | F31: 230 | G31: 28500 | H31: 6555000 | J31: =F31+SUMIF(NHAP!$D$1:$D$5000,B31,NHAP!$G$1:$G$5000)-SUMIF(XUAT!$E$1:$E$5000,B31,XUAT!$H$1:$H$5000) -> 180 | K31: 28697.36842 | L31: =H31+SUMIF(NHAP!$D$1:$D$5000,DMHH!B31,NHAP!$I$1:$I$5000)-SUMIF(XUAT!$E$1:$E$5000,DMHH!B31,XUAT!$L$1:$L$5000) -> 5165526.316
A32: 30 | B32: HD1020 0.7 | C32: Hộp đen 10x20 (0.7) | D32: Cây | E32: HD | J32: =F32+SUMIF(NHAP!$D$1:$D$5000,B32,NHAP!$G$1:$G$5000)-SUMIF(XUAT!$E$1:$E$5000,B32,XUAT!$H$1:$H$5000) -> 0 | K32: 0 | L32: =H32+SUMIF(NHAP!$D$1:$D$5000,DMHH!B32,NHAP!$I$1:$I$5000)-SUMIF(XUAT!$E$1:$E$5000,DMHH!B32,XUAT!$L$1:$L$5000) -> 0
A33: 31 | B33: HD1326 0.9 | C33: Hộp đen 13x26 (0.9) | D33: Cây | E33: HD | J33: =F33+SUMIF(NHAP!$D$1:$D$5000,B33,NHAP!$G$1:$G$5000)-SUMIF(XUAT!$E$1:$E$5000,B33,XUAT!$H$1:$H$5000) -> 0 | K33: 0 | L33: =H33+SUMIF(NHAP!$D$1:$D$5000,DMHH!B33,NHAP!$I$1:$I$5000)-SUMIF(XUAT!$E$1:$E$5000,DMHH!B33,XUAT!$L$1:$L$5000) -> 0
A34: 32 | B34: HD1326 1.0 | C34: Hộp đen 13x26 (1.0) | D34: Cây | E34: HD | J34: =F34+SUMIF(NHAP!$D$1:$D$5000,B34,NHAP!$G$1:$G$5000)-SUMIF(XUAT!$E$1:$E$5000,B34,XUAT!$H$1:$H$5000) -> 0 | K34: 0 | L34: =H34+SUMIF(NHAP!$D$1:$D$5000,DMHH!B34,NHAP!$I$1:$I$5000)-SUMIF(XUAT!$E$1:$E$5000,DMHH!B34,XUAT!$L$1:$L$5000) -> 0
A35: 33 | B35: HD2040 1.4 | C35: Hộp đen 20x40 (1.4) | D35: Cây | E35: HD | J35: =F35+SUMIF(NHAP!$D$1:$D$5000,B35,NHAP!$G$1:$G$5000)-SUMIF(XUAT!$E$1:$E$5000,B35,XUAT!$H$1:$H$5000) -> 0 | K35: 0 | L35: =H35+SUMIF(NHAP!$D$1:$D$5000,DMHH!B35,NHAP!$I$1:$I$5000)-SUMIF(XUAT!$E$1:$E$5000,DMHH!B35,XUAT!$L$1:$L$5000) -> 0
A36: 34 | B36: HD2550 0.7 | C36: Hộp đen 25x50 (0.7) | D36: Cây | E36: HD | F36: 1513 | G36: 73200 | H36: 110751600 | J36: =F36+SUMIF(NHAP!$D$1:$D$5000,B36,NHAP!$G$1:$G$5000)-SUMIF(XUAT!$E$1:$E$5000,B36,XUAT!$H$1:$H$5000) -> 1117 | K36: 72716.86916 | L36: =H36+SUMIF(NHAP!$D$1:$D$5000,DMHH!B36,NHAP!$I$1:$I$5000)-SUMIF(XUAT!$E$1:$E$5000,DMHH!B36,XUAT!$L$1:$L$5000) -> 81224742.85
A37: 35 | B37: HD2550 0.8 | C37: Hộp đen 25x50 (0.8) | D37: Cây | E37: HD | J37: =F37+SUMIF(NHAP!$D$1:$D$5000,B37,NHAP!$G$1:$G$5000)-SUMIF(XUAT!$E$1:$E$5000,B37,XUAT!$H$1:$H$5000) -> 0 | K37: 0 | L37: =H37+SUMIF(NHAP!$D$1:$D$5000,DMHH!B37,NHAP!$I$1:$I$5000)-SUMIF(XUAT!$E$1:$E$5000,DMHH!B37,XUAT!$L$1:$L$5000) -> 0
A38: 36 | B38: HD2550 0.9 | C38: Hộp đen 25x50 (0.9) | D38: Cây | E38: HD | F38: 20 | G38: 90100 | H38: 1802000 | J38: =F38+SUMIF(NHAP!$D$1:$D$5000,B38,NHAP!$G$1:$G$5000)-SUMIF(XUAT!$E$1:$E$5000,B38,XUAT!$H$1:$H$5000) -> 100 | K38: 86978.37838 | L38: =H38+SUMIF(NHAP!$D$1:$D$5000,DMHH!B38,NHAP!$I$1:$I$5000)-SUMIF(XUAT!$E$1:$E$5000,DMHH!B38,XUAT!$L$1:$L$5000) -> 8697837.838
A39: 37 | B39: HD2550 1.2 | C39: Hộp đen 25x50 (1.2) | D39: Cây | E39: HD | J39: =F39+SUMIF(NHAP!$D$1:$D$5000,B39,NHAP!$G$1:$G$5000)-SUMIF(XUAT!$E$1:$E$5000,B39,XUAT!$H$1:$H$5000) -> 0 | K39: 0 | L39: =H39+SUMIF(NHAP!$D$1:$D$5000,DMHH!B39,NHAP!$I$1:$I$5000)-SUMIF(XUAT!$E$1:$E$5000,DMHH!B39,XUAT!$L$1:$L$5000) -> 0
A40: 38 | B40: HD2550 1.4 | C40: Hộp đen 25x50 (1.4) | D40: Cây | E40: HD | J40: =F40+SUMIF(NHAP!$D$1:$D$5000,B40,NHAP!$G$1:$G$5000)-SUMIF(XUAT!$E$1:$E$5000,B40,XUAT!$H$1:$H$5000) -> 0 | K40: 0 | L40: =H40+SUMIF(NHAP!$D$1:$D$5000,DMHH!B40,NHAP!$I$1:$I$5000)-SUMIF(XUAT!$E$1:$E$5000,DMHH!B40,XUAT!$L$1:$L$5000) -> 0
A41: 39 | B41: HD4080 1.2 | C41: Hộp đen 40x80 (1.2) | D41: Cây | E41: HD | J41: =F41+SUMIF(NHAP!$D$1:$D$5000,B41,NHAP!$G$1:$G$5000)-SUMIF(XUAT!$E$1:$E$5000,B41,XUAT!$H$1:$H$5000) -> 0 | K41: 0 | L41: =H41+SUMIF(NHAP!$D$1:$D$5000,DMHH!B41,NHAP!$I$1:$I$5000)-SUMIF(XUAT!$E$1:$E$5000,DMHH!B41,XUAT!$L$1:$L$5000) -> 0
A42: 40 | B42: HD4080 1.8 | C42: Hộp đen 40x80 (1.8) | D42: Cây | E42: HD | J42: =F42+SUMIF(NHAP!$D$1:$D$5000,B42,NHAP!$G$1:$G$5000)-SUMIF(XUAT!$E$1:$E$5000,B42,XUAT!$H$1:$H$5000) -> 0 | K42: 0 | L42: =H42+SUMIF(NHAP!$D$1:$D$5000,DMHH!B42,NHAP!$I$1:$I$5000)-SUMIF(XUAT!$E$1:$E$5000,DMHH!B42,XUAT!$L$1:$L$5000) -> 0
A43: 41 | B43: HD4080 3.0 | C43: Hộp đen 40x80 (3.0) | D43: Cây | E43: HD | J43: =F43+SUMIF(NHAP!$D$1:$D$5000,B43,NHAP!$G$1:$G$5000)-SUMIF(XUAT!$E$1:$E$5000,B43,XUAT!$H$1:$H$5000) -> 0 | K43: 0 | L43: =H43+SUMIF(NHAP!$D$1:$D$5000,DMHH!B43,NHAP!$I$1:$I$5000)-SUMIF(XUAT!$E$1:$E$5000,DMHH!B43,XUAT!$L$1:$L$5000) -> 0
A44: 42 | B44: HD4590 1.4 | C44: Hộp đen 45x90 (1.4) | D44: Cây | E44: HD | J44: =F44+SUMIF(NHAP!$D$1:$D$5000,B44,NHAP!$G$1:$G$5000)-SUMIF(XUAT!$E$1:$E$5000,B44,XUAT!$H$1:$H$5000) -> 0 | K44: 0 | L44: =H44+SUMIF(NHAP!$D$1:$D$5000,DMHH!B44,NHAP!$I$1:$I$5000)-SUMIF(XUAT!$E$1:$E$5000,DMHH!B44,XUAT!$L$1:$L$5000) -> 0
A45: 43 | B45: HD5010 1.4 | C45: Hộp đen 50x100 (1.4) | D45: Cây | E45: HD | J45: =F45+SUMIF(NHAP!$D$1:$D$5000,B45,NHAP!$G$1:$G$5000)-SUMIF(XUAT!$E$1:$E$5000,B45,XUAT!$H$1:$H$5000) -> 0 | K45: 0 | L45: =H45+SUMIF(NHAP!$D$1:$D$5000,DMHH!B45,NHAP!$I$1:$I$5000)-SUMIF(XUAT!$E$1:$E$5000,DMHH!B45,XUAT!$L$1:$L$5000) -> 0
A46: 44 | B46: HD5010 1.8 | C46: Hộp đen 50x100 (1.8) | D46: Cây | E46: HD | J46: =F46+SUMIF(NHAP!$D$1:$D$5000,B46,NHAP!$G$1:$G$5000)-SUMIF(XUAT!$E$1:$E$5000,B46,XUAT!$H$1:$H$5000) -> 0 | K46: 0 | L46: =H46+SUMIF(NHAP!$D$1:$D$5000,DMHH!B46,NHAP!$I$1:$I$5000)-SUMIF(XUAT!$E$1:$E$5000,DMHH!B46,XUAT!$L$1:$L$5000) -> 0
A47: 45 | B47: HD5010 3.0 | C47: Hộp đen 50x100 (3.0) | D47: Cây | E47: HD | F47: 2 | G47: 592000 | H47: 1184000 | J47: =F47+SUMIF(NHAP!$D$1:$D$5000,B47,NHAP!$G$1:$G$5000)-SUMIF(XUAT!$E$1:$E$5000,B47,XUAT!$H$1:$H$5000) -> 2 | K47: 592000 | L47: =H47+SUMIF(NHAP!$D$1:$D$5000,DMHH!B47,NHAP!$I$1:$I$5000)-SUMIF(XUAT!$E$1:$E$5000,DMHH!B47,XUAT!$L$1:$L$5000) -> 1184000
A48: 46 | B48: HD612 1.4 | C48: Hộp đen 60x120 (1.4) | D48: Cây | E48: HD | J48: =F48+SUMIF(NHAP!$D$1:$D$5000,B48,NHAP!$G$1:$G$5000)-SUMIF(XUAT!$E$1:$E$5000,B48,XUAT!$H$1:$H$5000) -> 0 | K48: 0 | L48: =H48+SUMIF(NHAP!$D$1:$D$5000,DMHH!B48,NHAP!$I$1:$I$5000)-SUMIF(XUAT!$E$1:$E$5000,DMHH!B48,XUAT!$L$1:$L$5000) -> 0
A49: 47 | B49: HD612 1.8 | C49: Hộp đen 60x120 (1.8) | D49: Cây | E49: HD | J49: =F49+SUMIF(NHAP!$D$1:$D$5000,B49,NHAP!$G$1:$G$5000)-SUMIF(XUAT!$E$1:$E$5000,B49,XUAT!$H$1:$H$5000) -> 0 | K49: 0 | L49: =H49+SUMIF(NHAP!$D$1:$D$5000,DMHH!B49,NHAP!$I$1:$I$5000)-SUMIF(XUAT!$E$1:$E$5000,DMHH!B49,XUAT!$L$1:$L$5000) -> 0
A50: 48 | B50: HK1326 0.9 | C50: Hộp kẽm 13x26 (0.9) | D50: Cây | E50: HK | F50: 42 | G50: 47700 | H50: 2003400 | J50: =F50+SUMIF(NHAP!$D$1:$D$5000,B50,NHAP!$G$1:$G$5000)-SUMIF(XUAT!$E$1:$E$5000,B50,XUAT!$H$1:$H$5000) -> 30 | K50: 45165.75875 | L50: =H50+SUMIF(NHAP!$D$1:$D$5000,DMHH!B50,NHAP!$I$1:$I$5000)-SUMIF(XUAT!$E$1:$E$5000,DMHH!B50,XUAT!$L$1:$L$5000) -> 1354972.763
A51: 49 | B51: HK1326 1.0 | C51: Hộp kẽm 13x26 (1.0) | D51: Cây | E51: HK | F51: 42 | G51: 50500 | H51: 2121000 | J51: =F51+SUMIF(NHAP!$D$1:$D$5000,B51,NHAP!$G$1:$G$5000)-SUMIF(XUAT!$E$1:$E$5000,B51,XUAT!$H$1:$H$5000) -> 62 | K51: 49243.66197 | L51: =H51+SUMIF(NHAP!$D$1:$D$5000,DMHH!B51,NHAP!$I$1:$I$5000)-SUMIF(XUAT!$E$1:$E$5000,DMHH!B51,XUAT!$L$1:$L$5000) -> 3053107.042
A52: 50 | B52: HK1326 1.1 | C52: Hộp kẽm 13x26 (1.1) | D52: Cây | E52: HK | F52: 61 | G52: 57100 | H52: 3483100 | J52: =F52+SUMIF(NHAP!$D$1:$D$5000,B52,NHAP!$G$1:$G$5000)-SUMIF(XUAT!$E$1:$E$5000,B52,XUAT!$H$1:$H$5000) -> 79 | K52: 56372.51185 | L52: =H52+SUMIF(NHAP!$D$1:$D$5000,DMHH!B52,NHAP!$I$1:$I$5000)-SUMIF(XUAT!$E$1:$E$5000,DMHH!B52,XUAT!$L$1:$L$5000) -> 4453428.436
A53: 51 | B53: HK1326 1.2 | C53: Hộp kẽm 13x26 (1.2) | D53: Cây | E53: HK | F53: 38 | G53: 63700 | H53: 2420600 | J53: =F53+SUMIF(NHAP!$D$1:$D$5000,B53,NHAP!$G$1:$G$5000)-SUMIF(XUAT!$E$1:$E$5000,B53,XUAT!$H$1:$H$5000) -> 153 | K53: 61076.29382 | L53: =H53+SUMIF(NHAP!$D$1:$D$5000,DMHH!B53,NHAP!$I$1:$I$5000)-SUMIF(XUAT!$E$1:$E$5000,DMHH!B53,XUAT!$L$1:$L$5000) -> 9344672.955
A54: 52 | B54: HK2040 0.9 | C54: Hộp kẽm 20x40 (0.9) | D54: Cây | E54: HK | J54: =F54+SUMIF(NHAP!$D$1:$D$5000,B54,NHAP!$G$1:$G$5000)-SUMIF(XUAT!$E$1:$E$5000,B54,XUAT!$H$1:$H$5000) -> 0 | K54: 0 | L54: =H54+SUMIF(NHAP!$D$1:$D$5000,DMHH!B54,NHAP!$I$1:$I$5000)-SUMIF(XUAT!$E$1:$E$5000,DMHH!B54,XUAT!$L$1:$L$5000) -> 0
A55: 53 | B55: HK2040 1.0 | C55: Hộp kẽm 20x40 (1.0) | D55: Cây | E55: HK | J55: =F55+SUMIF(NHAP!$D$1:$D$5000,B55,NHAP!$G$1:$G$5000)-SUMIF(XUAT!$E$1:$E$5000,B55,XUAT!$H$1:$H$5000) -> 0 | K55: 0 | L55: =H55+SUMIF(NHAP!$D$1:$D$5000,DMHH!B55,NHAP!$I$1:$I$5000)-SUMIF(XUAT!$E$1:$E$5000,DMHH!B55,XUAT!$L$1:$L$5000) -> 0
A56: 54 | B56: HK2040 1.1 | C56: Hộp kẽm 20x40 (1.1) | D56: Cây | E56: HK | J56: =F56+SUMIF(NHAP!$D$1:$D$5000,B56,NHAP!$G$1:$G$5000)-SUMIF(XUAT!$E$1:$E$5000,B56,XUAT!$H$1:$H$5000) -> 0 | K56: 0 | L56: =H56+SUMIF(NHAP!$D$1:$D$5000,DMHH!B56,NHAP!$I$1:$I$5000)-SUMIF(XUAT!$E$1:$E$5000,DMHH!B56,XUAT!$L$1:$L$5000) -> 0
A57: 55 | B57: HK2040 1.2 | C57: Hộp kẽm 20x40 (1.2) | D57: Cây | E57: HK | F57: 52 | G57: 99300 | H57: 5163600 | J57: =F57+SUMIF(NHAP!$D$1:$D$5000,B57,NHAP!$G$1:$G$5000)-SUMIF(XUAT!$E$1:$E$5000,B57,XUAT!$H$1:$H$5000) -> 72 | K57: 96346.13181 | L57: =H57+SUMIF(NHAP!$D$1:$D$5000,DMHH!B57,NHAP!$I$1:$I$5000)-SUMIF(XUAT!$E$1:$E$5000,DMHH!B57,XUAT!$L$1:$L$5000) -> 6936921.49
A58: 56 | B58: HK2040 1.3 | C58: Hộp kẽm 20x40 (1.3) | D58: Cây | E58: HK | J58: =F58+SUMIF(NHAP!$D$1:$D$5000,B58,NHAP!$G$1:$G$5000)-SUMIF(XUAT!$E$1:$E$5000,B58,XUAT!$H$1:$H$5000) -> 39 | K58: 101752 | L58: =H58+SUMIF(NHAP!$D$1:$D$5000,DMHH!B58,NHAP!$I$1:$I$5000)-SUMIF(XUAT!$E$1:$E$5000,DMHH!B58,XUAT!$L$1:$L$5000) -> 3968328
A59: 57 | B59: HK2040 1.4 | C59: Hộp kẽm 20x40 (1.4) | D59: Cây | E59: HK | F59: 48 | G59: 118500 | H59: 5688000 | J59: =F59+SUMIF(NHAP!$D$1:$D$5000,B59,NHAP!$G$1:$G$5000)-SUMIF(XUAT!$E$1:$E$5000,B59,XUAT!$H$1:$H$5000) -> 63 | K59: 108619.7987 | L59: =H59+SUMIF(NHAP!$D$1:$D$5000,DMHH!B59,NHAP!$I$1:$I$5000)-SUMIF(XUAT!$E$1:$E$5000,DMHH!B59,XUAT!$L$1:$L$5000) -> 6843047.315
A60: 58 | B60: HK2040 1.8 | C60: Hộp kẽm 20x40 (1.8) | D60: Cây | E60: HK | J60: =F60+SUMIF(NHAP!$D$1:$D$5000,B60,NHAP!$G$1:$G$5000)-SUMIF(XUAT!$E$1:$E$5000,B60,XUAT!$H$1:$H$5000) -> 0 | K60: 0 | L60: =H60+SUMIF(NHAP!$D$1:$D$5000,DMHH!B60,NHAP!$I$1:$I$5000)-SUMIF(XUAT!$E$1:$E$5000,DMHH!B60,XUAT!$L$1:$L$5000) -> 0
A61: 59 | B61: HK2550 1.1 | C61: Hộp kẽm 25x50 (1.1) | D61: Cây | E61: HK | F61: 1 | G61: 123200 | H61: 123200 | J61: =F61+SUMIF(NHAP!$D$1:$D$5000,B61,NHAP!$G$1:$G$5000)-SUMIF(XUAT!$E$1:$E$5000,B61,XUAT!$H$1:$H$5000) -> 1 | K61: 123200 | L61: =H61+SUMIF(NHAP!$D$1:$D$5000,DMHH!B61,NHAP!$I$1:$I$5000)-SUMIF(XUAT!$E$1:$E$5000,DMHH!B61,XUAT!$L$1:$L$5000) -> 123200
A62: 60 | B62: HK2550 1.2 | C62: Hộp kẽm 25x50 (1.2) | D62: Cây | E62: HK | F62: 56 | G62: 127600 | H62: 7145600 | J62: =F62+SUMIF(NHAP!$D$1:$D$5000,B62,NHAP!$G$1:$G$5000)-SUMIF(XUAT!$E$1:$E$5000,B62,XUAT!$H$1:$H$5000) -> 24 | K62: 125697.5207 | L62: =H62+SUMIF(NHAP!$D$1:$D$5000,DMHH!B62,NHAP!$I$1:$I$5000)-SUMIF(XUAT!$E$1:$E$5000,DMHH!B62,XUAT!$L$1:$L$5000) -> 3016740.496
A63: 61 | B63: HK2550 1.3 | C63: Hộp kẽm 25x50 (1.3) | D63: Cây | E63: HK | J63: =F63+SUMIF(NHAP!$D$1:$D$5000,B63,NHAP!$G$1:$G$5000)-SUMIF(XUAT!$E$1:$E$5000,B63,XUAT!$H$1:$H$5000) -> 0 | K63: 0 | L63: =H63+SUMIF(NHAP!$D$1:$D$5000,DMHH!B63,NHAP!$I$1:$I$5000)-SUMIF(XUAT!$E$1:$E$5000,DMHH!B63,XUAT!$L$1:$L$5000) -> 0
A64: 62 | B64: HK2550 1.4 | C64: Hộp kẽm 25x50 (1.4) | D64: Cây | E64: HK | F64: 47 | G64: 135000 | H64: 6345000 | J64: =F64+SUMIF(NHAP!$D$1:$D$5000,B64,NHAP!$G$1:$G$5000)-SUMIF(XUAT!$E$1:$E$5000,B64,XUAT!$H$1:$H$5000) -> 69 | K64: 136627.2109 | L64: =H64+SUMIF(NHAP!$D$1:$D$5000,DMHH!B64,NHAP!$I$1:$I$5000)-SUMIF(XUAT!$E$1:$E$5000,DMHH!B64,XUAT!$L$1:$L$5000) -> 9427277.551
A65: 63 | B65: HK2550 1.8 | C65: Hộp kẽm 25x50 (1.8) | D65: Cây | E65: HK | F65: 9 | G65: 164600 | H65: 1481400 | J65: =F65+SUMIF(NHAP!$D$1:$D$5000,B65,NHAP!$G$1:$G$5000)-SUMIF(XUAT!$E$1:$E$5000,B65,XUAT!$H$1:$H$5000) -> 0 | K65: 0 | L65: =H65+SUMIF(NHAP!$D$1:$D$5000,DMHH!B65,NHAP!$I$1:$I$5000)-SUMIF(XUAT!$E$1:$E$5000,DMHH!B65,XUAT!$L$1:$L$5000) -> 0
A66: 64 | B66: HK3060 1.1 | C66: Hộp kẽm 30x60 (1.1) | D66: Cây | E66: HK | F66: 1 | G66: 154400 | H66: 154400 | J66: =F66+SUMIF(NHAP!$D$1:$D$5000,B66,NHAP!$G$1:$G$5000)-SUMIF(XUAT!$E$1:$E$5000,B66,XUAT!$H$1:$H$5000) -> 1 | K66: 142590.4762 | L66: =H66+SUMIF(NHAP!$D$1:$D$5000,DMHH!B66,NHAP!$I$1:$I$5000)-SUMIF(XUAT!$E$1:$E$5000,DMHH!B66,XUAT!$L$1:$L$5000) -> 142590.4762
A67: 65 | B67: HK3060 1.2 | C67: Hộp kẽm 30x60 (1.2) | D67: Cây | E67: HK | F67: 68 | G67: 148500 | H67: 10098000 | J67: =F67+SUMIF(NHAP!$D$1:$D$5000,B67,NHAP!$G$1:$G$5000)-SUMIF(XUAT!$E$1:$E$5000,B67,XUAT!$H$1:$H$5000) -> 87 | K67: 146786.4486 | L67: =H67+SUMIF(NHAP!$D$1:$D$5000,DMHH!B67,NHAP!$I$1:$I$5000)-SUMIF(XUAT!$E$1:$E$5000,DMHH!B67,XUAT!$L$1:$L$5000) -> 12770421.03
A68: 66 | B68: HK3060 1.3 | C68: Hộp kẽm 30x60 (1.3) | D68: Cây | E68: HK | F68: 30 | G68: 153200 | H68: 4596000 | J68: =F68+SUMIF(NHAP!$D$1:$D$5000,B68,NHAP!$G$1:$G$5000)-SUMIF(XUAT!$E$1:$E$5000,B68,XUAT!$H$1:$H$5000) -> 41 | K68: =IF(J68=0,0,L68/J68) -> 155353.0435 | L68: =H68+SUMIF(NHAP!$D$1:$D$5000,DMHH!B68,NHAP!$I$1:$I$5000)-SUMIF(XUAT!$E$1:$E$5000,DMHH!B68,XUAT!$L$1:$L$5000) -> 6369474.783
A69: 67 | B69: HK3060 1.4 | C69: Hộp kẽm 30x60 (1.4) | D69: Cây | E69: HK | F69: 69 | G69: 167300 | H69: 11543700 | J69: =F69+SUMIF(NHAP!$D$1:$D$5000,B69,NHAP!$G$1:$G$5000)-SUMIF(XUAT!$E$1:$E$5000,B69,XUAT!$H$1:$H$5000) -> 219 | K69: 163055.6075 | L69: =H69+SUMIF(NHAP!$D$1:$D$5000,DMHH!B69,NHAP!$I$1:$I$5000)-SUMIF(XUAT!$E$1:$E$5000,DMHH!B69,XUAT!$L$1:$L$5000) -> 35709178.04
A70: 68 | B70: HK3060 1.7 | C70: Hộp kẽm 30x60 (1.7) | D70: Cây | E70: HK | F70: 9 | G70: 196600 | H70: 1769400 | J70: =F70+SUMIF(NHAP!$D$1:$D$5000,B70,NHAP!$G$1:$G$5000)-SUMIF(XUAT!$E$1:$E$5000,B70,XUAT!$H$1:$H$5000) -> 29 | K70: 216515.2542 | L70: =H70+SUMIF(NHAP!$D$1:$D$5000,DMHH!B70,NHAP!$I$1:$I$5000)-SUMIF(XUAT!$E$1:$E$5000,DMHH!B70,XUAT!$L$1:$L$5000) -> 6278942.373
A71: 69 | B71: HK3060 1.8 | C71: Hộp kẽm 30x60 (1.8) | D71: Cây | E71: HK | F71: 20 | G71: 204500 | H71: 4090000 | J71: =F71+SUMIF(NHAP!$D$1:$D$5000,B71,NHAP!$G$1:$G$5000)-SUMIF(XUAT!$E$1:$E$5000,B71,XUAT!$H$1:$H$5000) -> 55 | K71: 202272.377 | L71: =H71+SUMIF(NHAP!$D$1:$D$5000,DMHH!B71,NHAP!$I$1:$I$5000)-SUMIF(XUAT!$E$1:$E$5000,DMHH!B71,XUAT!$L$1:$L$5000) -> 11124980.74
A72: 70 | B72: HK3060 2.0 | C72: Hộp kẽm 30x60 (2.0) | D72: Cây | E72: HK | F72: 8 | G72: 251100 | H72: 2008800 | J72: =F72+SUMIF(NHAP!$D$1:$D$5000,B72,NHAP!$G$1:$G$5000)-SUMIF(XUAT!$E$1:$E$5000,B72,XUAT!$H$1:$H$5000) -> 50 | K72: 245412.2449 | L72: =H72+SUMIF(NHAP!$D$1:$D$5000,DMHH!B72,NHAP!$I$1:$I$5000)-SUMIF(XUAT!$E$1:$E$5000,DMHH!B72,XUAT!$L$1:$L$5000) -> 12270612.24
A73: 71 | B73: HK4080 1.1 | C73: Hộp kẽm 40x80 (1.1) | D73: Cây | E73: HK | J73: =F73+SUMIF(NHAP!$D$1:$D$5000,B73,NHAP!$G$1:$G$5000)-SUMIF(XUAT!$E$1:$E$5000,B73,XUAT!$H$1:$H$5000) -> 6 | K73: 174435.8566 | L73: =H73+SUMIF(NHAP!$D$1:$D$5000,DMHH!B73,NHAP!$I$1:$I$5000)-SUMIF(XUAT!$E$1:$E$5000,DMHH!B73,XUAT!$L$1:$L$5000) -> 1046615.139
A74: 72 | B74: HK4080 1.2 | C74: Hộp kẽm 40x80 (1.2) | D74: Cây | E74: HK | F74: 60 | G74: 208300 | H74: 12498000 | J74: =F74+SUMIF(NHAP!$D$1:$D$5000,B74,NHAP!$G$1:$G$5000)-SUMIF(XUAT!$E$1:$E$5000,B74,XUAT!$H$1:$H$5000) -> 46 | K74: 199757.5 | L74: =H74+SUMIF(NHAP!$D$1:$D$5000,DMHH!B74,NHAP!$I$1:$I$5000)-SUMIF(XUAT!$E$1:$E$5000,DMHH!B74,XUAT!$L$1:$L$5000) -> 9188845
A75: 73 | B75: HK4080 1.3 | C75: Hộp kẽm 40x80 (1.3) | D75: Cây | E75: HK | F75: 53 | G75: 205200 | H75: 10875600 | J75: =F75+SUMIF(NHAP!$D$1:$D$5000,B75,NHAP!$G$1:$G$5000)-SUMIF(XUAT!$E$1:$E$5000,B75,XUAT!$H$1:$H$5000) -> 42 | K75: 211300.9709 | L75: =H75+SUMIF(NHAP!$D$1:$D$5000,DMHH!B75,NHAP!$I$1:$I$5000)-SUMIF(XUAT!$E$1:$E$5000,DMHH!B75,XUAT!$L$1:$L$5000) -> 8874640.777
A76: 74 | B76: HK4080 1.4 | C76: Hộp kẽm 40x80 (1.4) | D76: Cây | E76: HK | F76: 70 | G76: 222500 | H76: 15575000 | J76: =F76+SUMIF(NHAP!$D$1:$D$5000,B76,NHAP!$G$1:$G$5000)-SUMIF(XUAT!$E$1:$E$5000,B76,XUAT!$H$1:$H$5000) -> 181 | K76: 218034.8954 | L76: =H76+SUMIF(NHAP!$D$1:$D$5000,DMHH!B76,NHAP!$I$1:$I$5000)-SUMIF(XUAT!$E$1:$E$5000,DMHH!B76,XUAT!$L$1:$L$5000) -> 39464316.07
A77: 75 | B77: HK4080 1.7 | C77: Hộp kẽm 40x80 (1.7) | D77: Cây | E77: HK | F77: 51 | G77: 275500 | H77: 14050500 | J77: =F77+SUMIF(NHAP!$D$1:$D$5000,B77,NHAP!$G$1:$G$5000)-SUMIF(XUAT!$E$1:$E$5000,B77,XUAT!$H$1:$H$5000) -> 54 | K77: 275721.1268 | L77: =H77+SUMIF(NHAP!$D$1:$D$5000,DMHH!B77,NHAP!$I$1:$I$5000)-SUMIF(XUAT!$E$1:$E$5000,DMHH!B77,XUAT!$L$1:$L$5000) -> 14888940.85
A78: 76 | B78: HK4080 1.8 | C78: Hộp kẽm 40x80 (1.8) | D78: Cây | E78: HK | F78: 46 | G78: 269000 | H78: 12374000 | J78: =F78+SUMIF(NHAP!$D$1:$D$5000,B78,NHAP!$G$1:$G$5000)-SUMIF(XUAT!$E$1:$E$5000,B78,XUAT!$H$1:$H$5000) -> 79 | K78: 273655.8255 | L78: =H78+SUMIF(NHAP!$D$1:$D$5000,DMHH!B78,NHAP!$I$1:$I$5000)-SUMIF(XUAT!$E$1:$E$5000,DMHH!B78,XUAT!$L$1:$L$5000) -> 21618810.21
A79: 77 | B79: HK4080 2.0 | C79: Hộp kẽm 40x80(2.0) | D79: Cây | E79: HK | F79: 11 | G79: 332500 | H79: 3657500 | J79: =F79+SUMIF(NHAP!$D$1:$D$5000,B79,NHAP!$G$1:$G$5000)-SUMIF(XUAT!$E$1:$E$5000,B79,XUAT!$H$1:$H$5000) -> 47 | K79: 338850.2703 | L79: =H79+SUMIF(NHAP!$D$1:$D$5000,DMHH!B79,NHAP!$I$1:$I$5000)-SUMIF(XUAT!$E$1:$E$5000,DMHH!B79,XUAT!$L$1:$L$5000) -> 15925962.7
A80: 78 | B80: HK4080 2.5 | C80: Hộp kẽm 40x80 (2.5) | D80: Cây | E80: HK | F80: 4 | G80: 463000 | H80: 1852000 | J80: =F80+SUMIF(NHAP!$D$1:$D$5000,B80,NHAP!$G$1:$G$5000)-SUMIF(XUAT!$E$1:$E$5000,B80,XUAT!$H$1:$H$5000) -> 10 | K80: 451840 | L80: =H80+SUMIF(NHAP!$D$1:$D$5000,DMHH!B80,NHAP!$I$1:$I$5000)-SUMIF(XUAT!$E$1:$E$5000,DMHH!B80,XUAT!$L$1:$L$5000) -> 4518400
A81: 79 | B81: HK5010 1.2 | C81: Hộp kẽm 50x100 (1.2) | D81: Cây | E81: HK | J81: =F81+SUMIF(NHAP!$D$1:$D$5000,B81,NHAP!$G$1:$G$5000)-SUMIF(XUAT!$E$1:$E$5000,B81,XUAT!$H$1:$H$5000) -> 0 | K81: 0 | L81: =H81+SUMIF(NHAP!$D$1:$D$5000,DMHH!B81,NHAP!$I$1:$I$5000)-SUMIF(XUAT!$E$1:$E$5000,DMHH!B81,XUAT!$L$1:$L$5000) -> 0
A82: 80 | B82: HK5010 1.3 | C82: Hộp kẽm 50x100 (1.3) | D82: Cây | E82: HK | F82: 30 | G82: 275600 | H82: 8268000 | J82: =F82+SUMIF(NHAP!$D$1:$D$5000,B82,NHAP!$G$1:$G$5000)-SUMIF(XUAT!$E$1:$E$5000,B82,XUAT!$H$1:$H$5000) -> 15 | K82: 275600 | L82: =H82+SUMIF(NHAP!$D$1:$D$5000,DMHH!B82,NHAP!$I$1:$I$5000)-SUMIF(XUAT!$E$1:$E$5000,DMHH!B82,XUAT!$L$1:$L$5000) -> 4134000
A83: 81 | B83: HK5010 1.4 | C83: Hộp kẽm 50x100 (1.4) | D83: Cây | E83: HK | F83: 10 | G83: 281200 | H83: 2812000 | J83: =F83+SUMIF(NHAP!$D$1:$D$5000,B83,NHAP!$G$1:$G$5000)-SUMIF(XUAT!$E$1:$E$5000,B83,XUAT!$H$1:$H$5000) -> 115 | K83: 275377.6923 | L83: =H83+SUMIF(NHAP!$D$1:$D$5000,DMHH!B83,NHAP!$I$1:$I$5000)-SUMIF(XUAT!$E$1:$E$5000,DMHH!B83,XUAT!$L$1:$L$5000) -> 31668434.62
A84: 82 | B84: HK5010 1.7 | C84: Hộp kẽm 50x100 (1.7) | D84: Cây | E84: HK | F84: 18 | G84: 359000 | H84: 6462000 | J84: =F84+SUMIF(NHAP!$D$1:$D$5000,B84,NHAP!$G$1:$G$5000)-SUMIF(XUAT!$E$1:$E$5000,B84,XUAT!$H$1:$H$5000) -> 25 | K84: 359848.2759 | L84: =H84+SUMIF(NHAP!$D$1:$D$5000,DMHH!B84,NHAP!$I$1:$I$5000)-SUMIF(XUAT!$E$1:$E$5000,DMHH!B84,XUAT!$L$1:$L$5000) -> 8996206.897
A85: 83 | B85: HK5010 1.8 | C85: Hộp kẽm 50x100 (1.8) | D85: Cây | E85: HK | F85: 20 | G85: 354000 | H85: 7080000 | J85: =F85+SUMIF(NHAP!$D$1:$D$5000,B85,NHAP!$G$1:$G$5000)-SUMIF(XUAT!$E$1:$E$5000,B85,XUAT!$H$1:$H$5000) -> 47 | K85: 343469.3373 | L85: =H85+SUMIF(NHAP!$D$1:$D$5000,DMHH!B85,NHAP!$I$1:$I$5000)-SUMIF(XUAT!$E$1:$E$5000,DMHH!B85,XUAT!$L$1:$L$5000) -> 16143058.86
A86: 84 | B86: HK5010 2.0 | C86: Hộp kẽm 50x100 (2.0) | D86: Cây | E86: HK | F86: 4 | G86: 443000 | H86: 1772000 | J86: =F86+SUMIF(NHAP!$D$1:$D$5000,B86,NHAP!$G$1:$G$5000)-SUMIF(XUAT!$E$1:$E$5000,B86,XUAT!$H$1:$H$5000) -> 32 | K86: 411725.7143 | L86: =H86+SUMIF(NHAP!$D$1:$D$5000,DMHH!B86,NHAP!$I$1:$I$5000)-SUMIF(XUAT!$E$1:$E$5000,DMHH!B86,XUAT!$L$1:$L$5000) -> 13175222.86
A87: 85 | B87: HK612 1.4 | C87: Hộp kẽm 60x120 (1.4) | D87: Cây | E87: HK | J87: =F87+SUMIF(NHAP!$D$1:$D$5000,B87,NHAP!$G$1:$G$5000)-SUMIF(XUAT!$E$1:$E$5000,B87,XUAT!$H$1:$H$5000) -> 3 | K87: 340333.3333 | L87: =H87+SUMIF(NHAP!$D$1:$D$5000,DMHH!B87,NHAP!$I$1:$I$5000)-SUMIF(XUAT!$E$1:$E$5000,DMHH!B87,XUAT!$L$1:$L$5000) -> 1021000
A88: 86 | B88: HK612 1.8 | C88: Hộp Kẽm 60x120 (1.8) | D88: Cây | E88: HK | J88: =F88+SUMIF(NHAP!$D$1:$D$5000,B88,NHAP!$G$1:$G$5000)-SUMIF(XUAT!$E$1:$E$5000,B88,XUAT!$H$1:$H$5000) -> 0 | K88: 0 | L88: =H88+SUMIF(NHAP!$D$1:$D$5000,DMHH!B88,NHAP!$I$1:$I$5000)-SUMIF(XUAT!$E$1:$E$5000,DMHH!B88,XUAT!$L$1:$L$5000) -> 0
A89: 87 | B89: HK612 2.0 | C89: Hộp kẽm 60x120 (2.0) | D89: Cây | E89: HK | J89: =F89+SUMIF(NHAP!$D$1:$D$5000,B89,NHAP!$G$1:$G$5000)-SUMIF(XUAT!$E$1:$E$5000,B89,XUAT!$H$1:$H$5000) -> 6 | K89: 530176.4706 | L89: =H89+SUMIF(NHAP!$D$1:$D$5000,DMHH!B89,NHAP!$I$1:$I$5000)-SUMIF(XUAT!$E$1:$E$5000,DMHH!B89,XUAT!$L$1:$L$5000) -> 3181058.824
A90: 88 | B90: HK612 2.5 | C90: Hộp kẽm 60x120 (2.5) | D90: Cây | E90: HK | J90: =F90+SUMIF(NHAP!$D$1:$D$5000,B90,NHAP!$G$1:$G$5000)-SUMIF(XUAT!$E$1:$E$5000,B90,XUAT!$H$1:$H$5000) -> 0 | K90: 0 | L90: =H90+SUMIF(NHAP!$D$1:$D$5000,DMHH!B90,NHAP!$I$1:$I$5000)-SUMIF(XUAT!$E$1:$E$5000,DMHH!B90,XUAT!$L$1:$L$5000) -> 0
A91: 89 | B91: I100 | C91: I100 | D91: Cây | E91: I | F91: 9 | G91: 628000 | H91: 5652000 | J91: =F91+SUMIF(NHAP!$D$1:$D$5000,B91,NHAP!$G$1:$G$5000)-SUMIF(XUAT!$E$1:$E$5000,B91,XUAT!$H$1:$H$5000) -> 8 | K91: 600805.5556 | L91: =H91+SUMIF(NHAP!$D$1:$D$5000,DMHH!B91,NHAP!$I$1:$I$5000)-SUMIF(XUAT!$E$1:$E$5000,DMHH!B91,XUAT!$L$1:$L$5000) -> 4806444.444
A92: 90 | B92: I120 | C92: I 120 | D92: Cây | E92: I | F92: 2 | G92: 790000 | H92: 1580000 | J92: =F92+SUMIF(NHAP!$D$1:$D$5000,B92,NHAP!$G$1:$G$5000)-SUMIF(XUAT!$E$1:$E$5000,B92,XUAT!$H$1:$H$5000) -> 7 | K92: 754130.4348 | L92: =H92+SUMIF(NHAP!$D$1:$D$5000,DMHH!B92,NHAP!$I$1:$I$5000)-SUMIF(XUAT!$E$1:$E$5000,DMHH!B92,XUAT!$L$1:$L$5000) -> 5278913.043
A93: 91 | B93: I150 | C93: I 150 | D93: Cây | E93: I | F93: 6 | G93: 1254000 | H93: 4740000 | J93: =F93+SUMIF(NHAP!$D$1:$D$5000,B93,NHAP!$G$1:$G$5000)-SUMIF(XUAT!$E$1:$E$5000,B93,XUAT!$H$1:$H$5000) -> 6 | K93: 934800 | L93: =H93+SUMIF(NHAP!$D$1:$D$5000,DMHH!B93,NHAP!$I$1:$I$5000)-SUMIF(XUAT!$E$1:$E$5000,DMHH!B93,XUAT!$L$1:$L$5000) -> 5608800
A94: 92 | B94: I150 D | C94: I 150 (Dày) | D94: Cây | E94: I | F94: 10 | G94: 1210000 | H94: 12100000 | J94: =F94+SUMIF(NHAP!$D$1:$D$5000,B94,NHAP!$G$1:$G$5000)-SUMIF(XUAT!$E$1:$E$5000,B94,XUAT!$H$1:$H$5000) -> 10 | K94: 1210000 | L94: =H94+SUMIF(NHAP!$D$1:$D$5000,DMHH!B94,NHAP!$I$1:$I$5000)-SUMIF(XUAT!$E$1:$E$5000,DMHH!B94,XUAT!$L$1:$L$5000) -> 12100000
A95: 93 | B95: I200 | C95: I 200 | D95: Cây | E95: I | J95: =F95+SUMIF(NHAP!$D$1:$D$5000,B95,NHAP!$G$1:$G$5000)-SUMIF(XUAT!$E$1:$E$5000,B95,XUAT!$H$1:$H$5000) -> 0 | K95: 0 | L95: =H95+SUMIF(NHAP!$D$1:$D$5000,DMHH!B95,NHAP!$I$1:$I$5000)-SUMIF(XUAT!$E$1:$E$5000,DMHH!B95,XUAT!$L$1:$L$5000) -> 0
A96: 94 | B96: LA2F | C96: La 2F(2Li3 - 2li5) | D96: kg | E96: La | J96: =F96+SUMIF(NHAP!$D$1:$D$5000,B96,NHAP!$G$1:$G$5000)-SUMIF(XUAT!$E$1:$E$5000,B96,XUAT!$H$1:$H$5000) -> 0 | K96: 0 | L96: =H96+SUMIF(NHAP!$D$1:$D$5000,DMHH!B96,NHAP!$I$1:$I$5000)-SUMIF(XUAT!$E$1:$E$5000,DMHH!B96,XUAT!$L$1:$L$5000) -> 0
A97: 95 | B97: LA3F | C97: La 3F (2Li3) | D97: kg | E97: La | J97: =F97+SUMIF(NHAP!$D$1:$D$5000,B97,NHAP!$G$1:$G$5000)-SUMIF(XUAT!$E$1:$E$5000,B97,XUAT!$H$1:$H$5000) -> 0 | K97: 0 | L97: =H97+SUMIF(NHAP!$D$1:$D$5000,DMHH!B97,NHAP!$I$1:$I$5000)-SUMIF(XUAT!$E$1:$E$5000,DMHH!B97,XUAT!$L$1:$L$5000) -> 0
A98: 96 | B98: LC 14 | C98: La cứng 14 | D98: Cây | E98: LC | F98: 277 | G98: 9000 | H98: 2493000 | J98: =F98+SUMIF(NHAP!$D$1:$D$5000,B98,NHAP!$G$1:$G$5000)-SUMIF(XUAT!$E$1:$E$5000,B98,XUAT!$H$1:$H$5000) -> 649 | K98: 8304.299611 | L98: =H98+SUMIF(NHAP!$D$1:$D$5000,DMHH!B98,NHAP!$I$1:$I$5000)-SUMIF(XUAT!$E$1:$E$5000,DMHH!B98,XUAT!$L$1:$L$5000) -> 5389490.447
A99: 97 | B99: LC 16 | C99: La cứng 16 | D99: Cây | E99: LC | F99: 23 | G99: 10100 | H99: 232300 | J99: =F99+SUMIF(NHAP!$D$1:$D$5000,B99,NHAP!$G$1:$G$5000)-SUMIF(XUAT!$E$1:$E$5000,B99,XUAT!$H$1:$H$5000) -> -57 | K99: 10100 | L99: =H99+SUMIF(NHAP!$D$1:$D$5000,DMHH!B99,NHAP!$I$1:$I$5000)-SUMIF(XUAT!$E$1:$E$5000,DMHH!B99,XUAT!$L$1:$L$5000) -> -575700
A100: 98 | B100: LC 18 | C100: La cứng 18 | D100: Cây | E100: LC | F100: 87 | G100: 14000 | H100: 1218000 | J100: =F100+SUMIF(NHAP!$D$1:$D$5000,B100,NHAP!$G$1:$G$5000)-SUMIF(XUAT!$E$1:$E$5000,B100,XUAT!$H$1:$H$5000) -> 84 | K100: 14000 | L100: =H100+SUMIF(NHAP!$D$1:$D$5000,DMHH!B100,NHAP!$I$1:$I$5000)-SUMIF(XUAT!$E$1:$E$5000,DMHH!B100,XUAT!$L$1:$L$5000) -> 1176000
A101: 99 | B101: LC 20 | C101: La cứng 20 | D101: Cây | E101: LC | F101: 103 | G101: 14100 | H101: 1452300 | J101: =F101+SUMIF(NHAP!$D$1:$D$5000,B101,NHAP!$G$1:$G$5000)-SUMIF(XUAT!$E$1:$E$5000,B101,XUAT!$H$1:$H$5000) -> 59 | K101: 14100 | L101: =H101+SUMIF(NHAP!$D$1:$D$5000,DMHH!B101,NHAP!$I$1:$I$5000)-SUMIF(XUAT!$E$1:$E$5000,DMHH!B101,XUAT!$L$1:$L$5000) -> 831900
A102: 100 | B102: LC 20 10 | C102: La cứng 20 10li | D102: Cây | E102: LC | F102: 16 | G102: 70000 | H102: 1120000 | J102: =F102+SUMIF(NHAP!$D$1:$D$5000,B102,NHAP!$G$1:$G$5000)-SUMIF(XUAT!$E$1:$E$5000,B102,XUAT!$H$1:$H$5000) -> 16 | K102: 70000 | L102: =H102+SUMIF(NHAP!$D$1:$D$5000,DMHH!B102,NHAP!$I$1:$I$5000)-SUMIF(XUAT!$E$1:$E$5000,DMHH!B102,XUAT!$L$1:$L$5000) -> 1120000
A103: 101 | B103: LC 20 5 | C103: La cứng 20 5li | D103: Cây | E103: LC | F103: 9 | G103: 22800 | H103: 205200 | J103: =F103+SUMIF(NHAP!$D$1:$D$5000,B103,NHAP!$G$1:$G$5000)-SUMIF(XUAT!$E$1:$E$5000,B103,XUAT!$H$1:$H$5000) -> 6 | K103: 22800 | L103: =H103+SUMIF(NHAP!$D$1:$D$5000,DMHH!B103,NHAP!$I$1:$I$5000)-SUMIF(XUAT!$E$1:$E$5000,DMHH!B103,XUAT!$L$1:$L$5000) -> 136800
A104: 102 | B104: LC 25 | C104: La cứng 25 | D104: Cây | E104: LC | F104: 30 | G104: 22800 | H104: 684000 | J104: =F104+SUMIF(NHAP!$D$1:$D$5000,B104,NHAP!$G$1:$G$5000)-SUMIF(XUAT!$E$1:$E$5000,B104,XUAT!$H$1:$H$5000) -> 15 | K104: 22800 | L104: =H104+SUMIF(NHAP!$D$1:$D$5000,DMHH!B104,NHAP!$I$1:$I$5000)-SUMIF(XUAT!$E$1:$E$5000,DMHH!B104,XUAT!$L$1:$L$5000) -> 342000
A105: 103 | B105: LC 25 10 | C105: La cứng 25 10li | D105: Cây | E105: LC | J105: =F105+SUMIF(NHAP!$D$1:$D$5000,B105,NHAP!$G$1:$G$5000)-SUMIF(XUAT!$E$1:$E$5000,B105,XUAT!$H$1:$H$5000) -> 0 | K105: 0 | L105: =H105+SUMIF(NHAP!$D$1:$D$5000,DMHH!B105,NHAP!$I$1:$I$5000)-SUMIF(XUAT!$E$1:$E$5000,DMHH!B105,XUAT!$L$1:$L$5000) -> 0
A106: 104 | B106: LC 25 5 | C106: La cứng 25 5li | D106: Cây | E106: LC | F106: 13 | G106: 32000 | H106: 416000 | J106: =F106+SUMIF(NHAP!$D$1:$D$5000,B106,NHAP!$G$1:$G$5000)-SUMIF(XUAT!$E$1:$E$5000,B106,XUAT!$H$1:$H$5000) -> 13 | K106: 32000 | L106: =H106+SUMIF(NHAP!$D$1:$D$5000,DMHH!B106,NHAP!$I$1:$I$5000)-SUMIF(XUAT!$E$1:$E$5000,DMHH!B106,XUAT!$L$1:$L$5000) -> 416000
A107: 105 | B107: LC 30 | C107: La cứng 30 | D107: Cây | E107: LC | F107: 61 | G107: 17000 | H107: 1037000 | J107: =F107+SUMIF(NHAP!$D$1:$D$5000,B107,NHAP!$G$1:$G$5000)-SUMIF(XUAT!$E$1:$E$5000,B107,XUAT!$H$1:$H$5000) -> 11 | K107: 17000 | L107: =H107+SUMIF(NHAP!$D$1:$D$5000,DMHH!B107,NHAP!$I$1:$I$5000)-SUMIF(XUAT!$E$1:$E$5000,DMHH!B107,XUAT!$L$1:$L$5000) -> 187000
A108: 106 | B108: LC 30 4 | C108: La cứng 30 4li | D108: Cây | E108: LC | F108: 2 | G108: 38000 | H108: 76000 | J108: =F108+SUMIF(NHAP!$D$1:$D$5000,B108,NHAP!$G$1:$G$5000)-SUMIF(XUAT!$E$1:$E$5000,B108,XUAT!$H$1:$H$5000) -> 1 | K108: 38000 | L108: =H108+SUMIF(NHAP!$D$1:$D$5000,DMHH!B108,NHAP!$I$1:$I$5000)-SUMIF(XUAT!$E$1:$E$5000,DMHH!B108,XUAT!$L$1:$L$5000) -> 38000
A109: 107 | B109: LC 30 5 | C109: La cứng 30 5li | D109: Cây | E109: LC | F109: 7 | G109: 55000 | H109: 385000 | J109: =F109+SUMIF(NHAP!$D$1:$D$5000,B109,NHAP!$G$1:$G$5000)-SUMIF(XUAT!$E$1:$E$5000,B109,XUAT!$H$1:$H$5000) -> 1 | K109: 46675.67568 | L109: =H109+SUMIF(NHAP!$D$1:$D$5000,DMHH!B109,NHAP!$I$1:$I$5000)-SUMIF(XUAT!$E$1:$E$5000,DMHH!B109,XUAT!$L$1:$L$5000) -> 46675.67568
A110: 108 | B110: LC 40 | C110: La cứng 40 | D110: Cây | E110: LC | F110: 34 | G110: 26000 | H110: 884000 | J110: =F110+SUMIF(NHAP!$D$1:$D$5000,B110,NHAP!$G$1:$G$5000)-SUMIF(XUAT!$E$1:$E$5000,B110,XUAT!$H$1:$H$5000) -> 27 | K110: 26000 | L110: =H110+SUMIF(NHAP!$D$1:$D$5000,DMHH!B110,NHAP!$I$1:$I$5000)-SUMIF(XUAT!$E$1:$E$5000,DMHH!B110,XUAT!$L$1:$L$5000) -> 702000
A111: 109 | B111: LC 40 4 | C111: La cứng 40 4li | D111: Cây | E111: LC | F111: 9 | G111: 62000 | H111: 558000 | J111: =F111+SUMIF(NHAP!$D$1:$D$5000,B111,NHAP!$G$1:$G$5000)-SUMIF(XUAT!$E$1:$E$5000,B111,XUAT!$H$1:$H$5000) -> 3 | K111: 62000 | L111: =H111+SUMIF(NHAP!$D$1:$D$5000,DMHH!B111,NHAP!$I$1:$I$5000)-SUMIF(XUAT!$E$1:$E$5000,DMHH!B111,XUAT!$L$1:$L$5000) -> 186000
A112: 110 | B112: LC 40 5 | C112: La cứng 40 5li | D112: Cây | E112: LC | F112: 1 | G112: 65500 | H112: 65500 | J112: =F112+SUMIF(NHAP!$D$1:$D$5000,B112,NHAP!$G$1:$G$5000)-SUMIF(XUAT!$E$1:$E$5000,B112,XUAT!$H$1:$H$5000) -> 1 | K112: 67227.27273 | L112: =H112+SUMIF(NHAP!$D$1:$D$5000,DMHH!B112,NHAP!$I$1:$I$5000)-SUMIF(XUAT!$E$1:$E$5000,DMHH!B112,XUAT!$L$1:$L$5000) -> 67227.27273
A113: 111 | B113: LC 40 6 | C113: La cứng 40 6li | D113: Cây | E113: LC | F113: 5 | G113: 93000 | H113: 465000 | J113: =F113+SUMIF(NHAP!$D$1:$D$5000,B113,NHAP!$G$1:$G$5000)-SUMIF(XUAT!$E$1:$E$5000,B113,XUAT!$H$1:$H$5000) -> 1 | K113: 93000 | L113: =H113+SUMIF(NHAP!$D$1:$D$5000,DMHH!B113,NHAP!$I$1:$I$5000)-SUMIF(XUAT!$E$1:$E$5000,DMHH!B113,XUAT!$L$1:$L$5000) -> 93000
A114: 112 | B114: LC 40 8 | C114: La cứng 40 8li | D114: Cây | E114: LC | F114: 10 | G114: 105600 | H114: 1056000 | J114: =F114+SUMIF(NHAP!$D$1:$D$5000,B114,NHAP!$G$1:$G$5000)-SUMIF(XUAT!$E$1:$E$5000,B114,XUAT!$H$1:$H$5000) -> 10 | K114: 105600 | L114: =H114+SUMIF(NHAP!$D$1:$D$5000,DMHH!B114,NHAP!$I$1:$I$5000)-SUMIF(XUAT!$E$1:$E$5000,DMHH!B114,XUAT!$L$1:$L$5000) -> 1056000
A115: 113 | B115: LC 50 | C115: La cứng 50 | D115: Cây | E115: LC | F115: 1 | G115: 35000 | H115: 35000 | J115: =F115+SUMIF(NHAP!$D$1:$D$5000,B115,NHAP!$G$1:$G$5000)-SUMIF(XUAT!$E$1:$E$5000,B115,XUAT!$H$1:$H$5000) -> 1 | K115: 35000 | L115: =H115+SUMIF(NHAP!$D$1:$D$5000,DMHH!B115,NHAP!$I$1:$I$5000)-SUMIF(XUAT!$E$1:$E$5000,DMHH!B115,XUAT!$L$1:$L$5000) -> 35000
A116: 114 | B116: LC 50 5 | C116: La cứng 50 5li | D116: Cây | E116: LC | F116: 13 | G116: 86000 | H116: 1118000 | J116: =F116+SUMIF(NHAP!$D$1:$D$5000,B116,NHAP!$G$1:$G$5000)-SUMIF(XUAT!$E$1:$E$5000,B116,XUAT!$H$1:$H$5000) -> 9 | K116: 86000 | L116: =H116+SUMIF(NHAP!$D$1:$D$5000,DMHH!B116,NHAP!$I$1:$I$5000)-SUMIF(XUAT!$E$1:$E$5000,DMHH!B116,XUAT!$L$1:$L$5000) -> 774000
A117: 115 | B117: LC 60 5 | C117: La cứng 60 5li | D117: Cây | E117: LC | F117: 8 | G117: 60200 | H117: 481600 | J117: =F117+SUMIF(NHAP!$D$1:$D$5000,B117,NHAP!$G$1:$G$5000)-SUMIF(XUAT!$E$1:$E$5000,B117,XUAT!$H$1:$H$5000) -> 8 | K117: 60200 | L117: =H117+SUMIF(NHAP!$D$1:$D$5000,DMHH!B117,NHAP!$I$1:$I$5000)-SUMIF(XUAT!$E$1:$E$5000,DMHH!B117,XUAT!$L$1:$L$5000) -> 481600
A118: 116 | B118: LCK 2.0M | C118: Lá cửa kéo 2.0m | D118: Lá | E118: LCK | F118: 128 | J118: =F118+SUMIF(NHAP!$D$1:$D$5000,B118,NHAP!$G$1:$G$5000)-SUMIF(XUAT!$E$1:$E$5000,B118,XUAT!$H$1:$H$5000) -> 128 | K118: 0 | L118: =H118+SUMIF(NHAP!$D$1:$D$5000,DMHH!B118,NHAP!$I$1:$I$5000)-SUMIF(XUAT!$E$1:$E$5000,DMHH!B118,XUAT!$L$1:$L$5000) -> 0
A119: 117 | B119: LCK 2.5M | C119: Lá cửa kéo 2.5m | D119: Lá | E119: LCK | F119: 142 | J119: =F119+SUMIF(NHAP!$D$1:$D$5000,B119,NHAP!$G$1:$G$5000)-SUMIF(XUAT!$E$1:$E$5000,B119,XUAT!$H$1:$H$5000) -> 142 | K119: 0 | L119: =H119+SUMIF(NHAP!$D$1:$D$5000,DMHH!B119,NHAP!$I$1:$I$5000)-SUMIF(XUAT!$E$1:$E$5000,DMHH!B119,XUAT!$L$1:$L$5000) -> 0
A120: 118 | B120: MANG30 1.2 4M | C120: Máng cửa sổ 30 (1.2) 4m | D120: Cây | E120: MT | F120: 18 | G120: 90000 | H120: 1620000 | J120: =F120+SUMIF(NHAP!$D$1:$D$5000,B120,NHAP!$G$1:$G$5000)-SUMIF(XUAT!$E$1:$E$5000,B120,XUAT!$H$1:$H$5000) -> 11 | K120: 86871.79487 | L120: =H120+SUMIF(NHAP!$D$1:$D$5000,DMHH!B120,NHAP!$I$1:$I$5000)-SUMIF(XUAT!$E$1:$E$5000,DMHH!B120,XUAT!$L$1:$L$5000) -> 955589.7436
A121: 119 | B121: MANG30 1.2 5M | C121: Máng cửa sổ 30 (1.2) 5m | D121: Cây | E121: MT | F121: 16 | G121: 112500 | H121: 1800000 | J121: =F121+SUMIF(NHAP!$D$1:$D$5000,B121,NHAP!$G$1:$G$5000)-SUMIF(XUAT!$E$1:$E$5000,B121,XUAT!$H$1:$H$5000) -> 20 | K121: 106944.4444 | L121: =H121+SUMIF(NHAP!$D$1:$D$5000,DMHH!B121,NHAP!$I$1:$I$5000)-SUMIF(XUAT!$E$1:$E$5000,DMHH!B121,XUAT!$L$1:$L$5000) -> 2138888.889
A122: 120 | B122: MANG30 1.2 6M | C122: Máng cửa sổ 30 (1.2) 6m | D122: Cây | E122: MT | F122: 24 | G122: 135000 | H122: 3240000 | J122: =F122+SUMIF(NHAP!$D$1:$D$5000,B122,NHAP!$G$1:$G$5000)-SUMIF(XUAT!$E$1:$E$5000,B122,XUAT!$H$1:$H$5000) -> 25 | K122: 126063.8298 | L122: =H122+SUMIF(NHAP!$D$1:$D$5000,DMHH!B122,NHAP!$I$1:$I$5000)-SUMIF(XUAT!$E$1:$E$5000,DMHH!B122,XUAT!$L$1:$L$5000) -> 3151595.745
A123: 121 | B123: MANG36 1.2 4M | C123: Máng cửa đi 36 (1.2) 4m | D123: Cây | E123: MT | F123: 11 | G123: 130000 | H123: 1430000 | J123: =F123+SUMIF(NHAP!$D$1:$D$5000,B123,NHAP!$G$1:$G$5000)-SUMIF(XUAT!$E$1:$E$5000,B123,XUAT!$H$1:$H$5000) -> 21 | K123: 109354.8387 | L123: =H123+SUMIF(NHAP!$D$1:$D$5000,DMHH!B123,NHAP!$I$1:$I$5000)-SUMIF(XUAT!$E$1:$E$5000,DMHH!B123,XUAT!$L$1:$L$5000) -> 2296451.613
A124: 122 | B124: MANG36 1.2 5M | C124: Máng cửa đi 36 (1.2) 5m | D124: Cây | E124: MT | F124: 18 | G124: 150000 | H124: 2700000 | J124: =F124+SUMIF(NHAP!$D$1:$D$5000,B124,NHAP!$G$1:$G$5000)-SUMIF(XUAT!$E$1:$E$5000,B124,XUAT!$H$1:$H$5000) -> 30 | K124: 137058.8235 | L124: =H124+SUMIF(NHAP!$D$1:$D$5000,DMHH!B124,NHAP!$I$1:$I$5000)-SUMIF(XUAT!$E$1:$E$5000,DMHH!B124,XUAT!$L$1:$L$5000) -> 4111764.706
A125: 123 | B125: MANG36 1.2 6M | C125: Máng cửa đi 36 (1.2) 6m | D125: Cây | E125: MT | F125: 19 | G125: 156000 | H125: 2964000 | J125: =F125+SUMIF(NHAP!$D$1:$D$5000,B125,NHAP!$G$1:$G$5000)-SUMIF(XUAT!$E$1:$E$5000,B125,XUAT!$H$1:$H$5000) -> 27 | K125: 147247.0588 | L125: =H125+SUMIF(NHAP!$D$1:$D$5000,DMHH!B125,NHAP!$I$1:$I$5000)-SUMIF(XUAT!$E$1:$E$5000,DMHH!B125,XUAT!$L$1:$L$5000) -> 3975670.588
A126: 124 | B126: MANG36 1.4 6M | C126: Máng cửa đi 36 (1.4) 6m | D126: Cây | E126: MT | F126: 10 | G126: 180000 | H126: 1800000 | J126: =F126+SUMIF(NHAP!$D$1:$D$5000,B126,NHAP!$G$1:$G$5000)-SUMIF(XUAT!$E$1:$E$5000,B126,XUAT!$H$1:$H$5000) -> 16 | K126: 175500 | L126: =H126+SUMIF(NHAP!$D$1:$D$5000,DMHH!B126,NHAP!$I$1:$I$5000)-SUMIF(XUAT!$E$1:$E$5000,DMHH!B126,XUAT!$L$1:$L$5000) -> 2808000
A127: 125 | B127: MANG48 1.4 4M Đ | C127: Máng cửa đi 48 (1.4) 4m đen | D127: Cây | E127: MT | F127: 7 | G127: 220000 | H127: 1540000 | J127: =F127+SUMIF(NHAP!$D$1:$D$5000,B127,NHAP!$G$1:$G$5000)-SUMIF(XUAT!$E$1:$E$5000,B127,XUAT!$H$1:$H$5000) -> 7 | K127: 220000 | L127: =H127+SUMIF(NHAP!$D$1:$D$5000,DMHH!B127,NHAP!$I$1:$I$5000)-SUMIF(XUAT!$E$1:$E$5000,DMHH!B127,XUAT!$L$1:$L$5000) -> 1540000
A128: 126 | B128: MCK 2.5M | C128: Máng cửa kéo 2.5m | D128: Cây | E128: MCK | F128: 27 | J128: =F128+SUMIF(NHAP!$D$1:$D$5000,B128,NHAP!$G$1:$G$5000)-SUMIF(XUAT!$E$1:$E$5000,B128,XUAT!$H$1:$H$5000) -> 8 | K128: 0 | L128: =H128+SUMIF(NHAP!$D$1:$D$5000,DMHH!B128,NHAP!$I$1:$I$5000)-SUMIF(XUAT!$E$1:$E$5000,DMHH!B128,XUAT!$L$1:$L$5000) -> 0
A129: 127 | B129: MCK 2M | C129: Máng cửa kéo 2m | D129: Cây | E129: MCK | F129: 20 | J129: =F129+SUMIF(NHAP!$D$1:$D$5000,B129,NHAP!$G$1:$G$5000)-SUMIF(XUAT!$E$1:$E$5000,B129,XUAT!$H$1:$H$5000) -> 18 | K129: 0 | L129: =H129+SUMIF(NHAP!$D$1:$D$5000,DMHH!B129,NHAP!$I$1:$I$5000)-SUMIF(XUAT!$E$1:$E$5000,DMHH!B129,XUAT!$L$1:$L$5000) -> 0
A130: 128 | B130: NCL | C130: Nẹp tam giác Lớn (8kg) | D130: Cây | E130: NC | F130: 1224 | G130: 13300 | H130: 16279200 | J130: =F130+SUMIF(NHAP!$D$1:$D$5000,B130,NHAP!$G$1:$G$5000)-SUMIF(XUAT!$E$1:$E$5000,B130,XUAT!$H$1:$H$5000) -> 777 | K130: 13300 | L130: =H130+SUMIF(NHAP!$D$1:$D$5000,DMHH!B130,NHAP!$I$1:$I$5000)-SUMIF(XUAT!$E$1:$E$5000,DMHH!B130,XUAT!$L$1:$L$5000) -> 10334100
A131: 129 | B131: NCL1 | C131: Nẹp tam giác lớn (7kg) | D131: Cây | E131: NC | F131: 86 | G131: 13300 | H131: 1143800 | J131: =F131+SUMIF(NHAP!$D$1:$D$5000,B131,NHAP!$G$1:$G$5000)-SUMIF(XUAT!$E$1:$E$5000,B131,XUAT!$H$1:$H$5000) -> 86 | K131: 13300 | L131: =H131+SUMIF(NHAP!$D$1:$D$5000,DMHH!B131,NHAP!$I$1:$I$5000)-SUMIF(XUAT!$E$1:$E$5000,DMHH!B131,XUAT!$L$1:$L$5000) -> 1143800
A132: 130 | B132: NCN | C132: Nẹp tam giác Nhỏ | D132: Cây | E132: NC | F132: 336 | G132: 7400 | H132: 2486400 | J132: =F132+SUMIF(NHAP!$D$1:$D$5000,B132,NHAP!$G$1:$G$5000)-SUMIF(XUAT!$E$1:$E$5000,B132,XUAT!$H$1:$H$5000) -> 297 | K132: =IF(J132=0,0,L132/J132) -> 7400 | L132: =H132+SUMIF(NHAP!$D$1:$D$5000,DMHH!B132,NHAP!$I$1:$I$5000)-SUMIF(XUAT!$E$1:$E$5000,DMHH!B132,XUAT!$L$1:$L$5000) -> 2197800
A133: 131 | B133: OD114 1.4 | C133: Ống đen 114 (1.4) | D133: Cây | E133: OD | J133: =F133+SUMIF(NHAP!$D$1:$D$5000,B133,NHAP!$G$1:$G$5000)-SUMIF(XUAT!$E$1:$E$5000,B133,XUAT!$H$1:$H$5000) -> 0 | K133: 0 | L133: =H133+SUMIF(NHAP!$D$1:$D$5000,DMHH!B133,NHAP!$I$1:$I$5000)-SUMIF(XUAT!$E$1:$E$5000,DMHH!B133,XUAT!$L$1:$L$5000) -> 0
A134: 132 | B134: OD114 2.0 | C134: Ống đen 114 (2.0) | D134: Cây | E134: OD | J134: =F134+SUMIF(NHAP!$D$1:$D$5000,B134,NHAP!$G$1:$G$5000)-SUMIF(XUAT!$E$1:$E$5000,B134,XUAT!$H$1:$H$5000) -> 0 | K134: 0 | L134: =H134+SUMIF(NHAP!$D$1:$D$5000,DMHH!B134,NHAP!$I$1:$I$5000)-SUMIF(XUAT!$E$1:$E$5000,DMHH!B134,XUAT!$L$1:$L$5000) -> 0
A135: 133 | B135: OD140 2.0 | C135: Ống đen 140 (2.0) | D135: Cây | E135: OD | J135: =F135+SUMIF(NHAP!$D$1:$D$5000,B135,NHAP!$G$1:$G$5000)-SUMIF(XUAT!$E$1:$E$5000,B135,XUAT!$H$1:$H$5000) -> 0 | K135: 0 | L135: =H135+SUMIF(NHAP!$D$1:$D$5000,DMHH!B135,NHAP!$I$1:$I$5000)-SUMIF(XUAT!$E$1:$E$5000,DMHH!B135,XUAT!$L$1:$L$5000) -> 0
A136: 134 | B136: OD16 0.5 | C136: Ống đen 16 (0.5) | D136: Cây | E136: OD | F136: 2871 | G136: 23720 | H136: 68100120 | J136: =F136+SUMIF(NHAP!$D$1:$D$5000,B136,NHAP!$G$1:$G$5000)-SUMIF(XUAT!$E$1:$E$5000,B136,XUAT!$H$1:$H$5000) -> 1571 | K136: 23539.04479 | L136: =H136+SUMIF(NHAP!$D$1:$D$5000,DMHH!B136,NHAP!$I$1:$I$5000)-SUMIF(XUAT!$E$1:$E$5000,DMHH!B136,XUAT!$L$1:$L$5000) -> 36979839.37
A137: 135 | B137: OD168.3 4.0 | C137: Ống đen 168.3 (4.0) | D137: Cây | E137: OD | F137: 20 | G137: 1435000 | H137: 28700000 | J137: =F137+SUMIF(NHAP!$D$1:$D$5000,B137,NHAP!$G$1:$G$5000)-SUMIF(XUAT!$E$1:$E$5000,B137,XUAT!$H$1:$H$5000) -> 0 | K137: 0 | L137: =H137+SUMIF(NHAP!$D$1:$D$5000,DMHH!B137,NHAP!$I$1:$I$5000)-SUMIF(XUAT!$E$1:$E$5000,DMHH!B137,XUAT!$L$1:$L$5000) -> 0
A138: 136 | B138: OD22 0.6 | C138: Ống đen 22 (0.6) | D138: Cây | E138: OD | F138: 20 | G138: 36500 | H138: 730000 | J138: =F138+SUMIF(NHAP!$D$1:$D$5000,B138,NHAP!$G$1:$G$5000)-SUMIF(XUAT!$E$1:$E$5000,B138,XUAT!$H$1:$H$5000) -> 0 | K138: 0 | L138: =H138+SUMIF(NHAP!$D$1:$D$5000,DMHH!B138,NHAP!$I$1:$I$5000)-SUMIF(XUAT!$E$1:$E$5000,DMHH!B138,XUAT!$L$1:$L$5000) -> 0
A139: 137 | B139: OD27 1.2 | C139: Ống đen 27 (1.2) | D139: Cây | E139: OD | J139: =F139+SUMIF(NHAP!$D$1:$D$5000,B139,NHAP!$G$1:$G$5000)-SUMIF(XUAT!$E$1:$E$5000,B139,XUAT!$H$1:$H$5000) -> 0 | K139: 0 | L139: =H139+SUMIF(NHAP!$D$1:$D$5000,DMHH!B139,NHAP!$I$1:$I$5000)-SUMIF(XUAT!$E$1:$E$5000,DMHH!B139,XUAT!$L$1:$L$5000) -> 0
A140: 138 | B140: OD27 1.4 | C140: Ống đen 27 (1.4) | D140: Cây | E140: OD | J140: =F140+SUMIF(NHAP!$D$1:$D$5000,B140,NHAP!$G$1:$G$5000)-SUMIF(XUAT!$E$1:$E$5000,B140,XUAT!$H$1:$H$5000) -> 0 | K140: 0 | L140: =H140+SUMIF(NHAP!$D$1:$D$5000,DMHH!B140,NHAP!$I$1:$I$5000)-SUMIF(XUAT!$E$1:$E$5000,DMHH!B140,XUAT!$L$1:$L$5000) -> 0
A141: 139 | B141: OD34 1.1 | C141: Ống đen 34 (1.1) | D141: Cây | E141: OD | F141: 24 | G141: 74000 | H141: 1776000 | J141: =F141+SUMIF(NHAP!$D$1:$D$5000,B141,NHAP!$G$1:$G$5000)-SUMIF(XUAT!$E$1:$E$5000,B141,XUAT!$H$1:$H$5000) -> 18 | K141: 74000 | L141: =H141+SUMIF(NHAP!$D$1:$D$5000,DMHH!B141,NHAP!$I$1:$I$5000)-SUMIF(XUAT!$E$1:$E$5000,DMHH!B141,XUAT!$L$1:$L$5000) -> 1332000
A142: 140 | B142: OD34 1.2 | C142: Ống đen 34 (1.2) | D142: Cây | E142: OD | J142: =F142+SUMIF(NHAP!$D$1:$D$5000,B142,NHAP!$G$1:$G$5000)-SUMIF(XUAT!$E$1:$E$5000,B142,XUAT!$H$1:$H$5000) -> -11 | K142: 0 | L142: =H142+SUMIF(NHAP!$D$1:$D$5000,DMHH!B142,NHAP!$I$1:$I$5000)-SUMIF(XUAT!$E$1:$E$5000,DMHH!B142,XUAT!$L$1:$L$5000) -> 0
A143: 141 | B143: OD34 1.4 | C143: Ống đen 34 (1.4) | D143: Cây | E143: OD | J143: =F143+SUMIF(NHAP!$D$1:$D$5000,B143,NHAP!$G$1:$G$5000)-SUMIF(XUAT!$E$1:$E$5000,B143,XUAT!$H$1:$H$5000) -> 0 | K143: 0 | L143: =H143+SUMIF(NHAP!$D$1:$D$5000,DMHH!B143,NHAP!$I$1:$I$5000)-SUMIF(XUAT!$E$1:$E$5000,DMHH!B143,XUAT!$L$1:$L$5000) -> 0
A144: 142 | B144: OD42 1.2 | C144: Ống đen 42 (1.2) | D144: Cây | E144: OD | J144: =F144+SUMIF(NHAP!$D$1:$D$5000,B144,NHAP!$G$1:$G$5000)-SUMIF(XUAT!$E$1:$E$5000,B144,XUAT!$H$1:$H$5000) -> 0 | K144: 0 | L144: =H144+SUMIF(NHAP!$D$1:$D$5000,DMHH!B144,NHAP!$I$1:$I$5000)-SUMIF(XUAT!$E$1:$E$5000,DMHH!B144,XUAT!$L$1:$L$5000) -> 0
A145: 143 | B145: OD42 1.4 | C145: Ống đen 42 (1.4) | D145: Cây | E145: OD | J145: =F145+SUMIF(NHAP!$D$1:$D$5000,B145,NHAP!$G$1:$G$5000)-SUMIF(XUAT!$E$1:$E$5000,B145,XUAT!$H$1:$H$5000) -> 0 | K145: 0 | L145: =H145+SUMIF(NHAP!$D$1:$D$5000,DMHH!B145,NHAP!$I$1:$I$5000)-SUMIF(XUAT!$E$1:$E$5000,DMHH!B145,XUAT!$L$1:$L$5000) -> 0
A146: 144 | B146: OD49 3.0 | C146: Ông đen 49(3.0) | D146: cây | E146: OD | F146: 4 | G146: 198000 | H146: 792000 | J146: =F146+SUMIF(NHAP!$D$1:$D$5000,B146,NHAP!$G$1:$G$5000)-SUMIF(XUAT!$E$1:$E$5000,B146,XUAT!$H$1:$H$5000) -> 4 | K146: 198000 | L146: =H146+SUMIF(NHAP!$D$1:$D$5000,DMHH!B146,NHAP!$I$1:$I$5000)-SUMIF(XUAT!$E$1:$E$5000,DMHH!B146,XUAT!$L$1:$L$5000) -> 792000
A147: 145 | B147: OD60 1.2 | C147: Ống đen 60 (1.2) | D147: Cây | E147: OD | J147: =F147+SUMIF(NHAP!$D$1:$D$5000,B147,NHAP!$G$1:$G$5000)-SUMIF(XUAT!$E$1:$E$5000,B147,XUAT!$H$1:$H$5000) -> 0 | K147: 0 | L147: =H147+SUMIF(NHAP!$D$1:$D$5000,DMHH!B147,NHAP!$I$1:$I$5000)-SUMIF(XUAT!$E$1:$E$5000,DMHH!B147,XUAT!$L$1:$L$5000) -> 0
A148: 146 | B148: OD60 1.4 | C148: Ống đen 60 (1.4) | D148: Cây | E148: OD | J148: =F148+SUMIF(NHAP!$D$1:$D$5000,B148,NHAP!$G$1:$G$5000)-SUMIF(XUAT!$E$1:$E$5000,B148,XUAT!$H$1:$H$5000) -> 0 | K148: 0 | L148: =H148+SUMIF(NHAP!$D$1:$D$5000,DMHH!B148,NHAP!$I$1:$I$5000)-SUMIF(XUAT!$E$1:$E$5000,DMHH!B148,XUAT!$L$1:$L$5000) -> 0
A149: 147 | B149: OD60 3.0 | C149: Ống đen 60 (3.0) | D149: Cây | E149: OD | F149: 2 | G149: 364000 | H149: 728000 | J149: =F149+SUMIF(NHAP!$D$1:$D$5000,B149,NHAP!$G$1:$G$5000)-SUMIF(XUAT!$E$1:$E$5000,B149,XUAT!$H$1:$H$5000) -> 4 | K149: 364000 | L149: =H149+SUMIF(NHAP!$D$1:$D$5000,DMHH!B149,NHAP!$I$1:$I$5000)-SUMIF(XUAT!$E$1:$E$5000,DMHH!B149,XUAT!$L$1:$L$5000) -> 1456000
A150: 148 | B150: OD76 1.4 | C150: Ông đen 76(1.4) | D150: cây | E150: OD | J150: =F150+SUMIF(NHAP!$D$1:$D$5000,B150,NHAP!$G$1:$G$5000)-SUMIF(XUAT!$E$1:$E$5000,B150,XUAT!$H$1:$H$5000) -> 0 | K150: 0 | L150: =H150+SUMIF(NHAP!$D$1:$D$5000,DMHH!B150,NHAP!$I$1:$I$5000)-SUMIF(XUAT!$E$1:$E$5000,DMHH!B150,XUAT!$L$1:$L$5000) -> 0
A151: 149 | B151: OD76 1.8 | C151: Ông đen 76 (1.8) | D151: cây | E151: OD | J151: =F151+SUMIF(NHAP!$D$1:$D$5000,B151,NHAP!$G$1:$G$5000)-SUMIF(XUAT!$E$1:$E$5000,B151,XUAT!$H$1:$H$5000) -> 0 | K151: 0 | L151: =H151+SUMIF(NHAP!$D$1:$D$5000,DMHH!B151,NHAP!$I$1:$I$5000)-SUMIF(XUAT!$E$1:$E$5000,DMHH!B151,XUAT!$L$1:$L$5000) -> 0
A152: 150 | B152: OD90 1.4 | C152: Ống đen 90 (1.4) | D152: Cây | E152: OD | F152: 9 | G152: 288500 | H152: 2596500 | J152: =F152+SUMIF(NHAP!$D$1:$D$5000,B152,NHAP!$G$1:$G$5000)-SUMIF(XUAT!$E$1:$E$5000,B152,XUAT!$H$1:$H$5000) -> 1 | K152: 293884.6154 | L152: =H152+SUMIF(NHAP!$D$1:$D$5000,DMHH!B152,NHAP!$I$1:$I$5000)-SUMIF(XUAT!$E$1:$E$5000,DMHH!B152,XUAT!$L$1:$L$5000) -> 293884.6154
A153: 151 | B153: OK114 1.4 | C153: Ống kẽm 114 (1.4) | D153: Cây | E153: OK | J153: =F153+SUMIF(NHAP!$D$1:$D$5000,B153,NHAP!$G$1:$G$5000)-SUMIF(XUAT!$E$1:$E$5000,B153,XUAT!$H$1:$H$5000) -> 0 | K153: 0 | L153: =H153+SUMIF(NHAP!$D$1:$D$5000,DMHH!B153,NHAP!$I$1:$I$5000)-SUMIF(XUAT!$E$1:$E$5000,DMHH!B153,XUAT!$L$1:$L$5000) -> 0
A154: 152 | B154: OK114 1.8 | C154: ống kẽm 114 (1.8) | D154: Cây | E154: OK | J154: =F154+SUMIF(NHAP!$D$1:$D$5000,B154,NHAP!$G$1:$G$5000)-SUMIF(XUAT!$E$1:$E$5000,B154,XUAT!$H$1:$H$5000) -> 10 | K154: 433033.7419 | L154: =H154+SUMIF(NHAP!$D$1:$D$5000,DMHH!B154,NHAP!$I$1:$I$5000)-SUMIF(XUAT!$E$1:$E$5000,DMHH!B154,XUAT!$L$1:$L$5000) -> 4330337.419
A155: 153 | B155: OK114 2.0 | C155: Ống kẽm 114 (2.0) | D155: Cây | E155: OK | J155: =F155+SUMIF(NHAP!$D$1:$D$5000,B155,NHAP!$G$1:$G$5000)-SUMIF(XUAT!$E$1:$E$5000,B155,XUAT!$H$1:$H$5000) -> 0 | K155: 0 | L155: =H155+SUMIF(NHAP!$D$1:$D$5000,DMHH!B155,NHAP!$I$1:$I$5000)-SUMIF(XUAT!$E$1:$E$5000,DMHH!B155,XUAT!$L$1:$L$5000) -> 0
A156: 154 | B156: OK114 2.5 HP | C156: Ống kẽm 114 (2.6) Hòa Phát | D156: Cây | E156: OK | F156: 2 | G156: 800000 | H156: 1600000 | J156: =F156+SUMIF(NHAP!$D$1:$D$5000,B156,NHAP!$G$1:$G$5000)-SUMIF(XUAT!$E$1:$E$5000,B156,XUAT!$H$1:$H$5000) -> 2 | K156: 800000 | L156: =H156+SUMIF(NHAP!$D$1:$D$5000,DMHH!B156,NHAP!$I$1:$I$5000)-SUMIF(XUAT!$E$1:$E$5000,DMHH!B156,XUAT!$L$1:$L$5000) -> 1600000
A157: 155 | B157: OK21 0.9 | C157: Ống kẽm 21 (0.9) | D157: Cây | E157: OK | F157: 4 | G157: 50000 | H157: 200000 | J157: =F157+SUMIF(NHAP!$D$1:$D$5000,B157,NHAP!$G$1:$G$5000)-SUMIF(XUAT!$E$1:$E$5000,B157,XUAT!$H$1:$H$5000) -> 4 | K157: 50000 | L157: =H157+SUMIF(NHAP!$D$1:$D$5000,DMHH!B157,NHAP!$I$1:$I$5000)-SUMIF(XUAT!$E$1:$E$5000,DMHH!B157,XUAT!$L$1:$L$5000) -> 200000
A158: 156 | B158: OK21 1.1 | C158: Ống kẽm 21 (1.1) | D158: Cây | E158: OK | F158: 1 | G158: 57300 | H158: 57300 | J158: =F158+SUMIF(NHAP!$D$1:$D$5000,B158,NHAP!$G$1:$G$5000)-SUMIF(XUAT!$E$1:$E$5000,B158,XUAT!$H$1:$H$5000) -> 3 | K158: 49395.2381 | L158: =H158+SUMIF(NHAP!$D$1:$D$5000,DMHH!B158,NHAP!$I$1:$I$5000)-SUMIF(XUAT!$E$1:$E$5000,DMHH!B158,XUAT!$L$1:$L$5000) -> 148185.7143
A159: 157 | B159: OK21 1.2 | C159: Ống kẽm 21 (1.2) | D159: Cây | E159: OK | F159: 2 | G159: 60500 | H159: 114600 | J159: =F159+SUMIF(NHAP!$D$1:$D$5000,B159,NHAP!$G$1:$G$5000)-SUMIF(XUAT!$E$1:$E$5000,B159,XUAT!$H$1:$H$5000) -> 10 | K159: 54696.77419 | L159: =H159+SUMIF(NHAP!$D$1:$D$5000,DMHH!B159,NHAP!$I$1:$I$5000)-SUMIF(XUAT!$E$1:$E$5000,DMHH!B159,XUAT!$L$1:$L$5000) -> 546967.7419
A160: 158 | B160: OK21 1.3 | C160: Ống kẽm 21 (1.3) | D160: Cây | E160: OK | J160: =F160+SUMIF(NHAP!$D$1:$D$5000,B160,NHAP!$G$1:$G$5000)-SUMIF(XUAT!$E$1:$E$5000,B160,XUAT!$H$1:$H$5000) -> 0 | K160: 0 | L160: =H160+SUMIF(NHAP!$D$1:$D$5000,DMHH!B160,NHAP!$I$1:$I$5000)-SUMIF(XUAT!$E$1:$E$5000,DMHH!B160,XUAT!$L$1:$L$5000) -> 0
A161: 159 | B161: OK21 1.4 | C161: Ống kẽm 21 (1.4) | D161: Cây | E161: OK | F161: 10 | G161: 60000 | H161: 600000 | J161: =F161+SUMIF(NHAP!$D$1:$D$5000,B161,NHAP!$G$1:$G$5000)-SUMIF(XUAT!$E$1:$E$5000,B161,XUAT!$H$1:$H$5000) -> 8 | K161: 62090.90909 | L161: =H161+SUMIF(NHAP!$D$1:$D$5000,DMHH!B161,NHAP!$I$1:$I$5000)-SUMIF(XUAT!$E$1:$E$5000,DMHH!B161,XUAT!$L$1:$L$5000) -> 496727.2727
A162: 160 | B162: OK21 1.8 | C162: Ống kẽm 21 (1.8) | D162: Cây | E162: OK | J162: =F162+SUMIF(NHAP!$D$1:$D$5000,B162,NHAP!$G$1:$G$5000)-SUMIF(XUAT!$E$1:$E$5000,B162,XUAT!$H$1:$H$5000) -> 0 | K162: 0 | L162: =H162+SUMIF(NHAP!$D$1:$D$5000,DMHH!B162,NHAP!$I$1:$I$5000)-SUMIF(XUAT!$E$1:$E$5000,DMHH!B162,XUAT!$L$1:$L$5000) -> 0
A163: 161 | B163: OK27 1.1 | C163: Ống kẽm 27 (1.1) | D163: Cây | E163: OK | F163: 4 | G163: 67900 | H163: 271600 | J163: =F163+SUMIF(NHAP!$D$1:$D$5000,B163,NHAP!$G$1:$G$5000)-SUMIF(XUAT!$E$1:$E$5000,B163,XUAT!$H$1:$H$5000) -> 4 | K163: 67900 | L163: =H163+SUMIF(NHAP!$D$1:$D$5000,DMHH!B163,NHAP!$I$1:$I$5000)-SUMIF(XUAT!$E$1:$E$5000,DMHH!B163,XUAT!$L$1:$L$5000) -> 271600
A164: 162 | B164: OK27 1.2 | C164: Ống kẽm 27 (1.2) | D164: Cây | E164: OK | F164: 10 | G164: 68500 | H164: 685000 | J164: =F164+SUMIF(NHAP!$D$1:$D$5000,B164,NHAP!$G$1:$G$5000)-SUMIF(XUAT!$E$1:$E$5000,B164,XUAT!$H$1:$H$5000) -> 8 | K164: 68000 | L164: =H164+SUMIF(NHAP!$D$1:$D$5000,DMHH!B164,NHAP!$I$1:$I$5000)-SUMIF(XUAT!$E$1:$E$5000,DMHH!B164,XUAT!$L$1:$L$5000) -> 544000
A165: 163 | B165: OK27 1.3 | C165: Ống kẽm 27 (1.3) | D165: Cây | E165: OK | F165: 3 | G165: 84200 | H165: 252600 | J165: =F165+SUMIF(NHAP!$D$1:$D$5000,B165,NHAP!$G$1:$G$5000)-SUMIF(XUAT!$E$1:$E$5000,B165,XUAT!$H$1:$H$5000) -> 0 | K165: 0 | L165: =H165+SUMIF(NHAP!$D$1:$D$5000,DMHH!B165,NHAP!$I$1:$I$5000)-SUMIF(XUAT!$E$1:$E$5000,DMHH!B165,XUAT!$L$1:$L$5000) -> 0
A166: 164 | B166: OK27 1.4 | C166: Ống kẽm 27 (1.4) | D166: Cây | E166: OK | J166: =F166+SUMIF(NHAP!$D$1:$D$5000,B166,NHAP!$G$1:$G$5000)-SUMIF(XUAT!$E$1:$E$5000,B166,XUAT!$H$1:$H$5000) -> 11 | K166: 78166.66667 | L166: =H166+SUMIF(NHAP!$D$1:$D$5000,DMHH!B166,NHAP!$I$1:$I$5000)-SUMIF(XUAT!$E$1:$E$5000,DMHH!B166,XUAT!$L$1:$L$5000) -> 859833.3333
A167: 165 | B167: OK27 1.7 | C167: Ống kẽm 27 (1.7) | D167: Cây | E167: OK | F167: 1 | G167: 104000 | H167: 104000 | J167: =F167+SUMIF(NHAP!$D$1:$D$5000,B167,NHAP!$G$1:$G$5000)-SUMIF(XUAT!$E$1:$E$5000,B167,XUAT!$H$1:$H$5000) -> 1 | K167: 96459.375 | L167: =H167+SUMIF(NHAP!$D$1:$D$5000,DMHH!B167,NHAP!$I$1:$I$5000)-SUMIF(XUAT!$E$1:$E$5000,DMHH!B167,XUAT!$L$1:$L$5000) -> 96459.375
A168: 166 | B168: OK27 1.8 | C168: Ống kẽm 27 (1.8) | D168: Cây | E168: OK | F168: 6 | G168: 108600 | H168: 651600 | J168: =F168+SUMIF(NHAP!$D$1:$D$5000,B168,NHAP!$G$1:$G$5000)-SUMIF(XUAT!$E$1:$E$5000,B168,XUAT!$H$1:$H$5000) -> 9 | K168: 101917.0732 | L168: =H168+SUMIF(NHAP!$D$1:$D$5000,DMHH!B168,NHAP!$I$1:$I$5000)-SUMIF(XUAT!$E$1:$E$5000,DMHH!B168,XUAT!$L$1:$L$5000) -> 917253.6585
A169: 167 | B169: OK34 1.1 | C169: Ống kẽm 34 (1.1) | D169: Cây | E169: OK | F169: 1 | G169: 82000 | H169: 82000 | J169: =F169+SUMIF(NHAP!$D$1:$D$5000,B169,NHAP!$G$1:$G$5000)-SUMIF(XUAT!$E$1:$E$5000,B169,XUAT!$H$1:$H$5000) -> 1 | K169: 82000 | L169: =H169+SUMIF(NHAP!$D$1:$D$5000,DMHH!B169,NHAP!$I$1:$I$5000)-SUMIF(XUAT!$E$1:$E$5000,DMHH!B169,XUAT!$L$1:$L$5000) -> 82000
A170: 168 | B170: OK34 1.2 | C170: Ống kẽm 34 (1.2) | D170: Cây | E170: OK | F170: 15 | G170: 83900 | H170: 1258500 | J170: =F170+SUMIF(NHAP!$D$1:$D$5000,B170,NHAP!$G$1:$G$5000)-SUMIF(XUAT!$E$1:$E$5000,B170,XUAT!$H$1:$H$5000) -> 12 | K170: 85925 | L170: =H170+SUMIF(NHAP!$D$1:$D$5000,DMHH!B170,NHAP!$I$1:$I$5000)-SUMIF(XUAT!$E$1:$E$5000,DMHH!B170,XUAT!$L$1:$L$5000) -> 1031100
A171: 169 | B171: OK34 1.4 | C171: Ống kẽm 34 (1.4) | D171: Cây | E171: OK | F171: 7 | G171: 101700 | H171: 711900 | J171: =F171+SUMIF(NHAP!$D$1:$D$5000,B171,NHAP!$G$1:$G$5000)-SUMIF(XUAT!$E$1:$E$5000,B171,XUAT!$H$1:$H$5000) -> 16 | K171: 94735.14103 | L171: =H171+SUMIF(NHAP!$D$1:$D$5000,DMHH!B171,NHAP!$I$1:$I$5000)-SUMIF(XUAT!$E$1:$E$5000,DMHH!B171,XUAT!$L$1:$L$5000) -> 1515762.256
A172: 170 | B172: OK34 1.7 | C172: Ống kẽm 34 (1.7) | D172: Cây | E172: OK | F172: 8 | G172: 132100 | H172: 1056800 | J172: =F172+SUMIF(NHAP!$D$1:$D$5000,B172,NHAP!$G$1:$G$5000)-SUMIF(XUAT!$E$1:$E$5000,B172,XUAT!$H$1:$H$5000) -> 8 | K172: 132100 | L172: =H172+SUMIF(NHAP!$D$1:$D$5000,DMHH!B172,NHAP!$I$1:$I$5000)-SUMIF(XUAT!$E$1:$E$5000,DMHH!B172,XUAT!$L$1:$L$5000) -> 1056800
A173: 171 | B173: OK34 1.8 | C173: Ống kẽm 34 (1.8) | D173: Cây | E173: OK | F173: 10 | G173: 132100 | H173: 1321000 | J173: =F173+SUMIF(NHAP!$D$1:$D$5000,B173,NHAP!$G$1:$G$5000)-SUMIF(XUAT!$E$1:$E$5000,B173,XUAT!$H$1:$H$5000) -> 5 | K173: 133515.3846 | L173: =H173+SUMIF(NHAP!$D$1:$D$5000,DMHH!B173,NHAP!$I$1:$I$5000)-SUMIF(XUAT!$E$1:$E$5000,DMHH!B173,XUAT!$L$1:$L$5000) -> 667576.9231
A174: 172 | B174: OK34 2.3 | C174: Ống kẽm 34 (2.3) | D174: Cây | E174: OK | J174: =F174+SUMIF(NHAP!$D$1:$D$5000,B174,NHAP!$G$1:$G$5000)-SUMIF(XUAT!$E$1:$E$5000,B174,XUAT!$H$1:$H$5000) -> 0 | K174: 0 | L174: =H174+SUMIF(NHAP!$D$1:$D$5000,DMHH!B174,NHAP!$I$1:$I$5000)-SUMIF(XUAT!$E$1:$E$5000,DMHH!B174,XUAT!$L$1:$L$5000) -> 0
A175: 173 | B175: OK42 1.1 | C175: Ống kẽm 42 (1.1) | D175: Cây | E175: OK | J175: =F175+SUMIF(NHAP!$D$1:$D$5000,B175,NHAP!$G$1:$G$5000)-SUMIF(XUAT!$E$1:$E$5000,B175,XUAT!$H$1:$H$5000) -> 0 | K175: 0 | L175: =H175+SUMIF(NHAP!$D$1:$D$5000,DMHH!B175,NHAP!$I$1:$I$5000)-SUMIF(XUAT!$E$1:$E$5000,DMHH!B175,XUAT!$L$1:$L$5000) -> 0
A176: 174 | B176: OK42 1.2 | C176: Ống kẽm 42 (1.2) | D176: Cây | E176: OK | F176: 16 | G176: 105000 | H176: 1680000 | J176: =F176+SUMIF(NHAP!$D$1:$D$5000,B176,NHAP!$G$1:$G$5000)-SUMIF(XUAT!$E$1:$E$5000,B176,XUAT!$H$1:$H$5000) -> 0 | K176: 0 | L176: =H176+SUMIF(NHAP!$D$1:$D$5000,DMHH!B176,NHAP!$I$1:$I$5000)-SUMIF(XUAT!$E$1:$E$5000,DMHH!B176,XUAT!$L$1:$L$5000) -> 0
A177: 175 | B177: OK42 1.3 | C177: Ống kẽm 42 (1.3) | D177: Cây | E177: OK | J177: =F177+SUMIF(NHAP!$D$1:$D$5000,B177,NHAP!$G$1:$G$5000)-SUMIF(XUAT!$E$1:$E$5000,B177,XUAT!$H$1:$H$5000) -> 0 | K177: 0 | L177: =H177+SUMIF(NHAP!$D$1:$D$5000,DMHH!B177,NHAP!$I$1:$I$5000)-SUMIF(XUAT!$E$1:$E$5000,DMHH!B177,XUAT!$L$1:$L$5000) -> 0
A178: 176 | B178: OK42 1.4 | C178: Ống kẽm 42 (1.4) | D178: Cây | E178: OK | F178: 15 | G178: 122000 | H178: 1830000 | J178: =F178+SUMIF(NHAP!$D$1:$D$5000,B178,NHAP!$G$1:$G$5000)-SUMIF(XUAT!$E$1:$E$5000,B178,XUAT!$H$1:$H$5000) -> 10 | K178: 123200 | L178: =H178+SUMIF(NHAP!$D$1:$D$5000,DMHH!B178,NHAP!$I$1:$I$5000)-SUMIF(XUAT!$E$1:$E$5000,DMHH!B178,XUAT!$L$1:$L$5000) -> 1232000
A179: 177 | B179: OK42 1.7 | C179: Ống kẽm 42 (1.7) | D179: Cây | E179: OK | F179: 9 | G179: 154500 | H179: 1390500 | J179: =F179+SUMIF(NHAP!$D$1:$D$5000,B179,NHAP!$G$1:$G$5000)-SUMIF(XUAT!$E$1:$E$5000,B179,XUAT!$H$1:$H$5000) -> 9 | K179: 154500 | L179: =H179+SUMIF(NHAP!$D$1:$D$5000,DMHH!B179,NHAP!$I$1:$I$5000)-SUMIF(XUAT!$E$1:$E$5000,DMHH!B179,XUAT!$L$1:$L$5000) -> 1390500
A180: 178 | B180: OK42 1.8 | C180: Ống kẽm 42 (1.8) | D180: Cây | E180: OK | F180: 5 | G180: 173000 | H180: 865000 | J180: =F180+SUMIF(NHAP!$D$1:$D$5000,B180,NHAP!$G$1:$G$5000)-SUMIF(XUAT!$E$1:$E$5000,B180,XUAT!$H$1:$H$5000) -> 0 | K180: 0 | L180: =H180+SUMIF(NHAP!$D$1:$D$5000,DMHH!B180,NHAP!$I$1:$I$5000)-SUMIF(XUAT!$E$1:$E$5000,DMHH!B180,XUAT!$L$1:$L$5000) -> 0
A181: 179 | B181: OK49 1.1 | C181: Ống kẽm 49 (1.1) | D181: Cây | E181: OK | J181: =F181+SUMIF(NHAP!$D$1:$D$5000,B181,NHAP!$G$1:$G$5000)-SUMIF(XUAT!$E$1:$E$5000,B181,XUAT!$H$1:$H$5000) -> 0 | K181: 0 | L181: =H181+SUMIF(NHAP!$D$1:$D$5000,DMHH!B181,NHAP!$I$1:$I$5000)-SUMIF(XUAT!$E$1:$E$5000,DMHH!B181,XUAT!$L$1:$L$5000) -> 0
A182: 180 | B182: OK49 1.3 | C182: Ống kẽm 49 (1.3) | D182: Cây | E182: OK | J182: =F182+SUMIF(NHAP!$D$1:$D$5000,B182,NHAP!$G$1:$G$5000)-SUMIF(XUAT!$E$1:$E$5000,B182,XUAT!$H$1:$H$5000) -> 0 | K182: 0 | L182: =H182+SUMIF(NHAP!$D$1:$D$5000,DMHH!B182,NHAP!$I$1:$I$5000)-SUMIF(XUAT!$E$1:$E$5000,DMHH!B182,XUAT!$L$1:$L$5000) -> 0
A183: 181 | B183: OK49 1.4 | C183: Ống kẽm 49 (1.4) | D183: Cây | E183: OK | F183: 2 | G183: 137000 | H183: 274000 | J183: =F183+SUMIF(NHAP!$D$1:$D$5000,B183,NHAP!$G$1:$G$5000)-SUMIF(XUAT!$E$1:$E$5000,B183,XUAT!$H$1:$H$5000) -> 5 | K183: 143600 | L183: =H183+SUMIF(NHAP!$D$1:$D$5000,DMHH!B183,NHAP!$I$1:$I$5000)-SUMIF(XUAT!$E$1:$E$5000,DMHH!B183,XUAT!$L$1:$L$5000) -> 718000
A184: 182 | B184: OK49 1.7 | C184: Ống kẽm 49 (1.7) | D184: Cây | E184: OK | F184: 11 | G184: 176000 | H184: 1936000 | J184: =F184+SUMIF(NHAP!$D$1:$D$5000,B184,NHAP!$G$1:$G$5000)-SUMIF(XUAT!$E$1:$E$5000,B184,XUAT!$H$1:$H$5000) -> 10 | K184: 176000 | L184: =H184+SUMIF(NHAP!$D$1:$D$5000,DMHH!B184,NHAP!$I$1:$I$5000)-SUMIF(XUAT!$E$1:$E$5000,DMHH!B184,XUAT!$L$1:$L$5000) -> 1760000
A185: 183 | B185: OK49 1.8 | C185: Ống kẽm 49 (1.8) | D185: Cây | E185: OK | F185: 3 | G185: 205300 | H185: 615900 | J185: =F185+SUMIF(NHAP!$D$1:$D$5000,B185,NHAP!$G$1:$G$5000)-SUMIF(XUAT!$E$1:$E$5000,B185,XUAT!$H$1:$H$5000) -> 0 | K185: 0 | L185: =H185+SUMIF(NHAP!$D$1:$D$5000,DMHH!B185,NHAP!$I$1:$I$5000)-SUMIF(XUAT!$E$1:$E$5000,DMHH!B185,XUAT!$L$1:$L$5000) -> 0
A186: 184 | B186: OK49 2.0 | C186: Ống kẽm 49 (2.0) | D186: Cây | E186: OK | J186: =F186+SUMIF(NHAP!$D$1:$D$5000,B186,NHAP!$G$1:$G$5000)-SUMIF(XUAT!$E$1:$E$5000,B186,XUAT!$H$1:$H$5000) -> 0 | K186: 0 | L186: =H186+SUMIF(NHAP!$D$1:$D$5000,DMHH!B186,NHAP!$I$1:$I$5000)-SUMIF(XUAT!$E$1:$E$5000,DMHH!B186,XUAT!$L$1:$L$5000) -> 0
A187: 185 | B187: OK60 1.2 | C187: Ống kẽm 60 (1.2) | D187: Cây | E187: OK | J187: =F187+SUMIF(NHAP!$D$1:$D$5000,B187,NHAP!$G$1:$G$5000)-SUMIF(XUAT!$E$1:$E$5000,B187,XUAT!$H$1:$H$5000) -> 0 | K187: 0 | L187: =H187+SUMIF(NHAP!$D$1:$D$5000,DMHH!B187,NHAP!$I$1:$I$5000)-SUMIF(XUAT!$E$1:$E$5000,DMHH!B187,XUAT!$L$1:$L$5000) -> 0
A188: 186 | B188: OK60 1.3 | C188: Ống kẽm 60 (1.3) | D188: Cây | E188: OK | F188: 1 | G188: 203000 | H188: 203000 | J188: =F188+SUMIF(NHAP!$D$1:$D$5000,B188,NHAP!$G$1:$G$5000)-SUMIF(XUAT!$E$1:$E$5000,B188,XUAT!$H$1:$H$5000) -> 0 | K188: 0 | L188: =H188+SUMIF(NHAP!$D$1:$D$5000,DMHH!B188,NHAP!$I$1:$I$5000)-SUMIF(XUAT!$E$1:$E$5000,DMHH!B188,XUAT!$L$1:$L$5000) -> 0
A189: 187 | B189: OK60 1.4 | C189: Ống kẽm 60 (1.4) | D189: Cây | E189: OK | F189: 7 | G189: 183500 | H189: 1284500 | J189: =F189+SUMIF(NHAP!$D$1:$D$5000,B189,NHAP!$G$1:$G$5000)-SUMIF(XUAT!$E$1:$E$5000,B189,XUAT!$H$1:$H$5000) -> 10 | K189: 176506.25 | L189: =H189+SUMIF(NHAP!$D$1:$D$5000,DMHH!B189,NHAP!$I$1:$I$5000)-SUMIF(XUAT!$E$1:$E$5000,DMHH!B189,XUAT!$L$1:$L$5000) -> 1765062.5
A190: 188 | B190: OK60 1.7 | C190: Ống kẽm 60 (1.7) | D190: Cây | E190: OK | F190: 3 | G190: 217500 | H190: 652500 | J190: =F190+SUMIF(NHAP!$D$1:$D$5000,B190,NHAP!$G$1:$G$5000)-SUMIF(XUAT!$E$1:$E$5000,B190,XUAT!$H$1:$H$5000) -> 3 | K190: 217500 | L190: =H190+SUMIF(NHAP!$D$1:$D$5000,DMHH!B190,NHAP!$I$1:$I$5000)-SUMIF(XUAT!$E$1:$E$5000,DMHH!B190,XUAT!$L$1:$L$5000) -> 652500
A191: 189 | B191: OK60 1.8 | C191: Ống kẽm 60 (1.8) | D191: Cây | E191: OK | J191: =F191+SUMIF(NHAP!$D$1:$D$5000,B191,NHAP!$G$1:$G$5000)-SUMIF(XUAT!$E$1:$E$5000,B191,XUAT!$H$1:$H$5000) -> 0 | K191: 0 | L191: =H191+SUMIF(NHAP!$D$1:$D$5000,DMHH!B191,NHAP!$I$1:$I$5000)-SUMIF(XUAT!$E$1:$E$5000,DMHH!B191,XUAT!$L$1:$L$5000) -> 0
A192: 190 | B192: OK60 2.0 | C192: Ống kẽm 60 (2.0) | D192: Cây | E192: OK | F192: 5 | G192: 265800 | H192: 1329000 | J192: =F192+SUMIF(NHAP!$D$1:$D$5000,B192,NHAP!$G$1:$G$5000)-SUMIF(XUAT!$E$1:$E$5000,B192,XUAT!$H$1:$H$5000) -> 9 | K192: 268628.5714 | L192: =H192+SUMIF(NHAP!$D$1:$D$5000,DMHH!B192,NHAP!$I$1:$I$5000)-SUMIF(XUAT!$E$1:$E$5000,DMHH!B192,XUAT!$L$1:$L$5000) -> 2417657.143
A193: 191 | B193: OK60 2.5 | C193: Ống kẽm 60 (2.5) | D193: Cây | E193: OK | J193: =F193+SUMIF(NHAP!$D$1:$D$5000,B193,NHAP!$G$1:$G$5000)-SUMIF(XUAT!$E$1:$E$5000,B193,XUAT!$H$1:$H$5000) -> 0 | K193: 0 | L193: =H193+SUMIF(NHAP!$D$1:$D$5000,DMHH!B193,NHAP!$I$1:$I$5000)-SUMIF(XUAT!$E$1:$E$5000,DMHH!B193,XUAT!$L$1:$L$5000) -> 0
A194: 192 | B194: OK76 1.3 | C194: Ống kẽm 76 (1.3) | D194: Cây | E194: OK | J194: =F194+SUMIF(NHAP!$D$1:$D$5000,B194,NHAP!$G$1:$G$5000)-SUMIF(XUAT!$E$1:$E$5000,B194,XUAT!$H$1:$H$5000) -> 0 | K194: 0 | L194: =H194+SUMIF(NHAP!$D$1:$D$5000,DMHH!B194,NHAP!$I$1:$I$5000)-SUMIF(XUAT!$E$1:$E$5000,DMHH!B194,XUAT!$L$1:$L$5000) -> 0
A195: 193 | B195: OK76 1.4 | C195: Ống kẽm 76 (1.4) | D195: Cây | E195: OK | F195: 7 | G195: 257200 | H195: 1800400 | J195: =F195+SUMIF(NHAP!$D$1:$D$5000,B195,NHAP!$G$1:$G$5000)-SUMIF(XUAT!$E$1:$E$5000,B195,XUAT!$H$1:$H$5000) -> 5 | K195: 257200 | L195: =H195+SUMIF(NHAP!$D$1:$D$5000,DMHH!B195,NHAP!$I$1:$I$5000)-SUMIF(XUAT!$E$1:$E$5000,DMHH!B195,XUAT!$L$1:$L$5000) -> 1286000
A196: 194 | B196: OK76 1.7 | C196: Ống kẽm 76 (1.7) | D196: Cây | E196: OK | F196: 9 | G196: 288000 | H196: 2592000 | J196: =F196+SUMIF(NHAP!$D$1:$D$5000,B196,NHAP!$G$1:$G$5000)-SUMIF(XUAT!$E$1:$E$5000,B196,XUAT!$H$1:$H$5000) -> 9 | K196: =IF(J196=0,0,L196/J196) -> 288000 | L196: =H196+SUMIF(NHAP!$D$1:$D$5000,DMHH!B196,NHAP!$I$1:$I$5000)-SUMIF(XUAT!$E$1:$E$5000,DMHH!B196,XUAT!$L$1:$L$5000) -> 2592000
A197: 195 | B197: OK76 1.8 | C197: Ống kẽm 76 (1.8) | D197: Cây | E197: OK | F197: 9 | G197: 288000 | H197: 2592000 | J197: =F197+SUMIF(NHAP!$D$1:$D$5000,B197,NHAP!$G$1:$G$5000)-SUMIF(XUAT!$E$1:$E$5000,B197,XUAT!$H$1:$H$5000) -> 0 | K197: 0 | L197: =H197+SUMIF(NHAP!$D$1:$D$5000,DMHH!B197,NHAP!$I$1:$I$5000)-SUMIF(XUAT!$E$1:$E$5000,DMHH!B197,XUAT!$L$1:$L$5000) -> 0
A198: 196 | B198: OK76 2.0 | C198: Ống kẽm 76 (2.0) | D198: Cây | E198: OK | F198: 3 | G198: 325900 | H198: 977700 | J198: =F198+SUMIF(NHAP!$D$1:$D$5000,B198,NHAP!$G$1:$G$5000)-SUMIF(XUAT!$E$1:$E$5000,B198,XUAT!$H$1:$H$5000) -> 3 | K198: 325900 | L198: =H198+SUMIF(NHAP!$D$1:$D$5000,DMHH!B198,NHAP!$I$1:$I$5000)-SUMIF(XUAT!$E$1:$E$5000,DMHH!B198,XUAT!$L$1:$L$5000) -> 977700
A199: 197 | B199: OK90 1.3 | C199: Ống kẽm 90 (1.3) | D199: Cây | E199: OK | J199: =F199+SUMIF(NHAP!$D$1:$D$5000,B199,NHAP!$G$1:$G$5000)-SUMIF(XUAT!$E$1:$E$5000,B199,XUAT!$H$1:$H$5000) -> 0 | K199: 0 | L199: =H199+SUMIF(NHAP!$D$1:$D$5000,DMHH!B199,NHAP!$I$1:$I$5000)-SUMIF(XUAT!$E$1:$E$5000,DMHH!B199,XUAT!$L$1:$L$5000) -> 0
A200: 198 | B200: OK90 1.4 | C200: Ống kẽm 90 (1.4) | D200: Cây | E200: OK | F200: 4 | G200: 270300 | H200: 1081200 | J200: =F200+SUMIF(NHAP!$D$1:$D$5000,B200,NHAP!$G$1:$G$5000)-SUMIF(XUAT!$E$1:$E$5000,B200,XUAT!$H$1:$H$5000) -> 5 | K200: 277500 | L200: =H200+SUMIF(NHAP!$D$1:$D$5000,DMHH!B200,NHAP!$I$1:$I$5000)-SUMIF(XUAT!$E$1:$E$5000,DMHH!B200,XUAT!$L$1:$L$5000) -> 1387500
... 802 more rows

Sheet DMKH
A1: STT | B1: MÃ KH/ NCC | C1: TÊN KH/ NCC | D1: LOẠI | E1: TỒN BẮT ĐẦU KỲ CŨ | H1: TỒN BẮT ĐẦU KỲ MỚI
E2: Phải trả | F2: Phải thu | H2: Phải trả | I2: Phải thu
A3: 1 | B3: HP | C3: Hải Phương | D3: NCC | H3: =IF(D3="KH",0,E3+SUMIF(NHAP!$L$1:$L$5000,B3,NHAP!$K$1:$K$5000)-SUMIF(NHAP!$L$1:$L$5000,B3,NHAP!$M$1:$M$5000)) -> 624671380 | I3: =IF(D3="NCC",0,F3+SUMIF(XUAT!$N$1:$N$5000,B3,XUAT!$L$1:$L$5000)-SUMIF(XUAT!$N$1:$N$5000,B3,XUAT!$O$1:$O$5000)) -> 0
A4: 2 | B4: KL | C4: Khách lẻ | D4: KH | H4: =IF(D4="KH",0,E4+SUMIF(NHAP!$L$1:$L$5000,B4,NHAP!$K$1:$K$5000)-SUMIF(NHAP!$L$1:$L$5000,B4,NHAP!$M$1:$M$5000)) -> 0 | I4: =IF(D4="NCC",0,F4+SUMIF(XUAT!$N$1:$N$5000,B4,XUAT!$L$1:$L$5000)-SUMIF(XUAT!$N$1:$N$5000,B4,XUAT!$O$1:$O$5000)) -> -516696307.9
A5: 3 | B5: PXV | C5: Phú Xuân Việt | D5: NCC | H5: =IF(D5="KH",0,E5+SUMIF(NHAP!$L$1:$L$5000,B5,NHAP!$K$1:$K$5000)-SUMIF(NHAP!$L$1:$L$5000,B5,NHAP!$M$1:$M$5000)) -> 792639385 | I5: =IF(D5="NCC",0,F5+SUMIF(XUAT!$N$1:$N$5000,B5,XUAT!$L$1:$L$5000)-SUMIF(XUAT!$N$1:$N$5000,B5,XUAT!$O$1:$O$5000)) -> 0
A6: 4 | B6: VT | C6: Việt Thành | D6: NCC | H6: =IF(D6="KH",0,E6+SUMIF(NHAP!$L$1:$L$5000,B6,NHAP!$K$1:$K$5000)-SUMIF(NHAP!$L$1:$L$5000,B6,NHAP!$M$1:$M$5000)) -> 2604569272 | I6: =IF(D6="NCC",0,F6+SUMIF(XUAT!$N$1:$N$5000,B6,XUAT!$L$1:$L$5000)-SUMIF(XUAT!$N$1:$N$5000,B6,XUAT!$O$1:$O$5000)) -> 0
A7: 5 | H7: =IF(D7="KH",0,E7+SUMIF(NHAP!$L$1:$L$5000,B7,NHAP!$K$1:$K$5000)-SUMIF(NHAP!$L$1:$L$5000,B7,NHAP!$M$1:$M$5000)) -> 0 | I7: =IF(D7="NCC",0,F7+SUMIF(XUAT!$N$1:$N$5000,B7,XUAT!$L$1:$L$5000)-SUMIF(XUAT!$N$1:$N$5000,B7,XUAT!$O$1:$O$5000)) -> 0
A8: 6 | H8: =IF(D8="KH",0,E8+SUMIF(NHAP!$L$1:$L$5000,B8,NHAP!$K$1:$K$5000)-SUMIF(NHAP!$L$1:$L$5000,B8,NHAP!$M$1:$M$5000)) -> 0 | I8: =IF(D8="NCC",0,F8+SUMIF(XUAT!$N$1:$N$5000,B8,XUAT!$L$1:$L$5000)-SUMIF(XUAT!$N$1:$N$5000,B8,XUAT!$O$1:$O$5000)) -> 0
A9: 7 | H9: =IF(D9="KH",0,E9+SUMIF(NHAP!$L$1:$L$5000,B9,NHAP!$K$1:$K$5000)-SUMIF(NHAP!$L$1:$L$5000,B9,NHAP!$M$1:$M$5000)) -> 0 | I9: =IF(D9="NCC",0,F9+SUMIF(XUAT!$N$1:$N$5000,B9,XUAT!$L$1:$L$5000)-SUMIF(XUAT!$N$1:$N$5000,B9,XUAT!$O$1:$O$5000)) -> 0
A10: 8 | H10: =IF(D10="KH",0,E10+SUMIF(NHAP!$L$1:$L$5000,B10,NHAP!$K$1:$K$5000)-SUMIF(NHAP!$L$1:$L$5000,B10,NHAP!$M$1:$M$5000)) -> 0 | I10: =IF(D10="NCC",0,F10+SUMIF(XUAT!$N$1:$N$5000,B10,XUAT!$L$1:$L$5000)-SUMIF(XUAT!$N$1:$N$5000,B10,XUAT!$O$1:$O$5000)) -> 0
A11: 9 | H11: =IF(D11="KH",0,E11+SUMIF(NHAP!$L$1:$L$5000,B11,NHAP!$K$1:$K$5000)-SUMIF(NHAP!$L$1:$L$5000,B11,NHAP!$M$1:$M$5000)) -> 0 | I11: =IF(D11="NCC",0,F11+SUMIF(XUAT!$N$1:$N$5000,B11,XUAT!$L$1:$L$5000)-SUMIF(XUAT!$N$1:$N$5000,B11,XUAT!$O$1:$O$5000)) -> 0
A12: 10 | H12: =IF(D12="KH",0,E12+SUMIF(NHAP!$L$1:$L$5000,B12,NHAP!$K$1:$K$5000)-SUMIF(NHAP!$L$1:$L$5000,B12,NHAP!$M$1:$M$5000)) -> 0 | I12: =IF(D12="NCC",0,F12+SUMIF(XUAT!$N$1:$N$5000,B12,XUAT!$L$1:$L$5000)-SUMIF(XUAT!$N$1:$N$5000,B12,XUAT!$O$1:$O$5000)) -> 0
A13: 11 | H13: =IF(D13="KH",0,E13+SUMIF(NHAP!$L$1:$L$5000,B13,NHAP!$K$1:$K$5000)-SUMIF(NHAP!$L$1:$L$5000,B13,NHAP!$M$1:$M$5000)) -> 0 | I13: =IF(D13="NCC",0,F13+SUMIF(XUAT!$N$1:$N$5000,B13,XUAT!$L$1:$L$5000)-SUMIF(XUAT!$N$1:$N$5000,B13,XUAT!$O$1:$O$5000)) -> 0
A14: 12 | H14: =IF(D14="KH",0,E14+SUMIF(NHAP!$L$1:$L$5000,B14,NHAP!$K$1:$K$5000)-SUMIF(NHAP!$L$1:$L$5000,B14,NHAP!$M$1:$M$5000)) -> 0 | I14: =IF(D14="NCC",0,F14+SUMIF(XUAT!$N$1:$N$5000,B14,XUAT!$L$1:$L$5000)-SUMIF(XUAT!$N$1:$N$5000,B14,XUAT!$O$1:$O$5000)) -> 0
A15: 13 | H15: =IF(D15="KH",0,E15+SUMIF(NHAP!$L$1:$L$5000,B15,NHAP!$K$1:$K$5000)-SUMIF(NHAP!$L$1:$L$5000,B15,NHAP!$M$1:$M$5000)) -> 0 | I15: =IF(D15="NCC",0,F15+SUMIF(XUAT!$N$1:$N$5000,B15,XUAT!$L$1:$L$5000)-SUMIF(XUAT!$N$1:$N$5000,B15,XUAT!$O$1:$O$5000)) -> 0
A16: 14 | H16: =IF(D16="KH",0,E16+SUMIF(NHAP!$L$1:$L$5000,B16,NHAP!$K$1:$K$5000)-SUMIF(NHAP!$L$1:$L$5000,B16,NHAP!$M$1:$M$5000)) -> 0 | I16: =IF(D16="NCC",0,F16+SUMIF(XUAT!$N$1:$N$5000,B16,XUAT!$L$1:$L$5000)-SUMIF(XUAT!$N$1:$N$5000,B16,XUAT!$O$1:$O$5000)) -> 0
A17: 15 | H17: =IF(D17="KH",0,E17+SUMIF(NHAP!$L$1:$L$5000,B17,NHAP!$K$1:$K$5000)-SUMIF(NHAP!$L$1:$L$5000,B17,NHAP!$M$1:$M$5000)) -> 0 | I17: =IF(D17="NCC",0,F17+SUMIF(XUAT!$N$1:$N$5000,B17,XUAT!$L$1:$L$5000)-SUMIF(XUAT!$N$1:$N$5000,B17,XUAT!$O$1:$O$5000)) -> 0
A18: 16 | H18: =IF(D18="KH",0,E18+SUMIF(NHAP!$L$1:$L$5000,B18,NHAP!$K$1:$K$5000)-SUMIF(NHAP!$L$1:$L$5000,B18,NHAP!$M$1:$M$5000)) -> 0 | I18: =IF(D18="NCC",0,F18+SUMIF(XUAT!$N$1:$N$5000,B18,XUAT!$L$1:$L$5000)-SUMIF(XUAT!$N$1:$N$5000,B18,XUAT!$O$1:$O$5000)) -> 0
A19: 17 | H19: =IF(D19="KH",0,E19+SUMIF(NHAP!$L$1:$L$5000,B19,NHAP!$K$1:$K$5000)-SUMIF(NHAP!$L$1:$L$5000,B19,NHAP!$M$1:$M$5000)) -> 0 | I19: =IF(D19="NCC",0,F19+SUMIF(XUAT!$N$1:$N$5000,B19,XUAT!$L$1:$L$5000)-SUMIF(XUAT!$N$1:$N$5000,B19,XUAT!$O$1:$O$5000)) -> 0
A20: 18 | H20: =IF(D20="KH",0,E20+SUMIF(NHAP!$L$1:$L$5000,B20,NHAP!$K$1:$K$5000)-SUMIF(NHAP!$L$1:$L$5000,B20,NHAP!$M$1:$M$5000)) -> 0 | I20: =IF(D20="NCC",0,F20+SUMIF(XUAT!$N$1:$N$5000,B20,XUAT!$L$1:$L$5000)-SUMIF(XUAT!$N$1:$N$5000,B20,XUAT!$O$1:$O$5000)) -> 0
A21: 19 | H21: =IF(D21="KH",0,E21+SUMIF(NHAP!$L$1:$L$5000,B21,NHAP!$K$1:$K$5000)-SUMIF(NHAP!$L$1:$L$5000,B21,NHAP!$M$1:$M$5000)) -> 0 | I21: =IF(D21="NCC",0,F21+SUMIF(XUAT!$N$1:$N$5000,B21,XUAT!$L$1:$L$5000)-SUMIF(XUAT!$N$1:$N$5000,B21,XUAT!$O$1:$O$5000)) -> 0
A22: 20 | H22: =IF(D22="KH",0,E22+SUMIF(NHAP!$L$1:$L$5000,B22,NHAP!$K$1:$K$5000)-SUMIF(NHAP!$L$1:$L$5000,B22,NHAP!$M$1:$M$5000)) -> 0 | I22: =IF(D22="NCC",0,F22+SUMIF(XUAT!$N$1:$N$5000,B22,XUAT!$L$1:$L$5000)-SUMIF(XUAT!$N$1:$N$5000,B22,XUAT!$O$1:$O$5000)) -> 0
A23: 21 | H23: =IF(D23="KH",0,E23+SUMIF(NHAP!$L$1:$L$5000,B23,NHAP!$K$1:$K$5000)-SUMIF(NHAP!$L$1:$L$5000,B23,NHAP!$M$1:$M$5000)) -> 0 | I23: =IF(D23="NCC",0,F23+SUMIF(XUAT!$N$1:$N$5000,B23,XUAT!$L$1:$L$5000)-SUMIF(XUAT!$N$1:$N$5000,B23,XUAT!$O$1:$O$5000)) -> 0
A24: 22 | H24: =IF(D24="KH",0,E24+SUMIF(NHAP!$L$1:$L$5000,B24,NHAP!$K$1:$K$5000)-SUMIF(NHAP!$L$1:$L$5000,B24,NHAP!$M$1:$M$5000)) -> 0 | I24: =IF(D24="NCC",0,F24+SUMIF(XUAT!$N$1:$N$5000,B24,XUAT!$L$1:$L$5000)-SUMIF(XUAT!$N$1:$N$5000,B24,XUAT!$O$1:$O$5000)) -> 0
A25: 23 | H25: =IF(D25="KH",0,E25+SUMIF(NHAP!$L$1:$L$5000,B25,NHAP!$K$1:$K$5000)-SUMIF(NHAP!$L$1:$L$5000,B25,NHAP!$M$1:$M$5000)) -> 0 | I25: =IF(D25="NCC",0,F25+SUMIF(XUAT!$N$1:$N$5000,B25,XUAT!$L$1:$L$5000)-SUMIF(XUAT!$N$1:$N$5000,B25,XUAT!$O$1:$O$5000)) -> 0
A26: 24 | H26: =IF(D26="KH",0,E26+SUMIF(NHAP!$L$1:$L$5000,B26,NHAP!$K$1:$K$5000)-SUMIF(NHAP!$L$1:$L$5000,B26,NHAP!$M$1:$M$5000)) -> 0 | I26: =IF(D26="NCC",0,F26+SUMIF(XUAT!$N$1:$N$5000,B26,XUAT!$L$1:$L$5000)-SUMIF(XUAT!$N$1:$N$5000,B26,XUAT!$O$1:$O$5000)) -> 0
A27: 25 | H27: =IF(D27="KH",0,E27+SUMIF(NHAP!$L$1:$L$5000,B27,NHAP!$K$1:$K$5000)-SUMIF(NHAP!$L$1:$L$5000,B27,NHAP!$M$1:$M$5000)) -> 0 | I27: =IF(D27="NCC",0,F27+SUMIF(XUAT!$N$1:$N$5000,B27,XUAT!$L$1:$L$5000)-SUMIF(XUAT!$N$1:$N$5000,B27,XUAT!$O$1:$O$5000)) -> 0
A28: 26 | H28: =IF(D28="KH",0,E28+SUMIF(NHAP!$L$1:$L$5000,B28,NHAP!$K$1:$K$5000)-SUMIF(NHAP!$L$1:$L$5000,B28,NHAP!$M$1:$M$5000)) -> 0 | I28: =IF(D28="NCC",0,F28+SUMIF(XUAT!$N$1:$N$5000,B28,XUAT!$L$1:$L$5000)-SUMIF(XUAT!$N$1:$N$5000,B28,XUAT!$O$1:$O$5000)) -> 0
A29: 27 | H29: =IF(D29="KH",0,E29+SUMIF(NHAP!$L$1:$L$5000,B29,NHAP!$K$1:$K$5000)-SUMIF(NHAP!$L$1:$L$5000,B29,NHAP!$M$1:$M$5000)) -> 0 | I29: =IF(D29="NCC",0,F29+SUMIF(XUAT!$N$1:$N$5000,B29,XUAT!$L$1:$L$5000)-SUMIF(XUAT!$N$1:$N$5000,B29,XUAT!$O$1:$O$5000)) -> 0
A30: 28 | H30: =IF(D30="KH",0,E30+SUMIF(NHAP!$L$1:$L$5000,B30,NHAP!$K$1:$K$5000)-SUMIF(NHAP!$L$1:$L$5000,B30,NHAP!$M$1:$M$5000)) -> 0 | I30: =IF(D30="NCC",0,F30+SUMIF(XUAT!$N$1:$N$5000,B30,XUAT!$L$1:$L$5000)-SUMIF(XUAT!$N$1:$N$5000,B30,XUAT!$O$1:$O$5000)) -> 0
A31: 29 | H31: =IF(D31="KH",0,E31+SUMIF(NHAP!$L$1:$L$5000,B31,NHAP!$K$1:$K$5000)-SUMIF(NHAP!$L$1:$L$5000,B31,NHAP!$M$1:$M$5000)) -> 0 | I31: =IF(D31="NCC",0,F31+SUMIF(XUAT!$N$1:$N$5000,B31,XUAT!$L$1:$L$5000)-SUMIF(XUAT!$N$1:$N$5000,B31,XUAT!$O$1:$O$5000)) -> 0
A32: 30 | H32: =IF(D32="KH",0,E32+SUMIF(NHAP!$L$1:$L$5000,B32,NHAP!$K$1:$K$5000)-SUMIF(NHAP!$L$1:$L$5000,B32,NHAP!$M$1:$M$5000)) -> 0 | I32: =IF(D32="NCC",0,F32+SUMIF(XUAT!$N$1:$N$5000,B32,XUAT!$L$1:$L$5000)-SUMIF(XUAT!$N$1:$N$5000,B32,XUAT!$O$1:$O$5000)) -> 0
A33: 31 | H33: =IF(D33="KH",0,E33+SUMIF(NHAP!$L$1:$L$5000,B33,NHAP!$K$1:$K$5000)-SUMIF(NHAP!$L$1:$L$5000,B33,NHAP!$M$1:$M$5000)) -> 0 | I33: =IF(D33="NCC",0,F33+SUMIF(XUAT!$N$1:$N$5000,B33,XUAT!$L$1:$L$5000)-SUMIF(XUAT!$N$1:$N$5000,B33,XUAT!$O$1:$O$5000)) -> 0
A34: 32 | H34: =IF(D34="KH",0,E34+SUMIF(NHAP!$L$1:$L$5000,B34,NHAP!$K$1:$K$5000)-SUMIF(NHAP!$L$1:$L$5000,B34,NHAP!$M$1:$M$5000)) -> 0 | I34: =IF(D34="NCC",0,F34+SUMIF(XUAT!$N$1:$N$5000,B34,XUAT!$L$1:$L$5000)-SUMIF(XUAT!$N$1:$N$5000,B34,XUAT!$O$1:$O$5000)) -> 0
A35: 33 | H35: =IF(D35="KH",0,E35+SUMIF(NHAP!$L$1:$L$5000,B35,NHAP!$K$1:$K$5000)-SUMIF(NHAP!$L$1:$L$5000,B35,NHAP!$M$1:$M$5000)) -> 0 | I35: =IF(D35="NCC",0,F35+SUMIF(XUAT!$N$1:$N$5000,B35,XUAT!$L$1:$L$5000)-SUMIF(XUAT!$N$1:$N$5000,B35,XUAT!$O$1:$O$5000)) -> 0
A36: 34 | H36: =IF(D36="KH",0,E36+SUMIF(NHAP!$L$1:$L$5000,B36,NHAP!$K$1:$K$5000)-SUMIF(NHAP!$L$1:$L$5000,B36,NHAP!$M$1:$M$5000)) -> 0 | I36: =IF(D36="NCC",0,F36+SUMIF(XUAT!$N$1:$N$5000,B36,XUAT!$L$1:$L$5000)-SUMIF(XUAT!$N$1:$N$5000,B36,XUAT!$O$1:$O$5000)) -> 0
A37: 35 | H37: =IF(D37="KH",0,E37+SUMIF(NHAP!$L$1:$L$5000,B37,NHAP!$K$1:$K$5000)-SUMIF(NHAP!$L$1:$L$5000,B37,NHAP!$M$1:$M$5000)) -> 0 | I37: =IF(D37="NCC",0,F37+SUMIF(XUAT!$N$1:$N$5000,B37,XUAT!$L$1:$L$5000)-SUMIF(XUAT!$N$1:$N$5000,B37,XUAT!$O$1:$O$5000)) -> 0
A38: 36 | H38: =IF(D38="KH",0,E38+SUMIF(NHAP!$L$1:$L$5000,B38,NHAP!$K$1:$K$5000)-SUMIF(NHAP!$L$1:$L$5000,B38,NHAP!$M$1:$M$5000)) -> 0 | I38: =IF(D38="NCC",0,F38+SUMIF(XUAT!$N$1:$N$5000,B38,XUAT!$L$1:$L$5000)-SUMIF(XUAT!$N$1:$N$5000,B38,XUAT!$O$1:$O$5000)) -> 0
A39: 37 | H39: =IF(D39="KH",0,E39+SUMIF(NHAP!$L$1:$L$5000,B39,NHAP!$K$1:$K$5000)-SUMIF(NHAP!$L$1:$L$5000,B39,NHAP!$M$1:$M$5000)) -> 0 | I39: =IF(D39="NCC",0,F39+SUMIF(XUAT!$N$1:$N$5000,B39,XUAT!$L$1:$L$5000)-SUMIF(XUAT!$N$1:$N$5000,B39,XUAT!$O$1:$O$5000)) -> 0
A40: 38 | H40: =IF(D40="KH",0,E40+SUMIF(NHAP!$L$1:$L$5000,B40,NHAP!$K$1:$K$5000)-SUMIF(NHAP!$L$1:$L$5000,B40,NHAP!$M$1:$M$5000)) -> 0 | I40: =IF(D40="NCC",0,F40+SUMIF(XUAT!$N$1:$N$5000,B40,XUAT!$L$1:$L$5000)-SUMIF(XUAT!$N$1:$N$5000,B40,XUAT!$O$1:$O$5000)) -> 0
A41: 39 | H41: =IF(D41="KH",0,E41+SUMIF(NHAP!$L$1:$L$5000,B41,NHAP!$K$1:$K$5000)-SUMIF(NHAP!$L$1:$L$5000,B41,NHAP!$M$1:$M$5000)) -> 0 | I41: =IF(D41="NCC",0,F41+SUMIF(XUAT!$N$1:$N$5000,B41,XUAT!$L$1:$L$5000)-SUMIF(XUAT!$N$1:$N$5000,B41,XUAT!$O$1:$O$5000)) -> 0
A42: 40 | H42: =IF(D42="KH",0,E42+SUMIF(NHAP!$L$1:$L$5000,B42,NHAP!$K$1:$K$5000)-SUMIF(NHAP!$L$1:$L$5000,B42,NHAP!$M$1:$M$5000)) -> 0 | I42: =IF(D42="NCC",0,F42+SUMIF(XUAT!$N$1:$N$5000,B42,XUAT!$L$1:$L$5000)-SUMIF(XUAT!$N$1:$N$5000,B42,XUAT!$O$1:$O$5000)) -> 0
A43: 41 | H43: =IF(D43="KH",0,E43+SUMIF(NHAP!$L$1:$L$5000,B43,NHAP!$K$1:$K$5000)-SUMIF(NHAP!$L$1:$L$5000,B43,NHAP!$M$1:$M$5000)) -> 0 | I43: =IF(D43="NCC",0,F43+SUMIF(XUAT!$N$1:$N$5000,B43,XUAT!$L$1:$L$5000)-SUMIF(XUAT!$N$1:$N$5000,B43,XUAT!$O$1:$O$5000)) -> 0
A44: 42 | H44: =IF(D44="KH",0,E44+SUMIF(NHAP!$L$1:$L$5000,B44,NHAP!$K$1:$K$5000)-SUMIF(NHAP!$L$1:$L$5000,B44,NHAP!$M$1:$M$5000)) -> 0 | I44: =IF(D44="NCC",0,F44+SUMIF(XUAT!$N$1:$N$5000,B44,XUAT!$L$1:$L$5000)-SUMIF(XUAT!$N$1:$N$5000,B44,XUAT!$O$1:$O$5000)) -> 0
A45: 43 | H45: =IF(D45="KH",0,E45+SUMIF(NHAP!$L$1:$L$5000,B45,NHAP!$K$1:$K$5000)-SUMIF(NHAP!$L$1:$L$5000,B45,NHAP!$M$1:$M$5000)) -> 0 | I45: =IF(D45="NCC",0,F45+SUMIF(XUAT!$N$1:$N$5000,B45,XUAT!$L$1:$L$5000)-SUMIF(XUAT!$N$1:$N$5000,B45,XUAT!$O$1:$O$5000)) -> 0
A46: 44 | H46: =IF(D46="KH",0,E46+SUMIF(NHAP!$L$1:$L$5000,B46,NHAP!$K$1:$K$5000)-SUMIF(NHAP!$L$1:$L$5000,B46,NHAP!$M$1:$M$5000)) -> 0 | I46: =IF(D46="NCC",0,F46+SUMIF(XUAT!$N$1:$N$5000,B46,XUAT!$L$1:$L$5000)-SUMIF(XUAT!$N$1:$N$5000,B46,XUAT!$O$1:$O$5000)) -> 0
A47: 45 | H47: =IF(D47="KH",0,E47+SUMIF(NHAP!$L$1:$L$5000,B47,NHAP!$K$1:$K$5000)-SUMIF(NHAP!$L$1:$L$5000,B47,NHAP!$M$1:$M$5000)) -> 0 | I47: =IF(D47="NCC",0,F47+SUMIF(XUAT!$N$1:$N$5000,B47,XUAT!$L$1:$L$5000)-SUMIF(XUAT!$N$1:$N$5000,B47,XUAT!$O$1:$O$5000)) -> 0
A48: 46 | H48: =IF(D48="KH",0,E48+SUMIF(NHAP!$L$1:$L$5000,B48,NHAP!$K$1:$K$5000)-SUMIF(NHAP!$L$1:$L$5000,B48,NHAP!$M$1:$M$5000)) -> 0 | I48: =IF(D48="NCC",0,F48+SUMIF(XUAT!$N$1:$N$5000,B48,XUAT!$L$1:$L$5000)-SUMIF(XUAT!$N$1:$N$5000,B48,XUAT!$O$1:$O$5000)) -> 0
A49: 47 | H49: =IF(D49="KH",0,E49+SUMIF(NHAP!$L$1:$L$5000,B49,NHAP!$K$1:$K$5000)-SUMIF(NHAP!$L$1:$L$5000,B49,NHAP!$M$1:$M$5000)) -> 0 | I49: =IF(D49="NCC",0,F49+SUMIF(XUAT!$N$1:$N$5000,B49,XUAT!$L$1:$L$5000)-SUMIF(XUAT!$N$1:$N$5000,B49,XUAT!$O$1:$O$5000)) -> 0
A50: 48 | H50: =IF(D50="KH",0,E50+SUMIF(NHAP!$L$1:$L$5000,B50,NHAP!$K$1:$K$5000)-SUMIF(NHAP!$L$1:$L$5000,B50,NHAP!$M$1:$M$5000)) -> 0 | I50: =IF(D50="NCC",0,F50+SUMIF(XUAT!$N$1:$N$5000,B50,XUAT!$L$1:$L$5000)-SUMIF(XUAT!$N$1:$N$5000,B50,XUAT!$O$1:$O$5000)) -> 0
A51: 49 | H51: =IF(D51="KH",0,E51+SUMIF(NHAP!$L$1:$L$5000,B51,NHAP!$K$1:$K$5000)-SUMIF(NHAP!$L$1:$L$5000,B51,NHAP!$M$1:$M$5000)) -> 0 | I51: =IF(D51="NCC",0,F51+SUMIF(XUAT!$N$1:$N$5000,B51,XUAT!$L$1:$L$5000)-SUMIF(XUAT!$N$1:$N$5000,B51,XUAT!$O$1:$O$5000)) -> 0
A52: 50 | H52: =IF(D52="KH",0,E52+SUMIF(NHAP!$L$1:$L$5000,B52,NHAP!$K$1:$K$5000)-SUMIF(NHAP!$L$1:$L$5000,B52,NHAP!$M$1:$M$5000)) -> 0 | I52: =IF(D52="NCC",0,F52+SUMIF(XUAT!$N$1:$N$5000,B52,XUAT!$L$1:$L$5000)-SUMIF(XUAT!$N$1:$N$5000,B52,XUAT!$O$1:$O$5000)) -> 0
A53: 51 | H53: =IF(D53="KH",0,E53+SUMIF(NHAP!$L$1:$L$5000,B53,NHAP!$K$1:$K$5000)-SUMIF(NHAP!$L$1:$L$5000,B53,NHAP!$M$1:$M$5000)) -> 0 | I53: =IF(D53="NCC",0,F53+SUMIF(XUAT!$N$1:$N$5000,B53,XUAT!$L$1:$L$5000)-SUMIF(XUAT!$N$1:$N$5000,B53,XUAT!$O$1:$O$5000)) -> 0
A54: 52 | H54: =IF(D54="KH",0,E54+SUMIF(NHAP!$L$1:$L$5000,B54,NHAP!$K$1:$K$5000)-SUMIF(NHAP!$L$1:$L$5000,B54,NHAP!$M$1:$M$5000)) -> 0 | I54: =IF(D54="NCC",0,F54+SUMIF(XUAT!$N$1:$N$5000,B54,XUAT!$L$1:$L$5000)-SUMIF(XUAT!$N$1:$N$5000,B54,XUAT!$O$1:$O$5000)) -> 0
A55: 53 | H55: =IF(D55="KH",0,E55+SUMIF(NHAP!$L$1:$L$5000,B55,NHAP!$K$1:$K$5000)-SUMIF(NHAP!$L$1:$L$5000,B55,NHAP!$M$1:$M$5000)) -> 0 | I55: =IF(D55="NCC",0,F55+SUMIF(XUAT!$N$1:$N$5000,B55,XUAT!$L$1:$L$5000)-SUMIF(XUAT!$N$1:$N$5000,B55,XUAT!$O$1:$O$5000)) -> 0
A56: 54 | H56: =IF(D56="KH",0,E56+SUMIF(NHAP!$L$1:$L$5000,B56,NHAP!$K$1:$K$5000)-SUMIF(NHAP!$L$1:$L$5000,B56,NHAP!$M$1:$M$5000)) -> 0 | I56: =IF(D56="NCC",0,F56+SUMIF(XUAT!$N$1:$N$5000,B56,XUAT!$L$1:$L$5000)-SUMIF(XUAT!$N$1:$N$5000,B56,XUAT!$O$1:$O$5000)) -> 0
A57: 55 | H57: =IF(D57="KH",0,E57+SUMIF(NHAP!$L$1:$L$5000,B57,NHAP!$K$1:$K$5000)-SUMIF(NHAP!$L$1:$L$5000,B57,NHAP!$M$1:$M$5000)) -> 0 | I57: =IF(D57="NCC",0,F57+SUMIF(XUAT!$N$1:$N$5000,B57,XUAT!$L$1:$L$5000)-SUMIF(XUAT!$N$1:$N$5000,B57,XUAT!$O$1:$O$5000)) -> 0
A58: 56 | H58: =IF(D58="KH",0,E58+SUMIF(NHAP!$L$1:$L$5000,B58,NHAP!$K$1:$K$5000)-SUMIF(NHAP!$L$1:$L$5000,B58,NHAP!$M$1:$M$5000)) -> 0 | I58: =IF(D58="NCC",0,F58+SUMIF(XUAT!$N$1:$N$5000,B58,XUAT!$L$1:$L$5000)-SUMIF(XUAT!$N$1:$N$5000,B58,XUAT!$O$1:$O$5000)) -> 0
A59: 57 | H59: =IF(D59="KH",0,E59+SUMIF(NHAP!$L$1:$L$5000,B59,NHAP!$K$1:$K$5000)-SUMIF(NHAP!$L$1:$L$5000,B59,NHAP!$M$1:$M$5000)) -> 0 | I59: =IF(D59="NCC",0,F59+SUMIF(XUAT!$N$1:$N$5000,B59,XUAT!$L$1:$L$5000)-SUMIF(XUAT!$N$1:$N$5000,B59,XUAT!$O$1:$O$5000)) -> 0
A60: 58 | H60: =IF(D60="KH",0,E60+SUMIF(NHAP!$L$1:$L$5000,B60,NHAP!$K$1:$K$5000)-SUMIF(NHAP!$L$1:$L$5000,B60,NHAP!$M$1:$M$5000)) -> 0 | I60: =IF(D60="NCC",0,F60+SUMIF(XUAT!$N$1:$N$5000,B60,XUAT!$L$1:$L$5000)-SUMIF(XUAT!$N$1:$N$5000,B60,XUAT!$O$1:$O$5000)) -> 0
A61: 59 | H61: =IF(D61="KH",0,E61+SUMIF(NHAP!$L$1:$L$5000,B61,NHAP!$K$1:$K$5000)-SUMIF(NHAP!$L$1:$L$5000,B61,NHAP!$M$1:$M$5000)) -> 0 | I61: =IF(D61="NCC",0,F61+SUMIF(XUAT!$N$1:$N$5000,B61,XUAT!$L$1:$L$5000)-SUMIF(XUAT!$N$1:$N$5000,B61,XUAT!$O$1:$O$5000)) -> 0
A62: 60 | H62: =IF(D62="KH",0,E62+SUMIF(NHAP!$L$1:$L$5000,B62,NHAP!$K$1:$K$5000)-SUMIF(NHAP!$L$1:$L$5000,B62,NHAP!$M$1:$M$5000)) -> 0 | I62: =IF(D62="NCC",0,F62+SUMIF(XUAT!$N$1:$N$5000,B62,XUAT!$L$1:$L$5000)-SUMIF(XUAT!$N$1:$N$5000,B62,XUAT!$O$1:$O$5000)) -> 0
A63: 61 | H63: =IF(D63="KH",0,E63+SUMIF(NHAP!$L$1:$L$5000,B63,NHAP!$K$1:$K$5000)-SUMIF(NHAP!$L$1:$L$5000,B63,NHAP!$M$1:$M$5000)) -> 0 | I63: =IF(D63="NCC",0,F63+SUMIF(XUAT!$N$1:$N$5000,B63,XUAT!$L$1:$L$5000)-SUMIF(XUAT!$N$1:$N$5000,B63,XUAT!$O$1:$O$5000)) -> 0
A64: 62 | H64: =IF(D64="KH",0,E64+SUMIF(NHAP!$L$1:$L$5000,B64,NHAP!$K$1:$K$5000)-SUMIF(NHAP!$L$1:$L$5000,B64,NHAP!$M$1:$M$5000)) -> 0 | I64: =IF(D64="NCC",0,F64+SUMIF(XUAT!$N$1:$N$5000,B64,XUAT!$L$1:$L$5000)-SUMIF(XUAT!$N$1:$N$5000,B64,XUAT!$O$1:$O$5000)) -> 0
A65: 63 | H65: =IF(D65="KH",0,E65+SUMIF(NHAP!$L$1:$L$5000,B65,NHAP!$K$1:$K$5000)-SUMIF(NHAP!$L$1:$L$5000,B65,NHAP!$M$1:$M$5000)) -> 0 | I65: =IF(D65="NCC",0,F65+SUMIF(XUAT!$N$1:$N$5000,B65,XUAT!$L$1:$L$5000)-SUMIF(XUAT!$N$1:$N$5000,B65,XUAT!$O$1:$O$5000)) -> 0
A66: 64 | H66: =IF(D66="KH",0,E66+SUMIF(NHAP!$L$1:$L$5000,B66,NHAP!$K$1:$K$5000)-SUMIF(NHAP!$L$1:$L$5000,B66,NHAP!$M$1:$M$5000)) -> 0 | I66: =IF(D66="NCC",0,F66+SUMIF(XUAT!$N$1:$N$5000,B66,XUAT!$L$1:$L$5000)-SUMIF(XUAT!$N$1:$N$5000,B66,XUAT!$O$1:$O$5000)) -> 0
A67: 65 | H67: =IF(D67="KH",0,E67+SUMIF(NHAP!$L$1:$L$5000,B67,NHAP!$K$1:$K$5000)-SUMIF(NHAP!$L$1:$L$5000,B67,NHAP!$M$1:$M$5000)) -> 0 | I67: =IF(D67="NCC",0,F67+SUMIF(XUAT!$N$1:$N$5000,B67,XUAT!$L$1:$L$5000)-SUMIF(XUAT!$N$1:$N$5000,B67,XUAT!$O$1:$O$5000)) -> 0
A68: 66 | H68: =IF(D68="KH",0,E68+SUMIF(NHAP!$L$1:$L$5000,B68,NHAP!$K$1:$K$5000)-SUMIF(NHAP!$L$1:$L$5000,B68,NHAP!$M$1:$M$5000)) -> 0 | I68: =IF(D68="NCC",0,F68+SUMIF(XUAT!$N$1:$N$5000,B68,XUAT!$L$1:$L$5000)-SUMIF(XUAT!$N$1:$N$5000,B68,XUAT!$O$1:$O$5000)) -> 0
A69: 67 | H69: =IF(D69="KH",0,E69+SUMIF(NHAP!$L$1:$L$5000,B69,NHAP!$K$1:$K$5000)-SUMIF(NHAP!$L$1:$L$5000,B69,NHAP!$M$1:$M$5000)) -> 0 | I69: =IF(D69="NCC",0,F69+SUMIF(XUAT!$N$1:$N$5000,B69,XUAT!$L$1:$L$5000)-SUMIF(XUAT!$N$1:$N$5000,B69,XUAT!$O$1:$O$5000)) -> 0
A70: 68 | H70: =IF(D70="KH",0,E70+SUMIF(NHAP!$L$1:$L$5000,B70,NHAP!$K$1:$K$5000)-SUMIF(NHAP!$L$1:$L$5000,B70,NHAP!$M$1:$M$5000)) -> 0 | I70: =IF(D70="NCC",0,F70+SUMIF(XUAT!$N$1:$N$5000,B70,XUAT!$L$1:$L$5000)-SUMIF(XUAT!$N$1:$N$5000,B70,XUAT!$O$1:$O$5000)) -> 0
A71: 69 | H71: =IF(D71="KH",0,E71+SUMIF(NHAP!$L$1:$L$5000,B71,NHAP!$K$1:$K$5000)-SUMIF(NHAP!$L$1:$L$5000,B71,NHAP!$M$1:$M$5000)) -> 0 | I71: =IF(D71="NCC",0,F71+SUMIF(XUAT!$N$1:$N$5000,B71,XUAT!$L$1:$L$5000)-SUMIF(XUAT!$N$1:$N$5000,B71,XUAT!$O$1:$O$5000)) -> 0
A72: 70 | H72: =IF(D72="KH",0,E72+SUMIF(NHAP!$L$1:$L$5000,B72,NHAP!$K$1:$K$5000)-SUMIF(NHAP!$L$1:$L$5000,B72,NHAP!$M$1:$M$5000)) -> 0 | I72: =IF(D72="NCC",0,F72+SUMIF(XUAT!$N$1:$N$5000,B72,XUAT!$L$1:$L$5000)-SUMIF(XUAT!$N$1:$N$5000,B72,XUAT!$O$1:$O$5000)) -> 0
A73: 71 | H73: =IF(D73="KH",0,E73+SUMIF(NHAP!$L$1:$L$5000,B73,NHAP!$K$1:$K$5000)-SUMIF(NHAP!$L$1:$L$5000,B73,NHAP!$M$1:$M$5000)) -> 0 | I73: =IF(D73="NCC",0,F73+SUMIF(XUAT!$N$1:$N$5000,B73,XUAT!$L$1:$L$5000)-SUMIF(XUAT!$N$1:$N$5000,B73,XUAT!$O$1:$O$5000)) -> 0
A74: 72 | H74: =IF(D74="KH",0,E74+SUMIF(NHAP!$L$1:$L$5000,B74,NHAP!$K$1:$K$5000)-SUMIF(NHAP!$L$1:$L$5000,B74,NHAP!$M$1:$M$5000)) -> 0 | I74: =IF(D74="NCC",0,F74+SUMIF(XUAT!$N$1:$N$5000,B74,XUAT!$L$1:$L$5000)-SUMIF(XUAT!$N$1:$N$5000,B74,XUAT!$O$1:$O$5000)) -> 0
A75: 73 | H75: =IF(D75="KH",0,E75+SUMIF(NHAP!$L$1:$L$5000,B75,NHAP!$K$1:$K$5000)-SUMIF(NHAP!$L$1:$L$5000,B75,NHAP!$M$1:$M$5000)) -> 0 | I75: =IF(D75="NCC",0,F75+SUMIF(XUAT!$N$1:$N$5000,B75,XUAT!$L$1:$L$5000)-SUMIF(XUAT!$N$1:$N$5000,B75,XUAT!$O$1:$O$5000)) -> 0
A76: 74 | H76: =IF(D76="KH",0,E76+SUMIF(NHAP!$L$1:$L$5000,B76,NHAP!$K$1:$K$5000)-SUMIF(NHAP!$L$1:$L$5000,B76,NHAP!$M$1:$M$5000)) -> 0 | I76: =IF(D76="NCC",0,F76+SUMIF(XUAT!$N$1:$N$5000,B76,XUAT!$L$1:$L$5000)-SUMIF(XUAT!$N$1:$N$5000,B76,XUAT!$O$1:$O$5000)) -> 0
A77: 75 | H77: =IF(D77="KH",0,E77+SUMIF(NHAP!$L$1:$L$5000,B77,NHAP!$K$1:$K$5000)-SUMIF(NHAP!$L$1:$L$5000,B77,NHAP!$M$1:$M$5000)) -> 0 | I77: =IF(D77="NCC",0,F77+SUMIF(XUAT!$N$1:$N$5000,B77,XUAT!$L$1:$L$5000)-SUMIF(XUAT!$N$1:$N$5000,B77,XUAT!$O$1:$O$5000)) -> 0
A78: 76 | H78: =IF(D78="KH",0,E78+SUMIF(NHAP!$L$1:$L$5000,B78,NHAP!$K$1:$K$5000)-SUMIF(NHAP!$L$1:$L$5000,B78,NHAP!$M$1:$M$5000)) -> 0 | I78: =IF(D78="NCC",0,F78+SUMIF(XUAT!$N$1:$N$5000,B78,XUAT!$L$1:$L$5000)-SUMIF(XUAT!$N$1:$N$5000,B78,XUAT!$O$1:$O$5000)) -> 0
A79: 77 | H79: =IF(D79="KH",0,E79+SUMIF(NHAP!$L$1:$L$5000,B79,NHAP!$K$1:$K$5000)-SUMIF(NHAP!$L$1:$L$5000,B79,NHAP!$M$1:$M$5000)) -> 0 | I79: =IF(D79="NCC",0,F79+SUMIF(XUAT!$N$1:$N$5000,B79,XUAT!$L$1:$L$5000)-SUMIF(XUAT!$N$1:$N$5000,B79,XUAT!$O$1:$O$5000)) -> 0
A80: 78 | H80: =IF(D80="KH",0,E80+SUMIF(NHAP!$L$1:$L$5000,B80,NHAP!$K$1:$K$5000)-SUMIF(NHAP!$L$1:$L$5000,B80,NHAP!$M$1:$M$5000)) -> 0 | I80: =IF(D80="NCC",0,F80+SUMIF(XUAT!$N$1:$N$5000,B80,XUAT!$L$1:$L$5000)-SUMIF(XUAT!$N$1:$N$5000,B80,XUAT!$O$1:$O$5000)) -> 0
A81: 79 | H81: =IF(D81="KH",0,E81+SUMIF(NHAP!$L$1:$L$5000,B81,NHAP!$K$1:$K$5000)-SUMIF(NHAP!$L$1:$L$5000,B81,NHAP!$M$1:$M$5000)) -> 0 | I81: =IF(D81="NCC",0,F81+SUMIF(XUAT!$N$1:$N$5000,B81,XUAT!$L$1:$L$5000)-SUMIF(XUAT!$N$1:$N$5000,B81,XUAT!$O$1:$O$5000)) -> 0
A82: 80 | H82: =IF(D82="KH",0,E82+SUMIF(NHAP!$L$1:$L$5000,B82,NHAP!$K$1:$K$5000)-SUMIF(NHAP!$L$1:$L$5000,B82,NHAP!$M$1:$M$5000)) -> 0 | I82: =IF(D82="NCC",0,F82+SUMIF(XUAT!$N$1:$N$5000,B82,XUAT!$L$1:$L$5000)-SUMIF(XUAT!$N$1:$N$5000,B82,XUAT!$O$1:$O$5000)) -> 0
A83: 81 | H83: =IF(D83="KH",0,E83+SUMIF(NHAP!$L$1:$L$5000,B83,NHAP!$K$1:$K$5000)-SUMIF(NHAP!$L$1:$L$5000,B83,NHAP!$M$1:$M$5000)) -> 0 | I83: =IF(D83="NCC",0,F83+SUMIF(XUAT!$N$1:$N$5000,B83,XUAT!$L$1:$L$5000)-SUMIF(XUAT!$N$1:$N$5000,B83,XUAT!$O$1:$O$5000)) -> 0
A84: 82 | H84: =IF(D84="KH",0,E84+SUMIF(NHAP!$L$1:$L$5000,B84,NHAP!$K$1:$K$5000)-SUMIF(NHAP!$L$1:$L$5000,B84,NHAP!$M$1:$M$5000)) -> 0 | I84: =IF(D84="NCC",0,F84+SUMIF(XUAT!$N$1:$N$5000,B84,XUAT!$L$1:$L$5000)-SUMIF(XUAT!$N$1:$N$5000,B84,XUAT!$O$1:$O$5000)) -> 0
A85: 83 | H85: =IF(D85="KH",0,E85+SUMIF(NHAP!$L$1:$L$5000,B85,NHAP!$K$1:$K$5000)-SUMIF(NHAP!$L$1:$L$5000,B85,NHAP!$M$1:$M$5000)) -> 0 | I85: =IF(D85="NCC",0,F85+SUMIF(XUAT!$N$1:$N$5000,B85,XUAT!$L$1:$L$5000)-SUMIF(XUAT!$N$1:$N$5000,B85,XUAT!$O$1:$O$5000)) -> 0
A86: 84 | H86: =IF(D86="KH",0,E86+SUMIF(NHAP!$L$1:$L$5000,B86,NHAP!$K$1:$K$5000)-SUMIF(NHAP!$L$1:$L$5000,B86,NHAP!$M$1:$M$5000)) -> 0 | I86: =IF(D86="NCC",0,F86+SUMIF(XUAT!$N$1:$N$5000,B86,XUAT!$L$1:$L$5000)-SUMIF(XUAT!$N$1:$N$5000,B86,XUAT!$O$1:$O$5000)) -> 0
A87: 85 | H87: =IF(D87="KH",0,E87+SUMIF(NHAP!$L$1:$L$5000,B87,NHAP!$K$1:$K$5000)-SUMIF(NHAP!$L$1:$L$5000,B87,NHAP!$M$1:$M$5000)) -> 0 | I87: =IF(D87="NCC",0,F87+SUMIF(XUAT!$N$1:$N$5000,B87,XUAT!$L$1:$L$5000)-SUMIF(XUAT!$N$1:$N$5000,B87,XUAT!$O$1:$O$5000)) -> 0
A88: 86 | H88: =IF(D88="KH",0,E88+SUMIF(NHAP!$L$1:$L$5000,B88,NHAP!$K$1:$K$5000)-SUMIF(NHAP!$L$1:$L$5000,B88,NHAP!$M$1:$M$5000)) -> 0 | I88: =IF(D88="NCC",0,F88+SUMIF(XUAT!$N$1:$N$5000,B88,XUAT!$L$1:$L$5000)-SUMIF(XUAT!$N$1:$N$5000,B88,XUAT!$O$1:$O$5000)) -> 0
A89: 87 | H89: =IF(D89="KH",0,E89+SUMIF(NHAP!$L$1:$L$5000,B89,NHAP!$K$1:$K$5000)-SUMIF(NHAP!$L$1:$L$5000,B89,NHAP!$M$1:$M$5000)) -> 0 | I89: =IF(D89="NCC",0,F89+SUMIF(XUAT!$N$1:$N$5000,B89,XUAT!$L$1:$L$5000)-SUMIF(XUAT!$N$1:$N$5000,B89,XUAT!$O$1:$O$5000)) -> 0
A90: 88 | H90: =IF(D90="KH",0,E90+SUMIF(NHAP!$L$1:$L$5000,B90,NHAP!$K$1:$K$5000)-SUMIF(NHAP!$L$1:$L$5000,B90,NHAP!$M$1:$M$5000)) -> 0 | I90: =IF(D90="NCC",0,F90+SUMIF(XUAT!$N$1:$N$5000,B90,XUAT!$L$1:$L$5000)-SUMIF(XUAT!$N$1:$N$5000,B90,XUAT!$O$1:$O$5000)) -> 0
A91: 89 | H91: =IF(D91="KH",0,E91+SUMIF(NHAP!$L$1:$L$5000,B91,NHAP!$K$1:$K$5000)-SUMIF(NHAP!$L$1:$L$5000,B91,NHAP!$M$1:$M$5000)) -> 0 | I91: =IF(D91="NCC",0,F91+SUMIF(XUAT!$N$1:$N$5000,B91,XUAT!$L$1:$L$5000)-SUMIF(XUAT!$N$1:$N$5000,B91,XUAT!$O$1:$O$5000)) -> 0
A92: 90 | H92: =IF(D92="KH",0,E92+SUMIF(NHAP!$L$1:$L$5000,B92,NHAP!$K$1:$K$5000)-SUMIF(NHAP!$L$1:$L$5000,B92,NHAP!$M$1:$M$5000)) -> 0 | I92: =IF(D92="NCC",0,F92+SUMIF(XUAT!$N$1:$N$5000,B92,XUAT!$L$1:$L$5000)-SUMIF(XUAT!$N$1:$N$5000,B92,XUAT!$O$1:$O$5000)) -> 0
A93: 91 | H93: =IF(D93="KH",0,E93+SUMIF(NHAP!$L$1:$L$5000,B93,NHAP!$K$1:$K$5000)-SUMIF(NHAP!$L$1:$L$5000,B93,NHAP!$M$1:$M$5000)) -> 0 | I93: =IF(D93="NCC",0,F93+SUMIF(XUAT!$N$1:$N$5000,B93,XUAT!$L$1:$L$5000)-SUMIF(XUAT!$N$1:$N$5000,B93,XUAT!$O$1:$O$5000)) -> 0
A94: 92 | H94: =IF(D94="KH",0,E94+SUMIF(NHAP!$L$1:$L$5000,B94,NHAP!$K$1:$K$5000)-SUMIF(NHAP!$L$1:$L$5000,B94,NHAP!$M$1:$M$5000)) -> 0 | I94: =IF(D94="NCC",0,F94+SUMIF(XUAT!$N$1:$N$5000,B94,XUAT!$L$1:$L$5000)-SUMIF(XUAT!$N$1:$N$5000,B94,XUAT!$O$1:$O$5000)) -> 0
A95: 93 | H95: =IF(D95="KH",0,E95+SUMIF(NHAP!$L$1:$L$5000,B95,NHAP!$K$1:$K$5000)-SUMIF(NHAP!$L$1:$L$5000,B95,NHAP!$M$1:$M$5000)) -> 0 | I95: =IF(D95="NCC",0,F95+SUMIF(XUAT!$N$1:$N$5000,B95,XUAT!$L$1:$L$5000)-SUMIF(XUAT!$N$1:$N$5000,B95,XUAT!$O$1:$O$5000)) -> 0
A96: 94 | H96: =IF(D96="KH",0,E96+SUMIF(NHAP!$L$1:$L$5000,B96,NHAP!$K$1:$K$5000)-SUMIF(NHAP!$L$1:$L$5000,B96,NHAP!$M$1:$M$5000)) -> 0 | I96: =IF(D96="NCC",0,F96+SUMIF(XUAT!$N$1:$N$5000,B96,XUAT!$L$1:$L$5000)-SUMIF(XUAT!$N$1:$N$5000,B96,XUAT!$O$1:$O$5000)) -> 0
A97: 95 | H97: =IF(D97="KH",0,E97+SUMIF(NHAP!$L$1:$L$5000,B97,NHAP!$K$1:$K$5000)-SUMIF(NHAP!$L$1:$L$5000,B97,NHAP!$M$1:$M$5000)) -> 0 | I97: =IF(D97="NCC",0,F97+SUMIF(XUAT!$N$1:$N$5000,B97,XUAT!$L$1:$L$5000)-SUMIF(XUAT!$N$1:$N$5000,B97,XUAT!$O$1:$O$5000)) -> 0
A98: 96 | H98: =IF(D98="KH",0,E98+SUMIF(NHAP!$L$1:$L$5000,B98,NHAP!$K$1:$K$5000)-SUMIF(NHAP!$L$1:$L$5000,B98,NHAP!$M$1:$M$5000)) -> 0 | I98: =IF(D98="NCC",0,F98+SUMIF(XUAT!$N$1:$N$5000,B98,XUAT!$L$1:$L$5000)-SUMIF(XUAT!$N$1:$N$5000,B98,XUAT!$O$1:$O$5000)) -> 0
A99: 97 | H99: =IF(D99="KH",0,E99+SUMIF(NHAP!$L$1:$L$5000,B99,NHAP!$K$1:$K$5000)-SUMIF(NHAP!$L$1:$L$5000,B99,NHAP!$M$1:$M$5000)) -> 0 | I99: =IF(D99="NCC",0,F99+SUMIF(XUAT!$N$1:$N$5000,B99,XUAT!$L$1:$L$5000)-SUMIF(XUAT!$N$1:$N$5000,B99,XUAT!$O$1:$O$5000)) -> 0
A100: 98 | H100: =IF(D100="KH",0,E100+SUMIF(NHAP!$L$1:$L$5000,B100,NHAP!$K$1:$K$5000)-SUMIF(NHAP!$L$1:$L$5000,B100,NHAP!$M$1:$M$5000)) -> 0 | I100: =IF(D100="NCC",0,F100+SUMIF(XUAT!$N$1:$N$5000,B100,XUAT!$L$1:$L$5000)-SUMIF(XUAT!$N$1:$N$5000,B100,XUAT!$O$1:$O$5000)) -> 0
A101: 99 | H101: =IF(D101="KH",0,E101+SUMIF(NHAP!$L$1:$L$5000,B101,NHAP!$K$1:$K$5000)-SUMIF(NHAP!$L$1:$L$5000,B101,NHAP!$M$1:$M$5000)) -> 0 | I101: =IF(D101="NCC",0,F101+SUMIF(XUAT!$N$1:$N$5000,B101,XUAT!$L$1:$L$5000)-SUMIF(XUAT!$N$1:$N$5000,B101,XUAT!$O$1:$O$5000)) -> 0
A102: 100 | H102: =IF(D102="KH",0,E102+SUMIF(NHAP!$L$1:$L$5000,B102,NHAP!$K$1:$K$5000)-SUMIF(NHAP!$L$1:$L$5000,B102,NHAP!$M$1:$M$5000)) -> 0 | I102: =IF(D102="NCC",0,F102+SUMIF(XUAT!$N$1:$N$5000,B102,XUAT!$L$1:$L$5000)-SUMIF(XUAT!$N$1:$N$5000,B102,XUAT!$O$1:$O$5000)) -> 0
A103: 101 | H103: =IF(D103="KH",0,E103+SUMIF(NHAP!$L$1:$L$5000,B103,NHAP!$K$1:$K$5000)-SUMIF(NHAP!$L$1:$L$5000,B103,NHAP!$M$1:$M$5000)) -> 0 | I103: =IF(D103="NCC",0,F103+SUMIF(XUAT!$N$1:$N$5000,B103,XUAT!$L$1:$L$5000)-SUMIF(XUAT!$N$1:$N$5000,B103,XUAT!$O$1:$O$5000)) -> 0
A104: 102 | H104: =IF(D104="KH",0,E104+SUMIF(NHAP!$L$1:$L$5000,B104,NHAP!$K$1:$K$5000)-SUMIF(NHAP!$L$1:$L$5000,B104,NHAP!$M$1:$M$5000)) -> 0 | I104: =IF(D104="NCC",0,F104+SUMIF(XUAT!$N$1:$N$5000,B104,XUAT!$L$1:$L$5000)-SUMIF(XUAT!$N$1:$N$5000,B104,XUAT!$O$1:$O$5000)) -> 0
A105: 103 | H105: =IF(D105="KH",0,E105+SUMIF(NHAP!$L$1:$L$5000,B105,NHAP!$K$1:$K$5000)-SUMIF(NHAP!$L$1:$L$5000,B105,NHAP!$M$1:$M$5000)) -> 0 | I105: =IF(D105="NCC",0,F105+SUMIF(XUAT!$N$1:$N$5000,B105,XUAT!$L$1:$L$5000)-SUMIF(XUAT!$N$1:$N$5000,B105,XUAT!$O$1:$O$5000)) -> 0
A106: 104 | H106: =IF(D106="KH",0,E106+SUMIF(NHAP!$L$1:$L$5000,B106,NHAP!$K$1:$K$5000)-SUMIF(NHAP!$L$1:$L$5000,B106,NHAP!$M$1:$M$5000)) -> 0 | I106: =IF(D106="NCC",0,F106+SUMIF(XUAT!$N$1:$N$5000,B106,XUAT!$L$1:$L$5000)-SUMIF(XUAT!$N$1:$N$5000,B106,XUAT!$O$1:$O$5000)) -> 0
A107: 105 | H107: =IF(D107="KH",0,E107+SUMIF(NHAP!$L$1:$L$5000,B107,NHAP!$K$1:$K$5000)-SUMIF(NHAP!$L$1:$L$5000,B107,NHAP!$M$1:$M$5000)) -> 0 | I107: =IF(D107="NCC",0,F107+SUMIF(XUAT!$N$1:$N$5000,B107,XUAT!$L$1:$L$5000)-SUMIF(XUAT!$N$1:$N$5000,B107,XUAT!$O$1:$O$5000)) -> 0
A108: 106 | H108: =IF(D108="KH",0,E108+SUMIF(NHAP!$L$1:$L$5000,B108,NHAP!$K$1:$K$5000)-SUMIF(NHAP!$L$1:$L$5000,B108,NHAP!$M$1:$M$5000)) -> 0 | I108: =IF(D108="NCC",0,F108+SUMIF(XUAT!$N$1:$N$5000,B108,XUAT!$L$1:$L$5000)-SUMIF(XUAT!$N$1:$N$5000,B108,XUAT!$O$1:$O$5000)) -> 0
A109: 107 | H109: =IF(D109="KH",0,E109+SUMIF(NHAP!$L$1:$L$5000,B109,NHAP!$K$1:$K$5000)-SUMIF(NHAP!$L$1:$L$5000,B109,NHAP!$M$1:$M$5000)) -> 0 | I109: =IF(D109="NCC",0,F109+SUMIF(XUAT!$N$1:$N$5000,B109,XUAT!$L$1:$L$5000)-SUMIF(XUAT!$N$1:$N$5000,B109,XUAT!$O$1:$O$5000)) -> 0
A110: 108 | H110: =IF(D110="KH",0,E110+SUMIF(NHAP!$L$1:$L$5000,B110,NHAP!$K$1:$K$5000)-SUMIF(NHAP!$L$1:$L$5000,B110,NHAP!$M$1:$M$5000)) -> 0 | I110: =IF(D110="NCC",0,F110+SUMIF(XUAT!$N$1:$N$5000,B110,XUAT!$L$1:$L$5000)-SUMIF(XUAT!$N$1:$N$5000,B110,XUAT!$O$1:$O$5000)) -> 0
A111: 109 | H111: =IF(D111="KH",0,E111+SUMIF(NHAP!$L$1:$L$5000,B111,NHAP!$K$1:$K$5000)-SUMIF(NHAP!$L$1:$L$5000,B111,NHAP!$M$1:$M$5000)) -> 0 | I111: =IF(D111="NCC",0,F111+SUMIF(XUAT!$N$1:$N$5000,B111,XUAT!$L$1:$L$5000)-SUMIF(XUAT!$N$1:$N$5000,B111,XUAT!$O$1:$O$5000)) -> 0
A112: 110 | H112: =IF(D112="KH",0,E112+SUMIF(NHAP!$L$1:$L$5000,B112,NHAP!$K$1:$K$5000)-SUMIF(NHAP!$L$1:$L$5000,B112,NHAP!$M$1:$M$5000)) -> 0 | I112: =IF(D112="NCC",0,F112+SUMIF(XUAT!$N$1:$N$5000,B112,XUAT!$L$1:$L$5000)-SUMIF(XUAT!$N$1:$N$5000,B112,XUAT!$O$1:$O$5000)) -> 0
A113: 111 | H113: =IF(D113="KH",0,E113+SUMIF(NHAP!$L$1:$L$5000,B113,NHAP!$K$1:$K$5000)-SUMIF(NHAP!$L$1:$L$5000,B113,NHAP!$M$1:$M$5000)) -> 0 | I113: =IF(D113="NCC",0,F113+SUMIF(XUAT!$N$1:$N$5000,B113,XUAT!$L$1:$L$5000)-SUMIF(XUAT!$N$1:$N$5000,B113,XUAT!$O$1:$O$5000)) -> 0
A114: 112 | H114: =IF(D114="KH",0,E114+SUMIF(NHAP!$L$1:$L$5000,B114,NHAP!$K$1:$K$5000)-SUMIF(NHAP!$L$1:$L$5000,B114,NHAP!$M$1:$M$5000)) -> 0 | I114: =IF(D114="NCC",0,F114+SUMIF(XUAT!$N$1:$N$5000,B114,XUAT!$L$1:$L$5000)-SUMIF(XUAT!$N$1:$N$5000,B114,XUAT!$O$1:$O$5000)) -> 0
A115: 113 | H115: =IF(D115="KH",0,E115+SUMIF(NHAP!$L$1:$L$5000,B115,NHAP!$K$1:$K$5000)-SUMIF(NHAP!$L$1:$L$5000,B115,NHAP!$M$1:$M$5000)) -> 0 | I115: =IF(D115="NCC",0,F115+SUMIF(XUAT!$N$1:$N$5000,B115,XUAT!$L$1:$L$5000)-SUMIF(XUAT!$N$1:$N$5000,B115,XUAT!$O$1:$O$5000)) -> 0
A116: 114 | H116: =IF(D116="KH",0,E116+SUMIF(NHAP!$L$1:$L$5000,B116,NHAP!$K$1:$K$5000)-SUMIF(NHAP!$L$1:$L$5000,B116,NHAP!$M$1:$M$5000)) -> 0 | I116: =IF(D116="NCC",0,F116+SUMIF(XUAT!$N$1:$N$5000,B116,XUAT!$L$1:$L$5000)-SUMIF(XUAT!$N$1:$N$5000,B116,XUAT!$O$1:$O$5000)) -> 0
A117: 115 | H117: =IF(D117="KH",0,E117+SUMIF(NHAP!$L$1:$L$5000,B117,NHAP!$K$1:$K$5000)-SUMIF(NHAP!$L$1:$L$5000,B117,NHAP!$M$1:$M$5000)) -> 0 | I117: =IF(D117="NCC",0,F117+SUMIF(XUAT!$N$1:$N$5000,B117,XUAT!$L$1:$L$5000)-SUMIF(XUAT!$N$1:$N$5000,B117,XUAT!$O$1:$O$5000)) -> 0
A118: 116 | H118: =IF(D118="KH",0,E118+SUMIF(NHAP!$L$1:$L$5000,B118,NHAP!$K$1:$K$5000)-SUMIF(NHAP!$L$1:$L$5000,B118,NHAP!$M$1:$M$5000)) -> 0 | I118: =IF(D118="NCC",0,F118+SUMIF(XUAT!$N$1:$N$5000,B118,XUAT!$L$1:$L$5000)-SUMIF(XUAT!$N$1:$N$5000,B118,XUAT!$O$1:$O$5000)) -> 0
A119: 117 | H119: =IF(D119="KH",0,E119+SUMIF(NHAP!$L$1:$L$5000,B119,NHAP!$K$1:$K$5000)-SUMIF(NHAP!$L$1:$L$5000,B119,NHAP!$M$1:$M$5000)) -> 0 | I119: =IF(D119="NCC",0,F119+SUMIF(XUAT!$N$1:$N$5000,B119,XUAT!$L$1:$L$5000)-SUMIF(XUAT!$N$1:$N$5000,B119,XUAT!$O$1:$O$5000)) -> 0
A120: 118 | H120: =IF(D120="KH",0,E120+SUMIF(NHAP!$L$1:$L$5000,B120,NHAP!$K$1:$K$5000)-SUMIF(NHAP!$L$1:$L$5000,B120,NHAP!$M$1:$M$5000)) -> 0 | I120: =IF(D120="NCC",0,F120+SUMIF(XUAT!$N$1:$N$5000,B120,XUAT!$L$1:$L$5000)-SUMIF(XUAT!$N$1:$N$5000,B120,XUAT!$O$1:$O$5000)) -> 0
A121: 119 | H121: =IF(D121="KH",0,E121+SUMIF(NHAP!$L$1:$L$5000,B121,NHAP!$K$1:$K$5000)-SUMIF(NHAP!$L$1:$L$5000,B121,NHAP!$M$1:$M$5000)) -> 0 | I121: =IF(D121="NCC",0,F121+SUMIF(XUAT!$N$1:$N$5000,B121,XUAT!$L$1:$L$5000)-SUMIF(XUAT!$N$1:$N$5000,B121,XUAT!$O$1:$O$5000)) -> 0
A122: 120 | H122: =IF(D122="KH",0,E122+SUMIF(NHAP!$L$1:$L$5000,B122,NHAP!$K$1:$K$5000)-SUMIF(NHAP!$L$1:$L$5000,B122,NHAP!$M$1:$M$5000)) -> 0 | I122: =IF(D122="NCC",0,F122+SUMIF(XUAT!$N$1:$N$5000,B122,XUAT!$L$1:$L$5000)-SUMIF(XUAT!$N$1:$N$5000,B122,XUAT!$O$1:$O$5000)) -> 0
A123: 121 | H123: =IF(D123="KH",0,E123+SUMIF(NHAP!$L$1:$L$5000,B123,NHAP!$K$1:$K$5000)-SUMIF(NHAP!$L$1:$L$5000,B123,NHAP!$M$1:$M$5000)) -> 0 | I123: =IF(D123="NCC",0,F123+SUMIF(XUAT!$N$1:$N$5000,B123,XUAT!$L$1:$L$5000)-SUMIF(XUAT!$N$1:$N$5000,B123,XUAT!$O$1:$O$5000)) -> 0
A124: 122 | H124: =IF(D124="KH",0,E124+SUMIF(NHAP!$L$1:$L$5000,B124,NHAP!$K$1:$K$5000)-SUMIF(NHAP!$L$1:$L$5000,B124,NHAP!$M$1:$M$5000)) -> 0 | I124: =IF(D124="NCC",0,F124+SUMIF(XUAT!$N$1:$N$5000,B124,XUAT!$L$1:$L$5000)-SUMIF(XUAT!$N$1:$N$5000,B124,XUAT!$O$1:$O$5000)) -> 0
A125: 123 | H125: =IF(D125="KH",0,E125+SUMIF(NHAP!$L$1:$L$5000,B125,NHAP!$K$1:$K$5000)-SUMIF(NHAP!$L$1:$L$5000,B125,NHAP!$M$1:$M$5000)) -> 0 | I125: =IF(D125="NCC",0,F125+SUMIF(XUAT!$N$1:$N$5000,B125,XUAT!$L$1:$L$5000)-SUMIF(XUAT!$N$1:$N$5000,B125,XUAT!$O$1:$O$5000)) -> 0
A126: 124 | H126: =IF(D126="KH",0,E126+SUMIF(NHAP!$L$1:$L$5000,B126,NHAP!$K$1:$K$5000)-SUMIF(NHAP!$L$1:$L$5000,B126,NHAP!$M$1:$M$5000)) -> 0 | I126: =IF(D126="NCC",0,F126+SUMIF(XUAT!$N$1:$N$5000,B126,XUAT!$L$1:$L$5000)-SUMIF(XUAT!$N$1:$N$5000,B126,XUAT!$O$1:$O$5000)) -> 0
A127: 125 | H127: =IF(D127="KH",0,E127+SUMIF(NHAP!$L$1:$L$5000,B127,NHAP!$K$1:$K$5000)-SUMIF(NHAP!$L$1:$L$5000,B127,NHAP!$M$1:$M$5000)) -> 0 | I127: =IF(D127="NCC",0,F127+SUMIF(XUAT!$N$1:$N$5000,B127,XUAT!$L$1:$L$5000)-SUMIF(XUAT!$N$1:$N$5000,B127,XUAT!$O$1:$O$5000)) -> 0
A128: 126 | H128: =IF(D128="KH",0,E128+SUMIF(NHAP!$L$1:$L$5000,B128,NHAP!$K$1:$K$5000)-SUMIF(NHAP!$L$1:$L$5000,B128,NHAP!$M$1:$M$5000)) -> 0 | I128: =IF(D128="NCC",0,F128+SUMIF(XUAT!$N$1:$N$5000,B128,XUAT!$L$1:$L$5000)-SUMIF(XUAT!$N$1:$N$5000,B128,XUAT!$O$1:$O$5000)) -> 0
A129: 127 | H129: =IF(D129="KH",0,E129+SUMIF(NHAP!$L$1:$L$5000,B129,NHAP!$K$1:$K$5000)-SUMIF(NHAP!$L$1:$L$5000,B129,NHAP!$M$1:$M$5000)) -> 0 | I129: =IF(D129="NCC",0,F129+SUMIF(XUAT!$N$1:$N$5000,B129,XUAT!$L$1:$L$5000)-SUMIF(XUAT!$N$1:$N$5000,B129,XUAT!$O$1:$O$5000)) -> 0
A130: 128 | H130: =IF(D130="KH",0,E130+SUMIF(NHAP!$L$1:$L$5000,B130,NHAP!$K$1:$K$5000)-SUMIF(NHAP!$L$1:$L$5000,B130,NHAP!$M$1:$M$5000)) -> 0 | I130: =IF(D130="NCC",0,F130+SUMIF(XUAT!$N$1:$N$5000,B130,XUAT!$L$1:$L$5000)-SUMIF(XUAT!$N$1:$N$5000,B130,XUAT!$O$1:$O$5000)) -> 0
A131: 129 | H131: =IF(D131="KH",0,E131+SUMIF(NHAP!$L$1:$L$5000,B131,NHAP!$K$1:$K$5000)-SUMIF(NHAP!$L$1:$L$5000,B131,NHAP!$M$1:$M$5000)) -> 0 | I131: =IF(D131="NCC",0,F131+SUMIF(XUAT!$N$1:$N$5000,B131,XUAT!$L$1:$L$5000)-SUMIF(XUAT!$N$1:$N$5000,B131,XUAT!$O$1:$O$5000)) -> 0
A132: 130 | H132: =IF(D132="KH",0,E132+SUMIF(NHAP!$L$1:$L$5000,B132,NHAP!$K$1:$K$5000)-SUMIF(NHAP!$L$1:$L$5000,B132,NHAP!$M$1:$M$5000)) -> 0 | I132: =IF(D132="NCC",0,F132+SUMIF(XUAT!$N$1:$N$5000,B132,XUAT!$L$1:$L$5000)-SUMIF(XUAT!$N$1:$N$5000,B132,XUAT!$O$1:$O$5000)) -> 0
A133: 131 | H133: =IF(D133="KH",0,E133+SUMIF(NHAP!$L$1:$L$5000,B133,NHAP!$K$1:$K$5000)-SUMIF(NHAP!$L$1:$L$5000,B133,NHAP!$M$1:$M$5000)) -> 0 | I133: =IF(D133="NCC",0,F133+SUMIF(XUAT!$N$1:$N$5000,B133,XUAT!$L$1:$L$5000)-SUMIF(XUAT!$N$1:$N$5000,B133,XUAT!$O$1:$O$5000)) -> 0
A134: 132 | H134: =IF(D134="KH",0,E134+SUMIF(NHAP!$L$1:$L$5000,B134,NHAP!$K$1:$K$5000)-SUMIF(NHAP!$L$1:$L$5000,B134,NHAP!$M$1:$M$5000)) -> 0 | I134: =IF(D134="NCC",0,F134+SUMIF(XUAT!$N$1:$N$5000,B134,XUAT!$L$1:$L$5000)-SUMIF(XUAT!$N$1:$N$5000,B134,XUAT!$O$1:$O$5000)) -> 0
A135: 133 | H135: =IF(D135="KH",0,E135+SUMIF(NHAP!$L$1:$L$5000,B135,NHAP!$K$1:$K$5000)-SUMIF(NHAP!$L$1:$L$5000,B135,NHAP!$M$1:$M$5000)) -> 0 | I135: =IF(D135="NCC",0,F135+SUMIF(XUAT!$N$1:$N$5000,B135,XUAT!$L$1:$L$5000)-SUMIF(XUAT!$N$1:$N$5000,B135,XUAT!$O$1:$O$5000)) -> 0
A136: 134 | H136: =IF(D136="KH",0,E136+SUMIF(NHAP!$L$1:$L$5000,B136,NHAP!$K$1:$K$5000)-SUMIF(NHAP!$L$1:$L$5000,B136,NHAP!$M$1:$M$5000)) -> 0 | I136: =IF(D136="NCC",0,F136+SUMIF(XUAT!$N$1:$N$5000,B136,XUAT!$L$1:$L$5000)-SUMIF(XUAT!$N$1:$N$5000,B136,XUAT!$O$1:$O$5000)) -> 0
A137: 135 | H137: =IF(D137="KH",0,E137+SUMIF(NHAP!$L$1:$L$5000,B137,NHAP!$K$1:$K$5000)-SUMIF(NHAP!$L$1:$L$5000,B137,NHAP!$M$1:$M$5000)) -> 0 | I137: =IF(D137="NCC",0,F137+SUMIF(XUAT!$N$1:$N$5000,B137,XUAT!$L$1:$L$5000)-SUMIF(XUAT!$N$1:$N$5000,B137,XUAT!$O$1:$O$5000)) -> 0
A138: 136 | H138: =IF(D138="KH",0,E138+SUMIF(NHAP!$L$1:$L$5000,B138,NHAP!$K$1:$K$5000)-SUMIF(NHAP!$L$1:$L$5000,B138,NHAP!$M$1:$M$5000)) -> 0 | I138: =IF(D138="NCC",0,F138+SUMIF(XUAT!$N$1:$N$5000,B138,XUAT!$L$1:$L$5000)-SUMIF(XUAT!$N$1:$N$5000,B138,XUAT!$O$1:$O$5000)) -> 0
A139: 137 | H139: =IF(D139="KH",0,E139+SUMIF(NHAP!$L$1:$L$5000,B139,NHAP!$K$1:$K$5000)-SUMIF(NHAP!$L$1:$L$5000,B139,NHAP!$M$1:$M$5000)) -> 0 | I139: =IF(D139="NCC",0,F139+SUMIF(XUAT!$N$1:$N$5000,B139,XUAT!$L$1:$L$5000)-SUMIF(XUAT!$N$1:$N$5000,B139,XUAT!$O$1:$O$5000)) -> 0
A140: 138 | H140: =IF(D140="KH",0,E140+SUMIF(NHAP!$L$1:$L$5000,B140,NHAP!$K$1:$K$5000)-SUMIF(NHAP!$L$1:$L$5000,B140,NHAP!$M$1:$M$5000)) -> 0 | I140: =IF(D140="NCC",0,F140+SUMIF(XUAT!$N$1:$N$5000,B140,XUAT!$L$1:$L$5000)-SUMIF(XUAT!$N$1:$N$5000,B140,XUAT!$O$1:$O$5000)) -> 0
A141: 139 | H141: =IF(D141="KH",0,E141+SUMIF(NHAP!$L$1:$L$5000,B141,NHAP!$K$1:$K$5000)-SUMIF(NHAP!$L$1:$L$5000,B141,NHAP!$M$1:$M$5000)) -> 0 | I141: =IF(D141="NCC",0,F141+SUMIF(XUAT!$N$1:$N$5000,B141,XUAT!$L$1:$L$5000)-SUMIF(XUAT!$N$1:$N$5000,B141,XUAT!$O$1:$O$5000)) -> 0
A142: 140 | H142: =IF(D142="KH",0,E142+SUMIF(NHAP!$L$1:$L$5000,B142,NHAP!$K$1:$K$5000)-SUMIF(NHAP!$L$1:$L$5000,B142,NHAP!$M$1:$M$5000)) -> 0 | I142: =IF(D142="NCC",0,F142+SUMIF(XUAT!$N$1:$N$5000,B142,XUAT!$L$1:$L$5000)-SUMIF(XUAT!$N$1:$N$5000,B142,XUAT!$O$1:$O$5000)) -> 0
A143: 141 | H143: =IF(D143="KH",0,E143+SUMIF(NHAP!$L$1:$L$5000,B143,NHAP!$K$1:$K$5000)-SUMIF(NHAP!$L$1:$L$5000,B143,NHAP!$M$1:$M$5000)) -> 0 | I143: =IF(D143="NCC",0,F143+SUMIF(XUAT!$N$1:$N$5000,B143,XUAT!$L$1:$L$5000)-SUMIF(XUAT!$N$1:$N$5000,B143,XUAT!$O$1:$O$5000)) -> 0
A144: 142 | H144: =IF(D144="KH",0,E144+SUMIF(NHAP!$L$1:$L$5000,B144,NHAP!$K$1:$K$5000)-SUMIF(NHAP!$L$1:$L$5000,B144,NHAP!$M$1:$M$5000)) -> 0 | I144: =IF(D144="NCC",0,F144+SUMIF(XUAT!$N$1:$N$5000,B144,XUAT!$L$1:$L$5000)-SUMIF(XUAT!$N$1:$N$5000,B144,XUAT!$O$1:$O$5000)) -> 0
A145: 143 | H145: =IF(D145="KH",0,E145+SUMIF(NHAP!$L$1:$L$5000,B145,NHAP!$K$1:$K$5000)-SUMIF(NHAP!$L$1:$L$5000,B145,NHAP!$M$1:$M$5000)) -> 0 | I145: =IF(D145="NCC",0,F145+SUMIF(XUAT!$N$1:$N$5000,B145,XUAT!$L$1:$L$5000)-SUMIF(XUAT!$N$1:$N$5000,B145,XUAT!$O$1:$O$5000)) -> 0
A146: 144 | H146: =IF(D146="KH",0,E146+SUMIF(NHAP!$L$1:$L$5000,B146,NHAP!$K$1:$K$5000)-SUMIF(NHAP!$L$1:$L$5000,B146,NHAP!$M$1:$M$5000)) -> 0 | I146: =IF(D146="NCC",0,F146+SUMIF(XUAT!$N$1:$N$5000,B146,XUAT!$L$1:$L$5000)-SUMIF(XUAT!$N$1:$N$5000,B146,XUAT!$O$1:$O$5000)) -> 0
A147: 145 | H147: =IF(D147="KH",0,E147+SUMIF(NHAP!$L$1:$L$5000,B147,NHAP!$K$1:$K$5000)-SUMIF(NHAP!$L$1:$L$5000,B147,NHAP!$M$1:$M$5000)) -> 0 | I147: =IF(D147="NCC",0,F147+SUMIF(XUAT!$N$1:$N$5000,B147,XUAT!$L$1:$L$5000)-SUMIF(XUAT!$N$1:$N$5000,B147,XUAT!$O$1:$O$5000)) -> 0
A148: 146 | H148: =IF(D148="KH",0,E148+SUMIF(NHAP!$L$1:$L$5000,B148,NHAP!$K$1:$K$5000)-SUMIF(NHAP!$L$1:$L$5000,B148,NHAP!$M$1:$M$5000)) -> 0 | I148: =IF(D148="NCC",0,F148+SUMIF(XUAT!$N$1:$N$5000,B148,XUAT!$L$1:$L$5000)-SUMIF(XUAT!$N$1:$N$5000,B148,XUAT!$O$1:$O$5000)) -> 0
A149: 147 | H149: =IF(D149="KH",0,E149+SUMIF(NHAP!$L$1:$L$5000,B149,NHAP!$K$1:$K$5000)-SUMIF(NHAP!$L$1:$L$5000,B149,NHAP!$M$1:$M$5000)) -> 0 | I149: =IF(D149="NCC",0,F149+SUMIF(XUAT!$N$1:$N$5000,B149,XUAT!$L$1:$L$5000)-SUMIF(XUAT!$N$1:$N$5000,B149,XUAT!$O$1:$O$5000)) -> 0
A150: 148 | H150: =IF(D150="KH",0,E150+SUMIF(NHAP!$L$1:$L$5000,B150,NHAP!$K$1:$K$5000)-SUMIF(NHAP!$L$1:$L$5000,B150,NHAP!$M$1:$M$5000)) -> 0 | I150: =IF(D150="NCC",0,F150+SUMIF(XUAT!$N$1:$N$5000,B150,XUAT!$L$1:$L$5000)-SUMIF(XUAT!$N$1:$N$5000,B150,XUAT!$O$1:$O$5000)) -> 0
A151: 149 | H151: =IF(D151="KH",0,E151+SUMIF(NHAP!$L$1:$L$5000,B151,NHAP!$K$1:$K$5000)-SUMIF(NHAP!$L$1:$L$5000,B151,NHAP!$M$1:$M$5000)) -> 0 | I151: =IF(D151="NCC",0,F151+SUMIF(XUAT!$N$1:$N$5000,B151,XUAT!$L$1:$L$5000)-SUMIF(XUAT!$N$1:$N$5000,B151,XUAT!$O$1:$O$5000)) -> 0
A152: 150 | H152: =IF(D152="KH",0,E152+SUMIF(NHAP!$L$1:$L$5000,B152,NHAP!$K$1:$K$5000)-SUMIF(NHAP!$L$1:$L$5000,B152,NHAP!$M$1:$M$5000)) -> 0 | I152: =IF(D152="NCC",0,F152+SUMIF(XUAT!$N$1:$N$5000,B152,XUAT!$L$1:$L$5000)-SUMIF(XUAT!$N$1:$N$5000,B152,XUAT!$O$1:$O$5000)) -> 0
A153: 151 | H153: =IF(D153="KH",0,E153+SUMIF(NHAP!$L$1:$L$5000,B153,NHAP!$K$1:$K$5000)-SUMIF(NHAP!$L$1:$L$5000,B153,NHAP!$M$1:$M$5000)) -> 0 | I153: =IF(D153="NCC",0,F153+SUMIF(XUAT!$N$1:$N$5000,B153,XUAT!$L$1:$L$5000)-SUMIF(XUAT!$N$1:$N$5000,B153,XUAT!$O$1:$O$5000)) -> 0
A154: 152 | H154: =IF(D154="KH",0,E154+SUMIF(NHAP!$L$1:$L$5000,B154,NHAP!$K$1:$K$5000)-SUMIF(NHAP!$L$1:$L$5000,B154,NHAP!$M$1:$M$5000)) -> 0 | I154: =IF(D154="NCC",0,F154+SUMIF(XUAT!$N$1:$N$5000,B154,XUAT!$L$1:$L$5000)-SUMIF(XUAT!$N$1:$N$5000,B154,XUAT!$O$1:$O$5000)) -> 0
A155: 153 | H155: =IF(D155="KH",0,E155+SUMIF(NHAP!$L$1:$L$5000,B155,NHAP!$K$1:$K$5000)-SUMIF(NHAP!$L$1:$L$5000,B155,NHAP!$M$1:$M$5000)) -> 0 | I155: =IF(D155="NCC",0,F155+SUMIF(XUAT!$N$1:$N$5000,B155,XUAT!$L$1:$L$5000)-SUMIF(XUAT!$N$1:$N$5000,B155,XUAT!$O$1:$O$5000)) -> 0
A156: 154 | H156: =IF(D156="KH",0,E156+SUMIF(NHAP!$L$1:$L$5000,B156,NHAP!$K$1:$K$5000)-SUMIF(NHAP!$L$1:$L$5000,B156,NHAP!$M$1:$M$5000)) -> 0 | I156: =IF(D156="NCC",0,F156+SUMIF(XUAT!$N$1:$N$5000,B156,XUAT!$L$1:$L$5000)-SUMIF(XUAT!$N$1:$N$5000,B156,XUAT!$O$1:$O$5000)) -> 0
A157: 155 | H157: =IF(D157="KH",0,E157+SUMIF(NHAP!$L$1:$L$5000,B157,NHAP!$K$1:$K$5000)-SUMIF(NHAP!$L$1:$L$5000,B157,NHAP!$M$1:$M$5000)) -> 0 | I157: =IF(D157="NCC",0,F157+SUMIF(XUAT!$N$1:$N$5000,B157,XUAT!$L$1:$L$5000)-SUMIF(XUAT!$N$1:$N$5000,B157,XUAT!$O$1:$O$5000)) -> 0
A158: 156 | H158: =IF(D158="KH",0,E158+SUMIF(NHAP!$L$1:$L$5000,B158,NHAP!$K$1:$K$5000)-SUMIF(NHAP!$L$1:$L$5000,B158,NHAP!$M$1:$M$5000)) -> 0 | I158: =IF(D158="NCC",0,F158+SUMIF(XUAT!$N$1:$N$5000,B158,XUAT!$L$1:$L$5000)-SUMIF(XUAT!$N$1:$N$5000,B158,XUAT!$O$1:$O$5000)) -> 0
A159: 157 | H159: =IF(D159="KH",0,E159+SUMIF(NHAP!$L$1:$L$5000,B159,NHAP!$K$1:$K$5000)-SUMIF(NHAP!$L$1:$L$5000,B159,NHAP!$M$1:$M$5000)) -> 0 | I159: =IF(D159="NCC",0,F159+SUMIF(XUAT!$N$1:$N$5000,B159,XUAT!$L$1:$L$5000)-SUMIF(XUAT!$N$1:$N$5000,B159,XUAT!$O$1:$O$5000)) -> 0
A160: 158 | H160: =IF(D160="KH",0,E160+SUMIF(NHAP!$L$1:$L$5000,B160,NHAP!$K$1:$K$5000)-SUMIF(NHAP!$L$1:$L$5000,B160,NHAP!$M$1:$M$5000)) -> 0 | I160: =IF(D160="NCC",0,F160+SUMIF(XUAT!$N$1:$N$5000,B160,XUAT!$L$1:$L$5000)-SUMIF(XUAT!$N$1:$N$5000,B160,XUAT!$O$1:$O$5000)) -> 0
A161: 159 | H161: =IF(D161="KH",0,E161+SUMIF(NHAP!$L$1:$L$5000,B161,NHAP!$K$1:$K$5000)-SUMIF(NHAP!$L$1:$L$5000,B161,NHAP!$M$1:$M$5000)) -> 0 | I161: =IF(D161="NCC",0,F161+SUMIF(XUAT!$N$1:$N$5000,B161,XUAT!$L$1:$L$5000)-SUMIF(XUAT!$N$1:$N$5000,B161,XUAT!$O$1:$O$5000)) -> 0
A162: 160 | H162: =IF(D162="KH",0,E162+SUMIF(NHAP!$L$1:$L$5000,B162,NHAP!$K$1:$K$5000)-SUMIF(NHAP!$L$1:$L$5000,B162,NHAP!$M$1:$M$5000)) -> 0 | I162: =IF(D162="NCC",0,F162+SUMIF(XUAT!$N$1:$N$5000,B162,XUAT!$L$1:$L$5000)-SUMIF(XUAT!$N$1:$N$5000,B162,XUAT!$O$1:$O$5000)) -> 0
A163: 161 | H163: =IF(D163="KH",0,E163+SUMIF(NHAP!$L$1:$L$5000,B163,NHAP!$K$1:$K$5000)-SUMIF(NHAP!$L$1:$L$5000,B163,NHAP!$M$1:$M$5000)) -> 0 | I163: =IF(D163="NCC",0,F163+SUMIF(XUAT!$N$1:$N$5000,B163,XUAT!$L$1:$L$5000)-SUMIF(XUAT!$N$1:$N$5000,B163,XUAT!$O$1:$O$5000)) -> 0
A164: 162 | H164: =IF(D164="KH",0,E164+SUMIF(NHAP!$L$1:$L$5000,B164,NHAP!$K$1:$K$5000)-SUMIF(NHAP!$L$1:$L$5000,B164,NHAP!$M$1:$M$5000)) -> 0 | I164: =IF(D164="NCC",0,F164+SUMIF(XUAT!$N$1:$N$5000,B164,XUAT!$L$1:$L$5000)-SUMIF(XUAT!$N$1:$N$5000,B164,XUAT!$O$1:$O$5000)) -> 0
A165: 163 | H165: =IF(D165="KH",0,E165+SUMIF(NHAP!$L$1:$L$5000,B165,NHAP!$K$1:$K$5000)-SUMIF(NHAP!$L$1:$L$5000,B165,NHAP!$M$1:$M$5000)) -> 0 | I165: =IF(D165="NCC",0,F165+SUMIF(XUAT!$N$1:$N$5000,B165,XUAT!$L$1:$L$5000)-SUMIF(XUAT!$N$1:$N$5000,B165,XUAT!$O$1:$O$5000)) -> 0
A166: 164 | H166: =IF(D166="KH",0,E166+SUMIF(NHAP!$L$1:$L$5000,B166,NHAP!$K$1:$K$5000)-SUMIF(NHAP!$L$1:$L$5000,B166,NHAP!$M$1:$M$5000)) -> 0 | I166: =IF(D166="NCC",0,F166+SUMIF(XUAT!$N$1:$N$5000,B166,XUAT!$L$1:$L$5000)-SUMIF(XUAT!$N$1:$N$5000,B166,XUAT!$O$1:$O$5000)) -> 0
A167: 165 | H167: =IF(D167="KH",0,E167+SUMIF(NHAP!$L$1:$L$5000,B167,NHAP!$K$1:$K$5000)-SUMIF(NHAP!$L$1:$L$5000,B167,NHAP!$M$1:$M$5000)) -> 0 | I167: =IF(D167="NCC",0,F167+SUMIF(XUAT!$N$1:$N$5000,B167,XUAT!$L$1:$L$5000)-SUMIF(XUAT!$N$1:$N$5000,B167,XUAT!$O$1:$O$5000)) -> 0
A168: 166 | H168: =IF(D168="KH",0,E168+SUMIF(NHAP!$L$1:$L$5000,B168,NHAP!$K$1:$K$5000)-SUMIF(NHAP!$L$1:$L$5000,B168,NHAP!$M$1:$M$5000)) -> 0 | I168: =IF(D168="NCC",0,F168+SUMIF(XUAT!$N$1:$N$5000,B168,XUAT!$L$1:$L$5000)-SUMIF(XUAT!$N$1:$N$5000,B168,XUAT!$O$1:$O$5000)) -> 0
A169: 167 | H169: =IF(D169="KH",0,E169+SUMIF(NHAP!$L$1:$L$5000,B169,NHAP!$K$1:$K$5000)-SUMIF(NHAP!$L$1:$L$5000,B169,NHAP!$M$1:$M$5000)) -> 0 | I169: =IF(D169="NCC",0,F169+SUMIF(XUAT!$N$1:$N$5000,B169,XUAT!$L$1:$L$5000)-SUMIF(XUAT!$N$1:$N$5000,B169,XUAT!$O$1:$O$5000)) -> 0
A170: 168 | H170: =IF(D170="KH",0,E170+SUMIF(NHAP!$L$1:$L$5000,B170,NHAP!$K$1:$K$5000)-SUMIF(NHAP!$L$1:$L$5000,B170,NHAP!$M$1:$M$5000)) -> 0 | I170: =IF(D170="NCC",0,F170+SUMIF(XUAT!$N$1:$N$5000,B170,XUAT!$L$1:$L$5000)-SUMIF(XUAT!$N$1:$N$5000,B170,XUAT!$O$1:$O$5000)) -> 0
A171: 169 | H171: =IF(D171="KH",0,E171+SUMIF(NHAP!$L$1:$L$5000,B171,NHAP!$K$1:$K$5000)-SUMIF(NHAP!$L$1:$L$5000,B171,NHAP!$M$1:$M$5000)) -> 0 | I171: =IF(D171="NCC",0,F171+SUMIF(XUAT!$N$1:$N$5000,B171,XUAT!$L$1:$L$5000)-SUMIF(XUAT!$N$1:$N$5000,B171,XUAT!$O$1:$O$5000)) -> 0
A172: 170 | H172: =IF(D172="KH",0,E172+SUMIF(NHAP!$L$1:$L$5000,B172,NHAP!$K$1:$K$5000)-SUMIF(NHAP!$L$1:$L$5000,B172,NHAP!$M$1:$M$5000)) -> 0 | I172: =IF(D172="NCC",0,F172+SUMIF(XUAT!$N$1:$N$5000,B172,XUAT!$L$1:$L$5000)-SUMIF(XUAT!$N$1:$N$5000,B172,XUAT!$O$1:$O$5000)) -> 0
A173: 171 | H173: =IF(D173="KH",0,E173+SUMIF(NHAP!$L$1:$L$5000,B173,NHAP!$K$1:$K$5000)-SUMIF(NHAP!$L$1:$L$5000,B173,NHAP!$M$1:$M$5000)) -> 0 | I173: =IF(D173="NCC",0,F173+SUMIF(XUAT!$N$1:$N$5000,B173,XUAT!$L$1:$L$5000)-SUMIF(XUAT!$N$1:$N$5000,B173,XUAT!$O$1:$O$5000)) -> 0
A174: 172 | H174: =IF(D174="KH",0,E174+SUMIF(NHAP!$L$1:$L$5000,B174,NHAP!$K$1:$K$5000)-SUMIF(NHAP!$L$1:$L$5000,B174,NHAP!$M$1:$M$5000)) -> 0 | I174: =IF(D174="NCC",0,F174+SUMIF(XUAT!$N$1:$N$5000,B174,XUAT!$L$1:$L$5000)-SUMIF(XUAT!$N$1:$N$5000,B174,XUAT!$O$1:$O$5000)) -> 0
A175: 173 | H175: =IF(D175="KH",0,E175+SUMIF(NHAP!$L$1:$L$5000,B175,NHAP!$K$1:$K$5000)-SUMIF(NHAP!$L$1:$L$5000,B175,NHAP!$M$1:$M$5000)) -> 0 | I175: =IF(D175="NCC",0,F175+SUMIF(XUAT!$N$1:$N$5000,B175,XUAT!$L$1:$L$5000)-SUMIF(XUAT!$N$1:$N$5000,B175,XUAT!$O$1:$O$5000)) -> 0
A176: 174 | H176: =IF(D176="KH",0,E176+SUMIF(NHAP!$L$1:$L$5000,B176,NHAP!$K$1:$K$5000)-SUMIF(NHAP!$L$1:$L$5000,B176,NHAP!$M$1:$M$5000)) -> 0 | I176: =IF(D176="NCC",0,F176+SUMIF(XUAT!$N$1:$N$5000,B176,XUAT!$L$1:$L$5000)-SUMIF(XUAT!$N$1:$N$5000,B176,XUAT!$O$1:$O$5000)) -> 0
A177: 175 | H177: =IF(D177="KH",0,E177+SUMIF(NHAP!$L$1:$L$5000,B177,NHAP!$K$1:$K$5000)-SUMIF(NHAP!$L$1:$L$5000,B177,NHAP!$M$1:$M$5000)) -> 0 | I177: =IF(D177="NCC",0,F177+SUMIF(XUAT!$N$1:$N$5000,B177,XUAT!$L$1:$L$5000)-SUMIF(XUAT!$N$1:$N$5000,B177,XUAT!$O$1:$O$5000)) -> 0
A178: 176 | H178: =IF(D178="KH",0,E178+SUMIF(NHAP!$L$1:$L$5000,B178,NHAP!$K$1:$K$5000)-SUMIF(NHAP!$L$1:$L$5000,B178,NHAP!$M$1:$M$5000)) -> 0 | I178: =IF(D178="NCC",0,F178+SUMIF(XUAT!$N$1:$N$5000,B178,XUAT!$L$1:$L$5000)-SUMIF(XUAT!$N$1:$N$5000,B178,XUAT!$O$1:$O$5000)) -> 0
A179: 177 | H179: =IF(D179="KH",0,E179+SUMIF(NHAP!$L$1:$L$5000,B179,NHAP!$K$1:$K$5000)-SUMIF(NHAP!$L$1:$L$5000,B179,NHAP!$M$1:$M$5000)) -> 0 | I179: =IF(D179="NCC",0,F179+SUMIF(XUAT!$N$1:$N$5000,B179,XUAT!$L$1:$L$5000)-SUMIF(XUAT!$N$1:$N$5000,B179,XUAT!$O$1:$O$5000)) -> 0
A180: 178 | H180: =IF(D180="KH",0,E180+SUMIF(NHAP!$L$1:$L$5000,B180,NHAP!$K$1:$K$5000)-SUMIF(NHAP!$L$1:$L$5000,B180,NHAP!$M$1:$M$5000)) -> 0 | I180: =IF(D180="NCC",0,F180+SUMIF(XUAT!$N$1:$N$5000,B180,XUAT!$L$1:$L$5000)-SUMIF(XUAT!$N$1:$N$5000,B180,XUAT!$O$1:$O$5000)) -> 0
A181: 179 | H181: =IF(D181="KH",0,E181+SUMIF(NHAP!$L$1:$L$5000,B181,NHAP!$K$1:$K$5000)-SUMIF(NHAP!$L$1:$L$5000,B181,NHAP!$M$1:$M$5000)) -> 0 | I181: =IF(D181="NCC",0,F181+SUMIF(XUAT!$N$1:$N$5000,B181,XUAT!$L$1:$L$5000)-SUMIF(XUAT!$N$1:$N$5000,B181,XUAT!$O$1:$O$5000)) -> 0
A182: 180 | H182: =IF(D182="KH",0,E182+SUMIF(NHAP!$L$1:$L$5000,B182,NHAP!$K$1:$K$5000)-SUMIF(NHAP!$L$1:$L$5000,B182,NHAP!$M$1:$M$5000)) -> 0 | I182: =IF(D182="NCC",0,F182+SUMIF(XUAT!$N$1:$N$5000,B182,XUAT!$L$1:$L$5000)-SUMIF(XUAT!$N$1:$N$5000,B182,XUAT!$O$1:$O$5000)) -> 0
A183: 181 | H183: =IF(D183="KH",0,E183+SUMIF(NHAP!$L$1:$L$5000,B183,NHAP!$K$1:$K$5000)-SUMIF(NHAP!$L$1:$L$5000,B183,NHAP!$M$1:$M$5000)) -> 0 | I183: =IF(D183="NCC",0,F183+SUMIF(XUAT!$N$1:$N$5000,B183,XUAT!$L$1:$L$5000)-SUMIF(XUAT!$N$1:$N$5000,B183,XUAT!$O$1:$O$5000)) -> 0
A184: 182 | H184: =IF(D184="KH",0,E184+SUMIF(NHAP!$L$1:$L$5000,B184,NHAP!$K$1:$K$5000)-SUMIF(NHAP!$L$1:$L$5000,B184,NHAP!$M$1:$M$5000)) -> 0 | I184: =IF(D184="NCC",0,F184+SUMIF(XUAT!$N$1:$N$5000,B184,XUAT!$L$1:$L$5000)-SUMIF(XUAT!$N$1:$N$5000,B184,XUAT!$O$1:$O$5000)) -> 0
A185: 183 | H185: =IF(D185="KH",0,E185+SUMIF(NHAP!$L$1:$L$5000,B185,NHAP!$K$1:$K$5000)-SUMIF(NHAP!$L$1:$L$5000,B185,NHAP!$M$1:$M$5000)) -> 0 | I185: =IF(D185="NCC",0,F185+SUMIF(XUAT!$N$1:$N$5000,B185,XUAT!$L$1:$L$5000)-SUMIF(XUAT!$N$1:$N$5000,B185,XUAT!$O$1:$O$5000)) -> 0
A186: 184 | H186: =IF(D186="KH",0,E186+SUMIF(NHAP!$L$1:$L$5000,B186,NHAP!$K$1:$K$5000)-SUMIF(NHAP!$L$1:$L$5000,B186,NHAP!$M$1:$M$5000)) -> 0 | I186: =IF(D186="NCC",0,F186+SUMIF(XUAT!$N$1:$N$5000,B186,XUAT!$L$1:$L$5000)-SUMIF(XUAT!$N$1:$N$5000,B186,XUAT!$O$1:$O$5000)) -> 0
A187: 185 | H187: =IF(D187="KH",0,E187+SUMIF(NHAP!$L$1:$L$5000,B187,NHAP!$K$1:$K$5000)-SUMIF(NHAP!$L$1:$L$5000,B187,NHAP!$M$1:$M$5000)) -> 0 | I187: =IF(D187="NCC",0,F187+SUMIF(XUAT!$N$1:$N$5000,B187,XUAT!$L$1:$L$5000)-SUMIF(XUAT!$N$1:$N$5000,B187,XUAT!$O$1:$O$5000)) -> 0
A188: 186 | H188: =IF(D188="KH",0,E188+SUMIF(NHAP!$L$1:$L$5000,B188,NHAP!$K$1:$K$5000)-SUMIF(NHAP!$L$1:$L$5000,B188,NHAP!$M$1:$M$5000)) -> 0 | I188: =IF(D188="NCC",0,F188+SUMIF(XUAT!$N$1:$N$5000,B188,XUAT!$L$1:$L$5000)-SUMIF(XUAT!$N$1:$N$5000,B188,XUAT!$O$1:$O$5000)) -> 0
A189: 187 | H189: =IF(D189="KH",0,E189+SUMIF(NHAP!$L$1:$L$5000,B189,NHAP!$K$1:$K$5000)-SUMIF(NHAP!$L$1:$L$5000,B189,NHAP!$M$1:$M$5000)) -> 0 | I189: =IF(D189="NCC",0,F189+SUMIF(XUAT!$N$1:$N$5000,B189,XUAT!$L$1:$L$5000)-SUMIF(XUAT!$N$1:$N$5000,B189,XUAT!$O$1:$O$5000)) -> 0
A190: 188 | H190: =IF(D190="KH",0,E190+SUMIF(NHAP!$L$1:$L$5000,B190,NHAP!$K$1:$K$5000)-SUMIF(NHAP!$L$1:$L$5000,B190,NHAP!$M$1:$M$5000)) -> 0 | I190: =IF(D190="NCC",0,F190+SUMIF(XUAT!$N$1:$N$5000,B190,XUAT!$L$1:$L$5000)-SUMIF(XUAT!$N$1:$N$5000,B190,XUAT!$O$1:$O$5000)) -> 0
A191: 189 | H191: =IF(D191="KH",0,E191+SUMIF(NHAP!$L$1:$L$5000,B191,NHAP!$K$1:$K$5000)-SUMIF(NHAP!$L$1:$L$5000,B191,NHAP!$M$1:$M$5000)) -> 0 | I191: =IF(D191="NCC",0,F191+SUMIF(XUAT!$N$1:$N$5000,B191,XUAT!$L$1:$L$5000)-SUMIF(XUAT!$N$1:$N$5000,B191,XUAT!$O$1:$O$5000)) -> 0
A192: 190 | H192: =IF(D192="KH",0,E192+SUMIF(NHAP!$L$1:$L$5000,B192,NHAP!$K$1:$K$5000)-SUMIF(NHAP!$L$1:$L$5000,B192,NHAP!$M$1:$M$5000)) -> 0 | I192: =IF(D192="NCC",0,F192+SUMIF(XUAT!$N$1:$N$5000,B192,XUAT!$L$1:$L$5000)-SUMIF(XUAT!$N$1:$N$5000,B192,XUAT!$O$1:$O$5000)) -> 0
A193: 191 | H193: =IF(D193="KH",0,E193+SUMIF(NHAP!$L$1:$L$5000,B193,NHAP!$K$1:$K$5000)-SUMIF(NHAP!$L$1:$L$5000,B193,NHAP!$M$1:$M$5000)) -> 0 | I193: =IF(D193="NCC",0,F193+SUMIF(XUAT!$N$1:$N$5000,B193,XUAT!$L$1:$L$5000)-SUMIF(XUAT!$N$1:$N$5000,B193,XUAT!$O$1:$O$5000)) -> 0
A194: 192 | H194: =IF(D194="KH",0,E194+SUMIF(NHAP!$L$1:$L$5000,B194,NHAP!$K$1:$K$5000)-SUMIF(NHAP!$L$1:$L$5000,B194,NHAP!$M$1:$M$5000)) -> 0 | I194: =IF(D194="NCC",0,F194+SUMIF(XUAT!$N$1:$N$5000,B194,XUAT!$L$1:$L$5000)-SUMIF(XUAT!$N$1:$N$5000,B194,XUAT!$O$1:$O$5000)) -> 0
A195: 193 | H195: =IF(D195="KH",0,E195+SUMIF(NHAP!$L$1:$L$5000,B195,NHAP!$K$1:$K$5000)-SUMIF(NHAP!$L$1:$L$5000,B195,NHAP!$M$1:$M$5000)) -> 0 | I195: =IF(D195="NCC",0,F195+SUMIF(XUAT!$N$1:$N$5000,B195,XUAT!$L$1:$L$5000)-SUMIF(XUAT!$N$1:$N$5000,B195,XUAT!$O$1:$O$5000)) -> 0
A196: 194 | H196: =IF(D196="KH",0,E196+SUMIF(NHAP!$L$1:$L$5000,B196,NHAP!$K$1:$K$5000)-SUMIF(NHAP!$L$1:$L$5000,B196,NHAP!$M$1:$M$5000)) -> 0 | I196: =IF(D196="NCC",0,F196+SUMIF(XUAT!$N$1:$N$5000,B196,XUAT!$L$1:$L$5000)-SUMIF(XUAT!$N$1:$N$5000,B196,XUAT!$O$1:$O$5000)) -> 0
A197: 195 | H197: =IF(D197="KH",0,E197+SUMIF(NHAP!$L$1:$L$5000,B197,NHAP!$K$1:$K$5000)-SUMIF(NHAP!$L$1:$L$5000,B197,NHAP!$M$1:$M$5000)) -> 0 | I197: =IF(D197="NCC",0,F197+SUMIF(XUAT!$N$1:$N$5000,B197,XUAT!$L$1:$L$5000)-SUMIF(XUAT!$N$1:$N$5000,B197,XUAT!$O$1:$O$5000)) -> 0
A198: 196 | H198: =IF(D198="KH",0,E198+SUMIF(NHAP!$L$1:$L$5000,B198,NHAP!$K$1:$K$5000)-SUMIF(NHAP!$L$1:$L$5000,B198,NHAP!$M$1:$M$5000)) -> 0 | I198: =IF(D198="NCC",0,F198+SUMIF(XUAT!$N$1:$N$5000,B198,XUAT!$L$1:$L$5000)-SUMIF(XUAT!$N$1:$N$5000,B198,XUAT!$O$1:$O$5000)) -> 0
A199: 197 | H199: =IF(D199="KH",0,E199+SUMIF(NHAP!$L$1:$L$5000,B199,NHAP!$K$1:$K$5000)-SUMIF(NHAP!$L$1:$L$5000,B199,NHAP!$M$1:$M$5000)) -> 0 | I199: =IF(D199="NCC",0,F199+SUMIF(XUAT!$N$1:$N$5000,B199,XUAT!$L$1:$L$5000)-SUMIF(XUAT!$N$1:$N$5000,B199,XUAT!$O$1:$O$5000)) -> 0
A200: 198 | H200: =IF(D200="KH",0,E200+SUMIF(NHAP!$L$1:$L$5000,B200,NHAP!$K$1:$K$5000)-SUMIF(NHAP!$L$1:$L$5000,B200,NHAP!$M$1:$M$5000)) -> 0 | I200: =IF(D200="NCC",0,F200+SUMIF(XUAT!$N$1:$N$5000,B200,XUAT!$L$1:$L$5000)-SUMIF(XUAT!$N$1:$N$5000,B200,XUAT!$O$1:$O$5000)) -> 0
... 802 more rows
